Workbook

Sheet Welcome
B4: م | C4: الجهة صاحبة المشروع | D4: اسم المشروع | E4: رقم العقد | F4: تاريخ العقد | G4: إجمالي الكشوف الصادرة | H4: إجمالي الكشوف المحصلة | I4: إجمالي الكشوف غير المحصلة | J4: صافي الكشوف المحصلة | K4: صافي الكشوف غير المحصلة | L4: إجمالي السلف المسددة | M4: رصيد سلفة المشروع غير المسددة | N4: التوقيفات لتاريخة
B5: 1 | C5: ='1'!$G$2 -> الشركة العامة للدراسات والاستشارات الفنية | D5: ='1'!$G$3 -> صيانة مقر فرع الدراسات بحمص | E5: ='1'!$G$4 -> ملحق العقد 1 | F5: ='1'!$G$5 -> 2015-07-21 | G5: ='1'!$H$101 -> 1072660 | H5: ='1'!$H$103 -> 1072660 | I5: ='1'!$H$104 -> 0 | J5: ='1'!$P$103 -> 1045843 | K5: ='1'!$P$104 -> 0 | L5: ='1'!$U$103 -> 0 | M5: ='1'!$U$104 -> 0 | N5: ='1'!$U$105 -> 26817
B6: 2 | C6: ='2'!$G$2 -> الشركة السورية للنفط - مديرية حقول المنطقة الوسطى | D6: ='2'!$G$3 -> الأعمال المدنية لتجهيز قواعد الحفارات لموقعين | E6: ='2'!$G$4 -> 37 | F6: ='2'!$G$5 -> 2015-09-03 | G6: ='2'!$H$101 -> 59127638 | H6: ='2'!$H$103 -> 57488971 | I6: ='2'!$H$104 -> 1638667 | J6: ='2'!$P$103 -> 56078299 | K6: ='2'!$P$104 -> 1638667 | L6: ='2'!$U$103 -> 0 | M6: ='2'!$U$104 -> 0 | N6: ='2'!$U$105 -> 0
B7: 3 | C7: ='3'!$G$2 -> اتحاد نقابات العمال - حمص | D7: ='3'!$G$3 -> بناء مكاتب إضافية من طابق واحد في الكتلة A + B | E7: ='3'!$G$4 -> 1 | F7: ='3'!$G$5 -> 2015-07-13 | G7: ='3'!$H$101 -> 24623207 | H7: ='3'!$H$103 -> 16317679 | I7: ='3'!$H$104 -> 8305528 | J7: ='3'!$P$103 -> 15501796 | K7: ='3'!$P$104 -> -3274543 | L7: ='3'!$U$103 -> 0 | M7: ='3'!$U$104 -> 0 | N7: ='3'!$U$105 -> 1160955
B8: 4 | C8: ='4'!$G$2 -> الشركة العامة للدراسات والاستشارات الفنية | D8: ='4'!$G$3 -> صيانة مقر فرع الدراسات بحمص | E8: ='4'!$G$4 -> 1 | F8: ='4'!$G$5 -> 2015-07-21 | G8: ='4'!$H$101 -> 11714158 | H8: ='4'!$H$103 -> 11714158 | I8: ='4'!$H$104 -> 0 | J8: ='4'!$P$103 -> 11228303 | K8: ='4'!$P$104 -> -19655 | L8: ='4'!$U$103 -> 0 | M8: ='4'!$U$104 -> 0 | N8: ='4'!$U$105 -> 0
B9: 5 | C9: ='5'!$G$2 -> المؤسسة العامة للإسكان | D9: ='5'!$G$3 -> إصلاح الشقة 18 في مساكن غرب طريق دمشق | E9: ='5'!$G$4 -> 5/24/32 | F9: ='5'!$G$5 -> 2015-05-14 | G9: ='5'!$H$101 -> 825460 | H9: ='5'!$H$103 -> 825460 | I9: ='5'!$H$104 -> 0 | J9: ='5'!$P$103 -> 803869 | K9: ='5'!$P$104 -> 0 | L9: ='5'!$U$103 -> 0 | M9: ='5'!$U$104 -> 0 | N9: ='5'!$U$105 -> 20636
B10: 6 | C10: ='6'!$G$2 -> المؤسسة العامة للإسكان | D10: ='6'!$G$3 -> إصلاح أربع عمارات في مساكن غرب طريق دمشق | E10: ='6'!$G$4 -> 5/24/15 | F10: ='6'!$G$5 -> 2015-03-24 | G10: ='6'!$H$101 -> 28447444 | H10: ='6'!$H$103 -> 28447444 | I10: ='6'!$H$104 -> 0 | J10: ='6'!$P$103 -> 27656164 | K10: ='6'!$P$104 -> 0 | L10: ='6'!$U$103 -> 0 | M10: ='6'!$U$104 -> 0 | N10: ='6'!$U$105 -> 711186
B11: 7 | C11: ='7'!$G$2 -> المدينة الصناعية - حسياء | D11: ='7'!$G$3 -> سواتر ترابية لحماية المدينة الصناعية بحسياء | E11: ='7'!$G$4 -> 1 | F11: ='7'!$G$5 -> 2015-01-18 | G11: ='7'!$H$101 -> 56825451 | H11: ='7'!$H$103 -> 56825451 | I11: ='7'!$H$104 -> 0 | J11: ='7'!$P$103 -> 55026515 | K11: ='7'!$P$104 -> 0 | L11: ='7'!$U$103 -> 0 | M11: ='7'!$U$104 -> 0 | N11: ='7'!$U$105 -> 0
B12: 8 | C12: ='8'!$G$2 -> المؤسسة العامة لمياه الشرب و الصرف الصحي بحمص | D12: ='8'!$G$3 -> الصرف الصحي في وادي الدهب - 3 | E12: ='8'!$G$4 -> 5 | F12: ='8'!$G$5 -> 2017-07-05 | G12: ='8'!$H$101 -> 263657243 | H12: ='8'!$H$103 -> 210167409 | I12: ='8'!$H$104 -> 53489834 | J12: ='8'!$P$103 -> 202664708 | K12: ='8'!$P$104 -> 52152588 | L12: ='8'!$U$103 -> 0 | M12: ='8'!$U$104 -> 0 | N12: ='8'!$U$105 -> 6591437
B13: 9 | C13: ='48'!$G$2 -> مجلس مدينة حمص | D13: ='9'!$G$3 -> إزالة و ترحيل الأنقاض من حمص القديمة - ملحق عقد | E13: ='9'!$G$4 -> 3 | F13: ='9'!$G$5 -> 2015-07-05 | G13: ='9'!$H$101 -> 22497141 | H13: ='9'!$H$103 -> 22497141 | I13: ='9'!$H$104 -> 0 | J13: ='9'!$P$103 -> 21842832 | K13: ='9'!$P$104 -> 0 | L13: ='9'!$U$103 -> 0 | M13: ='9'!$U$104 -> 0 | N13: ='9'!$U$105 -> 562429
B14: 10 | C14: ='10'!$G$2 -> المؤسسة العامة للإسكان | D14: ='10'!$G$3 -> إصلاح مساكن غرب طريق دمشق - تسع عمارات | E14: ='10'!$G$4 -> 5/24/40 | F14: ='10'!$G$5 -> 2014-10-15 | G14: ='10'!$H$101 -> 32125876 | H14: ='10'!$H$103 -> 30584702 | I14: ='10'!$H$104 -> 1541174 | J14: ='10'!$P$103 -> 29790292 | K14: ='10'!$P$104 -> 1108344 | L14: ='10'!$U$103 -> 0 | M14: ='10'!$U$104 -> 0 | N14: ='10'!$U$105 -> 803146
B15: 11 | C15: ='11'!$G$2 -> مديرية الخدمات الفنية - بحمص | D15: ='11'!$G$3 -> بناء ملحق في مدرسة الاسماعيلية | E15: ='11'!$G$4 -> 5 | F15: ='11'!$G$5 -> 2017-06-20 | G15: ='11'!$H$101 -> 49693071 | H15: ='11'!$H$103 -> 45864095 | I15: ='11'!$H$104 -> 3828976 | J15: ='11'!$P$103 -> 43605500 | K15: ='11'!$P$104 -> 3733252 | L15: ='11'!$U$103 -> 0 | M15: ='11'!$U$104 -> 0 | N15: ='11'!$U$105 -> 1242369
B16: 12 | C16: ='12'!$G$2 -> المؤسسة العامة للإسكان | D16: ='12'!$G$3 -> إصلاح الإضرار الحاصلة في العمارات ( 219 - 234 - 277 - 418 - 651 ) | E16: ='12'!$G$4 -> 9832 / ك | F16: ='12'!$G$5 -> 2017-07-26 | G16: ='12'!$H$101 -> 23425572 | H16: ='12'!$H$103 -> 10558317 | I16: ='12'!$H$104 -> 12867255 | J16: ='12'!$P$103 -> 9291135 | K16: ='12'!$P$104 -> 12545573 | L16: ='12'!$U$103 -> 0 | M16: ='12'!$U$104 -> 0 | N16: ='12'!$U$105 -> 585640
B17: 13 | C17: ='13'!$G$2 -> مديرية الخدمات الفنية - بحمص | D17: ='13'!$G$3 -> مشروع الصرف الصحي في تلحوش - نعرة | E17: ='13'!$G$4 -> ملحق العقد / 1 / للعقد / 7 / 2016 | F17: ='13'!$G$5 -> 2017-09-12 | G17: ='13'!$H$101 -> 12999000 | H17: ='13'!$H$103 -> 12999000 | I17: ='13'!$H$104 -> 0 | J17: ='13'!$P$103 -> 12645140 | K17: ='13'!$P$104 -> 0 | L17: ='13'!$U$103 -> 0 | M17: ='13'!$U$104 -> 0 | N17: ='13'!$U$105 -> 324975
B18: 14 | C18: ='14'!$G$2 -> مديرية الصحة - حمص | D18: ='14'!$G$3 -> إعادة تأهيل مركز كفرام الصحي | E18: ='14'!$G$4 -> ملحق العقد / 1 / للعقد الأساسي / 37 / 2015 | F18: ='14'!$G$5 -> 2017-09-12 | G18: ='14'!$H$101 -> 2839613 | H18: ='14'!$H$103 -> 2839613 | I18: ='14'!$H$104 -> 0 | J18: ='14'!$P$103 -> 2761892 | K18: ='14'!$P$104 -> 0 | L18: ='14'!$U$103 -> 0 | M18: ='14'!$U$104 -> 0 | N18: ='14'!$U$105 -> 70990
B19: 15 | C19: ='15'!$G$2 -> الشركة السورية للنفط - مديرية حقول المنطقة الوسطى | D19: ='15'!$G$3 -> أعمال الطرق إلى قواعد الحفارات | E19: ='15'!$G$4 -> 14 | F19: ='15'!$G$5 -> 2014-09-28 | G19: ='15'!$H$101 -> 55122177 | H19: ='15'!$H$103 -> 55122177 | I19: ='15'!$H$104 -> 0 | J19: ='15'!$P$103 -> 53701575 | K19: ='15'!$P$104 -> 0 | L19: ='15'!$U$103 -> 0 | M19: ='15'!$U$104 -> 0 | N19: ='15'!$U$105 -> 0
B20: 16 | C20: ='16'!$G$2 -> المدينة الصناعية - حسياء | D20: ='16'!$G$3 -> مشروع الأبنية الخدمية لمركز الإيواء بحسياء | E20: ='16'!$G$4 -> 2 | F20: ='16'!$G$5 -> 2015-07-25 | G20: ='16'!$H$101 -> 261409295 | H20: ='16'!$H$103 -> 261409295 | I20: ='16'!$H$104 -> 0 | J20: ='16'!$P$103 -> 248193998 | K20: ='16'!$P$104 -> 0 | L20: ='16'!$U$103 -> 0 | M20: ='16'!$U$104 -> 0 | N20: ='16'!$U$105 -> 3267619
B21: 17 | C21: ='17'!$G$2 -> المدينة الصناعية - حسياء | D21: ='17'!$G$3 -> بناء مساكن إيواء المتضررين بحسياء | E21: ='17'!$G$4 -> بلا | F21: ='17'!$G$5 -> 2013-07-05 | G21: ='17'!$H$101 -> 1031042653 | H21: ='17'!$H$103 -> 1031042653 | I21: ='17'!$H$104 -> 0 | J21: ='17'!$P$103 -> 643417211 | K21: ='17'!$P$104 -> 0 | L21: ='17'!$U$103 -> 350851129 | M21: ='17'!$U$104 -> -9764901 | N21: ='17'!$U$105 -> 25776073
B22: 18 | C22: ='18'!$G$2 -> المدينة الصناعية - حسياء | D22: ='18'!$G$3 -> بناء مساكن إيواء المتضررين بحسياء | E22: ='18'!$G$4 -> 1 | F22: ='18'!$G$5 -> 2014-01-08 | G22: ='18'!$H$101 -> 986739317 | H22: ='18'!$H$103 -> 965368975 | I22: ='18'!$H$104 -> 21370342 | J22: ='18'!$P$103 -> 786882290 | K22: ='18'!$P$104 -> 5702323 | L22: ='18'!$U$103 -> 149449051 | M22: ='18'!$U$104 -> 30200714 | N22: ='18'!$U$105 -> 23461774
B23: 19 | C23: ='19'!$G$2 -> مديرية الخدمات الفنية - بحمص | D23: ='19'!$G$3 -> تعبيد وتزفيت طريق مقبرة الشهداء في جبورين | E23: ='19'!$G$4 -> 38 | F23: ='19'!$G$5 -> 2015-10-07 | G23: ='19'!$H$101 -> 13920041 | H23: ='19'!$H$103 -> 13920041 | I23: ='19'!$H$104 -> 0 | J23: ='19'!$P$103 -> 13428074 | K23: ='19'!$P$104 -> 0 | L23: ='19'!$U$103 -> 0 | M23: ='19'!$U$104 -> 0 | N23: ='19'!$U$105 -> 0
B24: 20 | C24: ='20'!$G$2 -> المؤسسة العامة لمياه الشرب و الصرف الصحي بحمص | D24: ='20'!$G$3 -> الصرف الصحي في وادي الدهب - 2 | E24: ='20'!$G$4 -> 4 | F24: ='20'!$G$5 -> 2017-07-05 | G24: ='20'!$H$101 -> 391119536 | H24: ='20'!$H$103 -> 331936935 | I24: ='20'!$H$104 -> 59182601 | J24: ='20'!$P$103 -> 303609208 | K24: ='20'!$P$104 -> 57703036 | L24: ='20'!$U$103 -> 0 | M24: ='20'!$U$104 -> 0 | N24: ='20'!$U$105 -> 9777991
B25: 21 | C25: ='21'!$G$2 -> مديرية الخدمات الفنية - بحمص | D25: ='21'!$G$3 -> بناء مدرسة للتعليم الثانوي في قرية الربوة | E25: ='21'!$G$4 -> 30 | F25: ='21'!$G$5 -> 2015-09-15 | G25: ='21'!$H$101 -> 113661629 | H25: ='21'!$H$103 -> 113661629 | I25: ='21'!$H$104 -> 0 | J25: ='21'!$P$103 -> 109980414 | K25: ='21'!$P$104 -> 0 | L25: ='21'!$U$103 -> 0 | M25: ='21'!$U$104 -> 0 | N25: ='21'!$U$105 -> 0
B26: 22 | C26: ='22'!$G$2 -> مديرية الخدمات الفنية - بحمص | D26: ='22'!$G$3 -> بناء ملحق في مدرسة صفية أم المؤمنين - حي الزهراء | E26: ='22'!$G$4 -> 33 | F26: ='22'!$G$5 -> 2015-09-15 | G26: ='22'!$H$101 -> 39853196 | H26: ='22'!$H$103 -> 39853196 | I26: ='22'!$H$104 -> 0 | J26: ='22'!$P$103 -> 38000553 | K26: ='22'!$P$104 -> 0 | L26: ='22'!$U$103 -> 0 | M26: ='22'!$U$104 -> 0 | N26: ='22'!$U$105 -> 0
B27: 23 | C27: ='23'!$G$2 -> مديرية الخدمات الفنية - بحمص | D27: ='23'!$G$3 -> بناء مدرسة للتعليم الأساسي في قرية طريز | E27: ='23'!$G$4 -> 31 | F27: ='23'!$G$5 -> 2015-09-15 | G27: ='23'!$H$101 -> 80471361 | H27: ='23'!$H$103 -> 80471361 | I27: ='23'!$H$104 -> 0 | J27: ='23'!$P$103 -> 77801419 | K27: ='23'!$P$104 -> 0 | L27: ='23'!$U$103 -> 0 | M27: ='23'!$U$104 -> 0 | N27: ='23'!$U$105 -> 0
B28: 24 | C28: ='24'!$G$2 -> مديرية الخدمات الفنية - بحمص | D28: ='24'!$G$3 -> بناء ملحق في مدرسة قتيبة بن مسلم الباهلي - عكرمة | E28: ='24'!$G$4 -> 32 | F28: ='24'!$G$5 -> 2015-09-15 | G28: ='24'!$H$101 -> 44883562 | H28: ='24'!$H$103 -> 44883562 | I28: ='24'!$H$104 -> 0 | J28: ='24'!$P$103 -> 42927277 | K28: ='24'!$P$104 -> 0 | L28: ='24'!$U$103 -> 0 | M28: ='24'!$U$104 -> 0 | N28: ='24'!$U$105 -> 0
B29: 25 | C29: ='25'!$G$2 -> المؤسسة العامة لمياه الشرب و الصرف الصحي بحمص | D29: ='25'!$G$3 -> الصرف الصحي في وادي الدهب - 4 | E29: ='25'!$G$4 -> 6 | F29: ='25'!$G$5 -> 2017-07-05 | G29: ='25'!$H$101 -> 259975186 | H29: ='25'!$H$103 -> 217417499 | I29: ='25'!$H$104 -> 42557687 | J29: ='25'!$P$103 -> 192404993 | K29: ='25'!$P$104 -> 41493744 | L29: ='25'!$U$103 -> 0 | M29: ='25'!$U$104 -> 0 | N29: ='25'!$U$105 -> 6499386
B30: 26 | C30: ='26'!$G$2 -> الاتحاد الرياضي العام | D30: ='26'!$G$3 -> ملحق العقد 1 لملحق العقد 1 للعقد 2 / 2010 | E30: ='26'!$G$4 -> 1 - 1 - 2 - 2010 | F30: ='26'!$G$5 -> 2017-08-20 | G30: ='26'!$H$101 -> 2321728 | H30: ='26'!$H$103 -> 2164000 | I30: ='26'!$H$104 -> 157728 | J30: ='26'!$P$103 -> 2105570 | K30: ='26'!$P$104 -> 153785 | L30: ='26'!$U$103 -> 0 | M30: ='26'!$U$104 -> 0 | N30: ='26'!$U$105 -> 58043
B31: 27 | C31: ='27'!$G$2 -> مديرية الخدمات الفنية - بحمص | D31: ='27'!$G$3 -> تعبيد وتزفيت طريق مقبرة الشهداء في تل الصفا | E31: ='27'!$G$4 -> 36 | F31: ='27'!$G$5 -> 2015-10-07 | G31: ='27'!$H$101 -> 14972242 | H31: ='27'!$H$103 -> 14972242 | I31: ='27'!$H$104 -> 0 | J31: ='27'!$P$103 -> 14371818 | K31: ='27'!$P$104 -> 0 | L31: ='27'!$U$103 -> 0 | M31: ='27'!$U$104 -> 0 | N31: ='27'!$U$105 -> 0
B32: 28 | C32: ='28'!$G$2 -> مديرية الخدمات الفنية - بحمص | D32: ='28'!$G$3 -> إعادة تأهيل طريق المختارية - الأشرفية | E32: ='28'!$G$4 -> 25 | F32: ='28'!$G$5 -> 2015-07-22 | G32: ='28'!$H$101 -> 97201804 | H32: ='28'!$H$103 -> 97201804 | I32: ='28'!$H$104 -> 0 | J32: ='28'!$P$103 -> 94696705 | K32: ='28'!$P$104 -> 0 | L32: ='28'!$U$103 -> 0 | M32: ='28'!$U$104 -> 0 | N32: ='28'!$U$105 -> 0
B33: 29 | C33: ='29'!$G$2 -> مديرية السياحة في حمص | D33: ='29'!$G$3 -> صيانة مبنى مديرية السياحة بحمص | E33: ='29'!$G$4 -> 12 | F33: ='29'!$G$5 -> 2015-11-09 | G33: ='29'!$H$101 -> 2936885 | H33: ='29'!$H$103 -> 2936885 | I33: ='29'!$H$104 -> 0 | J33: ='29'!$P$103 -> 2857583 | K33: ='29'!$P$104 -> 0 | L33: ='29'!$U$103 -> 0 | M33: ='29'!$U$104 -> 0 | N33: ='29'!$U$105 -> 73422
B34: 30 | C34: ='30'!$G$2 -> مديرية الخدمات الفنية - بحمص | D34: ='30'!$G$3 -> بناء مدرسة الحوز | E34: ='30'!$G$4 -> 3 | F34: ='30'!$G$5 -> 2017-06-20 | G34: ='30'!$H$101 -> 39312610 | H34: ='30'!$H$103 -> 35790303 | I34: ='30'!$H$104 -> 3522307 | J34: ='30'!$P$103 -> 30990018 | K34: ='30'!$P$104 -> 3284299 | L34: ='30'!$U$103 -> 0 | M34: ='30'!$U$104 -> 0 | N34: ='30'!$U$105 -> 982848
B35: 31 | C35: ='31'!$G$2 -> مديرية الصحة - حمص | D35: ='31'!$G$3 -> توريد و تركيب شبكة غازات طبية و مصاعد و منظومة كاميرات و نظام استدعاء ممرضات | E35: ='31'!$G$4 -> عقد / 1 / ملحق العقد / 31 / 2015 | F35: ='31'!$G$5 -> 2017-07-03 | G35: ='31'!$H$101 -> 142636500 | H35: ='31'!$H$103 -> 142636500 | I35: ='31'!$H$104 -> 0 | J35: ='31'!$P$103 -> 137749859 | K35: ='31'!$P$104 -> 0 | L35: ='31'!$U$103 -> 0 | M35: ='31'!$U$104 -> 0 | N35: ='31'!$U$105 -> 3565913
B36: 32 | C36: ='32'!$G$2 -> مديرية الصحة - حمص | D36: ='32'!$G$3 -> تحويل مشفى جمعية الأخوة الخيرية في دبين إلى مشفى وطني | E36: ='32'!$G$4 -> 12 | F36: ='32'!$G$5 -> 2017-07-04 | G36: ='32'!$H$101 -> 193262720 | H36: ='32'!$H$103 -> 170035040 | I36: ='32'!$H$104 -> 23227680 | J36: ='32'!$P$103 -> 165195892 | K36: ='32'!$P$104 -> 22646987 | L36: ='32'!$U$103 -> 0 | M36: ='32'!$U$104 -> 0 | N36: ='32'!$U$105 -> 4831568
B37: 33 | C37: ='33'!$G$2 -> المدينة الصناعية - حسياء | D37: ='33'!$G$3 -> ملحق العقد الأساسي / 1 / 2014 الموقع العام | E37: ='33'!$G$4 -> 6 | F37: ='33'!$G$5 -> 2015-10-04 | G37: ='33'!$H$101 -> 50369410 | H37: ='33'!$H$103 -> 46445620 | I37: ='33'!$H$104 -> 3923790 | J37: ='33'!$P$103 -> 45152467 | K37: ='33'!$P$104 -> 3425695 | L37: ='33'!$U$103 -> 0 | M37: ='33'!$U$104 -> 0 | N37: ='33'!$U$105 -> 678668
B38: 34 | C38: ='34'!$G$2 -> مديرية الخدمات الفنية - بحمص | D38: ='34'!$G$3 -> صيانة وتركيب بوابة كهرباﺋية في المشفى العسكري بحمص | E38: ='34'!$G$4 -> 43 | F38: ='34'!$G$5 -> 2015-10-25 | G38: ='34'!$H$101 -> 6073838 | H38: ='34'!$H$103 -> 6073838 | I38: ='34'!$H$104 -> 0 | J38: ='34'!$P$103 -> 5907525 | K38: ='34'!$P$104 -> 0 | L38: ='34'!$U$103 -> 0 | M38: ='34'!$U$104 -> 0 | N38: ='34'!$U$105 -> 0
B39: 35 | C39: ='35'!$G$2 -> المؤسسة العامة للإسكان | D39: ='35'!$G$3 -> إصلاح الأضرار الحاصلة في مساكن غرب طريق دمشق / 6 / عمارات | E39: ='35'!$G$4 -> 5/24/64 | F39: ='35'!$G$5 -> 2015-09-23 | G39: ='35'!$H$101 -> 25289989 | H39: ='35'!$H$103 -> 24271321 | I39: ='35'!$H$104 -> 1018668 | J39: ='35'!$P$103 -> 23656111 | K39: ='35'!$P$104 -> 802204 | L39: ='35'!$U$103 -> 0 | M39: ='35'!$U$104 -> 0 | N39: ='35'!$U$105 -> 628245
B40: 36 | C40: ='36'!$G$2 -> بلدية تلكلخ | D40: ='36'!$G$3 -> تنفيذ الصرف الصحي في خربة سعود | E40: ='36'!$G$4 -> 2 | F40: ='36'!$G$5 -> 2017-09-11 | G40: ='36'!$H$101 -> 25436029 | H40: ='36'!$H$103 -> 25256907 | I40: ='36'!$H$104 -> 179122 | J40: ='36'!$P$103 -> 24566785 | K40: ='36'!$P$104 -> 174644 | L40: ='36'!$U$103 -> 0 | M40: ='36'!$U$104 -> 0 | N40: ='36'!$U$105 -> 635900
B41: 37 | C41: ='37'!$G$2 -> مديرية الخدمات الفنية - بحمص | D41: ='37'!$G$3 -> بناء ملحق في مدرسة طلال كاظم / الثابتية / | E41: ='37'!$G$4 -> 4 | F41: ='37'!$G$5 -> 2017-06-20 | G41: ='37'!$H$101 -> 41348632 | H41: ='37'!$H$103 -> 41348632 | I41: ='37'!$H$104 -> 0 | J41: ='37'!$P$103 -> 39408022 | K41: ='37'!$P$104 -> 0 | L41: ='37'!$U$103 -> 0 | M41: ='37'!$U$104 -> 0 | N41: ='37'!$U$105 -> 1033770
B42: 38 | C42: ='38'!$G$2 -> جامعة البعث | D42: ='38'!$G$3 -> تأهيل بعض الفراغات للعملية التعليمية في كلية الإقتصاد | E42: ='38'!$G$4 -> 27 | F42: ='38'!$G$5 -> 2015-11-23 | G42: ='38'!$H$101 -> 1800384 | H42: ='38'!$H$103 -> 1800384 | I42: ='38'!$H$104 -> 0 | J42: ='38'!$P$103 -> 1716394 | K42: ='38'!$P$104 -> 0 | L42: ='38'!$U$103 -> 0 | M42: ='38'!$U$104 -> 0 | N42: ='38'!$U$105 -> 0
B43: 39 | C43: ='39'!$G$2 -> بلدية تلكلخ | D43: ='39'!$G$3 -> تعبيد و تزفيت في قرية خربة سعود | E43: ='39'!$G$4 -> 1 | F43: ='39'!$G$5 -> 2017-06-19 | G43: ='39'!$H$101 -> 8680041 | H43: ='39'!$H$103 -> 8680041 | I43: ='39'!$H$104 -> 0 | J43: ='39'!$P$103 -> 8443720 | K43: ='39'!$P$104 -> 0 | L43: ='39'!$U$103 -> 0 | M43: ='39'!$U$104 -> 0 | N43: ='39'!$U$105 -> 217005
B44: 40 | C44: ='40'!$G$2 -> جامعة البعث | D44: ='40'!$G$3 -> تقديم و تركيب كبل التغذية لتدفﺋة وتكييف مدرجات كلية الطب البشري | E44: ='40'!$G$4 -> 19 | F44: ='40'!$G$5 -> 2015-08-26 | G44: ='40'!$H$101 -> 2997320 | H44: ='40'!$H$103 -> 2997320 | I44: ='40'!$H$104 -> 0 | J44: ='40'!$P$103 -> 2915787 | K44: ='40'!$P$104 -> 0 | L44: ='40'!$U$103 -> 0 | M44: ='40'!$U$104 -> 0 | N44: ='40'!$U$105 -> 0
B45: 41 | C45: ='41'!$G$2 -> الاتحاد الرياضي العام | D45: ='41'!$G$3 -> تأهيل مبنى الإتحاد الرياضي - بحمص | E45: ='41'!$G$4 -> 1 | F45: ='41'!$G$5 -> 2016-01-06 | G45: ='41'!$H$101 -> 6175484 | H45: ='41'!$H$103 -> 4807687 | I45: ='41'!$H$104 -> 1367797 | J45: ='41'!$P$103 -> 4677865 | K45: ='41'!$P$104 -> 1142703 | L45: ='41'!$U$103 -> 0 | M45: ='41'!$U$104 -> 0 | N45: ='41'!$U$105 -> 154385
B46: 42 | C46: ='58'!$G$2 -> مديرية الصحة - حمص | D46: ='42'!$G$3 -> إكساء الطوابق الإضافية في مشفى الزهراء | E46: ='42'!$G$4 -> 31 | F46: ='42'!$G$5 -> 2015-11-18 | G46: ='42'!$H$101 -> 280593128 | H46: ='42'!$H$103 -> 280593128 | I46: ='42'!$H$104 -> 0 | J46: ='42'!$P$103 -> 271138909 | K46: ='42'!$P$104 -> -150000 | L46: ='42'!$U$103 -> 0 | M46: ='42'!$U$104 -> 0 | N46: ='42'!$U$105 -> 7015836
B47: 43 | C47: ='43'!$G$2 -> مديرية الصحة - حمص | D47: ='43'!$G$3 -> تنفيذ الكتلة الخدمية في مشفى دبين على الهيكل | E47: ='43'!$G$4 -> 25 | F47: ='43'!$G$5 -> 2016-06-20 | G47: ='43'!$H$101 -> 33595675 | H47: ='43'!$H$103 -> 33595675 | I47: ='43'!$H$104 -> 0 | J47: ='43'!$P$103 -> 32638418 | K47: ='43'!$P$104 -> 0 | L47: ='43'!$U$103 -> 0 | M47: ='43'!$U$104 -> 0 | N47: ='43'!$U$105 -> 839891
B48: 44 | C48: ='44'!$G$2 -> الشركة العامة للدراسات والاستشارات الفنية | D48: ='44'!$G$3 -> ملحق عقد الصالة الرياضية بتلكلخ | E48: ='44'!$G$4 -> 1 | F48: ='44'!$G$5 -> 2016-11-03 | G48: ='44'!$H$101 -> 0 | H48: ='44'!$H$103 -> 0 | I48: ='44'!$H$104 -> 0 | J48: ='44'!$P$103 -> 0 | K48: ='44'!$P$104 -> 0 | L48: ='44'!$U$103 -> 0 | M48: ='44'!$U$104 -> 0 | N48: ='44'!$U$105 -> 0
B49: 45 | C49: ='45'!$G$2 -> مديرية الخدمات الفنية - بحمص | D49: ='45'!$G$3 -> بناء طابق إضافي في مدرسة التنونة | E49: ='45'!$G$4 -> 56 | F49: ='45'!$G$5 -> 2015-11-25 | G49: ='45'!$H$101 -> 23538594 | H49: ='45'!$H$103 -> 23538594 | I49: ='45'!$H$104 -> 0 | J49: ='45'!$P$103 -> 22897019 | K49: ='45'!$P$104 -> 0 | L49: ='45'!$U$103 -> 0 | M49: ='45'!$U$104 -> 0 | N49: ='45'!$U$105 -> 0
B50: 46 | C50: ='46'!$G$2 -> المدينة الصناعية - حسياء | D50: ='46'!$G$3 -> ملحق عقد اشغال للعقد / بلا / 2013 | E50: ='46'!$G$4 -> 7 | F50: ='46'!$G$5 -> 2015-10-04 | G50: ='46'!$H$101 -> 225449962 | H50: ='46'!$H$103 -> 189589800 | I50: ='46'!$H$104 -> 35860162 | J50: ='46'!$P$103 -> 184383307 | K50: ='46'!$P$104 -> 33376241 | L50: ='46'!$U$103 -> 0 | M50: ='46'!$U$104 -> 0 | N50: ='46'!$U$105 -> 3266378
B51: 47 | C51: ='47'!$G$2 -> الشركة السورية للغاز | D51: ='47'!$G$3 -> أبنية المقر الدائم للشركة السورية للغاز | E51: ='47'!$G$4 -> 7 | F51: ='47'!$G$5 -> 2010-02-28 | G51: ='47'!$H$101 -> 1506289137 | H51: ='47'!$H$103 -> 1506289137 | I51: ='47'!$H$104 -> 0 | J51: ='47'!$P$103 -> 1310744182 | K51: ='47'!$P$104 -> 0 | L51: ='47'!$U$103 -> 120202500 | M51: ='47'!$U$104 -> 0 | N51: ='47'!$U$105 -> 5895982
B52: 48 | C52: ='48'!$G$2 -> مجلس مدينة حمص | D52: ='48'!$G$3 -> إزالة وترحيل الأنقاض من حمص القديمة | E52: ='48'!$G$4 -> 6 | F52: ='48'!$G$5 -> 2014-06-06 | G52: ='48'!$H$101 -> 28335000 | H52: ='48'!$H$103 -> 28125000 | I52: ='48'!$H$104 -> 210000 | J52: ='48'!$P$103 -> 27359385 | K52: ='48'!$P$104 -> 204735 | L52: ='48'!$U$103 -> 0 | M52: ='48'!$U$104 -> 0 | N52: ='48'!$U$105 -> 5265
B53: 49 | C53: ='15'!$G$2 -> الشركة السورية للنفط - مديرية حقول المنطقة الوسطى | D53: ='49'!$G$3 -> هنكارات بيتونية مسبقة الصنع - موقع البسة | E53: ='49'!$G$4 -> 21 | F53: ='49'!$G$5 -> 2014-04-27 | G53: ='49'!$H$101 -> 153941661 | H53: ='49'!$H$103 -> 149282718 | I53: ='49'!$H$104 -> 4658943 | J53: ='49'!$P$103 -> 145453018 | K53: ='49'!$P$104 -> 4658943 | L53: ='49'!$U$103 -> 0 | M53: ='49'!$U$104 -> 0 | N53: ='49'!$U$105 -> 0
B54: 50 | C54: ='50'!$G$2 -> الشركة العامة لمصفاة حمص | D54: ='50'!$G$3 -> صيانات مختلفة في مصفاة حمص | E54: ='50'!$G$4 -> 51 | F54: ='50'!$G$5 -> 2015-04-21 | G54: ='50'!$H$101 -> 26059334 | H54: ='50'!$H$103 -> 23490791 | I54: ='50'!$H$104 -> 2568543 | J54: ='50'!$P$103 -> 17945200 | K54: ='50'!$P$104 -> 2568543 | L54: ='50'!$U$103 -> 3787510 | M54: ='50'!$U$104 -> 0 | N54: ='50'!$U$105 -> 25863
B55: 51 | C55: ='51'!$G$2 -> الشركة العامة لمصفاة حمص | D55: ='51'!$G$3 -> صيانات مختلفة في مصفاة حمص | E55: ='51'!$G$4 -> 76 | F55: ='51'!$G$5 -> 2014-04-07 | G55: ='51'!$H$101 -> 36376279 | H55: ='51'!$H$103 -> 36376279 | I55: ='51'!$H$104 -> 0 | J55: ='51'!$P$103 -> 35844794 | K55: ='51'!$P$104 -> 0 | L55: ='51'!$U$103 -> 0 | M55: ='51'!$U$104 -> 0 | N55: ='51'!$U$105 -> 909410
B56: 52 | C56: ='15'!$G$2 -> الشركة السورية للنفط - مديرية حقول المنطقة الوسطى | D56: ='52'!$G$3 -> أعمال مدنية لقواعد الحفارات | E56: ='52'!$G$4 -> 13 | F56: ='52'!$G$5 -> 2014-09-28 | G56: ='52'!$H$101 -> 77893683 | H56: ='52'!$H$103 -> 77893683 | I56: ='52'!$H$104 -> 0 | J56: ='52'!$P$103 -> 75941161 | K56: ='52'!$P$104 -> 0 | L56: ='52'!$U$103 -> 0 | M56: ='52'!$U$104 -> 0 | N56: ='52'!$U$105 -> 0
B57: 53 | C57: ='53'!$G$2 -> المؤسسة العامة للإسكان | D57: ='53'!$G$3 -> تنفيذ أعمال الطرق و الصرف الصحي في الضاحية العمالية - حمص | E57: ='53'!$G$4 -> 5/24/64 | F57: ='53'!$G$5 -> 2012-10-30 | G57: ='53'!$H$101 -> 147000080 | H57: ='53'!$H$103 -> 120545093 | I57: ='53'!$H$104 -> 26454987 | J57: ='53'!$P$103 -> 116033428 | K57: ='53'!$P$104 -> 25793613 | L57: ='53'!$U$103 -> 0 | M57: ='53'!$U$104 -> 0 | N57: ='53'!$U$105 -> 3675001
B58: 54 | C58: ='54'!$G$2 -> الاتحاد الرياضي العام | D58: ='54'!$G$3 -> تنفيذ وبناء صالة رياضية في تلكلخ | E58: ='54'!$G$4 -> 2 | F58: ='54'!$G$5 -> 2010-05-19 | G58: ='54'!$H$101 -> 114511266 | H58: ='54'!$H$103 -> 73752400 | I58: ='54'!$H$104 -> 40758866 | J58: ='54'!$P$103 -> 63039404 | K58: ='54'!$P$104 -> 38169079 | L58: ='54'!$U$103 -> 5694000 | M58: ='54'!$U$104 -> 0 | N58: ='54'!$U$105 -> 5599040
B59: 55 | C59: ='55'!$G$2 -> المؤسسة العامة لمياه الشرب و الصرف الصحي بحمص | D59: ='55'!$G$3 -> محطة معالجة المشرفة - العامرية | E59: ='55'!$G$4 -> 6/4/25/36 | F59: ='55'!$G$5 -> 29/2/2009 | G59: ='55'!$H$101 -> 317319342 | H59: ='55'!$H$103 -> 198942950 | I59: ='55'!$H$104 -> 118376392 | J59: ='55'!$P$103 -> 178476695 | K59: ='55'!$P$104 -> 118376392 | L59: ='55'!$U$103 -> 7521538 | M59: ='55'!$U$104 -> 22478462 | N59: ='55'!$U$105 -> 12324752
B60: 56 | C60: ='56'!$G$2 -> المؤسسة العامة لمياه الشرب و الصرف الصحي بحمص | D60: ='56'!$G$3 -> محطة معالجة تدمر | E60: ='56'!$G$4 -> 6/4/25/33 | F60: ='56'!$G$5 -> 2009-02-25 | G60: ='56'!$H$101 -> 156244198 | H60: ='56'!$H$103 -> 154564198 | I60: ='56'!$H$104 -> 1680000 | J60: ='56'!$P$103 -> 109431035 | K60: ='56'!$P$104 -> 1596000 | L60: ='56'!$U$103 -> 24730272 | M60: ='56'!$U$104 -> 69371708 | N60: ='56'!$U$105 -> 7812210
B61: 57 | C61: ='57'!$G$2 -> المطران باسيليوس منصور - مطرانية عكار | D61: ='57'!$G$3 -> بناء كنيسة على الهيكل - قرية عناز | E61: ='57'!$G$4 -> 3447 / و | F61: ='57'!$G$5 -> 2011-06-18 | G61: ='57'!$H$101 -> 62324560 | H61: ='57'!$H$103 -> 42165687 | I61: ='57'!$H$104 -> 20158873 | J61: ='57'!$P$103 -> 37405202 | K61: ='57'!$P$104 -> 19568481 | L61: ='57'!$U$103 -> 0 | M61: ='57'!$U$104 -> 0 | N61: ='57'!$U$105 -> 1483111
B62: 58 | C62: ='58'!$G$2 -> مديرية الصحة - حمص | D62: ='58'!$G$3 -> صيانة العيادات الشاملة - بابا عمرو | E62: ='58'!$G$4 -> 5 | F62: ='58'!$G$5 -> 2012-06-30 | G62: ='58'!$H$101 -> 0 | H62: ='58'!$H$103 -> 0 | I62: ='58'!$H$104 -> 0 | J62: ='58'!$P$103 -> 0 | K62: ='58'!$P$104 -> 0 | L62: ='58'!$U$103 -> 0 | M62: ='58'!$U$104 -> 936000 | N62: ='58'!$U$105 -> 0
B63: 59 | C63: ='59'!$G$2 -> مديرية الصحة - حمص | D63: ='59'!$G$3 -> بناء مشفى المخرم | E63: ='59'!$G$4 -> 79 | F63: ='59'!$G$5 -> 2000-12-30 | G63: ='59'!$H$101 -> 0 | H63: ='59'!$H$103 -> 0 | I63: ='59'!$H$104 -> 0 | J63: ='59'!$P$103 -> 0 | K63: ='59'!$P$104 -> 0 | L63: ='59'!$U$103 -> 0 | M63: ='59'!$U$104 -> 0 | N63: ='59'!$U$105 -> 0
B64: 60 | C64: ='60'!$G$2 -> مديرية الصحة - حمص | D64: ='60'!$G$3 -> صيانة وتجديد مركز كفرام الصحي | E64: ='60'!$G$4 -> 37 | F64: ='60'!$G$5 -> 2015-12-20 | G64: ='60'!$H$101 -> 29147662 | H64: ='60'!$H$103 -> 29147662 | I64: ='60'!$H$104 -> 0 | J64: ='60'!$P$103 -> 25433230 | K64: ='60'!$P$104 -> 0 | L64: ='60'!$U$103 -> 0 | M64: ='60'!$U$104 -> 0 | N64: ='60'!$U$105 -> 728693
B65: 61 | C65: ='61'!$G$2 -> بلدية الأشرفية | D65: ='61'!$G$3 -> الصرف الصحي في قرية النجمة مرحلة / 3 / | E65: ='61'!$G$4 -> 1 | F65: ='61'!$G$5 -> 2015-11-30 | G65: ='61'!$H$101 -> 24718966 | H65: ='61'!$H$103 -> 22503057 | I65: ='61'!$H$104 -> 2215909 | J65: ='61'!$P$103 -> 21890325 | K65: ='61'!$P$104 -> 2215909 | L65: ='61'!$U$103 -> 0 | M65: ='61'!$U$104 -> 0 | N65: ='61'!$U$105 -> -4
B66: 62 | C66: ='62'!$G$2 -> بلدية رام العنز | D66: ='62'!$G$3 -> الصرف الصحي في قرية رام الجبل | E66: ='62'!$G$4 -> 1 | F66: ='62'!$G$5 -> 2015-11-16 | G66: ='62'!$H$101 -> 11083904 | H66: ='62'!$H$103 -> 11011777 | I66: ='62'!$H$104 -> 72127 | J66: ='62'!$P$103 -> 10711994 | K66: ='62'!$P$104 -> 72127 | L66: ='62'!$U$103 -> 0 | M66: ='62'!$U$104 -> 0 | N66: ='62'!$U$105 -> 275296
B67: 63 | C67: ='63'!$G$2 -> جامعة البعث | D67: ='63'!$G$3 -> إعداد مخابر كلية طب الأسنان ضمن مبنى كلية الطب البشري و ملحقه | E67: ='63'!$G$4 -> 4 | F67: ='63'!$G$5 -> 2016-08-26 | G67: ='63'!$H$101 -> 91013825 | H67: ='63'!$H$103 -> 91013825 | I67: ='63'!$H$104 -> 0 | J67: ='63'!$P$103 -> 84660956 | K67: ='63'!$P$104 -> 0 | L67: ='63'!$U$103 -> 0 | M67: ='63'!$U$104 -> 0 | N67: ='63'!$U$105 -> 3276
B68: 64 | C68: ='64'!$G$2 -> مديرية الخدمات الفنية - بحمص | D68: ='64'!$G$3 -> تعبيد و تزفيت طريق مقبرة الشهداء - المنقولة | E68: ='64'!$G$4 -> 6 | F68: ='64'!$G$5 -> 2016-04-27 | G68: ='64'!$H$101 -> 22147987 | H68: ='64'!$H$103 -> 22147987 | I68: ='64'!$H$104 -> 0 | J68: ='64'!$P$103 -> 21391936 | K68: ='64'!$P$104 -> 0 | L68: ='64'!$U$103 -> 0 | M68: ='64'!$U$104 -> 0 | N68: ='64'!$U$105 -> 0
B69: 65 | C69: ='65'!$G$2 -> بلدية الصويري | D69: ='65'!$G$3 -> تعبيد و تزفيت شوارع في قرية الصويري | E69: ='65'!$G$4 -> 2 | F69: ='65'!$G$5 -> 2016-01-14 | G69: ='65'!$H$101 -> 14507368 | H69: ='65'!$H$103 -> 12391836 | I69: ='65'!$H$104 -> 2115532 | J69: ='65'!$P$103 -> 12054550 | K69: ='65'!$P$104 -> 2115532 | L69: ='65'!$U$103 -> 0 | M69: ='65'!$U$104 -> 0 | N69: ='65'!$U$105 -> 0
B70: 66 | C70: ='66'!$G$2 -> الشركة العامة لمصفاة حمص | D70: ='66'!$G$3 -> تنفيذ أعمال صيانات مختلفة في مصفاة حمص | E70: ='66'!$G$4 -> 20 | F70: ='66'!$G$5 -> 2016-06-23 | G70: ='66'!$H$101 -> 17147993 | H70: ='66'!$H$103 -> 17147993 | I70: ='66'!$H$104 -> 0 | J70: ='66'!$P$103 -> 13757566 | K70: ='66'!$P$104 -> 0 | L70: ='66'!$U$103 -> 3043490 | M70: ='66'!$U$104 -> 0 | N70: ='66'!$U$105 -> 0
B71: 67 | C71: ='67'!$G$2 -> مديرية الصحة - حمص | D71: ='67'!$G$3 -> إكساء مشفى كرم اللوز الاسعافي | E71: ='67'!$G$4 -> 38 | F71: ='67'!$G$5 -> 2015-12-15 | G71: ='67'!$H$101 -> 307121995 | H71: ='67'!$H$103 -> 287761693 | I71: ='67'!$H$104 -> 19360302 | J71: ='67'!$P$103 -> 278203817 | K71: ='67'!$P$104 -> 18022336 | L71: ='67'!$U$103 -> 0 | M71: ='67'!$U$104 -> 0 | N71: ='67'!$U$105 -> 7678049
B72: 68 | C72: ='68'!$G$2 -> مديرية الخدمات الفنية - بحمص | D72: ='68'!$G$3 -> الأعمال المتبقية لمشروع بناء طابق إضافي في مدرسة القناقية | E72: ='68'!$G$4 -> 57 | F72: ='68'!$G$5 -> 2015-12-12 | G72: ='68'!$H$101 -> 33299696 | H72: ='68'!$H$103 -> 33299696 | I72: ='68'!$H$104 -> 0 | J72: ='68'!$P$103 -> 32187097 | K72: ='68'!$P$104 -> 0 | L72: ='68'!$U$103 -> 0 | M72: ='68'!$U$104 -> 0 | N72: ='68'!$U$105 -> 0
B73: 69 | C73: ='69'!$G$2 -> جامعة البعث | D73: ='69'!$G$3 -> بناء السور الخارجي للمدينة الجامعية مرحلة / 2 / | E73: ='69'!$G$4 -> 11 | F73: ='69'!$G$5 -> 2016-05-15 | G73: ='69'!$H$101 -> 6594416 | H73: ='69'!$H$103 -> 6594416 | I73: ='69'!$H$104 -> 0 | J73: ='69'!$P$103 -> 5883817 | K73: ='69'!$P$104 -> 0 | L73: ='69'!$U$103 -> 0 | M73: ='69'!$U$104 -> 0 | N73: ='69'!$U$105 -> 164861
B74: 70 | C74: ='70'!$G$2 -> الشركة السورية للنفط - مديرية حقول المنطقة الوسطى | D74: ='70'!$G$3 -> تنفيذ طرقات لقواعد الحفارات | E74: ='70'!$G$4 -> 32 | F74: ='70'!$G$5 -> 2016-08-20 | G74: ='70'!$H$101 -> 28240026 | H74: ='70'!$H$103 -> 24700000 | I74: ='70'!$H$104 -> 3540026 | J74: ='70'!$P$103 -> 24081775 | K74: ='70'!$P$104 -> 3520210 | L74: ='70'!$U$103 -> 0 | M74: ='70'!$U$104 -> 0 | N74: ='70'!$U$105 -> 637316
B75: 71 | C75: ='71'!$G$2 -> المدينة الصناعية - حسياء | D75: ='71'!$G$3 -> تنفيذ وصلات صرف صحي لعدد من المقاسم | E75: ='71'!$G$4 -> 7 | F75: ='71'!$G$5 -> 2016-08-10 | G75: ='71'!$H$101 -> 6226083 | H75: ='71'!$H$103 -> 6226083 | I75: ='71'!$H$104 -> 0 | J75: ='71'!$P$103 -> 6056228 | K75: ='71'!$P$104 -> -60000 | L75: ='71'!$U$103 -> 0 | M75: ='71'!$U$104 -> 0 | N75: ='71'!$U$105 -> 0
B76: 72 | C76: ='72'!$G$2 -> مديرية الخدمات الفنية - بحمص | D76: ='72'!$G$3 -> صرف صحي في تلحوش - نعرة | E76: ='72'!$G$4 -> 7 | F76: ='72'!$G$5 -> 2016-04-27 | G76: ='72'!$H$101 -> 34118196 | H76: ='72'!$H$103 -> 34118196 | I76: ='72'!$H$104 -> 0 | J76: ='72'!$P$103 -> 32836481 | K76: ='72'!$P$104 -> 0 | L76: ='72'!$U$103 -> 0 | M76: ='72'!$U$104 -> 0 | N76: ='72'!$U$105 -> 852969
B77: 73 | C77: ='73'!$G$2 -> الاتحاد الرياضي العام | D77: ='73'!$G$3 -> بناء الصالة الرياصية في تلكلخ - ملحق عقد | E77: ='73'!$G$4 -> 1 | F77: ='73'!$G$5 -> 2017-12-01 | G77: ='73'!$H$101 -> 33078440 | H77: ='73'!$H$103 -> 32748500 | I77: ='73'!$H$104 -> 329940 | J77: ='73'!$P$103 -> 31864287 | K77: ='73'!$P$104 -> 321691 | L77: ='73'!$U$103 -> 0 | M77: ='73'!$U$104 -> 0 | N77: ='73'!$U$105 -> 826962
B78: 74 | C78: ='74'!$G$2 -> بلدية المضابع | D78: ='74'!$G$3 -> تعبيد و تزفيت أعمال طرق في بلدية المضابع | E78: ='74'!$G$4 -> 2 | F78: ='74'!$G$5 -> 2016-08-08 | G78: ='74'!$H$101 -> 12364799 | H78: ='74'!$H$103 -> 12063786 | I78: ='74'!$H$104 -> 301013 | J78: ='74'!$P$103 -> 11735476 | K78: ='74'!$P$104 -> 292741 | L78: ='74'!$U$103 -> 0 | M78: ='74'!$U$104 -> 0 | N78: ='74'!$U$105 -> 309120
B79: 75 | C79: ='75'!$G$2 -> جامعة البعث | D79: ='75'!$G$3 -> تأهيل فراغات في مبنى كلية الزراعة | E79: ='75'!$G$4 -> 14 | F79: ='75'!$G$5 -> 2016-09-06 | G79: ='75'!$H$101 -> 4612125 | H79: ='75'!$H$103 -> 4612125 | I79: ='75'!$H$104 -> 0 | J79: ='75'!$P$103 -> 4486638 | K79: ='75'!$P$104 -> 0 | L79: ='75'!$U$103 -> 0 | M79: ='75'!$U$104 -> 0 | N79: ='75'!$U$105 -> 0
B80: 76 | C80: ='76'!$G$2 -> مديرية الخدمات الفنية - بحمص | D80: ='76'!$G$3 -> بناء مدرسة الأرمن على العقار 2141 | E80: ='76'!$G$4 -> 104 | F80: ='76'!$G$5 -> 2008-11-10 | G80: ='76'!$H$101 -> 64207856 | H80: ='76'!$H$103 -> 64207856 | I80: ='76'!$H$104 -> 0 | J80: ='76'!$P$103 -> 52554051 | K80: ='76'!$P$104 -> 0 | L80: ='76'!$U$103 -> 8300000 | M80: ='76'!$U$104 -> 0 | N80: ='76'!$U$105 -> 0
B81: 77 | C81: ='77'!$G$2 -> الشركة العامة لتخزين و توزيع المواد البترولية | D81: ='77'!$G$3 -> ترميم مداخل مستودعات تشرين و محطة للتحميل | E81: ='77'!$G$4 -> 2016 / 41 / 43 | F81: ='77'!$G$5 -> 2016-05-05 | G81: ='77'!$H$101 -> 51654674 | H81: ='77'!$H$103 -> 51654674 | I81: ='77'!$H$104 -> 0 | J81: ='77'!$P$103 -> 50363307 | K81: ='77'!$P$104 -> 0 | L81: ='77'!$U$103 -> 0 | M81: ='77'!$U$104 -> 0 | N81: ='77'!$U$105 -> 1291367
B82: 78 | C82: ='78'!$G$2 -> الاتحاد الرياضي العام | D82: ='78'!$G$3 -> ملحق / 1 / تأهيل مبنى الاتحاد الرياضي العام بحمص | E82: ='78'!$G$4 -> 1 ملحق | F82: ='78'!$G$5 -> 00:00:00 | G82: ='78'!$H$101 -> 3916468 | H82: ='78'!$H$103 -> 3239350 | I82: ='78'!$H$104 -> 677118 | J82: ='78'!$P$103 -> 3151877 | K82: ='78'!$P$104 -> 660191 | L82: ='78'!$U$103 -> 0 | M82: ='78'!$U$104 -> 0 | N82: ='78'!$U$105 -> 97911
B83: 79 | C83: ='79'!$G$2 -> مديرية الخدمات الفنية - بحمص | D83: ='79'!$G$3 -> إعادة تأهيل مدرسة عبد الحميد الحراكي بحي القصور | E83: ='79'!$G$4 -> 25 | F83: ='79'!$G$5 -> 2016-09-20 | G83: ='79'!$H$101 -> 4982957 | H83: ='79'!$H$103 -> 4982957 | I83: ='79'!$H$104 -> 0 | J83: ='79'!$P$103 -> 4782591 | K83: ='79'!$P$104 -> 0 | L83: ='79'!$U$103 -> 0 | M83: ='79'!$U$104 -> 0 | N83: ='79'!$U$105 -> 0
B84: 80 | C84: ='80'!$G$2 -> مديرية الخدمات الفنية - بحمص | D84: ='80'!$G$3 -> تعبيد و تزفيت طريق قرية البدورية | E84: ='80'!$G$4 -> 55 | F84: ='80'!$G$5 -> 2016-12-13 | G84: ='80'!$H$101 -> 6114823 | H84: ='80'!$H$103 -> 6114823 | I84: ='80'!$H$104 -> 0 | J84: ='80'!$P$103 -> 5903485 | K84: ='80'!$P$104 -> 0 | L84: ='80'!$U$103 -> 0 | M84: ='80'!$U$104 -> 0 | N84: ='80'!$U$105 -> 0
B85: 81 | C85: ='81'!$G$2 -> مديرية الخدمات الفنية - بحمص | D85: ='81'!$G$3 -> بناء ملحق إضافي في مدرسة مفيد كامل درغلي - فيروزه | E85: ='81'!$G$4 -> 41 | F85: ='81'!$G$5 -> 00:00:00 | G85: ='81'!$H$101 -> 30897771 | H85: ='81'!$H$103 -> 30897771 | I85: ='81'!$H$104 -> 0 | J85: ='81'!$P$103 -> 29971590 | K85: ='81'!$P$104 -> 0 | L85: ='81'!$U$103 -> 0 | M85: ='81'!$U$104 -> 0 | N85: ='81'!$U$105 -> 0
B86: 82 | C86: ='82'!$G$2 -> مديرية الخدمات الفنية - بحمص | D86: ='82'!$G$3 -> بناء ملحق في مدرسة جعفر كنعان في بلدة الغور الغربية | E86: ='82'!$G$4 -> 23 | F86: ='82'!$G$5 -> 00:00:00 | G86: ='82'!$H$101 -> 50664393 | H86: ='82'!$H$103 -> 50664393 | I86: ='82'!$H$104 -> 0 | J86: ='82'!$P$103 -> 49218425 | K86: ='82'!$P$104 -> 0 | L86: ='82'!$U$103 -> 0 | M86: ='82'!$U$104 -> 0 | N86: ='82'!$U$105 -> 0
B87: 83 | C87: ='83'!$G$2 -> مديرية الخدمات الفنية - بحمص | D87: ='83'!$G$3 -> بناء ملحق في مدرسة المأمون في حي المهاجرين بحمص | E87: ='83'!$G$4 -> 50 | F87: ='83'!$G$5 -> 00:00:00 | G87: ='83'!$H$101 -> 42734643 | H87: ='83'!$H$103 -> 37952548 | I87: ='83'!$H$104 -> 4782095 | J87: ='83'!$P$103 -> 35908786 | K87: ='83'!$P$104 -> 4662543 | L87: ='83'!$U$103 -> 0 | M87: ='83'!$U$104 -> 0 | N87: ='83'!$U$105 -> 1068409
B88: 84 | C88: ='84'!$G$2 -> مديرية الخدمات الفنية - بحمص | D88: ='84'!$G$3 -> بناء ملحق في مدرسة عبد الكريم رزوق - تلشنان | E88: ='84'!$G$4 -> 51 | F88: ='84'!$G$5 -> 00:00:00 | G88: ='84'!$H$101 -> 42274283 | H88: ='84'!$H$103 -> 40677269 | I88: ='84'!$H$104 -> 1597014 | J88: ='84'!$P$103 -> 39565346 | K88: ='84'!$P$104 -> 1557089 | L88: ='84'!$U$103 -> 0 | M88: ='84'!$U$104 -> 0 | N88: ='84'!$U$105 -> 1056901
B89: 85 | C89: ='85'!$G$2 -> مديرية الخدمات الفنية - بحمص | D89: ='85'!$G$3 -> إعادة تأهيل مدرسة محمد أمين القاعي - حي القصور | E89: ='85'!$G$4 -> 60 | F89: ='85'!$G$5 -> 00:00:00 | G89: ='85'!$H$101 -> 8908058 | H89: ='85'!$H$103 -> 6273297 | I89: ='85'!$H$104 -> 2634761 | J89: ='85'!$P$103 -> 5601447 | K89: ='85'!$P$104 -> 2794692 | L89: ='85'!$U$103 -> 0 | M89: ='85'!$U$104 -> 0 | N89: ='85'!$U$105 -> 222715
B90: 86 | C90: ='86'!$G$2 -> مديرية الخدمات الفنية - بحمص | D90: ='86'!$G$3 -> بناء مدرسة في قرية الروضة | E90: ='86'!$G$4 -> 27 | F90: ='86'!$G$5 -> 2016-09-26 | G90: ='86'!$H$101 -> 79838848 | H90: ='86'!$H$103 -> 71923023 | I90: ='86'!$H$104 -> 7915825 | J90: ='86'!$P$103 -> 69875113 | K90: ='86'!$P$104 -> 7651354 | L90: ='86'!$U$103 -> 0 | M90: ='86'!$U$104 -> 0 | N90: ='86'!$U$105 -> 1995983
B91: 87 | C91: ='87'!$G$2 -> مديرية الخدمات الفنية - بحمص | D91: ='87'!$G$3 -> بناء ملحق في مدرسة الشهيد حمدان محفوض - عكرمه | E91: ='87'!$G$4 -> 40 | F91: ='87'!$G$5 -> 00:00:00 | G91: ='87'!$H$101 -> 46808380 | H91: ='87'!$H$103 -> 46808380 | I91: ='87'!$H$104 -> 0 | J91: ='87'!$P$103 -> 42208523 | K91: ='87'!$P$104 -> 0 | L91: ='87'!$U$103 -> 0 | M91: ='87'!$U$104 -> 0 | N91: ='87'!$U$105 -> 1170239
B92: 88 | C92: ='88'!$G$2 -> مديرية الخدمات الفنية - بحمص | D92: ='88'!$G$3 -> أعمال الحماية لطريق حاويك - أكوم | E92: ='88'!$G$4 -> 47 | F92: ='88'!$G$5 -> 00:00:00 | G92: ='88'!$H$101 -> 27648777 | H92: ='88'!$H$103 -> 27648777 | I92: ='88'!$H$104 -> 0 | J92: ='88'!$P$103 -> 26649702 | K92: ='88'!$P$104 -> 0 | L92: ='88'!$U$103 -> 0 | M92: ='88'!$U$104 -> 0 | N92: ='88'!$U$105 -> 0
B93: 89 | C93: ='89'!$G$2 -> مديرية الخدمات الفنية - بحمص | D93: ='89'!$G$3 -> بناء ملحق في مدرسة عبد الوهاب الأسعد | E93: ='89'!$G$4 -> 39 | F93: ='89'!$G$5 -> 2016-10-18 | G93: ='89'!$H$101 -> 38303657 | H93: ='89'!$H$103 -> 38303657 | I93: ='89'!$H$104 -> 0 | J93: ='89'!$P$103 -> 36927879 | K93: ='89'!$P$104 -> 0 | L93: ='89'!$U$103 -> 0 | M93: ='89'!$U$104 -> 0 | N93: ='89'!$U$105 -> 0
B94: 90 | C94: ='90'!$G$2 -> مديرية الخدمات الفنية - بحمص | D94: ='90'!$G$3 -> بناء طابق إضافي في مدرسة معروف السالم - الحراكي | E94: ='90'!$G$4 -> 54 | F94: ='90'!$G$5 -> 2016-11-14 | G94: ='90'!$H$101 -> 29312850 | H94: ='90'!$H$103 -> 29312850 | I94: ='90'!$H$104 -> 0 | J94: ='90'!$P$103 -> 28473434 | K94: ='90'!$P$104 -> 0 | L94: ='90'!$U$103 -> 0 | M94: ='90'!$U$104 -> 0 | N94: ='90'!$U$105 -> 732852
B95: 91 | C95: ='91'!$G$2 -> مديرية الخدمات الفنية - بحمص | D95: ='91'!$G$3 -> بناء طابق إضافي في مدرسة أحمد صادق مرعي - أم العمد | E95: ='91'!$G$4 -> 58 | F95: ='91'!$G$5 -> 2016-11-14 | G95: ='91'!$H$101 -> 28046010 | H95: ='91'!$H$103 -> 28046010 | I95: ='91'!$H$104 -> 0 | J95: ='91'!$P$103 -> 27230447 | K95: ='91'!$P$104 -> 0 | L95: ='91'!$U$103 -> 0 | M95: ='91'!$U$104 -> 0 | N95: ='91'!$U$105 -> 701195
B96: 92 | C96: ='92'!$G$2 -> مديرية الخدمات الفنية - بحمص | D96: ='92'!$G$3 -> إعادة تأهيل مدرسة ابن سينا - حي التأمينات | E96: ='92'!$G$4 -> 67 | F96: ='92'!$G$5 -> 2016-12-28 | G96: ='92'!$H$101 -> 14317068 | H96: ='92'!$H$103 -> 14317068 | I96: ='92'!$H$104 -> 0 | J96: ='92'!$P$103 -> 13723790 | K96: ='92'!$P$104 -> 0 | L96: ='92'!$U$103 -> 0 | M96: ='92'!$U$104 -> 0 | N96: ='92'!$U$105 -> 0
B97: 93 | C97: ='93'!$G$2 -> المؤسسة العامة للإسكان | D97: ='93'!$G$3 -> الأعمال المتبقية لإنشاء مبنى سكني من 8 طبقات على المقسمين 59 - 60 | E97: ='93'!$G$4 -> 5 / 24 / 38 | F97: ='93'!$G$5 -> 8/8/2016 | G97: ='93'!$H$101 -> 282288746 | H97: ='93'!$H$103 -> 240066443 | I97: ='93'!$H$104 -> 42222303 | J97: ='93'!$P$103 -> 231945319 | K97: ='93'!$P$104 -> 41166746 | L97: ='93'!$U$103 -> 0 | M97: ='93'!$U$104 -> 0 | N97: ='93'!$U$105 -> 7057220
B98: 94 | C98: ='94'!$G$2 -> جامعة البعث | D98: ='94'!$G$3 -> إصلاح الأضرار في كلية الهمك | E98: ='94'!$G$4 -> 20 | F98: ='94'!$G$5 -> 2016-12-16 | G98: ='94'!$H$101 -> 3872050 | H98: ='94'!$H$103 -> 3872050 | I98: ='94'!$H$104 -> 0 | J98: ='94'!$P$103 -> 3766710 | K98: ='94'!$P$104 -> 0 | L98: ='94'!$U$103 -> 0 | M98: ='94'!$U$104 -> 0 | N98: ='94'!$U$105 -> 0
B99: 95 | C99: ='95'!$G$2 -> قيادة شرطة محافظة حمص | D99: ='95'!$G$3 -> صيانة قسم شرطة الحميدية | E99: ='95'!$G$4 -> 2 / ع | F99: ='95'!$G$5 -> 2016-11-12 | G99: ='95'!$H$101 -> 12341528 | H99: ='95'!$H$103 -> 12341528 | I99: ='95'!$H$104 -> 0 | J99: ='95'!$P$103 -> 11969110 | K99: ='95'!$P$104 -> 0 | L99: ='95'!$U$103 -> 0 | M99: ='95'!$U$104 -> 0 | N99: ='95'!$U$105 -> 308538
B100: 96 | C100: ='96'!$G$2 -> بلدية قزحل | D100: ='96'!$G$3 -> صرف صحي في قرية التنونة | E100: ='96'!$G$4 -> 1 | F100: ='96'!$G$5 -> 28/4/2016 | G100: ='96'!$H$101 -> 34046760 | H100: ='96'!$H$103 -> 31163897 | I100: ='96'!$H$104 -> 2882863 | J100: ='96'!$P$103 -> 30315584 | K100: ='96'!$P$104 -> 2520658 | L100: ='96'!$U$103 -> 0 | M100: ='96'!$U$104 -> 0 | N100: ='96'!$U$105 -> 851171
B101: 97 | C101: ='97'!$G$2 -> المؤسسة العامة للإسكان | D101: ='97'!$G$3 -> تنفيذ أعمال الطرق و الصرف الصحي في الضاحية العمالية - حمص ملحق | E101: ='97'!$G$4 -> 2875 | F101: ='97'!$G$5 -> 2017-03-14 | G101: ='97'!$H$101 -> 0 | H101: ='97'!$H$103 -> 0 | I101: ='97'!$H$104 -> 0 | J101: ='97'!$P$103 -> 0 | K101: ='97'!$P$104 -> 0 | L101: ='97'!$U$103 -> 0 | M101: ='97'!$U$104 -> 0 | N101: ='97'!$U$105 -> 0
B102: 98 | C102: ='98'!$G$2 -> بلدية كفرنان | D102: ='98'!$G$3 -> تأهيل مبنى مرحلة أولى لإحداث مخفر تسنين | E102: ='98'!$G$4 -> 1 | F102: ='98'!$G$5 -> 00:00:00 | G102: ='98'!$H$101 -> 6322855 | H102: ='98'!$H$103 -> 6322855 | I102: ='98'!$H$104 -> 0 | J102: ='98'!$P$103 -> 6150494 | K102: ='98'!$P$104 -> 0 | L102: ='98'!$U$103 -> 0 | M102: ='98'!$U$104 -> 0 | N102: ='98'!$U$105 -> 158072
B103: 99 | C103: ='99'!$G$2 -> جامعة البعث | D103: ='99'!$G$3 -> تأهيل مكتبة كلية الهندسة المعمارية | E103: ='99'!$G$4 -> 3 | F103: ='99'!$G$5 -> 2017-02-27 | G103: ='99'!$H$101 -> 4341820 | H103: ='99'!$H$103 -> 4341820 | I103: ='99'!$H$104 -> 0 | J103: ='99'!$P$103 -> 4149885 | K103: ='99'!$P$104 -> 0 | L103: ='99'!$U$103 -> 0 | M103: ='99'!$U$104 -> 0 | N103: ='99'!$U$105 -> 0
B104: 100 | C104: ='100'!$G$2 -> اتحاد نقابات العمال - حمص | D104: ='100'!$G$3 -> تصوينة المجمع الخدمي لاتحاد نقابات العمال بحسياء | E104: ='100'!$G$4 -> 1 | F104: ='100'!$G$5 -> 2017-04-20 | G104: ='100'!$H$101 -> 14972031 | H104: ='100'!$H$103 -> 14972031 | I104: ='100'!$H$104 -> 0 | J104: ='100'!$P$103 -> 13577490 | K104: ='100'!$P$104 -> 0 | L104: ='100'!$U$103 -> 0 | M104: ='100'!$U$104 -> 0 | N104: ='100'!$U$105 -> 714541
B105: 101 | C105: ='101'!$G$2 -> المؤسسة العامة للإسكان | D105: ='101'!$G$3 -> أعمال مرافق متفرقة في القطاعين 3 - 4 بمنطقة مساكن غرب طريق دمشق | E105: ='101'!$G$4 -> 11367 / ك | F105: ='101'!$G$5 -> 2017-04-20 | G105: ='101'!$H$101 -> 83847906 | H105: ='101'!$H$103 -> 68578867 | I105: ='101'!$H$104 -> 15269039 | J105: ='101'!$P$103 -> 62852160 | K105: ='101'!$P$104 -> 14887312 | L105: ='101'!$U$103 -> 0 | M105: ='101'!$U$104 -> 0 | N105: ='101'!$U$105 -> 2096199
B106: 102 | C106: ='102'!$G$2 -> المؤسسة السورية للتجارة | D106: ='102'!$G$3 -> ترميم مجمع الوعر و صالة الخضار بالوعر | E106: ='102'!$G$4 -> 2 | F106: ='102'!$G$5 -> 2017-10-10 | G106: ='102'!$H$101 -> 45606521 | H106: ='102'!$H$103 -> 45606521 | I106: ='102'!$H$104 -> 0 | J106: ='102'!$P$103 -> 44466358 | K106: ='102'!$P$104 -> 0 | L106: ='102'!$U$103 -> 0 | M106: ='102'!$U$104 -> 0 | N106: ='102'!$U$105 -> 1140163
B107: 103 | C107: ='103'!$G$2 -> الاتحاد الرياضي العام | D107: ='103'!$G$3 -> ملحق / 2 / تأهيل مبنى الاتحاد الرياضي العام بحمص | E107: ='103'!$G$4 -> 2 ملحق | F107: ='103'!$G$5 -> 2017-08-13 | G107: ='103'!$H$101 -> 6598632 | H107: ='103'!$H$103 -> 5599170 | I107: ='103'!$H$104 -> 999462 | J107: ='103'!$P$103 -> 5447981 | K107: ='103'!$P$104 -> 974476 | L107: ='103'!$U$103 -> 0 | M107: ='103'!$U$104 -> 0 | N107: ='103'!$U$105 -> 164965
B108: 104 | C108: ='104'!$G$2 -> المؤسسة العامة للتأمينات الاجتماعية - حمص | D108: ='104'!$G$3 -> ترميم طابق مع ملحقاته و خدماته لفرع التأمينات | E108: ='104'!$G$4 -> 11 | F108: ='104'!$G$5 -> 2017-10-12 | G108: ='104'!$H$101 -> 48801940 | H108: ='104'!$H$103 -> 48801940 | I108: ='104'!$H$104 -> 0 | J108: ='104'!$P$103 -> 47581891 | K108: ='104'!$P$104 -> 0 | L108: ='104'!$U$103 -> 0 | M108: ='104'!$U$104 -> 0 | N108: ='104'!$U$105 -> 1220049
B109: 105 | C109: ='105'!$G$2 -> الشركة العامة للفوسفات و المناجم | D109: ='105'!$G$3 -> انتاج كمية 600000 طن +_ 25% فوسفات مركز بواسطة كسارة من مناجم الشرقية / ب / | E109: ='105'!$G$4 -> 2 | F109: ='105'!$G$5 -> 2017-10-19 | G109: ='105'!$H$101 -> 329016845 | H109: ='105'!$H$103 -> 329016845 | I109: ='105'!$H$104 -> 0 | J109: ='105'!$P$103 -> 320789427 | K109: ='105'!$P$104 -> 0 | L109: ='105'!$U$103 -> 0 | M109: ='105'!$U$104 -> 50000000 | N109: ='105'!$U$105 -> 8225422
B110: 106 | C110: ='106'!$G$2 -> الشركة العامة للفوسفات و المناجم | D110: ='106'!$G$3 -> أعمال حفر و جرف و تحميل و نقل 600000 م3 +- 25% ردميات في مناجم الشرقية / ب / | E110: ='106'!$G$4 -> 3 | F110: ='106'!$G$5 -> 2017-10-19 | G110: ='106'!$H$101 -> 798242350 | H110: ='106'!$H$103 -> 798242350 | I110: ='106'!$H$104 -> 0 | J110: ='106'!$P$103 -> 739487122 | K110: ='106'!$P$104 -> 0 | L110: ='106'!$U$103 -> 34462158 | M110: ='106'!$U$104 -> 15537842 | N110: ='106'!$U$105 -> 9978029
B111: 107 | C111: ='107'!$G$2 -> الشركة العامة للفوسفات و المناجم | D111: ='107'!$G$3 -> أعمال حفر و جرف و تحميل و نقل 500000 م3 +- 25% ردميات في مناجم خنيفيس المنجم الشمالي | E111: ='107'!$G$4 -> 4 | F111: ='107'!$G$5 -> 2017-10-19 | G111: ='107'!$H$101 -> 982500000 | H111: ='107'!$H$103 -> 982500000 | I111: ='107'!$H$104 -> 0 | J111: ='107'!$P$103 -> 889723591 | K111: ='107'!$P$104 -> 0 | L111: ='107'!$U$103 -> 65537842 | M111: ='107'!$U$104 -> -15537842 | N111: ='107'!$U$105 -> 12281252
B112: 108 | C112: ='108'!$G$2 -> الشركة العامة للفوسفات و المناجم | D112: ='108'!$G$3 -> أعمال حفر و جرف و تحميل و نقل 600000 م3 +- 25% ردميات في مناجم الشرقية / ب / | E112: ='108'!$G$4 -> 5 | F112: ='108'!$G$5 -> 2017-10-25 | G112: ='108'!$H$101 -> 798009825 | H112: ='108'!$H$103 -> 798009825 | I112: ='108'!$H$104 -> 0 | J112: ='108'!$P$103 -> 772281949 | K112: ='108'!$P$104 -> 0 | L112: ='108'!$U$103 -> 0 | M112: ='108'!$U$104 -> 0 | N112: ='108'!$U$105 -> 9975106
B113: 109 | C113: ='109'!$G$2 -> الشركة العامة للفوسفات و المناجم | D113: ='109'!$G$3 -> أعمال حفر و جرف و تحميل و نقل 500000 م3 +- 25% ردميات من مناجم خنيفس المنجم الشمالي | E113: ='109'!$G$4 -> 6 | F113: ='109'!$G$5 -> 2017-10-25 | G113: ='109'!$H$101 -> 977015685 | H113: ='109'!$H$103 -> 977015685 | I113: ='109'!$H$104 -> 0 | J113: ='109'!$P$103 -> 926310900 | K113: ='109'!$P$104 -> 0 | L113: ='109'!$U$103 -> 0 | M113: ='109'!$U$104 -> 0 | N113: ='109'!$U$105 -> 12212694
B114: 110 | C114: ='110'!$G$2 -> الشركة العامة للفوسفات و المناجم | D114: ='110'!$G$3 -> انتاج كمية 600000 طن +- 25% فوسفات مركز رطب بواسطة كسارة في مناجم الشرقية / ب / | E114: ='110'!$G$4 -> 7 | F114: ='110'!$G$5 -> 2017-10-25 | G114: ='110'!$H$101 -> 97190787 | H114: ='110'!$H$103 -> 97190787 | I114: ='110'!$H$104 -> 0 | J114: ='110'!$P$103 -> 94760019 | K114: ='110'!$P$104 -> 0 | L114: ='110'!$U$103 -> 0 | M114: ='110'!$U$104 -> 0 | N114: ='110'!$U$105 -> 2429770
B115: 111 | C115: ='111'!$G$2 -> الشركة العامة للفوسفات و المناجم | D115: ='111'!$G$3 -> ترميم و تأهيل 100 شقة سكنية في مديريتي مناجم فوسفات الشرقية و خنيفيس | E115: ='111'!$G$4 -> 9 | F115: ='111'!$G$5 -> 00:00:00 | G115: ='111'!$H$101 -> 106713410 | H115: ='111'!$H$103 -> 106713410 | I115: ='111'!$H$104 -> 0 | J115: ='111'!$P$103 -> 103679701 | K115: ='111'!$P$104 -> 0 | L115: ='111'!$U$103 -> 0 | M115: ='111'!$U$104 -> 0 | N115: ='111'!$U$105 -> 2667836
B116: 112 | C116: ='112'!$G$2 -> مديرية السياحة في حمص | D116: ='112'!$G$3 -> صيانة مبنى مديرية سياحة حمص | E116: ='112'!$G$4 -> 11 | F116: ='112'!$G$5 -> 2017-11-07 | G116: ='112'!$H$101 -> 6416622 | H116: ='112'!$H$103 -> 6416622 | I116: ='112'!$H$104 -> 0 | J116: ='112'!$P$103 -> 6242041 | K116: ='112'!$P$104 -> 0 | L116: ='112'!$U$103 -> 0 | M116: ='112'!$U$104 -> 0 | N116: ='112'!$U$105 -> 160416
B117: 113 | C117: ='113'!$G$2 -> الشركة العامة للمخابز - فرع حمص | D117: ='113'!$G$3 -> صيانة الخطين الثاني و الثالث و بعض الأعمال المدنية لمخبز الوعر الآلي | E117: ='113'!$G$4 -> 12 | F117: ='113'!$G$5 -> 2017-11-10 | G117: ='113'!$H$101 -> 49736880 | H117: ='113'!$H$103 -> 49736880 | I117: ='113'!$H$104 -> 0 | J117: ='113'!$P$103 -> 48388508 | K117: ='113'!$P$104 -> 0 | L117: ='113'!$U$103 -> 0 | M117: ='113'!$U$104 -> 0 | N117: ='113'!$U$105 -> 1216423
B118: 114 | C118: ='114'!$G$2 -> المدينة الصناعية - حسياء | D118: ='114'!$G$3 -> عزل أسطح مساكن الإيواء بحسياء ملحق عقد بلا / 2013 | E118: ='114'!$G$4 -> 4 | F118: ='114'!$G$5 -> 2017-10-01 | G118: ='114'!$H$101 -> 142865376 | H118: ='114'!$H$103 -> 107100000 | I118: ='114'!$H$104 -> 35765376 | J118: ='114'!$P$103 -> 102983053 | K118: ='114'!$P$104 -> 34571242 | L118: ='114'!$U$103 -> 0 | M118: ='114'!$U$104 -> 0 | N118: ='114'!$U$105 -> 3571634
B119: 115 | C119: ='115'!$G$2 -> قيادة شرطة محافظة حمص | D119: ='115'!$G$3 -> تأهيل فرع الأمن الجنائي بحمص | E119: ='115'!$G$4 -> 14 / ع | F119: ='115'!$G$5 -> 2017-11-23 | G119: ='115'!$H$101 -> 48297698 | H119: ='115'!$H$103 -> 42578978 | I119: ='115'!$H$104 -> 5718720 | J119: ='115'!$P$103 -> 41513303 | K119: ='115'!$P$104 -> 5575752 | L119: ='115'!$U$103 -> 0 | M119: ='115'!$U$104 -> 0 | N119: ='115'!$U$105 -> 1207443
B120: 116 | C120: ='116'!$G$2 -> قيادة شرطة محافظة حمص | D120: ='116'!$G$3 -> صيانة قسم شرطة حمص الجديدة | E120: ='116'!$G$4 -> 15 / ع | F120: ='116'!$G$5 -> 2017-11-23 | G120: ='116'!$H$101 -> 49262287 | H120: ='116'!$H$103 -> 49262287 | I120: ='116'!$H$104 -> 0 | J120: ='116'!$P$103 -> 47781130 | K120: ='116'!$P$104 -> 0 | L120: ='116'!$U$103 -> 0 | M120: ='116'!$U$104 -> 0 | N120: ='116'!$U$105 -> 1231557
B121: 117 | C121: ='117'!$G$2 -> المؤسسة العامة للإسكان | D121: ='117'!$G$3 -> بناء 6 أبراج ذوات الأرقام ( 10 - 11 - 12 - 13 - 14 - 15 ) جزيرة أولى في ضاحية الوفاء بحماه | E121: ='117'!$G$4 -> 12423 / ك | F121: ='117'!$G$5 -> 2018-07-15 | G121: ='117'!$H$101 -> 381441642 | H121: ='117'!$H$103 -> 0 | I121: ='117'!$H$104 -> 381441642 | J121: ='117'!$P$103 -> 0 | K121: ='117'!$P$104 -> 314689355 | L121: ='117'!$U$103 -> 57216246 | M121: ='117'!$U$104 -> 278618554 | N121: ='117'!$U$105 -> 9536041
B122: 118 | C122: ='118'!$G$2 -> مديرية الخدمات الفنية - حماه | D122: ='118'!$G$3 -> الصرف الصحي في بلدة خان جلميدون | E122: ='118'!$G$4 -> 113 | F122: ='118'!$G$5 -> 00:00:00 | G122: ='118'!$H$101 -> 20643720 | H122: ='118'!$H$103 -> 20643720 | I122: ='118'!$H$104 -> 0 | J122: ='118'!$P$103 -> 20073117 | K122: ='118'!$P$104 -> 0 | L122: ='118'!$U$103 -> 0 | M122: ='118'!$U$104 -> 0 | N122: ='118'!$U$105 -> 516093
B123: 119 | C123: ='119'!$G$2 -> المؤسسة العامة للخطوط الحديدية السورية | D123: ='119'!$G$3 -> أعمال مسار التفريعة السككية ضمن مشروع تفريعة نقل الحصويات بحسياء | E123: ='119'!$G$4 -> 11 | F123: ='119'!$G$5 -> 2017-12-07 | G123: ='119'!$H$101 -> 589094650 | H123: ='119'!$H$103 -> 460363000 | I123: ='119'!$H$104 -> 128731650 | J123: ='119'!$P$103 -> 447705209 | K123: ='119'!$P$104 -> 125513359 | L123: ='119'!$U$103 -> 0 | M123: ='119'!$U$104 -> 0 | N123: ='119'!$U$105 -> 14727368
B124: 120 | C124: ='120'!$G$2 -> مديرية الصحة - حمص | D124: ='120'!$G$3 -> ملحق عقد / 38 / إكساء مشفى كرم اللوز | E124: ='120'!$G$4 -> 2 | F124: ='120'!$G$5 -> 2017-12-20 | G124: ='120'!$H$101 -> 16540553 | H124: ='120'!$H$103 -> 14230581 | I124: ='120'!$H$104 -> 2309972 | J124: ='120'!$P$103 -> 13841760 | K124: ='120'!$P$104 -> 2246730 | L124: ='120'!$U$103 -> 0 | M124: ='120'!$U$104 -> 0 | N124: ='120'!$U$105 -> 413514
B125: 121 | C125: ='121'!$G$2 -> مديرية الصحة - حمص | D125: ='121'!$G$3 -> تأهيل و صيانة المخبر المركزي في مشفى حمص كمشفى إسعافي | E125: ='121'!$G$4 -> 7 | F125: ='121'!$G$5 -> 2018-08-28 | G125: ='121'!$H$101 -> 146950042 | H125: ='121'!$H$103 -> 0 | I125: ='121'!$H$104 -> 146950042 | J125: ='121'!$P$103 -> 0 | K125: ='121'!$P$104 -> 142987727 | L125: ='121'!$U$103 -> 0 | M125: ='121'!$U$104 -> 0 | N125: ='121'!$U$105 -> 3673750
B126: 122 | C126: ='122'!$G$2 -> جامعة حماه | D126: ='122'!$G$3 -> العيادة السنية و غرفة الأشعة في كلية طب الأسنان | E126: ='122'!$G$4 -> ملحق العقد رقم / 1 / | F126: ='122'!$G$5 -> 2016-12-01 | G126: ='122'!$H$101 -> 1288376 | H126: ='122'!$H$103 -> 0 | I126: ='122'!$H$104 -> 1288376 | J126: ='122'!$P$103 -> 0 | K126: ='122'!$P$104 -> 1086166 | L126: ='122'!$U$103 -> 0 | M126: ='122'!$U$104 -> 0 | N126: ='122'!$U$105 -> 32210
B127: 123 | C127: ='123'!$G$2 -> قيادة شرطة محافظة حماه | D127: ='123'!$G$3 -> استكمال بناء و إكساء محطة محروقات السلمية | E127: ='123'!$G$4 -> 8 | F127: ='123'!$G$5 -> 2016-12-15 | G127: ='123'!$H$101 -> 24050400 | H127: ='123'!$H$103 -> 24050400 | I127: ='123'!$H$104 -> 0 | J127: ='123'!$P$103 -> 23562731 | K127: ='123'!$P$104 -> 0 | L127: ='123'!$U$103 -> 0 | M127: ='123'!$U$104 -> 6178913 | N127: ='123'!$U$105 -> 446789
B128: 124 | C128: ='124'!$G$2 -> جامعة حماه | D128: ='124'!$G$3 -> تأهيل مخبري التغذية و الوراثة في كلية الطب البيطري | E128: ='124'!$G$4 -> 20 | F128: ='124'!$G$5 -> 2016-12-12 | G128: ='124'!$H$101 -> 23184212 | H128: ='124'!$H$103 -> 23184212 | I128: ='124'!$H$104 -> 0 | J128: ='124'!$P$103 -> 22253036 | K128: ='124'!$P$104 -> 0 | L128: ='124'!$U$103 -> 0 | M128: ='124'!$U$104 -> 0 | N128: ='124'!$U$105 -> 579605
B129: 125 | C129: ='125'!$G$2 -> مديرية الصحة - حماه | D129: ='125'!$G$3 -> صيانة و إعادة تأهيل مشفى السلمية الوطني | E129: ='125'!$G$4 -> 31 | F129: ='125'!$G$5 -> 2016-12-29 | G129: ='125'!$H$101 -> 32944950 | H129: ='125'!$H$103 -> 31339450 | I129: ='125'!$H$104 -> 1605500 | J129: ='125'!$P$103 -> 30480638 | K129: ='125'!$P$104 -> 1565362 | L129: ='125'!$U$103 -> 0 | M129: ='125'!$U$104 -> 0 | N129: ='125'!$U$105 -> 823624
B130: 126 | C130: ='126'!$G$2 -> مديرية الخدمات الفنية - حماه | D130: ='126'!$G$3 -> تأهيل مركز الطب الرياضي | E130: ='126'!$G$4 -> 48 | F130: ='126'!$G$5 -> 2011-07-03 | G130: ='126'!$H$101 -> 21777718 | H130: ='126'!$H$103 -> 14991256 | I130: ='126'!$H$104 -> 6786462 | J130: ='126'!$P$103 -> 14180589 | K130: ='126'!$P$104 -> 6616800 | L130: ='126'!$U$103 -> 0 | M130: ='126'!$U$104 -> 0 | N130: ='126'!$U$105 -> 544444
B131: 127 | C131: ='127'!$G$2 -> مديرية الصحة - حماه | D131: ='127'!$G$3 -> تأهيل مشفى السلمية | E131: ='127'!$G$4 -> 0 | F131: ='127'!$G$5 -> 00:00:00 | G131: ='127'!$H$101 -> 9367053 | H131: ='127'!$H$103 -> 4277967 | I131: ='127'!$H$104 -> 5089086 | J131: ='127'!$P$103 -> 3478113 | K131: ='127'!$P$104 -> 4901319 | L131: ='127'!$U$103 -> 296540 | M131: ='127'!$U$104 -> -296540 | N131: ='127'!$U$105 -> 229716
B132: 128 | C132: ='128'!$G$2 -> مديرية الخدمات الفنية - حماه | D132: ='128'!$G$3 -> بناء مدرسة حي المصافي | E132: ='128'!$G$4 -> 0 | F132: ='128'!$G$5 -> 00:00:00 | G132: ='128'!$H$101 -> 24599483 | H132: ='128'!$H$103 -> 7205943 | I132: ='128'!$H$104 -> 0 | J132: ='128'!$P$103 -> 6645335 | K132: ='128'!$P$104 -> 0 | L132: ='128'!$U$103 -> 336834 | M132: ='128'!$U$104 -> 3071343 | N132: ='128'!$U$105 -> 230747
B133: 129 | C133: ='129'!$G$2 -> قيادة شرطة محافظة حماه | D133: ='129'!$G$3 -> بناء سور ناحية بري شرقي - السلمية | E133: ='129'!$G$4 -> 18 | F133: ='129'!$G$5 -> 19/11/2015 | G133: ='129'!$H$101 -> 29569357 | H133: ='129'!$H$103 -> 29298357 | I133: ='129'!$H$104 -> 271000 | J133: ='129'!$P$103 -> 23152649 | K133: ='129'!$P$104 -> 264225 | L133: ='129'!$U$103 -> 5409094 | M133: ='129'!$U$104 -> 711281 | N133: ='129'!$U$105 -> 681557
B134: 130 | C134: ='130'!$G$2 -> مديرية الخدمات الفنية - حماه | D134: ='130'!$G$3 -> تأهيل مدرسة محمد عروب | E134: ='130'!$G$4 -> 0 | F134: ='130'!$G$5 -> 15/9/2015 | G134: ='130'!$H$101 -> 15350680 | H134: ='130'!$H$103 -> 14688488 | I134: ='130'!$H$104 -> 662192 | J134: ='130'!$P$103 -> 12370042 | K134: ='130'!$P$104 -> 608680 | L134: ='130'!$U$103 -> 1872381 | M134: ='130'!$U$104 -> 0 | N134: ='130'!$U$105 -> 383266
B135: 131 | C135: ='131'!$G$2 -> الاتحاد الرياضي العام | D135: ='131'!$G$3 -> بناء و إكمال الصالة التدريبية في مدينة الباسل الرياضية | E135: ='131'!$G$4 -> 1 | F135: ='131'!$G$5 -> 13/2/2011 | G135: ='131'!$H$101 -> 132230217 | H135: ='131'!$H$103 -> 132230217 | I135: ='131'!$H$104 -> 0 | J135: ='131'!$P$103 -> 112211531 | K135: ='131'!$P$104 -> 0 | L135: ='131'!$U$103 -> 10000000 | M135: ='131'!$U$104 -> 0 | N135: ='131'!$U$105 -> 4496863
B136: 132 | C136: ='132'!$G$2 -> مديرية الخدمات الفنية - حماه | D136: ='132'!$G$3 -> بناء و إكمال مدرسة حي الضاهرية | E136: ='132'!$G$4 -> 0 | F136: ='132'!$G$5 -> 28/7/2010 | G136: ='132'!$H$101 -> 0 | H136: ='132'!$H$103 -> 0 | I136: ='132'!$H$104 -> 0 | J136: ='132'!$P$103 -> 0 | K136: ='132'!$P$104 -> 0 | L136: ='132'!$U$103 -> 0 | M136: ='132'!$U$104 -> 3557016 | N136: ='132'!$U$105 -> 0
B137: 133 | C137: ='133'!$G$2 -> محافظة حماه - لجنة إعادة الإعمار | D137: ='133'!$G$3 -> تأهيل مدارس المفكر الشرقي بالسلمية ح 1 + ح 2 | E137: ='133'!$G$4 -> 0 | F137: ='133'!$G$5 -> 2015-03-30 | G137: ='133'!$H$101 -> 12701026 | H137: ='133'!$H$103 -> 12701026 | I137: ='133'!$H$104 -> 0 | J137: ='133'!$P$103 -> 9339887 | K137: ='133'!$P$104 -> -45000 | L137: ='133'!$U$103 -> 2965432 | M137: ='133'!$U$104 -> 0 | N137: ='133'!$U$105 -> 317525
B138: 134 | C138: ='134'!$G$2 -> الشركة العامة للصرف الصحي - حماه | D138: ='134'!$G$3 -> تنفيذ مشروع مظلة في ساحة للآليات في شركة الصرف الصحي | E138: ='134'!$G$4 -> 12 | F138: ='134'!$G$5 -> 27/8/2014 | G138: ='134'!$H$101 -> 0 | H138: ='134'!$H$103 -> 0 | I138: ='134'!$H$104 -> 0 | J138: ='134'!$P$103 -> 0 | K138: ='134'!$P$104 -> 0 | L138: ='134'!$U$103 -> 0 | M138: ='134'!$U$104 -> 0 | N138: ='134'!$U$105 -> 0
B139: 135 | C139: ='135'!$G$2 -> الشركة العامة للصرف الصحي - حماه | D139: ='135'!$G$3 -> المصب الرئيسي لقرية الربا | E139: ='135'!$G$4 -> 20 | F139: ='135'!$G$5 -> 17/8/2014 | G139: ='135'!$H$101 -> 0 | H139: ='135'!$H$103 -> 0 | I139: ='135'!$H$104 -> 0 | J139: ='135'!$P$103 -> -400 | K139: ='135'!$P$104 -> 0 | L139: ='135'!$U$103 -> 0 | M139: ='135'!$U$104 -> 0 | N139: ='135'!$U$105 -> -506853
B140: 136 | C140: ='136'!$G$2 -> الشركة العامة للصرف الصحي - حماه | D140: ='136'!$G$3 -> المصب الرئيسي لبلدة تلدره بالسلمية | E140: ='136'!$G$4 -> 14 | F140: ='136'!$G$5 -> 22/6/2014 | G140: ='136'!$H$101 -> 0 | H140: ='136'!$H$103 -> 0 | I140: ='136'!$H$104 -> 0 | J140: ='136'!$P$103 -> 0 | K140: ='136'!$P$104 -> 0 | L140: ='136'!$U$103 -> 0 | M140: ='136'!$U$104 -> 0 | N140: ='136'!$U$105 -> 0
B141: 137 | C141: ='137'!$G$2 -> قيادة شرطة محافظة حماه | D141: ='137'!$G$3 -> بناء سور حفظ النظام - الجماره | E141: ='137'!$G$4 -> 17 | F141: ='137'!$G$5 -> 19/11/2015 | G141: ='137'!$H$101 -> 34488583 | H141: ='137'!$H$103 -> 34488583 | I141: ='137'!$H$104 -> 0 | J141: ='137'!$P$103 -> 28969676 | K141: ='137'!$P$104 -> 0 | L141: ='137'!$U$103 -> 4477523 | M141: ='137'!$U$104 -> 908890 | N141: ='137'!$U$105 -> 1005425
B142: 138 | C142: ='138'!$G$2 -> مديرية الخدمات الفنية - حماه | D142: ='138'!$G$3 -> بناء مدسة في حي تشرين | E142: ='138'!$G$4 -> 0 | F142: ='138'!$G$5 -> 00:00:00 | G142: ='138'!$H$101 -> 16334032 | H142: ='138'!$H$103 -> 16334032 | I142: ='138'!$H$104 -> 0 | J142: ='138'!$P$103 -> 13568397 | K142: ='138'!$P$104 -> 0 | L142: ='138'!$U$103 -> 0 | M142: ='138'!$U$104 -> 0 | N142: ='138'!$U$105 -> 816698
B143: 139 | C143: ='139'!$G$2 -> مديرية الخدمات الفنية - حماه | D143: ='139'!$G$3 -> إكمال مدرسة حي السبيل - بدل متصدع | E143: ='139'!$G$4 -> ملحق العقد 33 | F143: ='139'!$G$5 -> 00:00:00 | G143: ='139'!$H$101 -> 2515410 | H143: ='139'!$H$103 -> 2515410 | I143: ='139'!$H$104 -> 0 | J143: ='139'!$P$103 -> 2428105 | K143: ='139'!$P$104 -> 0 | L143: ='139'!$U$103 -> 0 | M143: ='139'!$U$104 -> 0 | N143: ='139'!$U$105 -> 62885
B144: 140 | C144: ='140'!$G$2 -> المؤسسة العامة للإسكان | D144: ='140'!$G$3 -> بناء برجين شبابيين | E144: ='140'!$G$4 -> 40/24/5 | F144: ='140'!$G$5 -> 2015-06-02 | G144: ='140'!$H$101 -> 72258830 | H144: ='140'!$H$103 -> 31106619 | I144: ='140'!$H$104 -> 41152211 | J144: ='140'!$P$103 -> 22375068 | K144: ='140'!$P$104 -> 38944903 | L144: ='140'!$U$103 -> 8954730 | M144: ='140'!$U$104 -> -8954730 | N144: ='140'!$U$105 -> 1806461
B145: 141 | C145: ='141'!$G$2 -> مديرية الخدمات الفنية - حماه | D145: ='141'!$G$3 -> بناء مدرسة حي السبيل - بدل متصدع | E145: ='141'!$G$4 -> 33 | F145: ='141'!$G$5 -> 2013-06-15 | G145: ='141'!$H$101 -> 89521871 | H145: ='141'!$H$103 -> 66909536 | I145: ='141'!$H$104 -> 22612335 | J145: ='141'!$P$103 -> 52683603 | K145: ='141'!$P$104 -> 19132636 | L145: ='141'!$U$103 -> 15300580 | M145: ='141'!$U$104 -> 3642291 | N145: ='141'!$U$105 -> 2147449
B146: 142 | C146: ='142'!$G$2 -> الشركة العامة للصرف الصحي - حماه | D146: ='142'!$G$3 -> محطة معالجة مياه مجاري - مصياف | E146: ='142'!$G$4 -> 8 | F146: ='142'!$G$5 -> 2016-12-12 | G146: ='142'!$H$101 -> 1132553889 | H146: ='142'!$H$103 -> 1040368751 | I146: ='142'!$H$104 -> 92185138 | J146: ='142'!$P$103 -> 1011994980 | K146: ='142'!$P$104 -> 89880510 | L146: ='142'!$U$103 -> 0 | M146: ='142'!$U$104 -> 0 | N146: ='142'!$U$105 -> 28313846
B147: 143 | C147: ='143'!$G$2 -> مديرية الخدمات الفنية - حماه | D147: ='143'!$G$3 -> بناء و إكساء مدرسة في حلفايا موقع البرناوي بحماه | E147: ='143'!$G$4 -> 0 | F147: ='143'!$G$5 -> 00:00:00 | G147: ='143'!$H$101 -> 111507033 | H147: ='143'!$H$103 -> 61968507 | I147: ='143'!$H$104 -> 49538526 | J147: ='143'!$P$103 -> 36554772 | K147: ='143'!$P$104 -> 48300099 | L147: ='143'!$U$103 -> 6001655 | M147: ='143'!$U$104 -> 1001916 | N147: ='143'!$U$105 -> 2787639
B148: 144 | C148: ='144'!$G$2 -> مديرية الخدمات الفنية - حماه | D148: ='144'!$G$3 -> أعمال صرف صحي في بلدية سلحب | E148: ='144'!$G$4 -> 13 | F148: ='144'!$G$5 -> 2018-01-16 | G148: ='144'!$H$101 -> 41492370 | H148: ='144'!$H$103 -> 0 | I148: ='144'!$H$104 -> 41492370 | J148: ='144'!$P$103 -> 0 | K148: ='144'!$P$104 -> 40455061 | L148: ='144'!$U$103 -> 0 | M148: ='144'!$U$104 -> 0 | N148: ='144'!$U$105 -> 1037309
B149: 145 | C149: ='145'!$G$2 -> مديرية الخدمات الفنية - حماه | D149: ='145'!$G$3 -> تأهيل مدرسة براق الوسطى | E149: ='145'!$G$4 -> 0 | F149: ='145'!$G$5 -> 00:00:00 | G149: ='145'!$H$101 -> 12751517 | H149: ='145'!$H$103 -> 12549253 | I149: ='145'!$H$104 -> 202264 | J149: ='145'!$P$103 -> 12206367 | K149: ='145'!$P$104 -> 197207 | L149: ='145'!$U$103 -> 0 | M149: ='145'!$U$104 -> 0 | N149: ='145'!$U$105 -> 318788
B150: 146 | C150: ='146'!$G$2 -> المؤسسة العامة لمياه الشرب و الصرف الصحي بحمص | D150: ='146'!$G$3 -> الصرف الصحي في عين التنور | E150: ='146'!$G$4 -> 0 | F150: ='146'!$G$5 -> 00:00:00 | G150: ='146'!$H$101 -> 55912337 | H150: ='146'!$H$103 -> 55912337 | I150: ='146'!$H$104 -> 0 | J150: ='146'!$P$103 -> 52889427 | K150: ='146'!$P$104 -> 0 | L150: ='146'!$U$103 -> 0 | M150: ='146'!$U$104 -> 0 | N150: ='146'!$U$105 -> 2795619
B151: 147 | C151: ='147'!$G$2 -> مديرية الخدمات الفنية - حماه | D151: ='147'!$G$3 -> الصرف الصحي في بلدية بري شرقي | E151: ='147'!$G$4 -> 56 | F151: ='147'!$G$5 -> 2017-10-08 | G151: ='147'!$H$101 -> 18618150 | H151: ='147'!$H$103 -> 18618150 | I151: ='147'!$H$104 -> 0 | J151: ='147'!$P$103 -> 18101713 | K151: ='147'!$P$104 -> 0 | L151: ='147'!$U$103 -> 0 | M151: ='147'!$U$104 -> 0 | N151: ='147'!$U$105 -> 465454
B152: 148 | C152: ='148'!$G$2 -> مديرية الصحة - حمص | D152: ='148'!$G$3 -> تأهيل مشفى الوليد في حي الوعر | E152: ='148'!$G$4 -> 1 | F152: ='148'!$G$5 -> 2018-03-12 | G152: ='148'!$H$101 -> 557462515 | H152: ='148'!$H$103 -> 322906632 | I152: ='148'!$H$104 -> 234555883 | J152: ='148'!$P$103 -> 314089351 | K152: ='148'!$P$104 -> 228287191 | L152: ='148'!$U$103 -> 0 | M152: ='148'!$U$104 -> 0 | N152: ='148'!$U$105 -> 13936563
B153: 149 | C153: ='149'!$G$2 -> مديرية الخدمات الفنية - حماه | D153: ='149'!$G$3 -> الصرف الصحي في مشتى دير ماما | E153: ='149'!$G$4 -> 122 | F153: ='149'!$G$5 -> 2017-11-19 | G153: ='149'!$H$101 -> 43900100 | H153: ='149'!$H$103 -> 29152710 | I153: ='149'!$H$104 -> 14747390 | J153: ='149'!$P$103 -> 28346826 | K153: ='149'!$P$104 -> 14378705 | L153: ='149'!$U$103 -> 0 | M153: ='149'!$U$104 -> 0 | N153: ='149'!$U$105 -> 1097503
B154: 150 | C154: ='150'!$G$2 -> الهيئة العامة لمشفى مصياف الوطني | D154: ='150'!$G$3 -> محطة محروقات الطوارئ في مشفى مصياف الوطني | E154: ='150'!$G$4 -> 29 | F154: ='150'!$G$5 -> 2017-09-24 | G154: ='150'!$H$101 -> 85910808 | H154: ='150'!$H$103 -> 38960471 | I154: ='150'!$H$104 -> 46950337 | J154: ='150'!$P$103 -> 24799764 | K154: ='150'!$P$104 -> 35479030 | L154: ='150'!$U$103 -> 0 | M154: ='150'!$U$104 -> 0 | N154: ='150'!$U$105 -> 2147771
B155: 151 | C155: ='151'!$G$2 -> الهيئة العامة لمشفى مصياف الوطني | D155: ='151'!$G$3 -> توسعة بنك الدم في مشفى مصياف الوطني | E155: ='151'!$G$4 -> 28 | F155: ='151'!$G$5 -> 2017-09-24 | G155: ='151'!$H$101 -> 87233714 | H155: ='151'!$H$103 -> 81764888 | I155: ='151'!$H$104 -> 5468826 | J155: ='151'!$P$103 -> 68879517 | K155: ='151'!$P$104 -> 3536854 | L155: ='151'!$U$103 -> 0 | M155: ='151'!$U$104 -> 0 | N155: ='151'!$U$105 -> 2178343
B156: 152 | C156: ='152'!$G$2 -> الهيئة العامة لمشفى مصياف الوطني | D156: ='152'!$G$3 -> توسعة قسمي الإسعاف و الأشعة في مشفى مصياف الوطني | E156: ='152'!$G$4 -> 23 | F156: ='152'!$G$5 -> 2017-08-24 | G156: ='152'!$H$101 -> 138616784 | H156: ='152'!$H$103 -> 89094744 | I156: ='152'!$H$104 -> 49522040 | J156: ='152'!$P$103 -> 86039186 | K156: ='152'!$P$104 -> 30199780 | L156: ='152'!$U$103 -> 0 | M156: ='152'!$U$104 -> 0 | N156: ='152'!$U$105 -> 3465418
B157: 153 | C157: ='153'!$G$2 -> الشركة العامة للمخابز - فرع حمص | D157: ='153'!$G$3 -> بناء مخبز في بلدة عناز | E157: ='153'!$G$4 -> 4 | F157: ='153'!$G$5 -> 2018-04-09 | G157: ='153'!$H$101 -> 92664032 | H157: ='153'!$H$103 -> 83848900 | I157: ='153'!$H$104 -> 8815132 | J157: ='153'!$P$103 -> 81752677 | K157: ='153'!$P$104 -> 8594754 | L157: ='153'!$U$103 -> 0 | M157: ='153'!$U$104 -> 0 | N157: ='153'!$U$105 -> 2316601
B158: 154 | C158: ='154'!$G$2 -> جامعة حماه | D158: ='154'!$G$3 -> صيانة المدرجات و القاعات الملحقة بكلية الآداب | E158: ='154'!$G$4 -> 0 | F158: ='154'!$G$5 -> 2010-10-20 | G158: ='154'!$H$101 -> 1260819 | H158: ='154'!$H$103 -> 0 | I158: ='154'!$H$104 -> 1260819 | J158: ='154'!$P$103 -> 0 | K158: ='154'!$P$104 -> 1197777 | L158: ='154'!$U$103 -> 0 | M158: ='154'!$U$104 -> 0 | N158: ='154'!$U$105 -> 63042
B159: 155 | C159: ='155'!$G$2 -> مديرية الخدمات الفنية - حماه | D159: ='155'!$G$3 -> مشروع الصرف الصحي في بلدة جب رمله - قرين | E159: ='155'!$G$4 -> 171 | F159: ='155'!$G$5 -> 2010-10-20 | G159: ='155'!$H$101 -> 30463430 | H159: ='155'!$H$103 -> 24235560 | I159: ='155'!$H$104 -> 6227870 | J159: ='155'!$P$103 -> 23571337 | K159: ='155'!$P$104 -> 6072173 | L159: ='155'!$U$103 -> 0 | M159: ='155'!$U$104 -> 0 | N159: ='155'!$U$105 -> 761586
B160: 156 | C160: ='156'!$G$2 -> مديرية الخدمات الفنية - حماه | D160: ='156'!$G$3 -> مشروع الصرف الصحي في بلدة زغرين | E160: ='156'!$G$4 -> 0 | F160: ='156'!$G$5 -> 2017-08-10 | G160: ='156'!$H$101 -> 14912004 | H160: ='156'!$H$103 -> 13986825 | I160: ='156'!$H$104 -> 925179 | J160: ='156'!$P$103 -> 13600115 | K160: ='156'!$P$104 -> 902050 | L160: ='156'!$U$103 -> 0 | M160: ='156'!$U$104 -> 0 | N160: ='156'!$U$105 -> 372800
B161: 157 | C161: ='157'!$G$2 -> مديرية الخدمات الفنية - حماه | D161: ='157'!$G$3 -> مشروع الصرف الصحي في بلدة المحروسة - الهزانة | E161: ='157'!$G$4 -> 78 | F161: ='157'!$G$5 -> 2017-12-29 | G161: ='157'!$H$101 -> 28317735 | H161: ='157'!$H$103 -> 28317735 | I161: ='157'!$H$104 -> 0 | J161: ='157'!$P$103 -> 27534253 | K161: ='157'!$P$104 -> 0 | L161: ='157'!$U$103 -> 0 | M161: ='157'!$U$104 -> 0 | N161: ='157'!$U$105 -> 707943
B162: 158 | C162: ='158'!$G$2 -> مديرية الخدمات الفنية - حماه | D162: ='158'!$G$3 -> الصرف الصحي في بلدة الكافات ( صماخ ) | E162: ='158'!$G$4 -> 17 | F162: ='158'!$G$5 -> 2017-07-26 | G162: ='158'!$H$101 -> 19811218 | H162: ='158'!$H$103 -> 19811218 | I162: ='158'!$H$104 -> 0 | J162: ='158'!$P$103 -> 19264574 | K162: ='158'!$P$104 -> 0 | L162: ='158'!$U$103 -> 0 | M162: ='158'!$U$104 -> 0 | N162: ='158'!$U$105 -> 495279
B163: 159 | C163: ='159'!$G$2 -> مديرية الصحة - حماه | D163: ='159'!$G$3 -> إعادة تأهيل و إكساء و توسعة مركز قمحانة الصحي | E163: ='159'!$G$4 -> 52 | F163: ='159'!$G$5 -> 2018-10-11 | G163: ='159'!$H$101 -> 18561088 | H163: ='159'!$H$103 -> 0 | I163: ='159'!$H$104 -> 18561088 | J163: ='159'!$P$103 -> 0 | K163: ='159'!$P$104 -> 18097061 | L163: ='159'!$U$103 -> 0 | M163: ='159'!$U$104 -> 0 | N163: ='159'!$U$105 -> 464027
B164: 160 | C164: ='160'!$G$2 -> مديرية الخدمات الفنية - حماه | D164: ='160'!$G$3 -> الصرف الصحي في بلدة مرج مطر | E164: ='160'!$G$4 -> 0 | F164: ='160'!$G$5 -> 00:00:00 | G164: ='160'!$H$101 -> 4253580 | H164: ='160'!$H$103 -> 4253580 | I164: ='160'!$H$104 -> 0 | J164: ='160'!$P$103 -> 3755060 | K164: ='160'!$P$104 -> 0 | L164: ='160'!$U$103 -> 0 | M164: ='160'!$U$104 -> 0 | N164: ='160'!$U$105 -> 106340
B165: 161 | C165: ='161'!$G$2 -> مديرية الخدمات الفنية - حماه | D165: ='161'!$G$3 -> الصرف الصحي في بلدة تل عبد العزيز | E165: ='161'!$G$4 -> 0 | F165: ='161'!$G$5 -> 00:00:00 | G165: ='161'!$H$101 -> 4936271 | H165: ='161'!$H$103 -> 4181015 | I165: ='161'!$H$104 -> 755256 | J165: ='161'!$P$103 -> 4065281 | K165: ='161'!$P$104 -> 736375 | L165: ='161'!$U$103 -> 0 | M165: ='161'!$U$104 -> 0 | N165: ='161'!$U$105 -> 123406
B166: 162 | C166: ='162'!$G$2 -> مديرية الخدمات الفنية - حماه | D166: ='162'!$G$3 -> الصرف الصحي في بلدة المحروسة - الحي الشمالي | E166: ='162'!$G$4 -> 48 | F166: ='162'!$G$5 -> 2017-08-30 | G166: ='162'!$H$101 -> 26837010 | H166: ='162'!$H$103 -> 26837010 | I166: ='162'!$H$104 -> 0 | J166: ='162'!$P$103 -> 26098770 | K166: ='162'!$P$104 -> 0 | L166: ='162'!$U$103 -> 0 | M166: ='162'!$U$104 -> 0 | N166: ='162'!$U$105 -> 670925
B167: 163 | C167: ='163'!$G$2 -> مديرية الخدمات الفنية - حماه | D167: ='163'!$G$3 -> الصرف الصحي في بلدة المحروسة - حي بيت عدوان | E167: ='163'!$G$4 -> 47 | F167: ='163'!$G$5 -> 00:00:00 | G167: ='163'!$H$101 -> 13059130 | H167: ='163'!$H$103 -> 13059130 | I167: ='163'!$H$104 -> 0 | J167: ='163'!$P$103 -> 12697496 | K167: ='163'!$P$104 -> 0 | L167: ='163'!$U$103 -> 0 | M167: ='163'!$U$104 -> 0 | N167: ='163'!$U$105 -> 326477
B168: 164 | C168: ='164'!$G$2 -> قيادة شرطة محافظة حماه | D168: ='164'!$G$3 -> إكمال بناء و إكساء محطة محروقات السلمية - ملحق عقد | E168: ='164'!$G$4 -> 0 | F168: ='164'!$G$5 -> 00:00:00 | G168: ='164'!$H$101 -> 1353391 | H168: ='164'!$H$103 -> 1329800 | I168: ='164'!$H$104 -> 23591 | J168: ='164'!$P$103 -> 1291225 | K168: ='164'!$P$104 -> 23001 | L168: ='164'!$U$103 -> 0 | M168: ='164'!$U$104 -> 0 | N168: ='164'!$U$105 -> 33835
B169: 165 | C169: ='165'!$G$2 -> الشركة العامة للمخابز - حماه | D169: ='165'!$G$3 -> بناء مخبز بلدة شطحه | E169: ='165'!$G$4 -> 8 | F169: ='165'!$G$5 -> 2018-04-26 | G169: ='165'!$H$101 -> 74348701 | H169: ='165'!$H$103 -> 52199333 | I169: ='165'!$H$104 -> 22149368 | J169: ='165'!$P$103 -> 50894349 | K169: ='165'!$P$104 -> 21595634 | L169: ='165'!$U$103 -> 0 | M169: ='165'!$U$104 -> 0 | N169: ='165'!$U$105 -> 1858718
B170: 166 | C170: ='166'!$G$2 -> الاتحاد الرياضي العام | D170: ='166'!$G$3 -> تأهيل الصالة الرياضية في محرده و كفربهم | E170: ='166'!$G$4 -> 3 | F170: ='166'!$G$5 -> 2017-01-12 | G170: ='166'!$H$101 -> 6277873 | H170: ='166'!$H$103 -> 6277873 | I170: ='166'!$H$104 -> 0 | J170: ='166'!$P$103 -> 5807766 | K170: ='166'!$P$104 -> 0 | L170: ='166'!$U$103 -> 0 | M170: ='166'!$U$104 -> 0 | N170: ='166'!$U$105 -> 457547
B171: 167 | C171: ='167'!$G$2 -> مديرية الخدمات الفنية - حماه | D171: ='167'!$G$3 -> الصرف الصحي في بلدة خنيفس | E171: ='167'!$G$4 -> 67 | F171: ='167'!$G$5 -> 2017-03-18 | G171: ='167'!$H$101 -> 10083273 | H171: ='167'!$H$103 -> 10083273 | I171: ='167'!$H$104 -> 0 | J171: ='167'!$P$103 -> 9186227 | K171: ='167'!$P$104 -> 0 | L171: ='167'!$U$103 -> 0 | M171: ='167'!$U$104 -> 0 | N171: ='167'!$U$105 -> 194826
B172: 168 | C172: ='168'!$G$2 -> مديرية الخدمات الفنية - حماه | D172: ='168'!$G$3 -> الأعمال المتبقية لمدرسة السويده | E172: ='168'!$G$4 -> 0 | F172: ='168'!$G$5 -> 2017-11-02 | G172: ='168'!$H$101 -> 53862666 | H172: ='168'!$H$103 -> 18700110 | I172: ='168'!$H$104 -> 35162556 | J172: ='168'!$P$103 -> 18189140 | K172: ='168'!$P$104 -> 34283493 | L172: ='168'!$U$103 -> 0 | M172: ='168'!$U$104 -> 0 | N172: ='168'!$U$105 -> 1346566
B173: 169 | C173: ='169'!$G$2 -> مديرية الخدمات الفنية - حماه | D173: ='169'!$G$3 -> تأهيل مدرسة عدنان رزوق | E173: ='169'!$G$4 -> 0 | F173: ='169'!$G$5 -> 00:00:00 | G173: ='169'!$H$101 -> 7353802 | H173: ='169'!$H$103 -> 1342860 | I173: ='169'!$H$104 -> 2401876 | J173: ='169'!$P$103 -> 1306048 | K173: ='169'!$P$104 -> 1641802 | L173: ='169'!$U$103 -> 0 | M173: ='169'!$U$104 -> 0 | N173: ='169'!$U$105 -> 183845
B174: 170 | C174: ='170'!$G$2 -> مديرية الخدمات الفنية - حماه | D174: ='170'!$G$3 -> تأهيل مدرسة السيدة زينب بالسلمية | E174: ='170'!$G$4 -> 0 | F174: ='170'!$G$5 -> 00:00:00 | G174: ='170'!$H$101 -> 9355032 | H174: ='170'!$H$103 -> 428304 | I174: ='170'!$H$104 -> 8926728 | J174: ='170'!$P$103 -> 416468 | K174: ='170'!$P$104 -> 8703560 | L174: ='170'!$U$103 -> 0 | M174: ='170'!$U$104 -> 0 | N174: ='170'!$U$105 -> 233876
B175: 171 | C175: ='171'!$G$2 -> قيادة شرطة محافظة حماه | D175: ='171'!$G$3 -> بناء سور حفظ النظام في حماه | E175: ='171'!$G$4 -> 17 | F175: ='171'!$G$5 -> 2015-11-19 | G175: ='171'!$H$101 -> 20737120 | H175: ='171'!$H$103 -> 20737120 | I175: ='171'!$H$104 -> 0 | J175: ='171'!$P$103 -> 20327724 | K175: ='171'!$P$104 -> 0 | L175: ='171'!$U$103 -> 0 | M175: ='171'!$U$104 -> 5386413 | N175: ='171'!$U$105 -> 374992
B176: 172 | C176: ='172'!$G$2 -> المصرف الزراعي التعاوني | D176: ='172'!$G$3 -> إعادة تأهيل فرع المصرف الزراعي التعاوني بحمص | E176: ='172'!$G$4 -> 8 | F176: ='172'!$G$5 -> 2018-04-11 | G176: ='172'!$H$101 -> 56724000 | H176: ='172'!$H$103 -> 25281250 | I176: ='172'!$H$104 -> 31442750 | J176: ='172'!$P$103 -> 24649218 | K176: ='172'!$P$104 -> 30656681 | L176: ='172'!$U$103 -> 0 | M176: ='172'!$U$104 -> 0 | N176: ='172'!$U$105 -> 1418101
B177: 173 | C177: ='173'!$G$2 -> مديرية الخدمات الفنية - حماه | D177: ='173'!$G$3 -> مدرسة عين الباد بحماه | E177: ='173'!$G$4 -> 0 | F177: ='173'!$G$5 -> 00:00:00 | G177: ='173'!$H$101 -> 45888922 | H177: ='173'!$H$103 -> 45888922 | I177: ='173'!$H$104 -> 0 | J177: ='173'!$P$103 -> 40662540 | K177: ='173'!$P$104 -> 0 | L177: ='173'!$U$103 -> 3247805 | M177: ='173'!$U$104 -> -26463 | N177: ='173'!$U$105 -> 1276619
B178: 174 | C178: ='174'!$G$2 -> مديرية الخدمات الفنية - حماه | D178: ='174'!$G$3 -> بناء مدرسة قمحانة | E178: ='174'!$G$4 -> 0 | F178: ='174'!$G$5 -> 00:00:00 | G178: ='174'!$H$101 -> 23465797 | H178: ='174'!$H$103 -> 2457929 | I178: ='174'!$H$104 -> 21007868 | J178: ='174'!$P$103 -> 2270063 | K178: ='174'!$P$104 -> 19821925 | L178: ='174'!$U$103 -> 747573 | M178: ='174'!$U$104 -> 3880596 | N178: ='174'!$U$105 -> 586635
B179: 175 | C179: ='175'!$G$2 -> المؤسسة السورية للتجارة | D179: ='175'!$G$3 -> ترميم مبنى فارمكس بالمنطقة الصناعية بحمص | E179: ='175'!$G$4 -> 1361 | F179: ='175'!$G$5 -> 2018-06-25 | G179: ='175'!$H$101 -> 15655000 | H179: ='175'!$H$103 -> 15655000 | I179: ='175'!$H$104 -> 0 | J179: ='175'!$P$103 -> 15158225 | K179: ='175'!$P$104 -> 0 | L179: ='175'!$U$103 -> 0 | M179: ='175'!$U$104 -> 0 | N179: ='175'!$U$105 -> 391375
B180: 176 | C180: ='176'!$G$2 -> منشأة الدواجن في حمص | D180: ='176'!$G$3 -> تأهيل و صيانة مباني حظائر التربية و جزء من المباني السكنية في منشأة دواجن حمص قسم الفروج | E180: ='176'!$G$4 -> 26 | F180: ='176'!$G$5 -> 2018-06-19 | G180: ='176'!$H$101 -> 22448500 | H180: ='176'!$H$103 -> 18988675 | I180: ='176'!$H$104 -> 3459825 | J180: ='176'!$P$103 -> 18472168 | K180: ='176'!$P$104 -> 3373329 | L180: ='176'!$U$103 -> 0 | M180: ='176'!$U$104 -> 0 | N180: ='176'!$U$105 -> 561213
B181: 177 | C181: ='177'!$G$2 -> مديرية الخدمات الفنية - حماه | D181: ='177'!$G$3 -> أعمال الصرف الصحي في بلدية تل التوت | E181: ='177'!$G$4 -> 0 | F181: ='177'!$G$5 -> 00:00:00 | G181: ='177'!$H$101 -> 12621335 | H181: ='177'!$H$103 -> 0 | I181: ='177'!$H$104 -> 12621335 | J181: ='177'!$P$103 -> 0 | K181: ='177'!$P$104 -> 12305802 | L181: ='177'!$U$103 -> 0 | M181: ='177'!$U$104 -> 0 | N181: ='177'!$U$105 -> 315533
B182: 178 | C182: ='178'!$G$2 -> مديرية الصحة - حماه | D182: ='178'!$G$3 -> تأهيل و صيانة مركز خطاب الصحي | E182: ='178'!$G$4 -> 29 | F182: ='178'!$G$5 -> 2018-06-28 | G182: ='178'!$H$101 -> 27776190 | H182: ='178'!$H$103 -> 18209240 | I182: ='178'!$H$104 -> 9566950 | J182: ='178'!$P$103 -> 17711238 | K182: ='178'!$P$104 -> 9327776 | L182: ='178'!$U$103 -> 0 | M182: ='178'!$U$104 -> 0 | N182: ='178'!$U$105 -> 694405
B183: 179 | C183: ='179'!$G$2 -> الشركة السورية للنفط - مديرية حقول المنطقة الوسطى | D183: ='179'!$G$3 -> ساحات بقايا مقالع في مركز مديرية حقول المنطقة الوسطى | E183: ='179'!$G$4 -> 70 | F183: ='179'!$G$5 -> 2018-07-02 | G183: ='179'!$H$101 -> 58390860 | H183: ='179'!$H$103 -> 58390860 | I183: ='179'!$H$104 -> 0 | J183: ='179'!$P$103 -> 50153817 | K183: ='179'!$P$104 -> 0 | L183: ='179'!$U$103 -> 0 | M183: ='179'!$U$104 -> 0 | N183: ='179'!$U$105 -> 1459772
B184: 180 | C184: ='180'!$G$2 -> منشأة الدواجن في حماه | D184: ='180'!$G$3 -> توريد معدات و تجهيزات لمنشأة دواجن حماه | E184: ='180'!$G$4 -> 15 | F184: ='180'!$G$5 -> 2018-06-28 | G184: ='180'!$H$101 -> 8632000 | H184: ='180'!$H$103 -> 0 | I184: ='180'!$H$104 -> 8632000 | J184: ='180'!$P$103 -> 0 | K184: ='180'!$P$104 -> 8416200 | L184: ='180'!$U$103 -> 0 | M184: ='180'!$U$104 -> 0 | N184: ='180'!$U$105 -> 215800
B185: 181 | C185: ='181'!$G$2 -> مديرية الخدمات الفنية - حماه | D185: ='181'!$G$3 -> تقديم و تركيب بلاط أنترلوك لزوم الساحات الخاصة بمشروع الطب الرياضي | E185: ='181'!$G$4 -> 31 | F185: ='181'!$G$5 -> 2018-06-27 | G185: ='181'!$H$101 -> 8313000 | H185: ='181'!$H$103 -> 4890000 | I185: ='181'!$H$104 -> 3423000 | J185: ='181'!$P$103 -> 4866365 | K185: ='181'!$P$104 -> 3337424 | L185: ='181'!$U$103 -> 0 | M185: ='181'!$U$104 -> 0 | N185: ='181'!$U$105 -> 97826
B186: 182 | C186: ='182'!$G$2 -> قيادة شرطة محافظة حمص | D186: ='182'!$G$3 -> مشروع عزل سطح مبنى قيادة شرطة محافظة حمص | E186: ='182'!$G$4 -> 5 / ع | F186: ='182'!$G$5 -> 2018-04-14 | G186: ='182'!$H$101 -> 21579750 | H186: ='182'!$H$103 -> 21579750 | I186: ='182'!$H$104 -> 0 | J186: ='182'!$P$103 -> 21039356 | K186: ='182'!$P$104 -> 0 | L186: ='182'!$U$103 -> 0 | M186: ='182'!$U$104 -> 0 | N186: ='182'!$U$105 -> 539494
B187: 183 | C187: ='183'!$G$2 -> الشركة السورية للنفط - مديرية حقول المنطقة الوسطى | D187: ='183'!$G$3 -> مشروع ساحات بقايا مقالع | E187: ='183'!$G$4 -> 33 | F187: ='183'!$G$5 -> 2018-05-26 | G187: ='183'!$H$101 -> 32175000 | H187: ='183'!$H$103 -> 21450000 | I187: ='183'!$H$104 -> 10725000 | J187: ='183'!$P$103 -> 20913315 | K187: ='183'!$P$104 -> 10456875 | L187: ='183'!$U$103 -> 0 | M187: ='183'!$U$104 -> 0 | N187: ='183'!$U$105 -> 804375
B188: 184 | C188: ='184'!$G$2 -> مديرية الخدمات الفنية - حماه | D188: ='184'!$G$3 -> إعادة تأهيل و صيانة مشفى السلمية الوطني و العناية المشددة | E188: ='184'!$G$4 -> ملحق عقد | F188: ='184'!$G$5 -> 2014-06-25 | G188: ='184'!$H$101 -> 206428 | H188: ='184'!$H$103 -> 0 | I188: ='184'!$H$104 -> 206428 | J188: ='184'!$P$103 -> 0 | K188: ='184'!$P$104 -> -618775 | L188: ='184'!$U$103 -> 388751 | M188: ='184'!$U$104 -> -388751 | N188: ='184'!$U$105 -> 5161
B189: 185 | C189: ='185'!$G$2 -> مديرية الصحة - حماه | D189: ='185'!$G$3 -> إعادة تأهيل مركز خنيفس الصحي | E189: ='185'!$G$4 -> 45 | F189: ='185'!$G$5 -> 2018-08-29 | G189: ='185'!$H$101 -> 5051750 | H189: ='185'!$H$103 -> 0 | I189: ='185'!$H$104 -> 5051750 | J189: ='185'!$P$103 -> 0 | K189: ='185'!$P$104 -> 4925456 | L189: ='185'!$U$103 -> 0 | M189: ='185'!$U$104 -> 0 | N189: ='185'!$U$105 -> 126294
B190: 186 | C190: ='186'!$G$2 -> قيادة شرطة محافظة حمص | D190: ='186'!$G$3 -> الأعمال الكهربائية و المعلوماتية بفرع الهجرة و الجوازات بحمص | E190: ='186'!$G$4 -> 21 / ع | F190: ='186'!$G$5 -> 2018-08-29 | G190: ='186'!$H$101 -> 18225300 | H190: ='186'!$H$103 -> 0 | I190: ='186'!$H$104 -> 18225300 | J190: ='186'!$P$103 -> 0 | K190: ='186'!$P$104 -> 17769668 | L190: ='186'!$U$103 -> 0 | M190: ='186'!$U$104 -> 0 | N190: ='186'!$U$105 -> 455632
B191: 187 | C191: ='187'!$G$2 -> قيادة شرطة محافظة حمص | D191: ='187'!$G$3 -> بناء على الهيكل مجمع السكن الوظيفي في حي الأرمن | E191: ='187'!$G$4 -> 16 / ع | F191: ='187'!$G$5 -> 2018-07-26 | G191: ='187'!$H$101 -> 54479022 | H191: ='187'!$H$103 -> 18365545 | I191: ='187'!$H$104 -> 36113477 | J191: ='187'!$P$103 -> 17863707 | K191: ='187'!$P$104 -> 35190874 | L191: ='187'!$U$103 -> 0 | M191: ='187'!$U$104 -> 0 | N191: ='187'!$U$105 -> 1361975
B192: 188 | C192: ='188'!$G$2 -> مركز التدريب المهني بحمص | D192: ='188'!$G$3 -> تأهيل و صيانة مبنى المعهد التقاني للمراقبين الفنيين و مركز التدريب المهني بحمص | E192: ='188'!$G$4 -> 1 | F192: ='188'!$G$5 -> 2018-08-26 | G192: ='188'!$H$101 -> 55200510 | H192: ='188'!$H$103 -> 0 | I192: ='188'!$H$104 -> 55200510 | J192: ='188'!$P$103 -> 0 | K192: ='188'!$P$104 -> 53820497 | L192: ='188'!$U$103 -> 0 | M192: ='188'!$U$104 -> 0 | N192: ='188'!$U$105 -> 1380013
B193: 189 | C193: ='189'!$G$2 -> 0 | D193: ='189'!$G$3 -> 0 | E193: ='189'!$G$4 -> 0 | F193: ='189'!$G$5 -> 00:00:00 | G193: ='189'!$H$101 -> 0 | H193: ='189'!$H$103 -> 0 | I193: ='189'!$H$104 -> 0 | J193: ='189'!$P$103 -> 0 | K193: ='189'!$P$104 -> 0 | L193: ='189'!$U$103 -> 0 | M193: ='189'!$U$104 -> 0 | N193: ='189'!$U$105 -> 0
B194: 190 | C194: ='190'!$G$2 -> الشركة العامة لإنشاء الخطوط الحديدية | D194: ='190'!$G$3 -> تقديم 50000 م3 من الحجر البازلتي في مركز تكسير خربة التين | E194: ='190'!$G$4 -> 16 | F194: ='190'!$G$5 -> 2018-10-28 | G194: ='190'!$H$101 -> 0 | H194: ='190'!$H$103 -> 0 | I194: ='190'!$H$104 -> 0 | J194: ='190'!$P$103 -> 0 | K194: ='190'!$P$104 -> 0 | L194: ='190'!$U$103 -> 0 | M194: ='190'!$U$104 -> 0 | N194: ='190'!$U$105 -> 0
B195: 191 | C195: ='191'!$G$2 -> مديرية الصحة - حمص | D195: ='191'!$G$3 -> تأهيل الموقع العام لمشفى الباسل الإسعافي بحي الزهراء | E195: ='191'!$G$4 -> 59 | F195: ='191'!$G$5 -> 2018-10-22 | G195: ='191'!$H$101 -> 20421825 | H195: ='191'!$H$103 -> 12148460 | I195: ='191'!$H$104 -> 8273365 | J195: ='191'!$P$103 -> 11816381 | K195: ='191'!$P$104 -> 8066531 | L195: ='191'!$U$103 -> 0 | M195: ='191'!$U$104 -> 0 | N195: ='191'!$U$105 -> 510546
B196: 192 | C196: ='192'!$G$2 -> قيادة شرطة محافظة حماه | D196: ='192'!$G$3 -> إعادة تأهيل مخفر سوق الغنم | E196: ='192'!$G$4 -> 11861 | F196: ='192'!$G$5 -> 2018-10-07 | G196: ='192'!$H$101 -> 2991720 | H196: ='192'!$H$103 -> 0 | I196: ='192'!$H$104 -> 2991720 | J196: ='192'!$P$103 -> 0 | K196: ='192'!$P$104 -> 2916927 | L196: ='192'!$U$103 -> 0 | M196: ='192'!$U$104 -> 0 | N196: ='192'!$U$105 -> 74793
B197: 193 | C197: ='193'!$G$2 -> قيادة شرطة محافظة حماه | D197: ='193'!$G$3 -> تأهيل مركز شرطة الطرق العامة في اثريا | E197: ='193'!$G$4 -> 11857 | F197: ='193'!$G$5 -> 2018-10-07 | G197: ='193'!$H$101 -> 2999980 | H197: ='193'!$H$103 -> 0 | I197: ='193'!$H$104 -> 2999980 | J197: ='193'!$P$103 -> 0 | K197: ='193'!$P$104 -> 2924980 | L197: ='193'!$U$103 -> 0 | M197: ='193'!$U$104 -> 0 | N197: ='193'!$U$105 -> 75000
B198: 194 | C198: ='194'!$G$2 -> قيادة شرطة محافظة حماه | D198: ='194'!$G$3 -> تأهيل السكن الوظيفي في ريف السلمية | E198: ='194'!$G$4 -> 1236 | F198: ='194'!$G$5 -> 2018-10-07 | G198: ='194'!$H$101 -> 2993646 | H198: ='194'!$H$103 -> 0 | I198: ='194'!$H$104 -> 2993646 | J198: ='194'!$P$103 -> 0 | K198: ='194'!$P$104 -> 2918805 | L198: ='194'!$U$103 -> 0 | M198: ='194'!$U$104 -> 0 | N198: ='194'!$U$105 -> 74841
B199: 195 | C199: ='195'!$G$2 -> الشركة العامة للمخابز - فرع حمص | D199: ='195'!$G$3 -> صيانة و ترميم مخبز صدد | E199: ='195'!$G$4 -> 40 | F199: ='195'!$G$5 -> 2018-10-31 | G199: ='195'!$H$101 -> 13648150 | H199: ='195'!$H$103 -> 13648150 | I199: ='195'!$H$104 -> 0 | J199: ='195'!$P$103 -> 13291946 | K199: ='195'!$P$104 -> 0 | L199: ='195'!$U$103 -> 0 | M199: ='195'!$U$104 -> 0 | N199: ='195'!$U$105 -> 341204
B200: 196 | C200: ='196'!$G$2 -> المؤسسة العامة لمياه الشرب و الصرف الصحي - حماه | D200: ='196'!$G$3 -> مشروع مياه اللقبة - منطقة مصياف | E200: ='196'!$G$4 -> 37 | F200: ='196'!$G$5 -> 2018-11-18 | G200: ='196'!$H$101 -> 0 | H200: ='196'!$H$103 -> 0 | I200: ='196'!$H$104 -> 0 | J200: ='196'!$P$103 -> 0 | K200: ='196'!$P$104 -> 0 | L200: ='196'!$U$103 -> 0 | M200: ='196'!$U$104 -> 0 | N200: ='196'!$U$105 -> 0
B201: 197 | C201: ='197'!$G$2 -> قيادة شرطة محافظة حماه | D201: ='197'!$G$3 -> تأهيل مخفر شرطة الصناعة بحماه | E201: ='197'!$G$4 -> 8 | F201: ='197'!$G$5 -> 2018-12-05 | G201: ='197'!$H$101 -> 5487340 | H201: ='197'!$H$103 -> 0 | I201: ='197'!$H$104 -> 5487340 | J201: ='197'!$P$103 -> 0 | K201: ='197'!$P$104 -> 5350156 | L201: ='197'!$U$103 -> 0 | M201: ='197'!$U$104 -> 0 | N201: ='197'!$U$105 -> 137184
B202: 198 | C202: ='198'!$G$2 -> المصرف الزراعي التعاوني | D202: ='198'!$G$3 -> تأهيل فرع المصرف الزراعي التعاوني بحمص | E202: ='198'!$G$4 -> ملحق العقد 21 | F202: ='198'!$G$5 -> 2018-12-12 | G202: ='198'!$H$101 -> 0 | H202: ='198'!$H$103 -> 0 | I202: ='198'!$H$104 -> 0 | J202: ='198'!$P$103 -> 0 | K202: ='198'!$P$104 -> 0 | L202: ='198'!$U$103 -> 0 | M202: ='198'!$U$104 -> 0 | N202: ='198'!$U$105 -> 0
B203: 199 | C203: ='199'!$G$2 -> قيادة شرطة محافظة حمص | D203: ='199'!$G$3 -> صيانة و إعادة تأهيل بناء مديرية منطقة تلدو | E203: ='199'!$G$4 -> 28 / ع | F203: ='199'!$G$5 -> 2018-11-24 | G203: ='199'!$H$101 -> 7820000 | H203: ='199'!$H$103 -> 0 | I203: ='199'!$H$104 -> 7820000 | J203: ='199'!$P$103 -> 0 | K203: ='199'!$P$104 -> 7624500 | L203: ='199'!$U$103 -> 0 | M203: ='199'!$U$104 -> 0 | N203: ='199'!$U$105 -> 195500
... 302 more rows

Sheet 1
F2: الجهة صاحبة العمل | G2: الشركة العامة للدراسات والاستشارات الفنية | K2: Home Page | P2: القيمة التقديرية للعقد | Q2: 1088500 | W2: محصل
F3: اسم المشروع | G3: صيانة مقر فرع الدراسات بحمص | P3: قيمة السلفة المقبوضة | W3: غير محصل
F4: رقم العقد | G4: ملحق العقد 1 | P4: تاريخ المباشرة | W4: قيد التحصيل
F5: تاريخ العقد | G5: 2015-07-21 | P5: مدة العقد | W5: قديم
W6: تبرير مدة
B7: الجهة صاحبة المشروع | C7: اسم المشروع | D7: رقم العقد | E7: تاريخ العقد | F7: رقم الكشف | G7: تاريخ الكشف | H7: القيمة الاجمالية | I7: قيمة السلفة | J7: التوقيفات | K7: الطوابع | L7: غرامات تأخير ( أمانات ) | M7: غرامات تأخير ( حسميات ) | N7: حسميات سوء تنفيذ | O7: الحسميات الأخرى | P7: المبلغ الصافي | Q7: محصل أو غير محصل | R7: التوقيفات المحصلة للمشاريع المنتهية | S7: رقم أمر القبض | T7: تاريخ الإشعار | U7: ملاحظات | W7: بحاجة إلى اعتماد
B8: مؤسسة عمران حمص | C8: تركيب شبكة مانعة صواعق | D8: 3 | E8: 2015-09-02 | F8: 1 | G8: 2016-12-14 | H8: 1072660 | J8: 26817 | P8: =H8-SUM(I8:O8) -> 1045843 | Q8: محصل | S8: 357 | T8: 2017-07-31
B9: مؤسسة عمران حمص | C9: تركيب شبكة مانعة صواعق | D9: 3 | E9: 2015-09-02 | P9: =H9-SUM(I9:O9) -> 0
B10: مؤسسة عمران حمص | C10: تركيب شبكة مانعة صواعق | D10: 3 | E10: 2015-09-02 | P10: 0
B11: مؤسسة عمران حمص | C11: تركيب شبكة مانعة صواعق | D11: 3 | E11: 2015-09-02 | P11: 0
B12: مؤسسة عمران حمص | C12: تركيب شبكة مانعة صواعق | D12: 3 | E12: 2015-09-02 | P12: 0
B13: مؤسسة عمران حمص | C13: تركيب شبكة مانعة صواعق | D13: 3 | E13: 2015-09-02 | P13: 0
B14: مؤسسة عمران حمص | C14: تركيب شبكة مانعة صواعق | D14: 3 | E14: 2015-09-02 | P14: 0
B15: مؤسسة عمران حمص | C15: تركيب شبكة مانعة صواعق | D15: 3 | E15: 2015-09-02 | P15: 0
B16: مؤسسة عمران حمص | C16: تركيب شبكة مانعة صواعق | D16: 3 | E16: 2015-09-02 | P16: 0
B17: مؤسسة عمران حمص | C17: تركيب شبكة مانعة صواعق | D17: 3 | E17: 2015-09-02 | P17: 0
B18: مؤسسة عمران حمص | C18: تركيب شبكة مانعة صواعق | D18: 3 | E18: 2015-09-02 | P18: 0
B19: مؤسسة عمران حمص | C19: تركيب شبكة مانعة صواعق | D19: 3 | E19: 2015-09-02 | P19: 0
B20: مؤسسة عمران حمص | C20: تركيب شبكة مانعة صواعق | D20: 3 | E20: 2015-09-02 | P20: 0
B21: مؤسسة عمران حمص | C21: تركيب شبكة مانعة صواعق | D21: 3 | E21: 2015-09-02 | P21: 0
B22: مؤسسة عمران حمص | C22: تركيب شبكة مانعة صواعق | D22: 3 | E22: 2015-09-02 | P22: 0
B23: مؤسسة عمران حمص | C23: تركيب شبكة مانعة صواعق | D23: 3 | E23: 2015-09-02 | P23: 0
B24: مؤسسة عمران حمص | C24: تركيب شبكة مانعة صواعق | D24: 3 | E24: 2015-09-02 | P24: 0
B25: مؤسسة عمران حمص | C25: تركيب شبكة مانعة صواعق | D25: 3 | E25: 2015-09-02 | P25: 0
B26: مؤسسة عمران حمص | C26: تركيب شبكة مانعة صواعق | D26: 3 | E26: 2015-09-02 | P26: 0
B27: مؤسسة عمران حمص | C27: تركيب شبكة مانعة صواعق | D27: 3 | E27: 2015-09-02 | P27: 0
B28: مؤسسة عمران حمص | C28: تركيب شبكة مانعة صواعق | D28: 3 | E28: 2015-09-02 | P28: 0
B29: مؤسسة عمران حمص | C29: تركيب شبكة مانعة صواعق | D29: 3 | E29: 2015-09-02 | P29: 0
B30: مؤسسة عمران حمص | C30: تركيب شبكة مانعة صواعق | D30: 3 | E30: 2015-09-02 | P30: 0
B31: مؤسسة عمران حمص | C31: تركيب شبكة مانعة صواعق | D31: 3 | E31: 2015-09-02 | P31: 0
B32: مؤسسة عمران حمص | C32: تركيب شبكة مانعة صواعق | D32: 3 | E32: 2015-09-02 | P32: 0
B33: مؤسسة عمران حمص | C33: تركيب شبكة مانعة صواعق | D33: 3 | E33: 2015-09-02 | P33: 0
B34: مؤسسة عمران حمص | C34: تركيب شبكة مانعة صواعق | D34: 3 | E34: 2015-09-02 | P34: 0
B35: مؤسسة عمران حمص | C35: تركيب شبكة مانعة صواعق | D35: 3 | E35: 2015-09-02 | P35: 0
B36: مؤسسة عمران حمص | C36: تركيب شبكة مانعة صواعق | D36: 3 | E36: 2015-09-02 | P36: 0
B37: مؤسسة عمران حمص | C37: تركيب شبكة مانعة صواعق | D37: 3 | E37: 2015-09-02 | P37: 0
B38: مؤسسة عمران حمص | C38: تركيب شبكة مانعة صواعق | D38: 3 | E38: 2015-09-02 | P38: 0
B39: مؤسسة عمران حمص | C39: تركيب شبكة مانعة صواعق | D39: 3 | E39: 2015-09-02 | P39: 0
B40: مؤسسة عمران حمص | C40: تركيب شبكة مانعة صواعق | D40: 3 | E40: 2015-09-02 | P40: 0
B41: مؤسسة عمران حمص | C41: تركيب شبكة مانعة صواعق | D41: 3 | E41: 2015-09-02 | P41: 0
B42: مؤسسة عمران حمص | C42: تركيب شبكة مانعة صواعق | D42: 3 | E42: 2015-09-02 | P42: 0
B43: مؤسسة عمران حمص | C43: تركيب شبكة مانعة صواعق | D43: 3 | E43: 2015-09-02 | P43: 0
B44: مؤسسة عمران حمص | C44: تركيب شبكة مانعة صواعق | D44: 3 | E44: 2015-09-02 | P44: 0
B45: مؤسسة عمران حمص | C45: تركيب شبكة مانعة صواعق | D45: 3 | E45: 2015-09-02 | P45: 0
B46: مؤسسة عمران حمص | C46: تركيب شبكة مانعة صواعق | D46: 3 | E46: 2015-09-02 | P46: 0
B47: مؤسسة عمران حمص | C47: تركيب شبكة مانعة صواعق | D47: 3 | E47: 2015-09-02 | P47: 0
B48: مؤسسة عمران حمص | C48: تركيب شبكة مانعة صواعق | D48: 3 | E48: 2015-09-02 | P48: 0
B49: مؤسسة عمران حمص | C49: تركيب شبكة مانعة صواعق | D49: 3 | E49: 2015-09-02 | P49: 0
B50: مؤسسة عمران حمص | C50: تركيب شبكة مانعة صواعق | D50: 3 | E50: 2015-09-02 | P50: 0
B51: مؤسسة عمران حمص | C51: تركيب شبكة مانعة صواعق | D51: 3 | E51: 2015-09-02 | P51: 0
B52: مؤسسة عمران حمص | C52: تركيب شبكة مانعة صواعق | D52: 3 | E52: 2015-09-02 | P52: 0
B53: مؤسسة عمران حمص | C53: تركيب شبكة مانعة صواعق | D53: 3 | E53: 2015-09-02 | P53: 0
B54: مؤسسة عمران حمص | C54: تركيب شبكة مانعة صواعق | D54: 3 | E54: 2015-09-02 | P54: 0
B55: مؤسسة عمران حمص | C55: تركيب شبكة مانعة صواعق | D55: 3 | E55: 2015-09-02 | P55: 0
B56: مؤسسة عمران حمص | C56: تركيب شبكة مانعة صواعق | D56: 3 | E56: 2015-09-02 | P56: 0
B57: مؤسسة عمران حمص | C57: تركيب شبكة مانعة صواعق | D57: 3 | E57: 2015-09-02 | P57: 0
B58: مؤسسة عمران حمص | C58: تركيب شبكة مانعة صواعق | D58: 3 | E58: 2015-09-02 | P58: 0
B59: مؤسسة عمران حمص | C59: تركيب شبكة مانعة صواعق | D59: 3 | E59: 2015-09-02 | P59: 0
B60: مؤسسة عمران حمص | C60: تركيب شبكة مانعة صواعق | D60: 3 | E60: 2015-09-02 | P60: 0
B61: مؤسسة عمران حمص | C61: تركيب شبكة مانعة صواعق | D61: 3 | E61: 2015-09-02 | P61: 0
B62: مؤسسة عمران حمص | C62: تركيب شبكة مانعة صواعق | D62: 3 | E62: 2015-09-02 | P62: 0
B63: مؤسسة عمران حمص | C63: تركيب شبكة مانعة صواعق | D63: 3 | E63: 2015-09-02 | P63: 0
B64: مؤسسة عمران حمص | C64: تركيب شبكة مانعة صواعق | D64: 3 | E64: 2015-09-02 | P64: 0
B65: مؤسسة عمران حمص | C65: تركيب شبكة مانعة صواعق | D65: 3 | E65: 2015-09-02 | P65: 0
B66: مؤسسة عمران حمص | C66: تركيب شبكة مانعة صواعق | D66: 3 | E66: 2015-09-02 | P66: 0
B67: مؤسسة عمران حمص | C67: تركيب شبكة مانعة صواعق | D67: 3 | E67: 2015-09-02 | P67: 0
B68: مؤسسة عمران حمص | C68: تركيب شبكة مانعة صواعق | D68: 3 | E68: 2015-09-02 | P68: 0
B69: مؤسسة عمران حمص | C69: تركيب شبكة مانعة صواعق | D69: 3 | E69: 2015-09-02 | P69: 0
B70: مؤسسة عمران حمص | C70: تركيب شبكة مانعة صواعق | D70: 3 | E70: 2015-09-02 | P70: 0
B71: مؤسسة عمران حمص | C71: تركيب شبكة مانعة صواعق | D71: 3 | E71: 2015-09-02 | P71: 0
B72: مؤسسة عمران حمص | C72: تركيب شبكة مانعة صواعق | D72: 3 | E72: 2015-09-02 | P72: 0
B73: مؤسسة عمران حمص | C73: تركيب شبكة مانعة صواعق | D73: 3 | E73: 2015-09-02 | P73: =H73-SUM(I73:O73) -> 0
B74: مؤسسة عمران حمص | C74: تركيب شبكة مانعة صواعق | D74: 3 | E74: 2015-09-02 | P74: 0
B75: مؤسسة عمران حمص | C75: تركيب شبكة مانعة صواعق | D75: 3 | E75: 2015-09-02 | P75: 0
B76: مؤسسة عمران حمص | C76: تركيب شبكة مانعة صواعق | D76: 3 | E76: 2015-09-02 | P76: 0
B77: مؤسسة عمران حمص | C77: تركيب شبكة مانعة صواعق | D77: 3 | E77: 2015-09-02 | P77: 0
B78: مؤسسة عمران حمص | C78: تركيب شبكة مانعة صواعق | D78: 3 | E78: 2015-09-02 | P78: 0
B79: مؤسسة عمران حمص | C79: تركيب شبكة مانعة صواعق | D79: 3 | E79: 2015-09-02 | P79: 0
B80: مؤسسة عمران حمص | C80: تركيب شبكة مانعة صواعق | D80: 3 | E80: 2015-09-02 | P80: 0
B81: مؤسسة عمران حمص | C81: تركيب شبكة مانعة صواعق | D81: 3 | E81: 2015-09-02 | P81: 0
B82: مؤسسة عمران حمص | C82: تركيب شبكة مانعة صواعق | D82: 3 | E82: 2015-09-02 | P82: 0
B83: مؤسسة عمران حمص | C83: تركيب شبكة مانعة صواعق | D83: 3 | E83: 2015-09-02 | P83: 0
B84: مؤسسة عمران حمص | C84: تركيب شبكة مانعة صواعق | D84: 3 | E84: 2015-09-02 | P84: 0
B85: مؤسسة عمران حمص | C85: تركيب شبكة مانعة صواعق | D85: 3 | E85: 2015-09-02 | P85: 0
B86: مؤسسة عمران حمص | C86: تركيب شبكة مانعة صواعق | D86: 3 | E86: 2015-09-02 | P86: 0
B87: مؤسسة عمران حمص | C87: تركيب شبكة مانعة صواعق | D87: 3 | E87: 2015-09-02 | P87: 0
B88: مؤسسة عمران حمص | C88: تركيب شبكة مانعة صواعق | D88: 3 | E88: 2015-09-02 | P88: 0
B89: مؤسسة عمران حمص | C89: تركيب شبكة مانعة صواعق | D89: 3 | E89: 2015-09-02 | P89: 0
B90: مؤسسة عمران حمص | C90: تركيب شبكة مانعة صواعق | D90: 3 | E90: 2015-09-02 | P90: 0
B91: مؤسسة عمران حمص | C91: تركيب شبكة مانعة صواعق | D91: 3 | E91: 2015-09-02 | P91: 0
B92: مؤسسة عمران حمص | C92: تركيب شبكة مانعة صواعق | D92: 3 | E92: 2015-09-02 | P92: 0
B93: مؤسسة عمران حمص | C93: تركيب شبكة مانعة صواعق | D93: 3 | E93: 2015-09-02 | P93: 0
B94: مؤسسة عمران حمص | C94: تركيب شبكة مانعة صواعق | D94: 3 | E94: 2015-09-02 | P94: 0
B95: مؤسسة عمران حمص | C95: تركيب شبكة مانعة صواعق | D95: 3 | E95: 2015-09-02 | P95: 0
B96: مؤسسة عمران حمص | C96: تركيب شبكة مانعة صواعق | D96: 3 | E96: 2015-09-02 | P96: 0
B97: مؤسسة عمران حمص | C97: تركيب شبكة مانعة صواعق | D97: 3 | E97: 2015-09-02 | P97: 0
B98: مؤسسة عمران حمص | C98: تركيب شبكة مانعة صواعق | D98: 3 | E98: 2015-09-02 | P98: 0
B99: مؤسسة عمران حمص | C99: تركيب شبكة مانعة صواعق | D99: 3 | E99: 2015-09-02 | P99: 0
B100: مؤسسة عمران حمص | C100: تركيب شبكة مانعة صواعق | D100: 3 | E100: 2015-09-02 | P100: 0
H101: =SUBTOTAL(109,H8:H100) -> 1072660 | I101: =SUBTOTAL(109,I8:I100) -> 0 | J101: 26817 | K101: 0 | O101: 0 | P101: 1045843 | Q101: 0 | R101: 0 | S101: 357 | T101: 42947 | U101: 0
B103: إجمالي الكشوف المحصلة | D103: =SUMIF(Q8:Q100,"محصل",H8:H100) -> 1072660 | F103: إجمالي الكشوف المحصلة | H103: =SUMIF(Q8:Q100,"محصل",H8:H100) -> 1072660 | J103: صافي الكشوف المحصلة | P103: =SUMIF(Q8:Q100,"محصل",P8:P100) -> 1045843 | R103: إجمالي السلفة المحسومة | U103: =I101 -> 0
B104: إجمالي الكشوف غير المحصلة | D104: =SUMIF(Q8:Q100,"غير محصل",H8:H100) -> 0 | F104: إجمالي الكشوف غير المحصلة | H104: =SUMIF(Q8:Q100,"غير محصل",H8:H100) -> 0 | J104: صافي الكشوف غير المحصلة | P104: =SUMIF(Q8:Q100,"غير محصل",P8:P100) -> 0 | R104: رصيد السلفة | U104: =Q3-I101 -> 0
B105: إجمالي التوقيفات لتاريخه | D105: =J101 -> 26817 | F105: إجمالي التوقيفات لتاريخه | H105: =J101 -> 26817 | J105: مجموع الحسميات الأخرى والطوابع | P105: =O101+K101 -> 0 | R105: التوقيفات غير المحصلة | U105: =J101-R101 -> 26817

Sheet 2
F2: الجهة صاحبة العمل | G2: الشركة السورية للنفط - مديرية حقول المنطقة الوسطى | K2: Home Page | P2: القيمة التقديرية للعقد | Q2: 48355000 | W2: محصل
F3: اسم المشروع | G3: الأعمال المدنية لتجهيز قواعد الحفارات لموقعين | P3: قيمة السلفة المقبوضة | Q3: 0 | W3: غير محصل
F4: رقم العقد | G4: 37 | P4: تاريخ المباشرة | Q4: 2015-09-03 | W4: قيد التحصيل
F5: تاريخ العقد | G5: 2015-09-03 | P5: مدة العقد | Q5: 16 شهرا | W5: قديم
W6: تبرير مدة
B7: الجهة صاحبة المشروع | C7: اسم المشروع | D7: رقم العقد | E7: تاريخ العقد | F7: رقم الكشف | G7: تاريخ الكشف | H7: القيمة الاجمالية | I7: قيمة السلفة | J7: التوقيفات | K7: الطوابع | L7: غرامات تأخير ( أمانات ) | M7: غرامات تأخير ( حسميات ) | N7: حسميات سوء تنفيذ | O7: الحسميات الأخرى | P7: المبلغ الصافي | Q7: محصل أو غير محصل | R7: التوقيفات المحصلة للمشاريع المنتهية | S7: رقم أمر القبض | T7: تاريخ الإشعار | U7: ملاحظات | W7: بحاجة إلى اعتماد
B8: الشركة السورية للنفط - مديرية حقول المنطقة الوسطى | C8: الأعمال المدنية لتجهيز قواعد الحفارات لموقعين | D8: 37 | E8: 2015-09-03 | F8: 1 | G8: 2015-09-30 | H8: 15122500 | J8: 378062 | K8: 145 | P8: =H8-SUM(I8:O8) -> 14744293 | Q8: محصل | S8: 269 | T8: 2015-10-29
B9: الشركة السورية للنفط - مديرية حقول المنطقة الوسطى | C9: الأعمال المدنية لتجهيز قواعد الحفارات لموقعين | D9: 37 | E9: 2015-09-03 | F9: 2 | G9: 2015-10-31 | H9: 1080000 | J9: =ROUND(H9*2.5/100,0) -> 27000 | K9: 145 | P9: =H9-SUM(I9:O9) -> 1052855 | Q9: محصل | S9: 324 | T9: 2015-12-17
B10: الشركة السورية للنفط - مديرية حقول المنطقة الوسطى | C10: الأعمال المدنية لتجهيز قواعد الحفارات لموقعين | D10: 37 | E10: 2015-09-03 | F10: 3 | G10: 2015-11-30 | H10: 5500000 | J10: 137500 | K10: 145 | P10: 5362355 | Q10: محصل | S10: 2 | T10: 2016-01-05
B11: الشركة السورية للنفط - مديرية حقول المنطقة الوسطى | C11: الأعمال المدنية لتجهيز قواعد الحفارات لموقعين | D11: 37 | E11: 2015-09-03 | F11: 4 | G11: 2016-01-27 | H11: 20827500 | J11: 520688 | K11: 145 | P11: 20306667 | Q11: محصل | S11: 75 | T11: 2016-03-05
B12: الشركة السورية للنفط - مديرية حقول المنطقة الوسطى | C12: الأعمال المدنية لتجهيز قواعد الحفارات لموقعين | D12: 37 | E12: 2015-09-03 | F12: 5 | G12: 2016-02-29 | H12: 10100000 | J12: 252500 | K12: 145 | P12: =H12-SUM(I12:O12) -> 9847355 | Q12: محصل | S12: 120 | T12: 2016-04-16
B13: الشركة السورية للنفط - مديرية حقول المنطقة الوسطى | C13: الأعمال المدنية لتجهيز قواعد الحفارات لموقعين | D13: 37 | E13: 2015-09-03 | F13: 6 نهائي | G13: 2016-03-05 | H13: 3157060 | J13: 78927 | K13: 145 | P13: =H13-SUM(I13:O13) -> 3077988 | Q13: محصل | S13: 269 | T13: 2016-09-06
B14: الشركة السورية للنفط - مديرية حقول المنطقة الوسطى | C14: الأعمال المدنية لتجهيز قواعد الحفارات لموقعين | D14: 37 | E14: 2015-09-03 | F14: 1 فرق سعر | G14: 2016-03-05 | H14: 1638667 | P14: 1638667 | Q14: غير محصل
B15: الشركة السورية للنفط - مديرية حقول المنطقة الوسطى | C15: الأعمال المدنية لتجهيز قواعد الحفارات لموقعين | D15: 37 | E15: 2015-09-03 | F15: توقيفات العقد | H15: 1701911 | K15: 15125 | P15: 1686786 | Q15: محصل | R15: 1394677 | S15: 324 | T15: 2017-07-18
B16: الشركة السورية للنفط - مديرية حقول المنطقة الوسطى | C16: الأعمال المدنية لتجهيز قواعد الحفارات لموقعين | D16: 37 | E16: 2015-09-03 | P16: 0
B17: الشركة السورية للنفط - مديرية حقول المنطقة الوسطى | C17: الأعمال المدنية لتجهيز قواعد الحفارات لموقعين | D17: 37 | E17: 2015-09-03 | P17: 0
B18: الشركة السورية للنفط - مديرية حقول المنطقة الوسطى | C18: الأعمال المدنية لتجهيز قواعد الحفارات لموقعين | D18: 37 | E18: 2015-09-03 | P18: 0
B19: الشركة السورية للنفط - مديرية حقول المنطقة الوسطى | C19: الأعمال المدنية لتجهيز قواعد الحفارات لموقعين | D19: 37 | E19: 2015-09-03 | P19: 0
B20: الشركة السورية للنفط - مديرية حقول المنطقة الوسطى | C20: الأعمال المدنية لتجهيز قواعد الحفارات لموقعين | D20: 37 | E20: 2015-09-03 | P20: 0
B21: الشركة السورية للنفط - مديرية حقول المنطقة الوسطى | C21: الأعمال المدنية لتجهيز قواعد الحفارات لموقعين | D21: 37 | E21: 2015-09-03 | P21: 0
B22: الشركة السورية للنفط - مديرية حقول المنطقة الوسطى | C22: الأعمال المدنية لتجهيز قواعد الحفارات لموقعين | D22: 37 | E22: 2015-09-03 | P22: 0
B23: الشركة السورية للنفط - مديرية حقول المنطقة الوسطى | C23: الأعمال المدنية لتجهيز قواعد الحفارات لموقعين | D23: 37 | E23: 2015-09-03 | P23: 0
B24: الشركة السورية للنفط - مديرية حقول المنطقة الوسطى | C24: الأعمال المدنية لتجهيز قواعد الحفارات لموقعين | D24: 37 | E24: 2015-09-03 | P24: 0
B25: الشركة السورية للنفط - مديرية حقول المنطقة الوسطى | C25: الأعمال المدنية لتجهيز قواعد الحفارات لموقعين | D25: 37 | E25: 2015-09-03 | P25: 0
B26: الشركة السورية للنفط - مديرية حقول المنطقة الوسطى | C26: الأعمال المدنية لتجهيز قواعد الحفارات لموقعين | D26: 37 | E26: 2015-09-03 | P26: 0
B27: الشركة السورية للنفط - مديرية حقول المنطقة الوسطى | C27: الأعمال المدنية لتجهيز قواعد الحفارات لموقعين | D27: 37 | E27: 2015-09-03 | P27: 0
B28: الشركة السورية للنفط - مديرية حقول المنطقة الوسطى | C28: الأعمال المدنية لتجهيز قواعد الحفارات لموقعين | D28: 37 | E28: 2015-09-03 | P28: 0
B29: الشركة السورية للنفط - مديرية حقول المنطقة الوسطى | C29: الأعمال المدنية لتجهيز قواعد الحفارات لموقعين | D29: 37 | E29: 2015-09-03 | P29: 0
B30: الشركة السورية للنفط - مديرية حقول المنطقة الوسطى | C30: الأعمال المدنية لتجهيز قواعد الحفارات لموقعين | D30: 37 | E30: 2015-09-03 | P30: 0
B31: الشركة السورية للنفط - مديرية حقول المنطقة الوسطى | C31: الأعمال المدنية لتجهيز قواعد الحفارات لموقعين | D31: 37 | E31: 2015-09-03 | P31: 0
B32: الشركة السورية للنفط - مديرية حقول المنطقة الوسطى | C32: الأعمال المدنية لتجهيز قواعد الحفارات لموقعين | D32: 37 | E32: 2015-09-03 | P32: 0
B33: الشركة السورية للنفط - مديرية حقول المنطقة الوسطى | C33: الأعمال المدنية لتجهيز قواعد الحفارات لموقعين | D33: 37 | E33: 2015-09-03 | P33: 0
B34: الشركة السورية للنفط - مديرية حقول المنطقة الوسطى | C34: الأعمال المدنية لتجهيز قواعد الحفارات لموقعين | D34: 37 | E34: 2015-09-03 | P34: 0
B35: الشركة السورية للنفط - مديرية حقول المنطقة الوسطى | C35: الأعمال المدنية لتجهيز قواعد الحفارات لموقعين | D35: 37 | E35: 2015-09-03 | P35: 0
B36: الشركة السورية للنفط - مديرية حقول المنطقة الوسطى | C36: الأعمال المدنية لتجهيز قواعد الحفارات لموقعين | D36: 37 | E36: 2015-09-03 | P36: 0
B37: الشركة السورية للنفط - مديرية حقول المنطقة الوسطى | C37: الأعمال المدنية لتجهيز قواعد الحفارات لموقعين | D37: 37 | E37: 2015-09-03 | P37: 0
B38: الشركة السورية للنفط - مديرية حقول المنطقة الوسطى | C38: الأعمال المدنية لتجهيز قواعد الحفارات لموقعين | D38: 37 | E38: 2015-09-03 | P38: 0
B39: الشركة السورية للنفط - مديرية حقول المنطقة الوسطى | C39: الأعمال المدنية لتجهيز قواعد الحفارات لموقعين | D39: 37 | E39: 2015-09-03 | P39: 0
B40: الشركة السورية للنفط - مديرية حقول المنطقة الوسطى | C40: الأعمال المدنية لتجهيز قواعد الحفارات لموقعين | D40: 37 | E40: 2015-09-03 | P40: 0
B41: الشركة السورية للنفط - مديرية حقول المنطقة الوسطى | C41: الأعمال المدنية لتجهيز قواعد الحفارات لموقعين | D41: 37 | E41: 2015-09-03 | P41: 0
B42: الشركة السورية للنفط - مديرية حقول المنطقة الوسطى | C42: الأعمال المدنية لتجهيز قواعد الحفارات لموقعين | D42: 37 | E42: 2015-09-03 | P42: 0
B43: الشركة السورية للنفط - مديرية حقول المنطقة الوسطى | C43: الأعمال المدنية لتجهيز قواعد الحفارات لموقعين | D43: 37 | E43: 2015-09-03 | P43: 0
B44: الشركة السورية للنفط - مديرية حقول المنطقة الوسطى | C44: الأعمال المدنية لتجهيز قواعد الحفارات لموقعين | D44: 37 | E44: 2015-09-03 | P44: 0
B45: الشركة السورية للنفط - مديرية حقول المنطقة الوسطى | C45: الأعمال المدنية لتجهيز قواعد الحفارات لموقعين | D45: 37 | E45: 2015-09-03 | P45: 0
B46: الشركة السورية للنفط - مديرية حقول المنطقة الوسطى | C46: الأعمال المدنية لتجهيز قواعد الحفارات لموقعين | D46: 37 | E46: 2015-09-03 | P46: 0
B47: الشركة السورية للنفط - مديرية حقول المنطقة الوسطى | C47: الأعمال المدنية لتجهيز قواعد الحفارات لموقعين | D47: 37 | E47: 2015-09-03 | P47: 0
B48: الشركة السورية للنفط - مديرية حقول المنطقة الوسطى | C48: الأعمال المدنية لتجهيز قواعد الحفارات لموقعين | D48: 37 | E48: 2015-09-03 | P48: 0
B49: الشركة السورية للنفط - مديرية حقول المنطقة الوسطى | C49: الأعمال المدنية لتجهيز قواعد الحفارات لموقعين | D49: 37 | E49: 2015-09-03 | P49: 0
B50: الشركة السورية للنفط - مديرية حقول المنطقة الوسطى | C50: الأعمال المدنية لتجهيز قواعد الحفارات لموقعين | D50: 37 | E50: 2015-09-03 | P50: 0
B51: الشركة السورية للنفط - مديرية حقول المنطقة الوسطى | C51: الأعمال المدنية لتجهيز قواعد الحفارات لموقعين | D51: 37 | E51: 2015-09-03 | P51: 0
B52: الشركة السورية للنفط - مديرية حقول المنطقة الوسطى | C52: الأعمال المدنية لتجهيز قواعد الحفارات لموقعين | D52: 37 | E52: 2015-09-03 | P52: 0
B53: الشركة السورية للنفط - مديرية حقول المنطقة الوسطى | C53: الأعمال المدنية لتجهيز قواعد الحفارات لموقعين | D53: 37 | E53: 2015-09-03 | P53: 0
B54: الشركة السورية للنفط - مديرية حقول المنطقة الوسطى | C54: الأعمال المدنية لتجهيز قواعد الحفارات لموقعين | D54: 37 | E54: 2015-09-03 | P54: 0
B55: الشركة السورية للنفط - مديرية حقول المنطقة الوسطى | C55: الأعمال المدنية لتجهيز قواعد الحفارات لموقعين | D55: 37 | E55: 2015-09-03 | P55: 0
B56: الشركة السورية للنفط - مديرية حقول المنطقة الوسطى | C56: الأعمال المدنية لتجهيز قواعد الحفارات لموقعين | D56: 37 | E56: 2015-09-03 | P56: 0
B57: الشركة السورية للنفط - مديرية حقول المنطقة الوسطى | C57: الأعمال المدنية لتجهيز قواعد الحفارات لموقعين | D57: 37 | E57: 2015-09-03 | P57: 0
B58: الشركة السورية للنفط - مديرية حقول المنطقة الوسطى | C58: الأعمال المدنية لتجهيز قواعد الحفارات لموقعين | D58: 37 | E58: 2015-09-03 | P58: 0
B59: الشركة السورية للنفط - مديرية حقول المنطقة الوسطى | C59: الأعمال المدنية لتجهيز قواعد الحفارات لموقعين | D59: 37 | E59: 2015-09-03 | P59: 0
B60: الشركة السورية للنفط - مديرية حقول المنطقة الوسطى | C60: الأعمال المدنية لتجهيز قواعد الحفارات لموقعين | D60: 37 | E60: 2015-09-03 | P60: 0
B61: الشركة السورية للنفط - مديرية حقول المنطقة الوسطى | C61: الأعمال المدنية لتجهيز قواعد الحفارات لموقعين | D61: 37 | E61: 2015-09-03 | P61: 0
B62: الشركة السورية للنفط - مديرية حقول المنطقة الوسطى | C62: الأعمال المدنية لتجهيز قواعد الحفارات لموقعين | D62: 37 | E62: 2015-09-03 | P62: 0
B63: الشركة السورية للنفط - مديرية حقول المنطقة الوسطى | C63: الأعمال المدنية لتجهيز قواعد الحفارات لموقعين | D63: 37 | E63: 2015-09-03 | P63: 0
B64: الشركة السورية للنفط - مديرية حقول المنطقة الوسطى | C64: الأعمال المدنية لتجهيز قواعد الحفارات لموقعين | D64: 37 | E64: 2015-09-03 | P64: 0
B65: الشركة السورية للنفط - مديرية حقول المنطقة الوسطى | C65: الأعمال المدنية لتجهيز قواعد الحفارات لموقعين | D65: 37 | E65: 2015-09-03 | P65: 0
B66: الشركة السورية للنفط - مديرية حقول المنطقة الوسطى | C66: الأعمال المدنية لتجهيز قواعد الحفارات لموقعين | D66: 37 | E66: 2015-09-03 | P66: 0
B67: الشركة السورية للنفط - مديرية حقول المنطقة الوسطى | C67: الأعمال المدنية لتجهيز قواعد الحفارات لموقعين | D67: 37 | E67: 2015-09-03 | P67: 0
B68: الشركة السورية للنفط - مديرية حقول المنطقة الوسطى | C68: الأعمال المدنية لتجهيز قواعد الحفارات لموقعين | D68: 37 | E68: 2015-09-03 | P68: 0
B69: الشركة السورية للنفط - مديرية حقول المنطقة الوسطى | C69: الأعمال المدنية لتجهيز قواعد الحفارات لموقعين | D69: 37 | E69: 2015-09-03 | P69: 0
B70: الشركة السورية للنفط - مديرية حقول المنطقة الوسطى | C70: الأعمال المدنية لتجهيز قواعد الحفارات لموقعين | D70: 37 | E70: 2015-09-03 | P70: 0
B71: الشركة السورية للنفط - مديرية حقول المنطقة الوسطى | C71: الأعمال المدنية لتجهيز قواعد الحفارات لموقعين | D71: 37 | E71: 2015-09-03 | P71: 0
B72: الشركة السورية للنفط - مديرية حقول المنطقة الوسطى | C72: الأعمال المدنية لتجهيز قواعد الحفارات لموقعين | D72: 37 | E72: 2015-09-03 | P72: 0
B73: الشركة السورية للنفط - مديرية حقول المنطقة الوسطى | C73: الأعمال المدنية لتجهيز قواعد الحفارات لموقعين | D73: 37 | E73: 2015-09-03 | P73: =H73-SUM(I73:O73) -> 0
B74: الشركة السورية للنفط - مديرية حقول المنطقة الوسطى | C74: الأعمال المدنية لتجهيز قواعد الحفارات لموقعين | D74: 37 | E74: 2015-09-03 | P74: 0
B75: الشركة السورية للنفط - مديرية حقول المنطقة الوسطى | C75: الأعمال المدنية لتجهيز قواعد الحفارات لموقعين | D75: 37 | E75: 2015-09-03 | P75: 0
B76: الشركة السورية للنفط - مديرية حقول المنطقة الوسطى | C76: الأعمال المدنية لتجهيز قواعد الحفارات لموقعين | D76: 37 | E76: 2015-09-03 | P76: 0
B77: الشركة السورية للنفط - مديرية حقول المنطقة الوسطى | C77: الأعمال المدنية لتجهيز قواعد الحفارات لموقعين | D77: 37 | E77: 2015-09-03 | P77: 0
B78: الشركة السورية للنفط - مديرية حقول المنطقة الوسطى | C78: الأعمال المدنية لتجهيز قواعد الحفارات لموقعين | D78: 37 | E78: 2015-09-03 | P78: 0
B79: الشركة السورية للنفط - مديرية حقول المنطقة الوسطى | C79: الأعمال المدنية لتجهيز قواعد الحفارات لموقعين | D79: 37 | E79: 2015-09-03 | P79: 0
B80: الشركة السورية للنفط - مديرية حقول المنطقة الوسطى | C80: الأعمال المدنية لتجهيز قواعد الحفارات لموقعين | D80: 37 | E80: 2015-09-03 | P80: 0
B81: الشركة السورية للنفط - مديرية حقول المنطقة الوسطى | C81: الأعمال المدنية لتجهيز قواعد الحفارات لموقعين | D81: 37 | E81: 2015-09-03 | P81: 0
B82: الشركة السورية للنفط - مديرية حقول المنطقة الوسطى | C82: الأعمال المدنية لتجهيز قواعد الحفارات لموقعين | D82: 37 | E82: 2015-09-03 | P82: 0
B83: الشركة السورية للنفط - مديرية حقول المنطقة الوسطى | C83: الأعمال المدنية لتجهيز قواعد الحفارات لموقعين | D83: 37 | E83: 2015-09-03 | P83: 0
B84: الشركة السورية للنفط - مديرية حقول المنطقة الوسطى | C84: الأعمال المدنية لتجهيز قواعد الحفارات لموقعين | D84: 37 | E84: 2015-09-03 | P84: 0
B85: الشركة السورية للنفط - مديرية حقول المنطقة الوسطى | C85: الأعمال المدنية لتجهيز قواعد الحفارات لموقعين | D85: 37 | E85: 2015-09-03 | P85: 0
B86: الشركة السورية للنفط - مديرية حقول المنطقة الوسطى | C86: الأعمال المدنية لتجهيز قواعد الحفارات لموقعين | D86: 37 | E86: 2015-09-03 | P86: 0
B87: الشركة السورية للنفط - مديرية حقول المنطقة الوسطى | C87: الأعمال المدنية لتجهيز قواعد الحفارات لموقعين | D87: 37 | E87: 2015-09-03 | P87: 0
B88: الشركة السورية للنفط - مديرية حقول المنطقة الوسطى | C88: الأعمال المدنية لتجهيز قواعد الحفارات لموقعين | D88: 37 | E88: 2015-09-03 | P88: 0
B89: الشركة السورية للنفط - مديرية حقول المنطقة الوسطى | C89: الأعمال المدنية لتجهيز قواعد الحفارات لموقعين | D89: 37 | E89: 2015-09-03 | P89: 0
B90: الشركة السورية للنفط - مديرية حقول المنطقة الوسطى | C90: الأعمال المدنية لتجهيز قواعد الحفارات لموقعين | D90: 37 | E90: 2015-09-03 | P90: 0
B91: الشركة السورية للنفط - مديرية حقول المنطقة الوسطى | C91: الأعمال المدنية لتجهيز قواعد الحفارات لموقعين | D91: 37 | E91: 2015-09-03 | P91: 0
B92: الشركة السورية للنفط - مديرية حقول المنطقة الوسطى | C92: الأعمال المدنية لتجهيز قواعد الحفارات لموقعين | D92: 37 | E92: 2015-09-03 | P92: 0
B93: الشركة السورية للنفط - مديرية حقول المنطقة الوسطى | C93: الأعمال المدنية لتجهيز قواعد الحفارات لموقعين | D93: 37 | E93: 2015-09-03 | P93: 0
B94: الشركة السورية للنفط - مديرية حقول المنطقة الوسطى | C94: الأعمال المدنية لتجهيز قواعد الحفارات لموقعين | D94: 37 | E94: 2015-09-03 | P94: 0
B95: الشركة السورية للنفط - مديرية حقول المنطقة الوسطى | C95: الأعمال المدنية لتجهيز قواعد الحفارات لموقعين | D95: 37 | E95: 2015-09-03 | P95: 0
B96: الشركة السورية للنفط - مديرية حقول المنطقة الوسطى | C96: الأعمال المدنية لتجهيز قواعد الحفارات لموقعين | D96: 37 | E96: 2015-09-03 | P96: 0
B97: الشركة السورية للنفط - مديرية حقول المنطقة الوسطى | C97: الأعمال المدنية لتجهيز قواعد الحفارات لموقعين | D97: 37 | E97: 2015-09-03 | P97: 0
B98: الشركة السورية للنفط - مديرية حقول المنطقة الوسطى | C98: الأعمال المدنية لتجهيز قواعد الحفارات لموقعين | D98: 37 | E98: 2015-09-03 | P98: 0
B99: الشركة السورية للنفط - مديرية حقول المنطقة الوسطى | C99: الأعمال المدنية لتجهيز قواعد الحفارات لموقعين | D99: 37 | E99: 2015-09-03 | P99: 0
B100: الشركة السورية للنفط - مديرية حقول المنطقة الوسطى | C100: الأعمال المدنية لتجهيز قواعد الحفارات لموقعين | D100: 37 | E100: 2015-09-03 | P100: 0
H101: =SUBTOTAL(109,H8:H100) -> 59127638 | I101: =SUBTOTAL(109,I8:I100) -> 0 | J101: 1394677 | K101: 15995 | O101: 0 | P101: 57716966 | Q101: 0 | R101: 1394677 | S101: 1383 | T101: 297498 | U101: 0
B103: إجمالي الكشوف المحصلة | D103: =SUMIF(Q8:Q100,"محصل",H8:H100) -> 57488971 | F103: إجمالي الكشوف المحصلة | H103: =SUMIF(Q8:Q100,"محصل",H8:H100) -> 57488971 | J103: صافي الكشوف المحصلة | P103: =SUMIF(Q8:Q100,"محصل",P8:P100) -> 56078299 | R103: إجمالي السلفة المحسومة | U103: =I101 -> 0
B104: إجمالي الكشوف غير المحصلة | D104: =SUMIF(Q8:Q100,"غير محصل",H8:H100) -> 1638667 | F104: إجمالي الكشوف غير المحصلة | H104: =SUMIF(Q8:Q100,"غير محصل",H8:H100) -> 1638667 | J104: صافي الكشوف غير المحصلة | P104: =SUMIF(Q8:Q100,"غير محصل",P8:P100) -> 1638667 | R104: رصيد السلفة | U104: =Q3-I101 -> 0
B105: إجمالي التوقيفات لتاريخه | D105: =J101 -> 1394677 | F105: إجمالي التوقيفات لتاريخه | H105: =J101 -> 1394677 | J105: مجموع الحسميات الأخرى والطوابع | P105: =O101+K101 -> 15995 | R105: التوقيفات غير المحصلة | U105: =J101-R101 -> 0

Sheet 3
F2: الجهة صاحبة العمل | G2: اتحاد نقابات العمال - حمص | K2: Home Page | P2: القيمة التقديرية للعقد | Q2: 25764108 | W2: محصل
F3: اسم المشروع | G3: بناء مكاتب إضافية من طابق واحد في الكتلة A + B | P3: قيمة السلفة المقبوضة | Q3: 0 | W3: غير محصل
F4: رقم العقد | G4: 1 | P4: تاريخ المباشرة | Q4: 2015-07-14 | W4: قيد التحصيل
F5: تاريخ العقد | G5: 2015-07-13 | P5: مدة العقد | Q5: 4 أشهر | W5: قديم
W6: تبرير مدة
B7: الجهة صاحبة المشروع | C7: اسم المشروع | D7: رقم العقد | E7: تاريخ العقد | F7: رقم الكشف | G7: تاريخ الكشف | H7: القيمة الاجمالية | I7: قيمة السلفة | J7: التوقيفات | K7: الطوابع | L7: غرامات تأخير ( أمانات ) | M7: غرامات تأخير ( حسميات ) | N7: حسميات سوء تنفيذ | O7: الحسميات الأخرى | P7: المبلغ الصافي | Q7: محصل أو غير محصل | R7: التوقيفات المحصلة للمشاريع المنتهية | S7: رقم أمر القبض | T7: تاريخ الإشعار | U7: ملاحظات | W7: بحاجة إلى اعتماد
B8: اتحاد نقابات العمال - حمص | C8: بناء مكاتب إضافية من طابق واحد في الكتلة A + B | D8: 1 | E8: 2015-07-13 | F8: 1 | G8: 2015-08-31 | H8: 4413500 | J8: 220675 | P8: =H8-SUM(I8:O8) -> 4192825 | Q8: محصل | S8: 213 | T8: 2015-09-07
B9: اتحاد نقابات العمال - حمص | C9: بناء مكاتب إضافية من طابق واحد في الكتلة A + B | D9: 1 | E9: 2015-07-13 | F9: 2 | G9: 2015-09-30 | H9: 1969100 | J9: 98455 | P9: =H9-SUM(I9:O9) -> 1870645 | Q9: محصل | S9: 256 | T9: 2015-10-21
B10: اتحاد نقابات العمال - حمص | C10: بناء مكاتب إضافية من طابق واحد في الكتلة A + B | D10: 1 | E10: 2015-07-13 | F10: 3 | G10: 2015-10-31 | H10: 1985256 | J10: 99262 | P10: 1885994 | Q10: محصل | S10: 316 | T10: 2015-12-09
B11: اتحاد نقابات العمال - حمص | C11: بناء مكاتب إضافية من طابق واحد في الكتلة A + B | D11: 1 | E11: 2015-07-13 | F11: 4 | G11: 2015-12-30 | H11: 5622217 | J11: 281111 | P11: 5341106 | Q11: محصل | S11: 56 | T11: 2016-02-17
B12: اتحاد نقابات العمال - حمص | C12: بناء مكاتب إضافية من طابق واحد في الكتلة A + B | D12: 1 | E12: 2015-07-13 | F12: 5 | G12: 2016-01-31 | H12: 2327606 | J12: 116380 | P12: 2211226 | Q12: محصل | S12: 87 | T12: 2016-03-17
B13: اتحاد نقابات العمال - حمص | C13: بناء مكاتب إضافية من طابق واحد في الكتلة A + B | D13: 1 | E13: 2015-07-13 | F13: 6 نهائي | G13: 2016-03-09 | H13: =6901448+1128568+275512 -> 8305528 | J13: 345072 | M13: 2020064 | N13: 190240 | O13: =3988930+5035765 -> 9024695 | P13: -3274543 | Q13: غير محصل | U13: كتاب استرداد توقيفات الضمان
B14: اتحاد نقابات العمال - حمص | C14: بناء مكاتب إضافية من طابق واحد في الكتلة A + B | D14: 1 | E14: 2015-07-13 | P14: 0 | U14: كتاب 659 / 2019
B15: اتحاد نقابات العمال - حمص | C15: بناء مكاتب إضافية من طابق واحد في الكتلة A + B | D15: 1 | E15: 2015-07-13 | P15: 0
B16: اتحاد نقابات العمال - حمص | C16: بناء مكاتب إضافية من طابق واحد في الكتلة A + B | D16: 1 | E16: 2015-07-13 | P16: 0
B17: اتحاد نقابات العمال - حمص | C17: بناء مكاتب إضافية من طابق واحد في الكتلة A + B | D17: 1 | E17: 2015-07-13 | P17: 0
B18: اتحاد نقابات العمال - حمص | C18: بناء مكاتب إضافية من طابق واحد في الكتلة A + B | D18: 1 | E18: 2015-07-13 | P18: 0
B19: اتحاد نقابات العمال - حمص | C19: بناء مكاتب إضافية من طابق واحد في الكتلة A + B | D19: 1 | E19: 2015-07-13 | P19: 0
B20: اتحاد نقابات العمال - حمص | C20: بناء مكاتب إضافية من طابق واحد في الكتلة A + B | D20: 1 | E20: 2015-07-13 | P20: 0
B21: اتحاد نقابات العمال - حمص | C21: بناء مكاتب إضافية من طابق واحد في الكتلة A + B | D21: 1 | E21: 2015-07-13 | P21: 0
B22: اتحاد نقابات العمال - حمص | C22: بناء مكاتب إضافية من طابق واحد في الكتلة A + B | D22: 1 | E22: 2015-07-13 | P22: 0
B23: اتحاد نقابات العمال - حمص | C23: بناء مكاتب إضافية من طابق واحد في الكتلة A + B | D23: 1 | E23: 2015-07-13 | P23: 0
B24: اتحاد نقابات العمال - حمص | C24: بناء مكاتب إضافية من طابق واحد في الكتلة A + B | D24: 1 | E24: 2015-07-13 | P24: 0
B25: اتحاد نقابات العمال - حمص | C25: بناء مكاتب إضافية من طابق واحد في الكتلة A + B | D25: 1 | E25: 2015-07-13 | P25: 0
B26: اتحاد نقابات العمال - حمص | C26: بناء مكاتب إضافية من طابق واحد في الكتلة A + B | D26: 1 | E26: 2015-07-13 | P26: 0
B27: اتحاد نقابات العمال - حمص | C27: بناء مكاتب إضافية من طابق واحد في الكتلة A + B | D27: 1 | E27: 2015-07-13 | P27: 0
B28: اتحاد نقابات العمال - حمص | C28: بناء مكاتب إضافية من طابق واحد في الكتلة A + B | D28: 1 | E28: 2015-07-13 | P28: 0
B29: اتحاد نقابات العمال - حمص | C29: بناء مكاتب إضافية من طابق واحد في الكتلة A + B | D29: 1 | E29: 2015-07-13 | P29: 0
B30: اتحاد نقابات العمال - حمص | C30: بناء مكاتب إضافية من طابق واحد في الكتلة A + B | D30: 1 | E30: 2015-07-13 | P30: 0
B31: اتحاد نقابات العمال - حمص | C31: بناء مكاتب إضافية من طابق واحد في الكتلة A + B | D31: 1 | E31: 2015-07-13 | P31: 0
B32: اتحاد نقابات العمال - حمص | C32: بناء مكاتب إضافية من طابق واحد في الكتلة A + B | D32: 1 | E32: 2015-07-13 | P32: 0
B33: اتحاد نقابات العمال - حمص | C33: بناء مكاتب إضافية من طابق واحد في الكتلة A + B | D33: 1 | E33: 2015-07-13 | P33: 0
B34: اتحاد نقابات العمال - حمص | C34: بناء مكاتب إضافية من طابق واحد في الكتلة A + B | D34: 1 | E34: 2015-07-13 | P34: 0
B35: اتحاد نقابات العمال - حمص | C35: بناء مكاتب إضافية من طابق واحد في الكتلة A + B | D35: 1 | E35: 2015-07-13 | P35: 0
B36: اتحاد نقابات العمال - حمص | C36: بناء مكاتب إضافية من طابق واحد في الكتلة A + B | D36: 1 | E36: 2015-07-13 | P36: 0
B37: اتحاد نقابات العمال - حمص | C37: بناء مكاتب إضافية من طابق واحد في الكتلة A + B | D37: 1 | E37: 2015-07-13 | P37: 0
B38: اتحاد نقابات العمال - حمص | C38: بناء مكاتب إضافية من طابق واحد في الكتلة A + B | D38: 1 | E38: 2015-07-13 | P38: 0
B39: اتحاد نقابات العمال - حمص | C39: بناء مكاتب إضافية من طابق واحد في الكتلة A + B | D39: 1 | E39: 2015-07-13 | P39: 0
B40: اتحاد نقابات العمال - حمص | C40: بناء مكاتب إضافية من طابق واحد في الكتلة A + B | D40: 1 | E40: 2015-07-13 | P40: 0
B41: اتحاد نقابات العمال - حمص | C41: بناء مكاتب إضافية من طابق واحد في الكتلة A + B | D41: 1 | E41: 2015-07-13 | P41: 0
B42: اتحاد نقابات العمال - حمص | C42: بناء مكاتب إضافية من طابق واحد في الكتلة A + B | D42: 1 | E42: 2015-07-13 | P42: 0
B43: اتحاد نقابات العمال - حمص | C43: بناء مكاتب إضافية من طابق واحد في الكتلة A + B | D43: 1 | E43: 2015-07-13 | P43: 0
B44: اتحاد نقابات العمال - حمص | C44: بناء مكاتب إضافية من طابق واحد في الكتلة A + B | D44: 1 | E44: 2015-07-13 | P44: 0
B45: اتحاد نقابات العمال - حمص | C45: بناء مكاتب إضافية من طابق واحد في الكتلة A + B | D45: 1 | E45: 2015-07-13 | P45: 0
B46: اتحاد نقابات العمال - حمص | C46: بناء مكاتب إضافية من طابق واحد في الكتلة A + B | D46: 1 | E46: 2015-07-13 | P46: 0
B47: اتحاد نقابات العمال - حمص | C47: بناء مكاتب إضافية من طابق واحد في الكتلة A + B | D47: 1 | E47: 2015-07-13 | P47: 0
B48: اتحاد نقابات العمال - حمص | C48: بناء مكاتب إضافية من طابق واحد في الكتلة A + B | D48: 1 | E48: 2015-07-13 | P48: 0
B49: اتحاد نقابات العمال - حمص | C49: بناء مكاتب إضافية من طابق واحد في الكتلة A + B | D49: 1 | E49: 2015-07-13 | P49: 0
B50: اتحاد نقابات العمال - حمص | C50: بناء مكاتب إضافية من طابق واحد في الكتلة A + B | D50: 1 | E50: 2015-07-13 | P50: 0
B51: اتحاد نقابات العمال - حمص | C51: بناء مكاتب إضافية من طابق واحد في الكتلة A + B | D51: 1 | E51: 2015-07-13 | P51: 0
B52: اتحاد نقابات العمال - حمص | C52: بناء مكاتب إضافية من طابق واحد في الكتلة A + B | D52: 1 | E52: 2015-07-13 | P52: 0
B53: اتحاد نقابات العمال - حمص | C53: بناء مكاتب إضافية من طابق واحد في الكتلة A + B | D53: 1 | E53: 2015-07-13 | P53: 0
B54: اتحاد نقابات العمال - حمص | C54: بناء مكاتب إضافية من طابق واحد في الكتلة A + B | D54: 1 | E54: 2015-07-13 | P54: 0
B55: اتحاد نقابات العمال - حمص | C55: بناء مكاتب إضافية من طابق واحد في الكتلة A + B | D55: 1 | E55: 2015-07-13 | P55: 0
B56: اتحاد نقابات العمال - حمص | C56: بناء مكاتب إضافية من طابق واحد في الكتلة A + B | D56: 1 | E56: 2015-07-13 | P56: 0
B57: اتحاد نقابات العمال - حمص | C57: بناء مكاتب إضافية من طابق واحد في الكتلة A + B | D57: 1 | E57: 2015-07-13 | P57: 0
B58: اتحاد نقابات العمال - حمص | C58: بناء مكاتب إضافية من طابق واحد في الكتلة A + B | D58: 1 | E58: 2015-07-13 | P58: 0
B59: اتحاد نقابات العمال - حمص | C59: بناء مكاتب إضافية من طابق واحد في الكتلة A + B | D59: 1 | E59: 2015-07-13 | P59: 0
B60: اتحاد نقابات العمال - حمص | C60: بناء مكاتب إضافية من طابق واحد في الكتلة A + B | D60: 1 | E60: 2015-07-13 | P60: 0
B61: اتحاد نقابات العمال - حمص | C61: بناء مكاتب إضافية من طابق واحد في الكتلة A + B | D61: 1 | E61: 2015-07-13 | P61: 0
B62: اتحاد نقابات العمال - حمص | C62: بناء مكاتب إضافية من طابق واحد في الكتلة A + B | D62: 1 | E62: 2015-07-13 | P62: 0
B63: اتحاد نقابات العمال - حمص | C63: بناء مكاتب إضافية من طابق واحد في الكتلة A + B | D63: 1 | E63: 2015-07-13 | P63: 0
B64: اتحاد نقابات العمال - حمص | C64: بناء مكاتب إضافية من طابق واحد في الكتلة A + B | D64: 1 | E64: 2015-07-13 | P64: 0
B65: اتحاد نقابات العمال - حمص | C65: بناء مكاتب إضافية من طابق واحد في الكتلة A + B | D65: 1 | E65: 2015-07-13 | P65: 0
B66: اتحاد نقابات العمال - حمص | C66: بناء مكاتب إضافية من طابق واحد في الكتلة A + B | D66: 1 | E66: 2015-07-13 | P66: 0
B67: اتحاد نقابات العمال - حمص | C67: بناء مكاتب إضافية من طابق واحد في الكتلة A + B | D67: 1 | E67: 2015-07-13 | P67: 0
B68: اتحاد نقابات العمال - حمص | C68: بناء مكاتب إضافية من طابق واحد في الكتلة A + B | D68: 1 | E68: 2015-07-13 | P68: 0
B69: اتحاد نقابات العمال - حمص | C69: بناء مكاتب إضافية من طابق واحد في الكتلة A + B | D69: 1 | E69: 2015-07-13 | P69: 0
B70: اتحاد نقابات العمال - حمص | C70: بناء مكاتب إضافية من طابق واحد في الكتلة A + B | D70: 1 | E70: 2015-07-13 | P70: 0
B71: اتحاد نقابات العمال - حمص | C71: بناء مكاتب إضافية من طابق واحد في الكتلة A + B | D71: 1 | E71: 2015-07-13 | P71: 0
B72: اتحاد نقابات العمال - حمص | C72: بناء مكاتب إضافية من طابق واحد في الكتلة A + B | D72: 1 | E72: 2015-07-13 | P72: 0
B73: اتحاد نقابات العمال - حمص | C73: بناء مكاتب إضافية من طابق واحد في الكتلة A + B | D73: 1 | E73: 2015-07-13 | P73: =H73-SUM(I73:O73) -> 0
B74: اتحاد نقابات العمال - حمص | C74: بناء مكاتب إضافية من طابق واحد في الكتلة A + B | D74: 1 | E74: 2015-07-13 | P74: 0
B75: اتحاد نقابات العمال - حمص | C75: بناء مكاتب إضافية من طابق واحد في الكتلة A + B | D75: 1 | E75: 2015-07-13 | P75: 0
B76: اتحاد نقابات العمال - حمص | C76: بناء مكاتب إضافية من طابق واحد في الكتلة A + B | D76: 1 | E76: 2015-07-13 | P76: 0
B77: اتحاد نقابات العمال - حمص | C77: بناء مكاتب إضافية من طابق واحد في الكتلة A + B | D77: 1 | E77: 2015-07-13 | P77: 0
B78: اتحاد نقابات العمال - حمص | C78: بناء مكاتب إضافية من طابق واحد في الكتلة A + B | D78: 1 | E78: 2015-07-13 | P78: 0
B79: اتحاد نقابات العمال - حمص | C79: بناء مكاتب إضافية من طابق واحد في الكتلة A + B | D79: 1 | E79: 2015-07-13 | P79: 0
B80: اتحاد نقابات العمال - حمص | C80: بناء مكاتب إضافية من طابق واحد في الكتلة A + B | D80: 1 | E80: 2015-07-13 | P80: 0
B81: اتحاد نقابات العمال - حمص | C81: بناء مكاتب إضافية من طابق واحد في الكتلة A + B | D81: 1 | E81: 2015-07-13 | P81: 0
B82: اتحاد نقابات العمال - حمص | C82: بناء مكاتب إضافية من طابق واحد في الكتلة A + B | D82: 1 | E82: 2015-07-13 | P82: 0
B83: اتحاد نقابات العمال - حمص | C83: بناء مكاتب إضافية من طابق واحد في الكتلة A + B | D83: 1 | E83: 2015-07-13 | P83: 0
B84: اتحاد نقابات العمال - حمص | C84: بناء مكاتب إضافية من طابق واحد في الكتلة A + B | D84: 1 | E84: 2015-07-13 | P84: 0
B85: اتحاد نقابات العمال - حمص | C85: بناء مكاتب إضافية من طابق واحد في الكتلة A + B | D85: 1 | E85: 2015-07-13 | P85: 0
B86: اتحاد نقابات العمال - حمص | C86: بناء مكاتب إضافية من طابق واحد في الكتلة A + B | D86: 1 | E86: 2015-07-13 | P86: 0
B87: اتحاد نقابات العمال - حمص | C87: بناء مكاتب إضافية من طابق واحد في الكتلة A + B | D87: 1 | E87: 2015-07-13 | P87: 0
B88: اتحاد نقابات العمال - حمص | C88: بناء مكاتب إضافية من طابق واحد في الكتلة A + B | D88: 1 | E88: 2015-07-13 | P88: 0
B89: اتحاد نقابات العمال - حمص | C89: بناء مكاتب إضافية من طابق واحد في الكتلة A + B | D89: 1 | E89: 2015-07-13 | P89: 0
B90: اتحاد نقابات العمال - حمص | C90: بناء مكاتب إضافية من طابق واحد في الكتلة A + B | D90: 1 | E90: 2015-07-13 | P90: 0
B91: اتحاد نقابات العمال - حمص | C91: بناء مكاتب إضافية من طابق واحد في الكتلة A + B | D91: 1 | E91: 2015-07-13 | P91: 0
B92: اتحاد نقابات العمال - حمص | C92: بناء مكاتب إضافية من طابق واحد في الكتلة A + B | D92: 1 | E92: 2015-07-13 | P92: 0
B93: اتحاد نقابات العمال - حمص | C93: بناء مكاتب إضافية من طابق واحد في الكتلة A + B | D93: 1 | E93: 2015-07-13 | P93: 0
B94: اتحاد نقابات العمال - حمص | C94: بناء مكاتب إضافية من طابق واحد في الكتلة A + B | D94: 1 | E94: 2015-07-13 | P94: 0
B95: اتحاد نقابات العمال - حمص | C95: بناء مكاتب إضافية من طابق واحد في الكتلة A + B | D95: 1 | E95: 2015-07-13 | P95: 0
B96: اتحاد نقابات العمال - حمص | C96: بناء مكاتب إضافية من طابق واحد في الكتلة A + B | D96: 1 | E96: 2015-07-13 | P96: 0
B97: اتحاد نقابات العمال - حمص | C97: بناء مكاتب إضافية من طابق واحد في الكتلة A + B | D97: 1 | E97: 2015-07-13 | P97: 0
B98: اتحاد نقابات العمال - حمص | C98: بناء مكاتب إضافية من طابق واحد في الكتلة A + B | D98: 1 | E98: 2015-07-13 | P98: 0
B99: اتحاد نقابات العمال - حمص | C99: بناء مكاتب إضافية من طابق واحد في الكتلة A + B | D99: 1 | E99: 2015-07-13 | P99: 0
B100: اتحاد نقابات العمال - حمص | C100: بناء مكاتب إضافية من طابق واحد في الكتلة A + B | D100: 1 | E100: 2015-07-13 | P100: 0
H101: =SUBTOTAL(109,H8:H100) -> 24623207 | I101: =SUBTOTAL(109,I8:I100) -> 0 | J101: 1160955 | K101: 0 | O101: 9024695 | P101: 12227253 | Q101: 0 | R101: 0 | S101: 928 | T101: 211762 | U101: 0
B103: إجمالي الكشوف المحصلة | D103: =SUMIF(Q8:Q100,"محصل",H8:H100) -> 16317679 | F103: إجمالي الكشوف المحصلة | H103: =SUMIF(Q8:Q100,"محصل",H8:H100) -> 16317679 | J103: صافي الكشوف المحصلة | P103: =SUMIF(Q8:Q100,"محصل",P8:P100) -> 15501796 | R103: إجمالي السلفة المحسومة | U103: =I101 -> 0
B104: إجمالي الكشوف غير المحصلة | D104: =SUMIF(Q8:Q100,"غير محصل",H8:H100) -> 8305528 | F104: إجمالي الكشوف غير المحصلة | H104: =SUMIF(Q8:Q100,"غير محصل",H8:H100) -> 8305528 | J104: صافي الكشوف غير المحصلة | P104: =SUMIF(Q8:Q100,"غير محصل",P8:P100) -> -3274543 | R104: رصيد السلفة | U104: =Q3-I101 -> 0
B105: إجمالي التوقيفات لتاريخه | D105: =J101 -> 1160955 | F105: إجمالي التوقيفات لتاريخه | H105: =J101 -> 1160955 | J105: مجموع الحسميات الأخرى والطوابع | P105: =O101+K101 -> 9024695 | R105: التوقيفات غير المحصلة | U105: =J101-R101 -> 1160955

Sheet 4
F2: الجهة صاحبة العمل | G2: الشركة العامة للدراسات والاستشارات الفنية | K2: Home Page | P2: القيمة التقديرية للعقد | Q2: 14715561 | W2: محصل
F3: اسم المشروع | G3: صيانة مقر فرع الدراسات بحمص | P3: قيمة السلفة المقبوضة | Q3: 0 | W3: غير محصل
F4: رقم العقد | G4: 1 | P4: تاريخ المباشرة | Q4: 2015-07-22 | W4: قيد التحصيل
F5: تاريخ العقد | G5: 2015-07-21 | P5: مدة العقد | Q5: 150 يوم | W5: قديم
W6: تبرير مدة
B7: الجهة صاحبة المشروع | C7: اسم المشروع | D7: رقم العقد | E7: تاريخ العقد | F7: رقم الكشف | G7: تاريخ الكشف | H7: القيمة الاجمالية | I7: قيمة السلفة | J7: التوقيفات | K7: الطوابع | L7: غرامات تأخير ( أمانات ) | M7: غرامات تأخير ( حسميات ) | N7: حسميات سوء تنفيذ | O7: الحسميات الأخرى | P7: المبلغ الصافي | Q7: محصل أو غير محصل | R7: التوقيفات المحصلة للمشاريع المنتهية | S7: رقم أمر القبض | T7: تاريخ الإشعار | U7: ملاحظات | W7: بحاجة إلى اعتماد
B8: الشركة العامة للدراسات والاستشارات الفنية | C8: صيانة مقر فرع الدراسات بحمص | D8: 1 | E8: 2015-07-21 | F8: 1 | G8: 2015-08-31 | H8: 2787003 | J8: =ROUND(H8*2.5/100,0) -> 69675 | P8: =H8-SUM(I8:O8) -> 2717328 | Q8: محصل
B9: الشركة العامة للدراسات والاستشارات الفنية | C9: صيانة مقر فرع الدراسات بحمص | D9: 1 | E9: 2015-07-21 | F9: 2 | G9: 2015-09-30 | H9: 2322747 | J9: =ROUND(H9*2.5/100,0) -> 58069 | P9: =H9-SUM(I9:O9) -> 2264678 | Q9: محصل
B10: الشركة العامة للدراسات والاستشارات الفنية | C10: صيانة مقر فرع الدراسات بحمص | D10: 1 | E10: 2015-07-21 | F10: 3 | G10: 2016-02-29 | H10: 2478147 | J10: 61954 | P10: 2416193 | Q10: محصل | S10: 167 | T10: 2016-05-26
B11: الشركة العامة للدراسات والاستشارات الفنية | C11: صيانة مقر فرع الدراسات بحمص | D11: 1 | E11: 2015-07-21 | F11: 4 | G11: 2016-04-30 | H11: 1999564 | J11: 49989 | P11: 1949575 | Q11: محصل | S11: 205 | T11: 2016-06-30
B12: الشركة العامة للدراسات والاستشارات الفنية | C12: صيانة مقر فرع الدراسات بحمص | D12: 1 | E12: 2015-07-21 | F12: 5 | G12: 2016-05-31 | H12: 0 | J12: 0 | P12: 0 | Q12: محصل
B13: الشركة العامة للدراسات والاستشارات الفنية | C13: صيانة مقر فرع الدراسات بحمص | D13: 1 | E13: 2015-07-21 | F13: 6 | G13: 2016-06-30 | H13: 0 | J13: 0 | P13: 0 | Q13: محصل
B14: الشركة العامة للدراسات والاستشارات الفنية | C14: صيانة مقر فرع الدراسات بحمص | D14: 1 | E14: 2015-07-21 | F14: 7 | G14: 2016-07-31 | H14: 442301 | J14: 11058 | P14: 431243 | Q14: محصل | S14: 286 | T14: 2016-09-29
B15: الشركة العامة للدراسات والاستشارات الفنية | C15: صيانة مقر فرع الدراسات بحمص | D15: 1 | E15: 2015-07-21 | F15: 8 | G15: 2016-08-31 | H15: 0 | J15: 0 | P15: 0 | Q15: محصل
B16: الشركة العامة للدراسات والاستشارات الفنية | C16: صيانة مقر فرع الدراسات بحمص | D16: 1 | E16: 2015-07-21 | F16: 9 | G16: 2016-09-30 | H16: 927750 | J16: 23194 | P16: 904556 | Q16: محصل | S16: 368 | T16: 2016-12-08
B17: الشركة العامة للدراسات والاستشارات الفنية | C17: صيانة مقر فرع الدراسات بحمص | D17: 1 | E17: 2015-07-21 | F17: 10 نهائي | G17: 2016-12-14 | H17: 756646 | J17: 18916 | N17: 193000 | P17: 544730 | Q17: محصل | S17: 359 | T17: 2017-07-31
B18: الشركة العامة للدراسات والاستشارات الفنية | C18: صيانة مقر فرع الدراسات بحمص | D18: 1 | E18: 2015-07-21 | F18: إعادة توقيفات العقد | O18: 19655 | P18: -19655 | Q18: غير محصل | R18: 292855
B19: الشركة العامة للدراسات والاستشارات الفنية | C19: صيانة مقر فرع الدراسات بحمص | D19: 1 | E19: 2015-07-21 | P19: 0
B20: الشركة العامة للدراسات والاستشارات الفنية | C20: صيانة مقر فرع الدراسات بحمص | D20: 1 | E20: 2015-07-21 | P20: 0
B21: الشركة العامة للدراسات والاستشارات الفنية | C21: صيانة مقر فرع الدراسات بحمص | D21: 1 | E21: 2015-07-21 | P21: 0
B22: الشركة العامة للدراسات والاستشارات الفنية | C22: صيانة مقر فرع الدراسات بحمص | D22: 1 | E22: 2015-07-21 | P22: 0
B23: الشركة العامة للدراسات والاستشارات الفنية | C23: صيانة مقر فرع الدراسات بحمص | D23: 1 | E23: 2015-07-21 | P23: 0
B24: الشركة العامة للدراسات والاستشارات الفنية | C24: صيانة مقر فرع الدراسات بحمص | D24: 1 | E24: 2015-07-21 | P24: 0
B25: الشركة العامة للدراسات والاستشارات الفنية | C25: صيانة مقر فرع الدراسات بحمص | D25: 1 | E25: 2015-07-21 | P25: 0
B26: الشركة العامة للدراسات والاستشارات الفنية | C26: صيانة مقر فرع الدراسات بحمص | D26: 1 | E26: 2015-07-21 | P26: 0
B27: الشركة العامة للدراسات والاستشارات الفنية | C27: صيانة مقر فرع الدراسات بحمص | D27: 1 | E27: 2015-07-21 | P27: 0
B28: الشركة العامة للدراسات والاستشارات الفنية | C28: صيانة مقر فرع الدراسات بحمص | D28: 1 | E28: 2015-07-21 | P28: 0
B29: الشركة العامة للدراسات والاستشارات الفنية | C29: صيانة مقر فرع الدراسات بحمص | D29: 1 | E29: 2015-07-21 | P29: 0
B30: الشركة العامة للدراسات والاستشارات الفنية | C30: صيانة مقر فرع الدراسات بحمص | D30: 1 | E30: 2015-07-21 | P30: 0
B31: الشركة العامة للدراسات والاستشارات الفنية | C31: صيانة مقر فرع الدراسات بحمص | D31: 1 | E31: 2015-07-21 | P31: 0
B32: الشركة العامة للدراسات والاستشارات الفنية | C32: صيانة مقر فرع الدراسات بحمص | D32: 1 | E32: 2015-07-21 | P32: 0
B33: الشركة العامة للدراسات والاستشارات الفنية | C33: صيانة مقر فرع الدراسات بحمص | D33: 1 | E33: 2015-07-21 | P33: 0
B34: الشركة العامة للدراسات والاستشارات الفنية | C34: صيانة مقر فرع الدراسات بحمص | D34: 1 | E34: 2015-07-21 | P34: 0
B35: الشركة العامة للدراسات والاستشارات الفنية | C35: صيانة مقر فرع الدراسات بحمص | D35: 1 | E35: 2015-07-21 | P35: 0
B36: الشركة العامة للدراسات والاستشارات الفنية | C36: صيانة مقر فرع الدراسات بحمص | D36: 1 | E36: 2015-07-21 | P36: 0
B37: الشركة العامة للدراسات والاستشارات الفنية | C37: صيانة مقر فرع الدراسات بحمص | D37: 1 | E37: 2015-07-21 | P37: 0
B38: الشركة العامة للدراسات والاستشارات الفنية | C38: صيانة مقر فرع الدراسات بحمص | D38: 1 | E38: 2015-07-21 | P38: 0
B39: الشركة العامة للدراسات والاستشارات الفنية | C39: صيانة مقر فرع الدراسات بحمص | D39: 1 | E39: 2015-07-21 | P39: 0
B40: الشركة العامة للدراسات والاستشارات الفنية | C40: صيانة مقر فرع الدراسات بحمص | D40: 1 | E40: 2015-07-21 | P40: 0
B41: الشركة العامة للدراسات والاستشارات الفنية | C41: صيانة مقر فرع الدراسات بحمص | D41: 1 | E41: 2015-07-21 | P41: 0
B42: الشركة العامة للدراسات والاستشارات الفنية | C42: صيانة مقر فرع الدراسات بحمص | D42: 1 | E42: 2015-07-21 | P42: 0
B43: الشركة العامة للدراسات والاستشارات الفنية | C43: صيانة مقر فرع الدراسات بحمص | D43: 1 | E43: 2015-07-21 | P43: 0
B44: الشركة العامة للدراسات والاستشارات الفنية | C44: صيانة مقر فرع الدراسات بحمص | D44: 1 | E44: 2015-07-21 | P44: 0
B45: الشركة العامة للدراسات والاستشارات الفنية | C45: صيانة مقر فرع الدراسات بحمص | D45: 1 | E45: 2015-07-21 | P45: 0
B46: الشركة العامة للدراسات والاستشارات الفنية | C46: صيانة مقر فرع الدراسات بحمص | D46: 1 | E46: 2015-07-21 | P46: 0
B47: الشركة العامة للدراسات والاستشارات الفنية | C47: صيانة مقر فرع الدراسات بحمص | D47: 1 | E47: 2015-07-21 | P47: 0
B48: الشركة العامة للدراسات والاستشارات الفنية | C48: صيانة مقر فرع الدراسات بحمص | D48: 1 | E48: 2015-07-21 | P48: 0
B49: الشركة العامة للدراسات والاستشارات الفنية | C49: صيانة مقر فرع الدراسات بحمص | D49: 1 | E49: 2015-07-21 | P49: 0
B50: الشركة العامة للدراسات والاستشارات الفنية | C50: صيانة مقر فرع الدراسات بحمص | D50: 1 | E50: 2015-07-21 | P50: 0
B51: الشركة العامة للدراسات والاستشارات الفنية | C51: صيانة مقر فرع الدراسات بحمص | D51: 1 | E51: 2015-07-21 | P51: 0
B52: الشركة العامة للدراسات والاستشارات الفنية | C52: صيانة مقر فرع الدراسات بحمص | D52: 1 | E52: 2015-07-21 | P52: 0
B53: الشركة العامة للدراسات والاستشارات الفنية | C53: صيانة مقر فرع الدراسات بحمص | D53: 1 | E53: 2015-07-21 | P53: 0
B54: الشركة العامة للدراسات والاستشارات الفنية | C54: صيانة مقر فرع الدراسات بحمص | D54: 1 | E54: 2015-07-21 | P54: 0
B55: الشركة العامة للدراسات والاستشارات الفنية | C55: صيانة مقر فرع الدراسات بحمص | D55: 1 | E55: 2015-07-21 | P55: 0
B56: الشركة العامة للدراسات والاستشارات الفنية | C56: صيانة مقر فرع الدراسات بحمص | D56: 1 | E56: 2015-07-21 | P56: 0
B57: الشركة العامة للدراسات والاستشارات الفنية | C57: صيانة مقر فرع الدراسات بحمص | D57: 1 | E57: 2015-07-21 | P57: 0
B58: الشركة العامة للدراسات والاستشارات الفنية | C58: صيانة مقر فرع الدراسات بحمص | D58: 1 | E58: 2015-07-21 | P58: 0
B59: الشركة العامة للدراسات والاستشارات الفنية | C59: صيانة مقر فرع الدراسات بحمص | D59: 1 | E59: 2015-07-21 | P59: 0
B60: الشركة العامة للدراسات والاستشارات الفنية | C60: صيانة مقر فرع الدراسات بحمص | D60: 1 | E60: 2015-07-21 | P60: 0
B61: الشركة العامة للدراسات والاستشارات الفنية | C61: صيانة مقر فرع الدراسات بحمص | D61: 1 | E61: 2015-07-21 | P61: 0
B62: الشركة العامة للدراسات والاستشارات الفنية | C62: صيانة مقر فرع الدراسات بحمص | D62: 1 | E62: 2015-07-21 | P62: 0
B63: الشركة العامة للدراسات والاستشارات الفنية | C63: صيانة مقر فرع الدراسات بحمص | D63: 1 | E63: 2015-07-21 | P63: 0
B64: الشركة العامة للدراسات والاستشارات الفنية | C64: صيانة مقر فرع الدراسات بحمص | D64: 1 | E64: 2015-07-21 | P64: 0
B65: الشركة العامة للدراسات والاستشارات الفنية | C65: صيانة مقر فرع الدراسات بحمص | D65: 1 | E65: 2015-07-21 | P65: 0
B66: الشركة العامة للدراسات والاستشارات الفنية | C66: صيانة مقر فرع الدراسات بحمص | D66: 1 | E66: 2015-07-21 | P66: 0
B67: الشركة العامة للدراسات والاستشارات الفنية | C67: صيانة مقر فرع الدراسات بحمص | D67: 1 | E67: 2015-07-21 | P67: 0
B68: الشركة العامة للدراسات والاستشارات الفنية | C68: صيانة مقر فرع الدراسات بحمص | D68: 1 | E68: 2015-07-21 | P68: 0
B69: الشركة العامة للدراسات والاستشارات الفنية | C69: صيانة مقر فرع الدراسات بحمص | D69: 1 | E69: 2015-07-21 | P69: 0
B70: الشركة العامة للدراسات والاستشارات الفنية | C70: صيانة مقر فرع الدراسات بحمص | D70: 1 | E70: 2015-07-21 | P70: 0
B71: الشركة العامة للدراسات والاستشارات الفنية | C71: صيانة مقر فرع الدراسات بحمص | D71: 1 | E71: 2015-07-21 | P71: 0
B72: الشركة العامة للدراسات والاستشارات الفنية | C72: صيانة مقر فرع الدراسات بحمص | D72: 1 | E72: 2015-07-21 | P72: 0
B73: الشركة العامة للدراسات والاستشارات الفنية | C73: صيانة مقر فرع الدراسات بحمص | D73: 1 | E73: 2015-07-21 | P73: =H73-SUM(I73:O73) -> 0
B74: الشركة العامة للدراسات والاستشارات الفنية | C74: صيانة مقر فرع الدراسات بحمص | D74: 1 | E74: 2015-07-21 | P74: 0
B75: الشركة العامة للدراسات والاستشارات الفنية | C75: صيانة مقر فرع الدراسات بحمص | D75: 1 | E75: 2015-07-21 | P75: 0
B76: الشركة العامة للدراسات والاستشارات الفنية | C76: صيانة مقر فرع الدراسات بحمص | D76: 1 | E76: 2015-07-21 | P76: 0
B77: الشركة العامة للدراسات والاستشارات الفنية | C77: صيانة مقر فرع الدراسات بحمص | D77: 1 | E77: 2015-07-21 | P77: 0
B78: الشركة العامة للدراسات والاستشارات الفنية | C78: صيانة مقر فرع الدراسات بحمص | D78: 1 | E78: 2015-07-21 | P78: 0
B79: الشركة العامة للدراسات والاستشارات الفنية | C79: صيانة مقر فرع الدراسات بحمص | D79: 1 | E79: 2015-07-21 | P79: 0
B80: الشركة العامة للدراسات والاستشارات الفنية | C80: صيانة مقر فرع الدراسات بحمص | D80: 1 | E80: 2015-07-21 | P80: 0
B81: الشركة العامة للدراسات والاستشارات الفنية | C81: صيانة مقر فرع الدراسات بحمص | D81: 1 | E81: 2015-07-21 | P81: 0
B82: الشركة العامة للدراسات والاستشارات الفنية | C82: صيانة مقر فرع الدراسات بحمص | D82: 1 | E82: 2015-07-21 | P82: 0
B83: الشركة العامة للدراسات والاستشارات الفنية | C83: صيانة مقر فرع الدراسات بحمص | D83: 1 | E83: 2015-07-21 | P83: 0
B84: الشركة العامة للدراسات والاستشارات الفنية | C84: صيانة مقر فرع الدراسات بحمص | D84: 1 | E84: 2015-07-21 | P84: 0
B85: الشركة العامة للدراسات والاستشارات الفنية | C85: صيانة مقر فرع الدراسات بحمص | D85: 1 | E85: 2015-07-21 | P85: 0
B86: الشركة العامة للدراسات والاستشارات الفنية | C86: صيانة مقر فرع الدراسات بحمص | D86: 1 | E86: 2015-07-21 | P86: 0
B87: الشركة العامة للدراسات والاستشارات الفنية | C87: صيانة مقر فرع الدراسات بحمص | D87: 1 | E87: 2015-07-21 | P87: 0
B88: الشركة العامة للدراسات والاستشارات الفنية | C88: صيانة مقر فرع الدراسات بحمص | D88: 1 | E88: 2015-07-21 | P88: 0
B89: الشركة العامة للدراسات والاستشارات الفنية | C89: صيانة مقر فرع الدراسات بحمص | D89: 1 | E89: 2015-07-21 | P89: 0
B90: الشركة العامة للدراسات والاستشارات الفنية | C90: صيانة مقر فرع الدراسات بحمص | D90: 1 | E90: 2015-07-21 | P90: 0
B91: الشركة العامة للدراسات والاستشارات الفنية | C91: صيانة مقر فرع الدراسات بحمص | D91: 1 | E91: 2015-07-21 | P91: 0
B92: الشركة العامة للدراسات والاستشارات الفنية | C92: صيانة مقر فرع الدراسات بحمص | D92: 1 | E92: 2015-07-21 | P92: 0
B93: الشركة العامة للدراسات والاستشارات الفنية | C93: صيانة مقر فرع الدراسات بحمص | D93: 1 | E93: 2015-07-21 | P93: 0
B94: الشركة العامة للدراسات والاستشارات الفنية | C94: صيانة مقر فرع الدراسات بحمص | D94: 1 | E94: 2015-07-21 | P94: 0
B95: الشركة العامة للدراسات والاستشارات الفنية | C95: صيانة مقر فرع الدراسات بحمص | D95: 1 | E95: 2015-07-21 | P95: 0
B96: الشركة العامة للدراسات والاستشارات الفنية | C96: صيانة مقر فرع الدراسات بحمص | D96: 1 | E96: 2015-07-21 | P96: 0
B97: الشركة العامة للدراسات والاستشارات الفنية | C97: صيانة مقر فرع الدراسات بحمص | D97: 1 | E97: 2015-07-21 | P97: 0
B98: الشركة العامة للدراسات والاستشارات الفنية | C98: صيانة مقر فرع الدراسات بحمص | D98: 1 | E98: 2015-07-21 | P98: 0
B99: الشركة العامة للدراسات والاستشارات الفنية | C99: صيانة مقر فرع الدراسات بحمص | D99: 1 | E99: 2015-07-21 | P99: 0
B100: الشركة العامة للدراسات والاستشارات الفنية | C100: صيانة مقر فرع الدراسات بحمص | D100: 1 | E100: 2015-07-21 | P100: 0
H101: =SUBTOTAL(109,H8:H100) -> 11714158 | I101: =SUBTOTAL(109,I8:I100) -> 0 | J101: 292855 | K101: 0 | O101: 19655 | P101: 11208648 | Q101: 0 | R101: 292855 | S101: 1385 | T101: 213368 | U101: 0
B103: إجمالي الكشوف المحصلة | D103: =SUMIF(Q8:Q100,"محصل",H8:H100) -> 11714158 | F103: إجمالي الكشوف المحصلة | H103: =SUMIF(Q8:Q100,"محصل",H8:H100) -> 11714158 | J103: صافي الكشوف المحصلة | P103: =SUMIF(Q8:Q100,"محصل",P8:P100) -> 11228303 | R103: إجمالي السلفة المحسومة | U103: =I101 -> 0
B104: إجمالي الكشوف غير المحصلة | D104: =SUMIF(Q8:Q100,"غير محصل",H8:H100) -> 0 | F104: إجمالي الكشوف غير المحصلة | H104: =SUMIF(Q8:Q100,"غير محصل",H8:H100) -> 0 | J104: صافي الكشوف غير المحصلة | P104: =SUMIF(Q8:Q100,"غير محصل",P8:P100) -> -19655 | R104: رصيد السلفة | U104: =Q3-I101 -> 0
B105: إجمالي التوقيفات لتاريخه | D105: =J101 -> 292855 | F105: إجمالي التوقيفات لتاريخه | H105: =J101 -> 292855 | J105: مجموع الحسميات الأخرى والطوابع | P105: =O101+K101 -> 19655 | R105: التوقيفات غير المحصلة | U105: =J101-R101 -> 0

Sheet 5
F2: الجهة صاحبة العمل | G2: المؤسسة العامة للإسكان | K2: Home Page | P2: القيمة التقديرية للعقد | Q2: 832800 | W2: محصل
F3: اسم المشروع | G3: إصلاح الشقة 18 في مساكن غرب طريق دمشق | P3: قيمة السلفة المقبوضة | Q3: 0 | W3: غير محصل
F4: رقم العقد | G4: 5/24/32 | P4: تاريخ المباشرة | Q4: 2015-05-24 | W4: قيد التحصيل
F5: تاريخ العقد | G5: 2015-05-14 | P5: مدة العقد | Q5: 15 يوما | W5: قديم
W6: تبرير مدة
B7: الجهة صاحبة المشروع | C7: اسم المشروع | D7: رقم العقد | E7: تاريخ العقد | F7: رقم الكشف | G7: تاريخ الكشف | H7: القيمة الاجمالية | I7: قيمة السلفة | J7: التوقيفات | K7: الطوابع | L7: غرامات تأخير ( أمانات ) | M7: غرامات تأخير ( حسميات ) | N7: حسميات سوء تنفيذ | O7: الحسميات الأخرى | P7: المبلغ الصافي | Q7: محصل أو غير محصل | R7: التوقيفات المحصلة للمشاريع المنتهية | S7: رقم أمر القبض | T7: تاريخ الإشعار | U7: ملاحظات | W7: بحاجة إلى اعتماد
B8: المؤسسة العامة للإسكان | C8: إصلاح الشقة 18 في مساكن غرب طريق دمشق | D8: 5/24/32 | E8: 2015-05-14 | F8: 1 | G8: 2016-05-31 | H8: 825460 | J8: 20636 | K8: 955 | P8: =H8-SUM(I8:O8) -> 803869 | Q8: محصل | S8: 180 | T8: 2015-07-30 | U8: استلام نهائي
B9: المؤسسة العامة للإسكان | C9: إصلاح الشقة 18 في مساكن غرب طريق دمشق | D9: 5/24/32 | E9: 2015-05-14 | P9: =H9-SUM(I9:O9) -> 0 | U9: كتاب براءة ذمة جيولوجيا + تأمينات
B10: المؤسسة العامة للإسكان | C10: إصلاح الشقة 18 في مساكن غرب طريق دمشق | D10: 5/24/32 | E10: 2015-05-14 | P10: 0 | U10: رقم 908 / 2019
B11: المؤسسة العامة للإسكان | C11: إصلاح الشقة 18 في مساكن غرب طريق دمشق | D11: 5/24/32 | E11: 2015-05-14 | P11: 0 | U11: كتاب براءة ذمة جيولوجيا
B12: المؤسسة العامة للإسكان | C12: إصلاح الشقة 18 في مساكن غرب طريق دمشق | D12: 5/24/32 | E12: 2015-05-14 | P12: 0 | U12: رقم 1087 / 2019
B13: المؤسسة العامة للإسكان | C13: إصلاح الشقة 18 في مساكن غرب طريق دمشق | D13: 5/24/32 | E13: 2015-05-14 | P13: 0
B14: المؤسسة العامة للإسكان | C14: إصلاح الشقة 18 في مساكن غرب طريق دمشق | D14: 5/24/32 | E14: 2015-05-14 | P14: 0
B15: المؤسسة العامة للإسكان | C15: إصلاح الشقة 18 في مساكن غرب طريق دمشق | D15: 5/24/32 | E15: 2015-05-14 | P15: 0
B16: المؤسسة العامة للإسكان | C16: إصلاح الشقة 18 في مساكن غرب طريق دمشق | D16: 5/24/32 | E16: 2015-05-14 | P16: 0
B17: المؤسسة العامة للإسكان | C17: إصلاح الشقة 18 في مساكن غرب طريق دمشق | D17: 5/24/32 | E17: 2015-05-14 | P17: 0
B18: المؤسسة العامة للإسكان | C18: إصلاح الشقة 18 في مساكن غرب طريق دمشق | D18: 5/24/32 | E18: 2015-05-14 | P18: 0
B19: المؤسسة العامة للإسكان | C19: إصلاح الشقة 18 في مساكن غرب طريق دمشق | D19: 5/24/32 | E19: 2015-05-14 | P19: 0
B20: المؤسسة العامة للإسكان | C20: إصلاح الشقة 18 في مساكن غرب طريق دمشق | D20: 5/24/32 | E20: 2015-05-14 | P20: 0
B21: المؤسسة العامة للإسكان | C21: إصلاح الشقة 18 في مساكن غرب طريق دمشق | D21: 5/24/32 | E21: 2015-05-14 | P21: 0
B22: المؤسسة العامة للإسكان | C22: إصلاح الشقة 18 في مساكن غرب طريق دمشق | D22: 5/24/32 | E22: 2015-05-14 | P22: 0
B23: المؤسسة العامة للإسكان | C23: إصلاح الشقة 18 في مساكن غرب طريق دمشق | D23: 5/24/32 | E23: 2015-05-14 | P23: 0
B24: المؤسسة العامة للإسكان | C24: إصلاح الشقة 18 في مساكن غرب طريق دمشق | D24: 5/24/32 | E24: 2015-05-14 | P24: 0
B25: المؤسسة العامة للإسكان | C25: إصلاح الشقة 18 في مساكن غرب طريق دمشق | D25: 5/24/32 | E25: 2015-05-14 | P25: 0
B26: المؤسسة العامة للإسكان | C26: إصلاح الشقة 18 في مساكن غرب طريق دمشق | D26: 5/24/32 | E26: 2015-05-14 | P26: 0
B27: المؤسسة العامة للإسكان | C27: إصلاح الشقة 18 في مساكن غرب طريق دمشق | D27: 5/24/32 | E27: 2015-05-14 | P27: 0
B28: المؤسسة العامة للإسكان | C28: إصلاح الشقة 18 في مساكن غرب طريق دمشق | D28: 5/24/32 | E28: 2015-05-14 | P28: 0
B29: المؤسسة العامة للإسكان | C29: إصلاح الشقة 18 في مساكن غرب طريق دمشق | D29: 5/24/32 | E29: 2015-05-14 | P29: 0
B30: المؤسسة العامة للإسكان | C30: إصلاح الشقة 18 في مساكن غرب طريق دمشق | D30: 5/24/32 | E30: 2015-05-14 | P30: 0
B31: المؤسسة العامة للإسكان | C31: إصلاح الشقة 18 في مساكن غرب طريق دمشق | D31: 5/24/32 | E31: 2015-05-14 | P31: 0
B32: المؤسسة العامة للإسكان | C32: إصلاح الشقة 18 في مساكن غرب طريق دمشق | D32: 5/24/32 | E32: 2015-05-14 | P32: 0
B33: المؤسسة العامة للإسكان | C33: إصلاح الشقة 18 في مساكن غرب طريق دمشق | D33: 5/24/32 | E33: 2015-05-14 | P33: 0
B34: المؤسسة العامة للإسكان | C34: إصلاح الشقة 18 في مساكن غرب طريق دمشق | D34: 5/24/32 | E34: 2015-05-14 | P34: 0
B35: المؤسسة العامة للإسكان | C35: إصلاح الشقة 18 في مساكن غرب طريق دمشق | D35: 5/24/32 | E35: 2015-05-14 | P35: 0
B36: المؤسسة العامة للإسكان | C36: إصلاح الشقة 18 في مساكن غرب طريق دمشق | D36: 5/24/32 | E36: 2015-05-14 | P36: 0
B37: المؤسسة العامة للإسكان | C37: إصلاح الشقة 18 في مساكن غرب طريق دمشق | D37: 5/24/32 | E37: 2015-05-14 | P37: 0
B38: المؤسسة العامة للإسكان | C38: إصلاح الشقة 18 في مساكن غرب طريق دمشق | D38: 5/24/32 | E38: 2015-05-14 | P38: 0
B39: المؤسسة العامة للإسكان | C39: إصلاح الشقة 18 في مساكن غرب طريق دمشق | D39: 5/24/32 | E39: 2015-05-14 | P39: 0
B40: المؤسسة العامة للإسكان | C40: إصلاح الشقة 18 في مساكن غرب طريق دمشق | D40: 5/24/32 | E40: 2015-05-14 | P40: 0
B41: المؤسسة العامة للإسكان | C41: إصلاح الشقة 18 في مساكن غرب طريق دمشق | D41: 5/24/32 | E41: 2015-05-14 | P41: 0
B42: المؤسسة العامة للإسكان | C42: إصلاح الشقة 18 في مساكن غرب طريق دمشق | D42: 5/24/32 | E42: 2015-05-14 | P42: 0
B43: المؤسسة العامة للإسكان | C43: إصلاح الشقة 18 في مساكن غرب طريق دمشق | D43: 5/24/32 | E43: 2015-05-14 | P43: 0
B44: المؤسسة العامة للإسكان | C44: إصلاح الشقة 18 في مساكن غرب طريق دمشق | D44: 5/24/32 | E44: 2015-05-14 | P44: 0
B45: المؤسسة العامة للإسكان | C45: إصلاح الشقة 18 في مساكن غرب طريق دمشق | D45: 5/24/32 | E45: 2015-05-14 | P45: 0
B46: المؤسسة العامة للإسكان | C46: إصلاح الشقة 18 في مساكن غرب طريق دمشق | D46: 5/24/32 | E46: 2015-05-14 | P46: 0
B47: المؤسسة العامة للإسكان | C47: إصلاح الشقة 18 في مساكن غرب طريق دمشق | D47: 5/24/32 | E47: 2015-05-14 | P47: 0
B48: المؤسسة العامة للإسكان | C48: إصلاح الشقة 18 في مساكن غرب طريق دمشق | D48: 5/24/32 | E48: 2015-05-14 | P48: 0
B49: المؤسسة العامة للإسكان | C49: إصلاح الشقة 18 في مساكن غرب طريق دمشق | D49: 5/24/32 | E49: 2015-05-14 | P49: 0
B50: المؤسسة العامة للإسكان | C50: إصلاح الشقة 18 في مساكن غرب طريق دمشق | D50: 5/24/32 | E50: 2015-05-14 | P50: 0
B51: المؤسسة العامة للإسكان | C51: إصلاح الشقة 18 في مساكن غرب طريق دمشق | D51: 5/24/32 | E51: 2015-05-14 | P51: 0
B52: المؤسسة العامة للإسكان | C52: إصلاح الشقة 18 في مساكن غرب طريق دمشق | D52: 5/24/32 | E52: 2015-05-14 | P52: 0
B53: المؤسسة العامة للإسكان | C53: إصلاح الشقة 18 في مساكن غرب طريق دمشق | D53: 5/24/32 | E53: 2015-05-14 | P53: 0
B54: المؤسسة العامة للإسكان | C54: إصلاح الشقة 18 في مساكن غرب طريق دمشق | D54: 5/24/32 | E54: 2015-05-14 | P54: 0
B55: المؤسسة العامة للإسكان | C55: إصلاح الشقة 18 في مساكن غرب طريق دمشق | D55: 5/24/32 | E55: 2015-05-14 | P55: 0
B56: المؤسسة العامة للإسكان | C56: إصلاح الشقة 18 في مساكن غرب طريق دمشق | D56: 5/24/32 | E56: 2015-05-14 | P56: 0
B57: المؤسسة العامة للإسكان | C57: إصلاح الشقة 18 في مساكن غرب طريق دمشق | D57: 5/24/32 | E57: 2015-05-14 | P57: 0
B58: المؤسسة العامة للإسكان | C58: إصلاح الشقة 18 في مساكن غرب طريق دمشق | D58: 5/24/32 | E58: 2015-05-14 | P58: 0
B59: المؤسسة العامة للإسكان | C59: إصلاح الشقة 18 في مساكن غرب طريق دمشق | D59: 5/24/32 | E59: 2015-05-14 | P59: 0
B60: المؤسسة العامة للإسكان | C60: إصلاح الشقة 18 في مساكن غرب طريق دمشق | D60: 5/24/32 | E60: 2015-05-14 | P60: 0
B61: المؤسسة العامة للإسكان | C61: إصلاح الشقة 18 في مساكن غرب طريق دمشق | D61: 5/24/32 | E61: 2015-05-14 | P61: 0
B62: المؤسسة العامة للإسكان | C62: إصلاح الشقة 18 في مساكن غرب طريق دمشق | D62: 5/24/32 | E62: 2015-05-14 | P62: 0
B63: المؤسسة العامة للإسكان | C63: إصلاح الشقة 18 في مساكن غرب طريق دمشق | D63: 5/24/32 | E63: 2015-05-14 | P63: 0
B64: المؤسسة العامة للإسكان | C64: إصلاح الشقة 18 في مساكن غرب طريق دمشق | D64: 5/24/32 | E64: 2015-05-14 | P64: 0
B65: المؤسسة العامة للإسكان | C65: إصلاح الشقة 18 في مساكن غرب طريق دمشق | D65: 5/24/32 | E65: 2015-05-14 | P65: 0
B66: المؤسسة العامة للإسكان | C66: إصلاح الشقة 18 في مساكن غرب طريق دمشق | D66: 5/24/32 | E66: 2015-05-14 | P66: 0
B67: المؤسسة العامة للإسكان | C67: إصلاح الشقة 18 في مساكن غرب طريق دمشق | D67: 5/24/32 | E67: 2015-05-14 | P67: 0
B68: المؤسسة العامة للإسكان | C68: إصلاح الشقة 18 في مساكن غرب طريق دمشق | D68: 5/24/32 | E68: 2015-05-14 | P68: 0
B69: المؤسسة العامة للإسكان | C69: إصلاح الشقة 18 في مساكن غرب طريق دمشق | D69: 5/24/32 | E69: 2015-05-14 | P69: 0
B70: المؤسسة العامة للإسكان | C70: إصلاح الشقة 18 في مساكن غرب طريق دمشق | D70: 5/24/32 | E70: 2015-05-14 | P70: 0
B71: المؤسسة العامة للإسكان | C71: إصلاح الشقة 18 في مساكن غرب طريق دمشق | D71: 5/24/32 | E71: 2015-05-14 | P71: 0
B72: المؤسسة العامة للإسكان | C72: إصلاح الشقة 18 في مساكن غرب طريق دمشق | D72: 5/24/32 | E72: 2015-05-14 | P72: 0
B73: المؤسسة العامة للإسكان | C73: إصلاح الشقة 18 في مساكن غرب طريق دمشق | D73: 5/24/32 | E73: 2015-05-14 | P73: =H73-SUM(I73:O73) -> 0
B74: المؤسسة العامة للإسكان | C74: إصلاح الشقة 18 في مساكن غرب طريق دمشق | D74: 5/24/32 | E74: 2015-05-14 | P74: 0
B75: المؤسسة العامة للإسكان | C75: إصلاح الشقة 18 في مساكن غرب طريق دمشق | D75: 5/24/32 | E75: 2015-05-14 | P75: 0
B76: المؤسسة العامة للإسكان | C76: إصلاح الشقة 18 في مساكن غرب طريق دمشق | D76: 5/24/32 | E76: 2015-05-14 | P76: 0
B77: المؤسسة العامة للإسكان | C77: إصلاح الشقة 18 في مساكن غرب طريق دمشق | D77: 5/24/32 | E77: 2015-05-14 | P77: 0
B78: المؤسسة العامة للإسكان | C78: إصلاح الشقة 18 في مساكن غرب طريق دمشق | D78: 5/24/32 | E78: 2015-05-14 | P78: 0
B79: المؤسسة العامة للإسكان | C79: إصلاح الشقة 18 في مساكن غرب طريق دمشق | D79: 5/24/32 | E79: 2015-05-14 | P79: 0
B80: المؤسسة العامة للإسكان | C80: إصلاح الشقة 18 في مساكن غرب طريق دمشق | D80: 5/24/32 | E80: 2015-05-14 | P80: 0
B81: المؤسسة العامة للإسكان | C81: إصلاح الشقة 18 في مساكن غرب طريق دمشق | D81: 5/24/32 | E81: 2015-05-14 | P81: 0
B82: المؤسسة العامة للإسكان | C82: إصلاح الشقة 18 في مساكن غرب طريق دمشق | D82: 5/24/32 | E82: 2015-05-14 | P82: 0
B83: المؤسسة العامة للإسكان | C83: إصلاح الشقة 18 في مساكن غرب طريق دمشق | D83: 5/24/32 | E83: 2015-05-14 | P83: 0
B84: المؤسسة العامة للإسكان | C84: إصلاح الشقة 18 في مساكن غرب طريق دمشق | D84: 5/24/32 | E84: 2015-05-14 | P84: 0
B85: المؤسسة العامة للإسكان | C85: إصلاح الشقة 18 في مساكن غرب طريق دمشق | D85: 5/24/32 | E85: 2015-05-14 | P85: 0
B86: المؤسسة العامة للإسكان | C86: إصلاح الشقة 18 في مساكن غرب طريق دمشق | D86: 5/24/32 | E86: 2015-05-14 | P86: 0
B87: المؤسسة العامة للإسكان | C87: إصلاح الشقة 18 في مساكن غرب طريق دمشق | D87: 5/24/32 | E87: 2015-05-14 | P87: 0
B88: المؤسسة العامة للإسكان | C88: إصلاح الشقة 18 في مساكن غرب طريق دمشق | D88: 5/24/32 | E88: 2015-05-14 | P88: 0
B89: المؤسسة العامة للإسكان | C89: إصلاح الشقة 18 في مساكن غرب طريق دمشق | D89: 5/24/32 | E89: 2015-05-14 | P89: 0
B90: المؤسسة العامة للإسكان | C90: إصلاح الشقة 18 في مساكن غرب طريق دمشق | D90: 5/24/32 | E90: 2015-05-14 | P90: 0
B91: المؤسسة العامة للإسكان | C91: إصلاح الشقة 18 في مساكن غرب طريق دمشق | D91: 5/24/32 | E91: 2015-05-14 | P91: 0
B92: المؤسسة العامة للإسكان | C92: إصلاح الشقة 18 في مساكن غرب طريق دمشق | D92: 5/24/32 | E92: 2015-05-14 | P92: 0
B93: المؤسسة العامة للإسكان | C93: إصلاح الشقة 18 في مساكن غرب طريق دمشق | D93: 5/24/32 | E93: 2015-05-14 | P93: 0
B94: المؤسسة العامة للإسكان | C94: إصلاح الشقة 18 في مساكن غرب طريق دمشق | D94: 5/24/32 | E94: 2015-05-14 | P94: 0
B95: المؤسسة العامة للإسكان | C95: إصلاح الشقة 18 في مساكن غرب طريق دمشق | D95: 5/24/32 | E95: 2015-05-14 | P95: 0
B96: المؤسسة العامة للإسكان | C96: إصلاح الشقة 18 في مساكن غرب طريق دمشق | D96: 5/24/32 | E96: 2015-05-14 | P96: 0
B97: المؤسسة العامة للإسكان | C97: إصلاح الشقة 18 في مساكن غرب طريق دمشق | D97: 5/24/32 | E97: 2015-05-14 | P97: 0
B98: المؤسسة العامة للإسكان | C98: إصلاح الشقة 18 في مساكن غرب طريق دمشق | D98: 5/24/32 | E98: 2015-05-14 | P98: 0
B99: المؤسسة العامة للإسكان | C99: إصلاح الشقة 18 في مساكن غرب طريق دمشق | D99: 5/24/32 | E99: 2015-05-14 | P99: 0
B100: المؤسسة العامة للإسكان | C100: إصلاح الشقة 18 في مساكن غرب طريق دمشق | D100: 5/24/32 | E100: 2015-05-14 | P100: 0
H101: =SUBTOTAL(109,H8:H100) -> 825460 | I101: =SUBTOTAL(109,I8:I100) -> 0 | J101: 20636 | K101: 955 | O101: 0 | P101: 803869 | Q101: 0 | R101: 0 | S101: 180 | T101: 42215 | U101: 0
B103: إجمالي الكشوف المحصلة | D103: =SUMIF(Q8:Q100,"محصل",H8:H100) -> 825460 | F103: إجمالي الكشوف المحصلة | H103: =SUMIF(Q8:Q100,"محصل",H8:H100) -> 825460 | J103: صافي الكشوف المحصلة | P103: =SUMIF(Q8:Q100,"محصل",P8:P100) -> 803869 | R103: إجمالي السلفة المحسومة | U103: =I101 -> 0
B104: إجمالي الكشوف غير المحصلة | D104: =SUMIF(Q8:Q100,"غير محصل",H8:H100) -> 0 | F104: إجمالي الكشوف غير المحصلة | H104: =SUMIF(Q8:Q100,"غير محصل",H8:H100) -> 0 | J104: صافي الكشوف غير المحصلة | P104: =SUMIF(Q8:Q100,"غير محصل",P8:P100) -> 0 | R104: رصيد السلفة | U104: =Q3-I101 -> 0
B105: إجمالي التوقيفات لتاريخه | D105: =J101 -> 20636 | F105: إجمالي التوقيفات لتاريخه | H105: =J101 -> 20636 | J105: مجموع الحسميات الأخرى والطوابع | P105: =O101+K101 -> 955 | R105: التوقيفات غير المحصلة | U105: =J101-R101 -> 20636

Sheet 6
F2: الجهة صاحبة العمل | G2: المؤسسة العامة للإسكان | K2: Home Page | P2: القيمة التقديرية للعقد | Q2: 24999215 | W2: محصل
F3: اسم المشروع | G3: إصلاح أربع عمارات في مساكن غرب طريق دمشق | P3: قيمة السلفة المقبوضة | Q3: 0 | W3: غير محصل
F4: رقم العقد | G4: 5/24/15 | P4: تاريخ المباشرة | Q4: 2015-03-30 | W4: قيد التحصيل
F5: تاريخ العقد | G5: 2015-03-24 | P5: مدة العقد | Q5: 65 يوما | W5: قديم
W6: تبرير مدة
B7: الجهة صاحبة المشروع | C7: اسم المشروع | D7: رقم العقد | E7: تاريخ العقد | F7: رقم الكشف | G7: تاريخ الكشف | H7: القيمة الاجمالية | I7: قيمة السلفة | J7: التوقيفات | K7: الطوابع | L7: غرامات تأخير ( أمانات ) | M7: غرامات تأخير ( حسميات ) | N7: حسميات سوء تنفيذ | O7: الحسميات الأخرى | P7: المبلغ الصافي | Q7: محصل أو غير محصل | R7: التوقيفات المحصلة للمشاريع المنتهية | S7: رقم أمر القبض | T7: تاريخ الإشعار | U7: ملاحظات | W7: بحاجة إلى اعتماد
B8: المؤسسة العامة للإسكان | C8: إصلاح أربع عمارات في مساكن غرب طريق دمشق | D8: 5/24/15 | E8: 2015-03-24 | F8: 1 | G8: 2015-04-30 | H8: 377670 | J8: 9442 | K8: 369 | P8: =H8-SUM(I8:O8) -> 367859 | Q8: محصل | S8: 193 | T8: 2015-08-17
B9: المؤسسة العامة للإسكان | C9: إصلاح أربع عمارات في مساكن غرب طريق دمشق | D9: 5/24/15 | E9: 2015-03-24 | F9: 2 | G9: 2015-05-31 | H9: 1532428 | J9: 38311 | K9: 994 | L9: 500000 | P9: =H9-SUM(I9:O9) -> 993123 | Q9: محصل | S9: 204 | T9: 2015-08-31
B10: المؤسسة العامة للإسكان | C10: إصلاح أربع عمارات في مساكن غرب طريق دمشق | D10: 5/24/15 | E10: 2015-03-24 | F10: 3 | G10: 2015-06-30 | H10: 5407418 | J10: 135185 | K10: 5422 | P10: 5266811 | Q10: محصل | S10: 234 | T10: 2015-09-30
B11: المؤسسة العامة للإسكان | C11: إصلاح أربع عمارات في مساكن غرب طريق دمشق | D11: 5/24/15 | E11: 2015-03-24 | F11: 4 | G11: 2015-07-31 | H11: 11270671 | J11: 281767 | K11: 10581 | L11: 557646 | P11: 10420677 | Q11: محصل | S11: 338 | T11: 2015-12-28
B12: المؤسسة العامة للإسكان | C12: إصلاح أربع عمارات في مساكن غرب طريق دمشق | D12: 5/24/15 | E12: 2015-03-24 | F12: 5 | G12: 2015-08-31 | H12: 8785054 | J12: 219626 | K12: 4432 | P12: 8560996 | Q12: محصل | S12: 23 | T12: 2016-01-14
B13: المؤسسة العامة للإسكان | C13: إصلاح أربع عمارات في مساكن غرب طريق دمشق | D13: 5/24/15 | E13: 2015-03-24 | K13: 150 | L13: -500000 | O13: 500 | P13: 499350 | Q13: محصل | S13: 259 | T13: 2015-10-21
B14: المؤسسة العامة للإسكان | C14: إصلاح أربع عمارات في مساكن غرب طريق دمشق | D14: 5/24/15 | E14: 2015-03-24 | F14: 6 نهائي | G14: 2016-09-13 | H14: 1074203 | J14: 26855 | P14: 1047348 | Q14: محصل | S14: 247 | T14: 2017-05-31
B15: المؤسسة العامة للإسكان | C15: إصلاح أربع عمارات في مساكن غرب طريق دمشق | D15: 5/24/15 | E15: 2015-03-24 | L15: -500000 | P15: 500000 | Q15: محصل | S15: 247 | T15: 2017-05-31 | U15: محضر استلام نهائي
B16: المؤسسة العامة للإسكان | C16: إصلاح أربع عمارات في مساكن غرب طريق دمشق | D16: 5/24/15 | E16: 2015-03-24 | P16: 0 | U16: براءات ذمة تأمينات و هندسي
B17: المؤسسة العامة للإسكان | C17: إصلاح أربع عمارات في مساكن غرب طريق دمشق | D17: 5/24/15 | E17: 2015-03-24 | P17: 0 | U17: كتاب 146 / 2019
B18: المؤسسة العامة للإسكان | C18: إصلاح أربع عمارات في مساكن غرب طريق دمشق | D18: 5/24/15 | E18: 2015-03-24 | P18: 0 | U18: كتاب براءة ذمة جيولوجيا + تأمينات
B19: المؤسسة العامة للإسكان | C19: إصلاح أربع عمارات في مساكن غرب طريق دمشق | D19: 5/24/15 | E19: 2015-03-24 | P19: 0 | U19: رقم 908 / 2019
B20: المؤسسة العامة للإسكان | C20: إصلاح أربع عمارات في مساكن غرب طريق دمشق | D20: 5/24/15 | E20: 2015-03-24 | P20: 0 | U20: كتاب براءة ذمة جيولوجيا
B21: المؤسسة العامة للإسكان | C21: إصلاح أربع عمارات في مساكن غرب طريق دمشق | D21: 5/24/15 | E21: 2015-03-24 | P21: 0 | U21: رقم 1087 / 2019
B22: المؤسسة العامة للإسكان | C22: إصلاح أربع عمارات في مساكن غرب طريق دمشق | D22: 5/24/15 | E22: 2015-03-24 | P22: 0
B23: المؤسسة العامة للإسكان | C23: إصلاح أربع عمارات في مساكن غرب طريق دمشق | D23: 5/24/15 | E23: 2015-03-24 | P23: 0
B24: المؤسسة العامة للإسكان | C24: إصلاح أربع عمارات في مساكن غرب طريق دمشق | D24: 5/24/15 | E24: 2015-03-24 | P24: 0
B25: المؤسسة العامة للإسكان | C25: إصلاح أربع عمارات في مساكن غرب طريق دمشق | D25: 5/24/15 | E25: 2015-03-24 | P25: 0
B26: المؤسسة العامة للإسكان | C26: إصلاح أربع عمارات في مساكن غرب طريق دمشق | D26: 5/24/15 | E26: 2015-03-24 | P26: 0
B27: المؤسسة العامة للإسكان | C27: إصلاح أربع عمارات في مساكن غرب طريق دمشق | D27: 5/24/15 | E27: 2015-03-24 | P27: 0
B28: المؤسسة العامة للإسكان | C28: إصلاح أربع عمارات في مساكن غرب طريق دمشق | D28: 5/24/15 | E28: 2015-03-24 | P28: 0
B29: المؤسسة العامة للإسكان | C29: إصلاح أربع عمارات في مساكن غرب طريق دمشق | D29: 5/24/15 | E29: 2015-03-24 | P29: 0
B30: المؤسسة العامة للإسكان | C30: إصلاح أربع عمارات في مساكن غرب طريق دمشق | D30: 5/24/15 | E30: 2015-03-24 | P30: 0
B31: المؤسسة العامة للإسكان | C31: إصلاح أربع عمارات في مساكن غرب طريق دمشق | D31: 5/24/15 | E31: 2015-03-24 | P31: 0
B32: المؤسسة العامة للإسكان | C32: إصلاح أربع عمارات في مساكن غرب طريق دمشق | D32: 5/24/15 | E32: 2015-03-24 | P32: 0
B33: المؤسسة العامة للإسكان | C33: إصلاح أربع عمارات في مساكن غرب طريق دمشق | D33: 5/24/15 | E33: 2015-03-24 | P33: 0
B34: المؤسسة العامة للإسكان | C34: إصلاح أربع عمارات في مساكن غرب طريق دمشق | D34: 5/24/15 | E34: 2015-03-24 | P34: 0
B35: المؤسسة العامة للإسكان | C35: إصلاح أربع عمارات في مساكن غرب طريق دمشق | D35: 5/24/15 | E35: 2015-03-24 | P35: 0
B36: المؤسسة العامة للإسكان | C36: إصلاح أربع عمارات في مساكن غرب طريق دمشق | D36: 5/24/15 | E36: 2015-03-24 | P36: 0
B37: المؤسسة العامة للإسكان | C37: إصلاح أربع عمارات في مساكن غرب طريق دمشق | D37: 5/24/15 | E37: 2015-03-24 | P37: 0
B38: المؤسسة العامة للإسكان | C38: إصلاح أربع عمارات في مساكن غرب طريق دمشق | D38: 5/24/15 | E38: 2015-03-24 | P38: 0
B39: المؤسسة العامة للإسكان | C39: إصلاح أربع عمارات في مساكن غرب طريق دمشق | D39: 5/24/15 | E39: 2015-03-24 | P39: 0
B40: المؤسسة العامة للإسكان | C40: إصلاح أربع عمارات في مساكن غرب طريق دمشق | D40: 5/24/15 | E40: 2015-03-24 | P40: 0
B41: المؤسسة العامة للإسكان | C41: إصلاح أربع عمارات في مساكن غرب طريق دمشق | D41: 5/24/15 | E41: 2015-03-24 | P41: 0
B42: المؤسسة العامة للإسكان | C42: إصلاح أربع عمارات في مساكن غرب طريق دمشق | D42: 5/24/15 | E42: 2015-03-24 | P42: 0
B43: المؤسسة العامة للإسكان | C43: إصلاح أربع عمارات في مساكن غرب طريق دمشق | D43: 5/24/15 | E43: 2015-03-24 | P43: 0
B44: المؤسسة العامة للإسكان | C44: إصلاح أربع عمارات في مساكن غرب طريق دمشق | D44: 5/24/15 | E44: 2015-03-24 | P44: 0
B45: المؤسسة العامة للإسكان | C45: إصلاح أربع عمارات في مساكن غرب طريق دمشق | D45: 5/24/15 | E45: 2015-03-24 | P45: 0
B46: المؤسسة العامة للإسكان | C46: إصلاح أربع عمارات في مساكن غرب طريق دمشق | D46: 5/24/15 | E46: 2015-03-24 | P46: 0
B47: المؤسسة العامة للإسكان | C47: إصلاح أربع عمارات في مساكن غرب طريق دمشق | D47: 5/24/15 | E47: 2015-03-24 | P47: 0
B48: المؤسسة العامة للإسكان | C48: إصلاح أربع عمارات في مساكن غرب طريق دمشق | D48: 5/24/15 | E48: 2015-03-24 | P48: 0
B49: المؤسسة العامة للإسكان | C49: إصلاح أربع عمارات في مساكن غرب طريق دمشق | D49: 5/24/15 | E49: 2015-03-24 | P49: 0
B50: المؤسسة العامة للإسكان | C50: إصلاح أربع عمارات في مساكن غرب طريق دمشق | D50: 5/24/15 | E50: 2015-03-24 | P50: 0
B51: المؤسسة العامة للإسكان | C51: إصلاح أربع عمارات في مساكن غرب طريق دمشق | D51: 5/24/15 | E51: 2015-03-24 | P51: 0
B52: المؤسسة العامة للإسكان | C52: إصلاح أربع عمارات في مساكن غرب طريق دمشق | D52: 5/24/15 | E52: 2015-03-24 | P52: 0
B53: المؤسسة العامة للإسكان | C53: إصلاح أربع عمارات في مساكن غرب طريق دمشق | D53: 5/24/15 | E53: 2015-03-24 | P53: 0
B54: المؤسسة العامة للإسكان | C54: إصلاح أربع عمارات في مساكن غرب طريق دمشق | D54: 5/24/15 | E54: 2015-03-24 | P54: 0
B55: المؤسسة العامة للإسكان | C55: إصلاح أربع عمارات في مساكن غرب طريق دمشق | D55: 5/24/15 | E55: 2015-03-24 | P55: 0
B56: المؤسسة العامة للإسكان | C56: إصلاح أربع عمارات في مساكن غرب طريق دمشق | D56: 5/24/15 | E56: 2015-03-24 | P56: 0
B57: المؤسسة العامة للإسكان | C57: إصلاح أربع عمارات في مساكن غرب طريق دمشق | D57: 5/24/15 | E57: 2015-03-24 | P57: 0
B58: المؤسسة العامة للإسكان | C58: إصلاح أربع عمارات في مساكن غرب طريق دمشق | D58: 5/24/15 | E58: 2015-03-24 | P58: 0
B59: المؤسسة العامة للإسكان | C59: إصلاح أربع عمارات في مساكن غرب طريق دمشق | D59: 5/24/15 | E59: 2015-03-24 | P59: 0
B60: المؤسسة العامة للإسكان | C60: إصلاح أربع عمارات في مساكن غرب طريق دمشق | D60: 5/24/15 | E60: 2015-03-24 | P60: 0
B61: المؤسسة العامة للإسكان | C61: إصلاح أربع عمارات في مساكن غرب طريق دمشق | D61: 5/24/15 | E61: 2015-03-24 | P61: 0
B62: المؤسسة العامة للإسكان | C62: إصلاح أربع عمارات في مساكن غرب طريق دمشق | D62: 5/24/15 | E62: 2015-03-24 | P62: 0
B63: المؤسسة العامة للإسكان | C63: إصلاح أربع عمارات في مساكن غرب طريق دمشق | D63: 5/24/15 | E63: 2015-03-24 | P63: 0
B64: المؤسسة العامة للإسكان | C64: إصلاح أربع عمارات في مساكن غرب طريق دمشق | D64: 5/24/15 | E64: 2015-03-24 | P64: 0
B65: المؤسسة العامة للإسكان | C65: إصلاح أربع عمارات في مساكن غرب طريق دمشق | D65: 5/24/15 | E65: 2015-03-24 | P65: 0
B66: المؤسسة العامة للإسكان | C66: إصلاح أربع عمارات في مساكن غرب طريق دمشق | D66: 5/24/15 | E66: 2015-03-24 | P66: 0
B67: المؤسسة العامة للإسكان | C67: إصلاح أربع عمارات في مساكن غرب طريق دمشق | D67: 5/24/15 | E67: 2015-03-24 | P67: 0
B68: المؤسسة العامة للإسكان | C68: إصلاح أربع عمارات في مساكن غرب طريق دمشق | D68: 5/24/15 | E68: 2015-03-24 | P68: 0
B69: المؤسسة العامة للإسكان | C69: إصلاح أربع عمارات في مساكن غرب طريق دمشق | D69: 5/24/15 | E69: 2015-03-24 | P69: 0
B70: المؤسسة العامة للإسكان | C70: إصلاح أربع عمارات في مساكن غرب طريق دمشق | D70: 5/24/15 | E70: 2015-03-24 | P70: 0
B71: المؤسسة العامة للإسكان | C71: إصلاح أربع عمارات في مساكن غرب طريق دمشق | D71: 5/24/15 | E71: 2015-03-24 | P71: 0
B72: المؤسسة العامة للإسكان | C72: إصلاح أربع عمارات في مساكن غرب طريق دمشق | D72: 5/24/15 | E72: 2015-03-24 | P72: 0
B73: المؤسسة العامة للإسكان | C73: إصلاح أربع عمارات في مساكن غرب طريق دمشق | D73: 5/24/15 | E73: 2015-03-24 | P73: =H73-SUM(I73:O73) -> 0
B74: المؤسسة العامة للإسكان | C74: إصلاح أربع عمارات في مساكن غرب طريق دمشق | D74: 5/24/15 | E74: 2015-03-24 | P74: 0
B75: المؤسسة العامة للإسكان | C75: إصلاح أربع عمارات في مساكن غرب طريق دمشق | D75: 5/24/15 | E75: 2015-03-24 | P75: 0
B76: المؤسسة العامة للإسكان | C76: إصلاح أربع عمارات في مساكن غرب طريق دمشق | D76: 5/24/15 | E76: 2015-03-24 | P76: 0
B77: المؤسسة العامة للإسكان | C77: إصلاح أربع عمارات في مساكن غرب طريق دمشق | D77: 5/24/15 | E77: 2015-03-24 | P77: 0
B78: المؤسسة العامة للإسكان | C78: إصلاح أربع عمارات في مساكن غرب طريق دمشق | D78: 5/24/15 | E78: 2015-03-24 | P78: 0
B79: المؤسسة العامة للإسكان | C79: إصلاح أربع عمارات في مساكن غرب طريق دمشق | D79: 5/24/15 | E79: 2015-03-24 | P79: 0
B80: المؤسسة العامة للإسكان | C80: إصلاح أربع عمارات في مساكن غرب طريق دمشق | D80: 5/24/15 | E80: 2015-03-24 | P80: 0
B81: المؤسسة العامة للإسكان | C81: إصلاح أربع عمارات في مساكن غرب طريق دمشق | D81: 5/24/15 | E81: 2015-03-24 | P81: 0
B82: المؤسسة العامة للإسكان | C82: إصلاح أربع عمارات في مساكن غرب طريق دمشق | D82: 5/24/15 | E82: 2015-03-24 | P82: 0
B83: المؤسسة العامة للإسكان | C83: إصلاح أربع عمارات في مساكن غرب طريق دمشق | D83: 5/24/15 | E83: 2015-03-24 | P83: 0
B84: المؤسسة العامة للإسكان | C84: إصلاح أربع عمارات في مساكن غرب طريق دمشق | D84: 5/24/15 | E84: 2015-03-24 | P84: 0
B85: المؤسسة العامة للإسكان | C85: إصلاح أربع عمارات في مساكن غرب طريق دمشق | D85: 5/24/15 | E85: 2015-03-24 | P85: 0
B86: المؤسسة العامة للإسكان | C86: إصلاح أربع عمارات في مساكن غرب طريق دمشق | D86: 5/24/15 | E86: 2015-03-24 | P86: 0
B87: المؤسسة العامة للإسكان | C87: إصلاح أربع عمارات في مساكن غرب طريق دمشق | D87: 5/24/15 | E87: 2015-03-24 | P87: 0
B88: المؤسسة العامة للإسكان | C88: إصلاح أربع عمارات في مساكن غرب طريق دمشق | D88: 5/24/15 | E88: 2015-03-24 | P88: 0
B89: المؤسسة العامة للإسكان | C89: إصلاح أربع عمارات في مساكن غرب طريق دمشق | D89: 5/24/15 | E89: 2015-03-24 | P89: 0
B90: المؤسسة العامة للإسكان | C90: إصلاح أربع عمارات في مساكن غرب طريق دمشق | D90: 5/24/15 | E90: 2015-03-24 | P90: 0
B91: المؤسسة العامة للإسكان | C91: إصلاح أربع عمارات في مساكن غرب طريق دمشق | D91: 5/24/15 | E91: 2015-03-24 | P91: 0
B92: المؤسسة العامة للإسكان | C92: إصلاح أربع عمارات في مساكن غرب طريق دمشق | D92: 5/24/15 | E92: 2015-03-24 | P92: 0
B93: المؤسسة العامة للإسكان | C93: إصلاح أربع عمارات في مساكن غرب طريق دمشق | D93: 5/24/15 | E93: 2015-03-24 | P93: 0
B94: المؤسسة العامة للإسكان | C94: إصلاح أربع عمارات في مساكن غرب طريق دمشق | D94: 5/24/15 | E94: 2015-03-24 | P94: 0
B95: المؤسسة العامة للإسكان | C95: إصلاح أربع عمارات في مساكن غرب طريق دمشق | D95: 5/24/15 | E95: 2015-03-24 | P95: 0
B96: المؤسسة العامة للإسكان | C96: إصلاح أربع عمارات في مساكن غرب طريق دمشق | D96: 5/24/15 | E96: 2015-03-24 | P96: 0
B97: المؤسسة العامة للإسكان | C97: إصلاح أربع عمارات في مساكن غرب طريق دمشق | D97: 5/24/15 | E97: 2015-03-24 | P97: 0
B98: المؤسسة العامة للإسكان | C98: إصلاح أربع عمارات في مساكن غرب طريق دمشق | D98: 5/24/15 | E98: 2015-03-24 | P98: 0
B99: المؤسسة العامة للإسكان | C99: إصلاح أربع عمارات في مساكن غرب طريق دمشق | D99: 5/24/15 | E99: 2015-03-24 | P99: 0
B100: المؤسسة العامة للإسكان | C100: إصلاح أربع عمارات في مساكن غرب طريق دمشق | D100: 5/24/15 | E100: 2015-03-24 | P100: 0
H101: =SUBTOTAL(109,H8:H100) -> 28447444 | I101: =SUBTOTAL(109,I8:I100) -> 0 | J101: 711186 | K101: 21948 | O101: 500 | P101: 27656164 | Q101: 0 | R101: 0 | S101: 1745 | T101: 339576 | U101: 0
B103: إجمالي الكشوف المحصلة | D103: =SUMIF(Q8:Q100,"محصل",H8:H100) -> 28447444 | F103: إجمالي الكشوف المحصلة | H103: =SUMIF(Q8:Q100,"محصل",H8:H100) -> 28447444 | J103: صافي الكشوف المحصلة | P103: =SUMIF(Q8:Q100,"محصل",P8:P100) -> 27656164 | R103: إجمالي السلفة المحسومة | U103: =I101 -> 0
B104: إجمالي الكشوف غير المحصلة | D104: =SUMIF(Q8:Q100,"غير محصل",H8:H100) -> 0 | F104: إجمالي الكشوف غير المحصلة | H104: =SUMIF(Q8:Q100,"غير محصل",H8:H100) -> 0 | J104: صافي الكشوف غير المحصلة | P104: =SUMIF(Q8:Q100,"غير محصل",P8:P100) -> 0 | R104: رصيد السلفة | U104: =Q3-I101 -> 0
B105: إجمالي التوقيفات لتاريخه | D105: =J101 -> 711186 | F105: إجمالي التوقيفات لتاريخه | H105: =J101 -> 711186 | J105: مجموع الحسميات الأخرى والطوابع | P105: =O101+K101 -> 22448 | R105: التوقيفات غير المحصلة | U105: =J101-R101 -> 711186

Sheet 7
F2: الجهة صاحبة العمل | G2: المدينة الصناعية - حسياء | K2: Home Page | P2: القيمة التقديرية للعقد | Q2: 50000000 | W2: محصل
F3: اسم المشروع | G3: سواتر ترابية لحماية المدينة الصناعية بحسياء | P3: قيمة السلفة المقبوضة | Q3: 0 | W3: غير محصل
F4: رقم العقد | G4: 1 | P4: تاريخ المباشرة | Q4: 2015-03-14 | W4: قيد التحصيل
F5: تاريخ العقد | G5: 2015-01-18 | P5: مدة العقد | Q5: 60 يوما | W5: قديم
W6: تبرير مدة
B7: الجهة صاحبة المشروع | C7: اسم المشروع | D7: رقم العقد | E7: تاريخ العقد | F7: رقم الكشف | G7: تاريخ الكشف | H7: القيمة الاجمالية | I7: قيمة السلفة | J7: التوقيفات | K7: الطوابع | L7: غرامات تأخير ( أمانات ) | M7: غرامات تأخير ( حسميات ) | N7: حسميات سوء تنفيذ | O7: الحسميات الأخرى | P7: المبلغ الصافي | Q7: محصل أو غير محصل | R7: التوقيفات المحصلة للمشاريع المنتهية | S7: رقم أمر القبض | T7: تاريخ الإشعار | U7: ملاحظات | W7: بحاجة إلى اعتماد
B8: المدينة الصناعية - حسياء | C8: سواتر ترابية لحماية المدينة الصناعية بحسياء | D8: 1 | E8: 2015-01-18 | F8: 1 | G8: 2015-04-15 | H8: 31771000 | J8: 794275 | K8: 69949 | P8: =H8-SUM(I8:O8) -> 30906776 | Q8: محصل | S8: 100 | T8: 2015-05-13
B9: المدينة الصناعية - حسياء | C9: سواتر ترابية لحماية المدينة الصناعية بحسياء | D9: 1 | E9: 2015-01-18 | F9: 2 | G9: 2015-05-31 | H9: 14615200 | J9: 365380 | K9: 32657 | O9: 142400 | P9: =H9-SUM(I9:O9) -> 14074763 | Q9: محصل | S9: 135 | T9: 2015-06-22
B10: المدينة الصناعية - حسياء | C10: سواتر ترابية لحماية المدينة الصناعية بحسياء | D10: 1 | E10: 2015-01-18 | F10: 3 نهاﺋي | G10: 2015-08-31 | H10: 3612300 | J10: 90308 | K10: 8052 | P10: 3513940 | Q10: محصل | S10: 260 | T10: 2015-10-26
B11: المدينة الصناعية - حسياء | C11: سواتر ترابية لحماية المدينة الصناعية بحسياء | D11: 1 | E11: 2015-01-18 | F11: 1 فرق سعر | G11: 2015-05-17 | H11: 6826951 | J11: 170674 | K11: 15325 | P11: 6640952 | Q11: محصل | S11: 149 | T11: 2016-05-03
B12: المدينة الصناعية - حسياء | C12: سواتر ترابية لحماية المدينة الصناعية بحسياء | D12: 1 | E12: 2015-01-18 | F12: توقيفات العقد | K12: 109916 | P12: -109916 | Q12: محصل | R12: 1420637 | S12: 36 | T12: 2019-02-18 | U12: تم إرسال براءة ذمة من التأمينات الاجتماعية عن العقد بالكتاب 5033 تاريخ 24/10/2018
B13: المدينة الصناعية - حسياء | C13: سواتر ترابية لحماية المدينة الصناعية بحسياء | D13: 1 | E13: 2015-01-18 | P13: 0 | U13: كتاب استرداد توقيفات الضمان 466 / 2019
B14: المدينة الصناعية - حسياء | C14: سواتر ترابية لحماية المدينة الصناعية بحسياء | D14: 1 | E14: 2015-01-18 | P14: 0
B15: المدينة الصناعية - حسياء | C15: سواتر ترابية لحماية المدينة الصناعية بحسياء | D15: 1 | E15: 2015-01-18 | P15: 0
B16: المدينة الصناعية - حسياء | C16: سواتر ترابية لحماية المدينة الصناعية بحسياء | D16: 1 | E16: 2015-01-18 | P16: 0
B17: المدينة الصناعية - حسياء | C17: سواتر ترابية لحماية المدينة الصناعية بحسياء | D17: 1 | E17: 2015-01-18 | P17: 0
B18: المدينة الصناعية - حسياء | C18: سواتر ترابية لحماية المدينة الصناعية بحسياء | D18: 1 | E18: 2015-01-18 | P18: 0
B19: المدينة الصناعية - حسياء | C19: سواتر ترابية لحماية المدينة الصناعية بحسياء | D19: 1 | E19: 2015-01-18 | P19: 0
B20: المدينة الصناعية - حسياء | C20: سواتر ترابية لحماية المدينة الصناعية بحسياء | D20: 1 | E20: 2015-01-18 | P20: 0
B21: المدينة الصناعية - حسياء | C21: سواتر ترابية لحماية المدينة الصناعية بحسياء | D21: 1 | E21: 2015-01-18 | P21: 0
B22: المدينة الصناعية - حسياء | C22: سواتر ترابية لحماية المدينة الصناعية بحسياء | D22: 1 | E22: 2015-01-18 | P22: 0
B23: المدينة الصناعية - حسياء | C23: سواتر ترابية لحماية المدينة الصناعية بحسياء | D23: 1 | E23: 2015-01-18 | P23: 0
B24: المدينة الصناعية - حسياء | C24: سواتر ترابية لحماية المدينة الصناعية بحسياء | D24: 1 | E24: 2015-01-18 | P24: 0
B25: المدينة الصناعية - حسياء | C25: سواتر ترابية لحماية المدينة الصناعية بحسياء | D25: 1 | E25: 2015-01-18 | P25: 0
B26: المدينة الصناعية - حسياء | C26: سواتر ترابية لحماية المدينة الصناعية بحسياء | D26: 1 | E26: 2015-01-18 | P26: 0
B27: المدينة الصناعية - حسياء | C27: سواتر ترابية لحماية المدينة الصناعية بحسياء | D27: 1 | E27: 2015-01-18 | P27: 0
B28: المدينة الصناعية - حسياء | C28: سواتر ترابية لحماية المدينة الصناعية بحسياء | D28: 1 | E28: 2015-01-18 | P28: 0
B29: المدينة الصناعية - حسياء | C29: سواتر ترابية لحماية المدينة الصناعية بحسياء | D29: 1 | E29: 2015-01-18 | P29: 0
B30: المدينة الصناعية - حسياء | C30: سواتر ترابية لحماية المدينة الصناعية بحسياء | D30: 1 | E30: 2015-01-18 | P30: 0
B31: المدينة الصناعية - حسياء | C31: سواتر ترابية لحماية المدينة الصناعية بحسياء | D31: 1 | E31: 2015-01-18 | P31: 0
B32: المدينة الصناعية - حسياء | C32: سواتر ترابية لحماية المدينة الصناعية بحسياء | D32: 1 | E32: 2015-01-18 | P32: 0
B33: المدينة الصناعية - حسياء | C33: سواتر ترابية لحماية المدينة الصناعية بحسياء | D33: 1 | E33: 2015-01-18 | P33: 0
B34: المدينة الصناعية - حسياء | C34: سواتر ترابية لحماية المدينة الصناعية بحسياء | D34: 1 | E34: 2015-01-18 | P34: 0
B35: المدينة الصناعية - حسياء | C35: سواتر ترابية لحماية المدينة الصناعية بحسياء | D35: 1 | E35: 2015-01-18 | P35: 0
B36: المدينة الصناعية - حسياء | C36: سواتر ترابية لحماية المدينة الصناعية بحسياء | D36: 1 | E36: 2015-01-18 | P36: 0
B37: المدينة الصناعية - حسياء | C37: سواتر ترابية لحماية المدينة الصناعية بحسياء | D37: 1 | E37: 2015-01-18 | P37: 0
B38: المدينة الصناعية - حسياء | C38: سواتر ترابية لحماية المدينة الصناعية بحسياء | D38: 1 | E38: 2015-01-18 | P38: 0
B39: المدينة الصناعية - حسياء | C39: سواتر ترابية لحماية المدينة الصناعية بحسياء | D39: 1 | E39: 2015-01-18 | P39: 0
B40: المدينة الصناعية - حسياء | C40: سواتر ترابية لحماية المدينة الصناعية بحسياء | D40: 1 | E40: 2015-01-18 | P40: 0
B41: المدينة الصناعية - حسياء | C41: سواتر ترابية لحماية المدينة الصناعية بحسياء | D41: 1 | E41: 2015-01-18 | P41: 0
B42: المدينة الصناعية - حسياء | C42: سواتر ترابية لحماية المدينة الصناعية بحسياء | D42: 1 | E42: 2015-01-18 | P42: 0
B43: المدينة الصناعية - حسياء | C43: سواتر ترابية لحماية المدينة الصناعية بحسياء | D43: 1 | E43: 2015-01-18 | P43: 0
B44: المدينة الصناعية - حسياء | C44: سواتر ترابية لحماية المدينة الصناعية بحسياء | D44: 1 | E44: 2015-01-18 | P44: 0
B45: المدينة الصناعية - حسياء | C45: سواتر ترابية لحماية المدينة الصناعية بحسياء | D45: 1 | E45: 2015-01-18 | P45: 0
B46: المدينة الصناعية - حسياء | C46: سواتر ترابية لحماية المدينة الصناعية بحسياء | D46: 1 | E46: 2015-01-18 | P46: 0
B47: المدينة الصناعية - حسياء | C47: سواتر ترابية لحماية المدينة الصناعية بحسياء | D47: 1 | E47: 2015-01-18 | P47: 0
B48: المدينة الصناعية - حسياء | C48: سواتر ترابية لحماية المدينة الصناعية بحسياء | D48: 1 | E48: 2015-01-18 | P48: 0
B49: المدينة الصناعية - حسياء | C49: سواتر ترابية لحماية المدينة الصناعية بحسياء | D49: 1 | E49: 2015-01-18 | P49: 0
B50: المدينة الصناعية - حسياء | C50: سواتر ترابية لحماية المدينة الصناعية بحسياء | D50: 1 | E50: 2015-01-18 | P50: 0
B51: المدينة الصناعية - حسياء | C51: سواتر ترابية لحماية المدينة الصناعية بحسياء | D51: 1 | E51: 2015-01-18 | P51: 0
B52: المدينة الصناعية - حسياء | C52: سواتر ترابية لحماية المدينة الصناعية بحسياء | D52: 1 | E52: 2015-01-18 | P52: 0
B53: المدينة الصناعية - حسياء | C53: سواتر ترابية لحماية المدينة الصناعية بحسياء | D53: 1 | E53: 2015-01-18 | P53: 0
B54: المدينة الصناعية - حسياء | C54: سواتر ترابية لحماية المدينة الصناعية بحسياء | D54: 1 | E54: 2015-01-18 | P54: 0
B55: المدينة الصناعية - حسياء | C55: سواتر ترابية لحماية المدينة الصناعية بحسياء | D55: 1 | E55: 2015-01-18 | P55: 0
B56: المدينة الصناعية - حسياء | C56: سواتر ترابية لحماية المدينة الصناعية بحسياء | D56: 1 | E56: 2015-01-18 | P56: 0
B57: المدينة الصناعية - حسياء | C57: سواتر ترابية لحماية المدينة الصناعية بحسياء | D57: 1 | E57: 2015-01-18 | P57: 0
B58: المدينة الصناعية - حسياء | C58: سواتر ترابية لحماية المدينة الصناعية بحسياء | D58: 1 | E58: 2015-01-18 | P58: 0
B59: المدينة الصناعية - حسياء | C59: سواتر ترابية لحماية المدينة الصناعية بحسياء | D59: 1 | E59: 2015-01-18 | P59: 0
B60: المدينة الصناعية - حسياء | C60: سواتر ترابية لحماية المدينة الصناعية بحسياء | D60: 1 | E60: 2015-01-18 | P60: 0
B61: المدينة الصناعية - حسياء | C61: سواتر ترابية لحماية المدينة الصناعية بحسياء | D61: 1 | E61: 2015-01-18 | P61: 0
B62: المدينة الصناعية - حسياء | C62: سواتر ترابية لحماية المدينة الصناعية بحسياء | D62: 1 | E62: 2015-01-18 | P62: 0
B63: المدينة الصناعية - حسياء | C63: سواتر ترابية لحماية المدينة الصناعية بحسياء | D63: 1 | E63: 2015-01-18 | P63: 0
B64: المدينة الصناعية - حسياء | C64: سواتر ترابية لحماية المدينة الصناعية بحسياء | D64: 1 | E64: 2015-01-18 | P64: 0
B65: المدينة الصناعية - حسياء | C65: سواتر ترابية لحماية المدينة الصناعية بحسياء | D65: 1 | E65: 2015-01-18 | P65: 0
B66: المدينة الصناعية - حسياء | C66: سواتر ترابية لحماية المدينة الصناعية بحسياء | D66: 1 | E66: 2015-01-18 | P66: 0
B67: المدينة الصناعية - حسياء | C67: سواتر ترابية لحماية المدينة الصناعية بحسياء | D67: 1 | E67: 2015-01-18 | P67: 0
B68: المدينة الصناعية - حسياء | C68: سواتر ترابية لحماية المدينة الصناعية بحسياء | D68: 1 | E68: 2015-01-18 | P68: 0
B69: المدينة الصناعية - حسياء | C69: سواتر ترابية لحماية المدينة الصناعية بحسياء | D69: 1 | E69: 2015-01-18 | P69: 0
B70: المدينة الصناعية - حسياء | C70: سواتر ترابية لحماية المدينة الصناعية بحسياء | D70: 1 | E70: 2015-01-18 | P70: 0
B71: المدينة الصناعية - حسياء | C71: سواتر ترابية لحماية المدينة الصناعية بحسياء | D71: 1 | E71: 2015-01-18 | P71: 0
B72: المدينة الصناعية - حسياء | C72: سواتر ترابية لحماية المدينة الصناعية بحسياء | D72: 1 | E72: 2015-01-18 | P72: 0
B73: المدينة الصناعية - حسياء | C73: سواتر ترابية لحماية المدينة الصناعية بحسياء | D73: 1 | E73: 2015-01-18 | P73: =H73-SUM(I73:O73) -> 0
B74: المدينة الصناعية - حسياء | C74: سواتر ترابية لحماية المدينة الصناعية بحسياء | D74: 1 | E74: 2015-01-18 | P74: 0
B75: المدينة الصناعية - حسياء | C75: سواتر ترابية لحماية المدينة الصناعية بحسياء | D75: 1 | E75: 2015-01-18 | P75: 0
B76: المدينة الصناعية - حسياء | C76: سواتر ترابية لحماية المدينة الصناعية بحسياء | D76: 1 | E76: 2015-01-18 | P76: 0
B77: المدينة الصناعية - حسياء | C77: سواتر ترابية لحماية المدينة الصناعية بحسياء | D77: 1 | E77: 2015-01-18 | P77: 0
B78: المدينة الصناعية - حسياء | C78: سواتر ترابية لحماية المدينة الصناعية بحسياء | D78: 1 | E78: 2015-01-18 | P78: 0
B79: المدينة الصناعية - حسياء | C79: سواتر ترابية لحماية المدينة الصناعية بحسياء | D79: 1 | E79: 2015-01-18 | P79: 0
B80: المدينة الصناعية - حسياء | C80: سواتر ترابية لحماية المدينة الصناعية بحسياء | D80: 1 | E80: 2015-01-18 | P80: 0
B81: المدينة الصناعية - حسياء | C81: سواتر ترابية لحماية المدينة الصناعية بحسياء | D81: 1 | E81: 2015-01-18 | P81: 0
B82: المدينة الصناعية - حسياء | C82: سواتر ترابية لحماية المدينة الصناعية بحسياء | D82: 1 | E82: 2015-01-18 | P82: 0
B83: المدينة الصناعية - حسياء | C83: سواتر ترابية لحماية المدينة الصناعية بحسياء | D83: 1 | E83: 2015-01-18 | P83: 0
B84: المدينة الصناعية - حسياء | C84: سواتر ترابية لحماية المدينة الصناعية بحسياء | D84: 1 | E84: 2015-01-18 | P84: 0
B85: المدينة الصناعية - حسياء | C85: سواتر ترابية لحماية المدينة الصناعية بحسياء | D85: 1 | E85: 2015-01-18 | P85: 0
B86: المدينة الصناعية - حسياء | C86: سواتر ترابية لحماية المدينة الصناعية بحسياء | D86: 1 | E86: 2015-01-18 | P86: 0
B87: المدينة الصناعية - حسياء | C87: سواتر ترابية لحماية المدينة الصناعية بحسياء | D87: 1 | E87: 2015-01-18 | P87: 0
B88: المدينة الصناعية - حسياء | C88: سواتر ترابية لحماية المدينة الصناعية بحسياء | D88: 1 | E88: 2015-01-18 | P88: 0
B89: المدينة الصناعية - حسياء | C89: سواتر ترابية لحماية المدينة الصناعية بحسياء | D89: 1 | E89: 2015-01-18 | P89: 0
B90: المدينة الصناعية - حسياء | C90: سواتر ترابية لحماية المدينة الصناعية بحسياء | D90: 1 | E90: 2015-01-18 | P90: 0
B91: المدينة الصناعية - حسياء | C91: سواتر ترابية لحماية المدينة الصناعية بحسياء | D91: 1 | E91: 2015-01-18 | P91: 0
B92: المدينة الصناعية - حسياء | C92: سواتر ترابية لحماية المدينة الصناعية بحسياء | D92: 1 | E92: 2015-01-18 | P92: 0
B93: المدينة الصناعية - حسياء | C93: سواتر ترابية لحماية المدينة الصناعية بحسياء | D93: 1 | E93: 2015-01-18 | P93: 0
B94: المدينة الصناعية - حسياء | C94: سواتر ترابية لحماية المدينة الصناعية بحسياء | D94: 1 | E94: 2015-01-18 | P94: 0
B95: المدينة الصناعية - حسياء | C95: سواتر ترابية لحماية المدينة الصناعية بحسياء | D95: 1 | E95: 2015-01-18 | P95: 0
B96: المدينة الصناعية - حسياء | C96: سواتر ترابية لحماية المدينة الصناعية بحسياء | D96: 1 | E96: 2015-01-18 | P96: 0
B97: المدينة الصناعية - حسياء | C97: سواتر ترابية لحماية المدينة الصناعية بحسياء | D97: 1 | E97: 2015-01-18 | P97: 0
B98: المدينة الصناعية - حسياء | C98: سواتر ترابية لحماية المدينة الصناعية بحسياء | D98: 1 | E98: 2015-01-18 | P98: 0
B99: المدينة الصناعية - حسياء | C99: سواتر ترابية لحماية المدينة الصناعية بحسياء | D99: 1 | E99: 2015-01-18 | P99: 0
B100: المدينة الصناعية - حسياء | C100: سواتر ترابية لحماية المدينة الصناعية بحسياء | D100: 1 | E100: 2015-01-18 | P100: 0
H101: =SUBTOTAL(109,H8:H100) -> 56825451 | I101: =SUBTOTAL(109,I8:I100) -> 0 | J101: 1420637 | K101: 235899 | O101: 142400 | P101: 55026515 | Q101: 0 | R101: 1420637 | S101: 680 | T101: 212624 | U101: 0
B103: إجمالي الكشوف المحصلة | D103: =SUMIF(Q8:Q100,"محصل",H8:H100) -> 56825451 | F103: إجمالي الكشوف المحصلة | H103: =SUMIF(Q8:Q100,"محصل",H8:H100) -> 56825451 | J103: صافي الكشوف المحصلة | P103: =SUMIF(Q8:Q100,"محصل",P8:P100) -> 55026515 | R103: إجمالي السلفة المحسومة | U103: =I101 -> 0
B104: إجمالي الكشوف غير المحصلة | D104: =SUMIF(Q8:Q100,"غير محصل",H8:H100) -> 0 | F104: إجمالي الكشوف غير المحصلة | H104: =SUMIF(Q8:Q100,"غير محصل",H8:H100) -> 0 | J104: صافي الكشوف غير المحصلة | P104: =SUMIF(Q8:Q100,"غير محصل",P8:P100) -> 0 | R104: رصيد السلفة | U104: =Q3-I101 -> 0
B105: إجمالي التوقيفات لتاريخه | D105: =J101 -> 1420637 | F105: إجمالي التوقيفات لتاريخه | H105: =J101 -> 1420637 | J105: مجموع الحسميات الأخرى والطوابع | P105: =O101+K101 -> 378299 | R105: التوقيفات غير المحصلة | U105: =J101-R101 -> 0

Sheet 8
F2: الجهة صاحبة العمل | G2: المؤسسة العامة لمياه الشرب و الصرف الصحي بحمص | K2: Home Page | P2: القيمة التقديرية للعقد | Q2: 389817591 | W2: محصل
F3: اسم المشروع | G3: الصرف الصحي في وادي الدهب - 3 | P3: قيمة السلفة المقبوضة | Q3: 0 | W3: غير محصل
F4: رقم العقد | G4: 5 | P4: تاريخ المباشرة | Q4: 2017-07-05 | W4: قيد التحصيل
F5: تاريخ العقد | G5: 2017-07-05 | P5: مدة العقد | Q5: 140 يوما | W5: قديم
W6: تبرير مدة
B7: الجهة صاحبة المشروع | C7: اسم المشروع | D7: رقم العقد | E7: تاريخ العقد | F7: رقم الكشف | G7: تاريخ الكشف | H7: القيمة الاجمالية | I7: قيمة السلفة | J7: التوقيفات | K7: الطوابع | L7: غرامات تأخير ( أمانات ) | M7: غرامات تأخير ( حسميات ) | N7: حسميات سوء تنفيذ | O7: الحسميات الأخرى | P7: المبلغ الصافي | Q7: محصل أو غير محصل | R7: التوقيفات المحصلة للمشاريع المنتهية | S7: رقم أمر القبض | T7: تاريخ الإشعار | U7: ملاحظات | W7: بحاجة إلى اعتماد
B8: مديرية الصحة بحمص | C8: بناء طوابق إضافية في مشفى الباسل بحي الزهراء | D8: 42 | E8: 2014-12-27 | F8: 1 | G8: 2017-10-29 | H8: 1013703 | J8: 25343 | K8: 15938 | L8: =150000+150000 -> 300000 | P8: =H8-SUM(I8:O8) -> 672422 | Q8: محصل | S8: 639 | T8: 2017-12-19
B9: مديرية الصحة بحمص | C9: بناء طوابق إضافية في مشفى الباسل بحي الزهراء | D9: 42 | E9: 2014-12-27 | F9: 2 | G9: 2017-11-29 | H9: 11699373 | J9: 292485 | K9: 26075 | P9: =H9-SUM(I9:O9) -> 11380813 | Q9: محصل | S9: 636 | T9: 2017-12-19
B10: مديرية الصحة بحمص | C10: بناء طوابق إضافية في مشفى الباسل بحي الزهراء | D10: 42 | E10: 2014-12-27 | F10: 3 | G10: 2017-12-30 | H10: 1225862 | J10: 30647 | K10: =36776+12259+4903+2460+100+25+123+260 -> 56906 | P10: 1138309 | Q10: محصل | S10: 85 | T10: 2018-02-21
B11: مديرية الصحة بحمص | C11: بناء طوابق إضافية في مشفى الباسل بحي الزهراء | D11: 42 | E11: 2014-12-27 | F11: 4 | G11: 2018-01-29 | H11: 2382855 | J11: 59572 | K11: =490+4770+100+25+239 -> 5624 | P11: 2317659 | Q11: محصل | S11: 112 | T11: 2018-02-28
B12: مديرية الصحة بحمص | C12: بناء طوابق إضافية في مشفى الباسل بحي الزهراء | D12: 42 | E12: 2014-12-27 | F12: 5 | G12: 2018-02-28 | H12: 19349737 | J12: 483744 | K12: 44850 | L12: 500000 | N12: 50000 | P12: 18271143 | Q12: محصل | S12: 159 | T12: 2018-03-29
B13: مديرية الصحة بحمص | C13: بناء طوابق إضافية في مشفى الباسل بحي الزهراء | D13: 42 | E13: 2014-12-27 | F13: 6 | G13: 2018-03-29 | H13: 20029549 | J13: 500739 | K13: =4020+40060+100+25+2003+200 -> 46408 | L13: 10135258 | O13: =143375+39250 -> 182625 | P13: 9164519 | Q13: محصل | S13: 228 | T13: 2018-04-19
B14: مديرية الصحة بحمص | C14: بناء طوابق إضافية في مشفى الباسل بحي الزهراء | D14: 42 | E14: 2014-12-27 | F14: 7 | G14: 2018-04-29 | H14: 36051069 | J14: 901277 | K14: =7230+72110+100+25+3606 -> 83071 | L14: =500000+12084345 -> 12584345 | P14: 22482376 | Q14: محصل | S14: 417 | T14: 2018-08-01
B15: مديرية الصحة بحمص | C15: بناء طوابق إضافية في مشفى الباسل بحي الزهراء | D15: 42 | E15: 2014-12-27 | F15: 8 | G15: 2018-05-29 | H15: 17549441 | J15: 438737 | K15: =35100+100+25+3530+1755+200 -> 40710 | L15: 11694528 | P15: 5375466 | Q15: محصل | S15: 417 | T15: 2018-08-01
B16: مديرية الصحة بحمص | C16: بناء طوابق إضافية في مشفى الباسل بحي الزهراء | D16: 42 | E16: 2014-12-27 | F16: 9 | G16: 2018-06-29 | H16: 41786161 | J16: 1044655 | K16: =8380+83580+100+25+4179+200 -> 96464 | L16: 8575987 | P16: 32069055 | Q16: محصل | S16: 418 | T16: 2018-08-01
B17: مديرية الصحة بحمص | C17: بناء طوابق إضافية في مشفى الباسل بحي الزهراء | D17: 42 | E17: 2014-12-27 | F17: أمانات كشف 6 | L17: -10135258 | M17: 200 | P17: 10135058 | Q17: محصل | S17: 359 | T17: 2018-07-01
B18: مديرية الصحة بحمص | C18: بناء طوابق إضافية في مشفى الباسل بحي الزهراء | D18: 42 | E18: 2014-12-27 | F18: 10 | G18: 2018-07-29 | H18: 19983149 | J18: 499579 | K18: =4010+39970+100+25+1999+200 -> 46304 | L18: =11694528 -> 11694528 | O18: 162825 | P18: 7579913 | Q18: محصل | S18: 18 | T18: 2019-01-31
B19: مديرية الصحة بحمص | C19: بناء طوابق إضافية في مشفى الباسل بحي الزهراء | D19: 42 | E19: 2014-12-27 | F19: 11 | G19: 2018-08-29 | H19: 29476951 | J19: 736924 | K19: =5910+58960+100+25+2948 -> 67943 | L19: 389818 | P19: 28282266 | Q19: محصل | S19: 18 | T19: 2019-01-31
B20: مديرية الصحة بحمص | C20: بناء طوابق إضافية في مشفى الباسل بحي الزهراء | D20: 42 | E20: 2014-12-27 | F20: أمانات كشف 7 | L20: -12084345 | P20: 12084345 | Q20: محصل | S20: 434 | T20: 2018-08-27
B21: مديرية الصحة بحمص | C21: بناء طوابق إضافية في مشفى الباسل بحي الزهراء | D21: 42 | E21: 2014-12-27 | F21: أمانات كشف 8 | L21: -11694528 | P21: 11694528 | Q21: محصل | S21: 434 | T21: 2018-08-27
B22: مديرية الصحة بحمص | C22: بناء طوابق إضافية في مشفى الباسل بحي الزهراء | D22: 42 | E22: 2014-12-27 | F22: أمانات كشف 9 | L22: -8575987 | P22: 8575987 | Q22: محصل | S22: 434 | T22: 2018-08-27
B23: مديرية الصحة بحمص | C23: بناء طوابق إضافية في مشفى الباسل بحي الزهراء | D23: 42 | E23: 2014-12-27 | F23: فرق سعر 1 ( لغاية الكشف 7 ) | G23: 2018-04-29 | H23: 8031533 | J23: 200788 | P23: 7830745 | Q23: غير محصل
B24: مديرية الصحة بحمص | C24: بناء طوابق إضافية في مشفى الباسل بحي الزهراء | D24: 42 | E24: 2014-12-27 | F24: 12 | G24: 2018-09-29 | H24: 9619559 | J24: 240489 | K24: =1940+19240+100+25+962 -> 22267 | L24: 9356803 | P24: 0 | Q24: محصل | S24: 18 | T24: 2019-01-31 | U24: براءة ذمة تأمينات اجتماعية
B25: مديرية الصحة بحمص | C25: بناء طوابق إضافية في مشفى الباسل بحي الزهراء | D25: 42 | E25: 2014-12-27 | F25: 13 نهائي | G25: 2018-11-08 | H25: 32268208 | J25: 806706 | P25: 31461502 | Q25: غير محصل | U25: كتاب 6111 / 2018
B26: مديرية الصحة بحمص | C26: بناء طوابق إضافية في مشفى الباسل بحي الزهراء | D26: 42 | E26: 2014-12-27 | F26: فرق سعر 1 ( لغاية الكشف 13 نهائي ) | H26: 13190093 | J26: 329752 | P26: 12860341 | Q26: غير محصل | U26: استرداد أمات و صرف كشوف موقوفة
B27: مديرية الصحة بحمص | C27: بناء طوابق إضافية في مشفى الباسل بحي الزهراء | D27: 42 | E27: 2014-12-27 | F27: أمانات كشف 10 | K27: 200 | L27: -11694428 | P27: 11694228 | Q27: محصل | S27: 85 | T27: 2019-04-02 | U27: كتاب 6114 / 2018
B28: مديرية الصحة بحمص | C28: بناء طوابق إضافية في مشفى الباسل بحي الزهراء | D28: 42 | E28: 2014-12-27 | F28: أمانات كشف 11 | L28: -389818 | P28: 389818 | Q28: محصل | S28: 85 | T28: 2019-04-02 | U28: تبرير مدة / 4 / تبرير 175 يوم
B29: مديرية الصحة بحمص | C29: بناء طوابق إضافية في مشفى الباسل بحي الزهراء | D29: 42 | E29: 2014-12-27 | F29: أمانات كشف 12 | L29: -9356803 | P29: 9356803 | Q29: محصل | S29: 85 | T29: 2019-04-02 | U29: براءة ذمة كهرباء
B30: مديرية الصحة بحمص | C30: بناء طوابق إضافية في مشفى الباسل بحي الزهراء | D30: 42 | E30: 2014-12-27 | P30: 0 | U30: كتاب 28 / 2019
B31: مديرية الصحة بحمص | C31: بناء طوابق إضافية في مشفى الباسل بحي الزهراء | D31: 42 | E31: 2014-12-27 | P31: 0 | U31: براءة ذمة مجلس مدينة حمص
B32: مديرية الصحة بحمص | C32: بناء طوابق إضافية في مشفى الباسل بحي الزهراء | D32: 42 | E32: 2014-12-27 | P32: 0 | U32: كتاب 719 / و د / 2019
B33: مديرية الصحة بحمص | C33: بناء طوابق إضافية في مشفى الباسل بحي الزهراء | D33: 42 | E33: 2014-12-27 | P33: 0 | U33: رد أمانات 10 - 11 - 12
B34: مديرية الصحة بحمص | C34: بناء طوابق إضافية في مشفى الباسل بحي الزهراء | D34: 42 | E34: 2014-12-27 | P34: 0 | U34: كتاب 489 / 2019
B35: مديرية الصحة بحمص | C35: بناء طوابق إضافية في مشفى الباسل بحي الزهراء | D35: 42 | E35: 2014-12-27 | P35: 0 | U35: استلام مؤقت / 352 / و 2019
B36: مديرية الصحة بحمص | C36: بناء طوابق إضافية في مشفى الباسل بحي الزهراء | D36: 42 | E36: 2014-12-27 | P36: 0
B37: مديرية الصحة بحمص | C37: بناء طوابق إضافية في مشفى الباسل بحي الزهراء | D37: 42 | E37: 2014-12-27 | P37: 0
B38: مديرية الصحة بحمص | C38: بناء طوابق إضافية في مشفى الباسل بحي الزهراء | D38: 42 | E38: 2014-12-27 | P38: 0
B39: مديرية الصحة بحمص | C39: بناء طوابق إضافية في مشفى الباسل بحي الزهراء | D39: 42 | E39: 2014-12-27 | P39: 0
B40: مديرية الصحة بحمص | C40: بناء طوابق إضافية في مشفى الباسل بحي الزهراء | D40: 42 | E40: 2014-12-27 | P40: 0
B41: مديرية الصحة بحمص | C41: بناء طوابق إضافية في مشفى الباسل بحي الزهراء | D41: 42 | E41: 2014-12-27 | P41: 0
B42: مديرية الصحة بحمص | C42: بناء طوابق إضافية في مشفى الباسل بحي الزهراء | D42: 42 | E42: 2014-12-27 | P42: 0
B43: مديرية الصحة بحمص | C43: بناء طوابق إضافية في مشفى الباسل بحي الزهراء | D43: 42 | E43: 2014-12-27 | P43: 0
B44: مديرية الصحة بحمص | C44: بناء طوابق إضافية في مشفى الباسل بحي الزهراء | D44: 42 | E44: 2014-12-27 | P44: 0
B45: مديرية الصحة بحمص | C45: بناء طوابق إضافية في مشفى الباسل بحي الزهراء | D45: 42 | E45: 2014-12-27 | P45: 0
B46: مديرية الصحة بحمص | C46: بناء طوابق إضافية في مشفى الباسل بحي الزهراء | D46: 42 | E46: 2014-12-27 | P46: 0
B47: مديرية الصحة بحمص | C47: بناء طوابق إضافية في مشفى الباسل بحي الزهراء | D47: 42 | E47: 2014-12-27 | P47: 0
B48: مديرية الصحة بحمص | C48: بناء طوابق إضافية في مشفى الباسل بحي الزهراء | D48: 42 | E48: 2014-12-27 | P48: 0
B49: مديرية الصحة بحمص | C49: بناء طوابق إضافية في مشفى الباسل بحي الزهراء | D49: 42 | E49: 2014-12-27 | P49: 0
B50: مديرية الصحة بحمص | C50: بناء طوابق إضافية في مشفى الباسل بحي الزهراء | D50: 42 | E50: 2014-12-27 | P50: 0
B51: مديرية الصحة بحمص | C51: بناء طوابق إضافية في مشفى الباسل بحي الزهراء | D51: 42 | E51: 2014-12-27 | P51: 0
B52: مديرية الصحة بحمص | C52: بناء طوابق إضافية في مشفى الباسل بحي الزهراء | D52: 42 | E52: 2014-12-27 | P52: 0
B53: مديرية الصحة بحمص | C53: بناء طوابق إضافية في مشفى الباسل بحي الزهراء | D53: 42 | E53: 2014-12-27 | P53: 0
B54: مديرية الصحة بحمص | C54: بناء طوابق إضافية في مشفى الباسل بحي الزهراء | D54: 42 | E54: 2014-12-27 | P54: 0
B55: مديرية الصحة بحمص | C55: بناء طوابق إضافية في مشفى الباسل بحي الزهراء | D55: 42 | E55: 2014-12-27 | P55: 0
B56: مديرية الصحة بحمص | C56: بناء طوابق إضافية في مشفى الباسل بحي الزهراء | D56: 42 | E56: 2014-12-27 | P56: 0
B57: مديرية الصحة بحمص | C57: بناء طوابق إضافية في مشفى الباسل بحي الزهراء | D57: 42 | E57: 2014-12-27 | P57: 0
B58: مديرية الصحة بحمص | C58: بناء طوابق إضافية في مشفى الباسل بحي الزهراء | D58: 42 | E58: 2014-12-27 | P58: 0
B59: مديرية الصحة بحمص | C59: بناء طوابق إضافية في مشفى الباسل بحي الزهراء | D59: 42 | E59: 2014-12-27 | P59: 0
B60: مديرية الصحة بحمص | C60: بناء طوابق إضافية في مشفى الباسل بحي الزهراء | D60: 42 | E60: 2014-12-27 | P60: 0
B61: مديرية الصحة بحمص | C61: بناء طوابق إضافية في مشفى الباسل بحي الزهراء | D61: 42 | E61: 2014-12-27 | P61: 0
B62: مديرية الصحة بحمص | C62: بناء طوابق إضافية في مشفى الباسل بحي الزهراء | D62: 42 | E62: 2014-12-27 | P62: 0
B63: مديرية الصحة بحمص | C63: بناء طوابق إضافية في مشفى الباسل بحي الزهراء | D63: 42 | E63: 2014-12-27 | P63: 0
B64: مديرية الصحة بحمص | C64: بناء طوابق إضافية في مشفى الباسل بحي الزهراء | D64: 42 | E64: 2014-12-27 | P64: 0
B65: مديرية الصحة بحمص | C65: بناء طوابق إضافية في مشفى الباسل بحي الزهراء | D65: 42 | E65: 2014-12-27 | P65: 0
B66: مديرية الصحة بحمص | C66: بناء طوابق إضافية في مشفى الباسل بحي الزهراء | D66: 42 | E66: 2014-12-27 | P66: 0
B67: مديرية الصحة بحمص | C67: بناء طوابق إضافية في مشفى الباسل بحي الزهراء | D67: 42 | E67: 2014-12-27 | P67: 0
B68: مديرية الصحة بحمص | C68: بناء طوابق إضافية في مشفى الباسل بحي الزهراء | D68: 42 | E68: 2014-12-27 | P68: 0
B69: مديرية الصحة بحمص | C69: بناء طوابق إضافية في مشفى الباسل بحي الزهراء | D69: 42 | E69: 2014-12-27 | P69: 0
B70: مديرية الصحة بحمص | C70: بناء طوابق إضافية في مشفى الباسل بحي الزهراء | D70: 42 | E70: 2014-12-27 | P70: 0
B71: مديرية الصحة بحمص | C71: بناء طوابق إضافية في مشفى الباسل بحي الزهراء | D71: 42 | E71: 2014-12-27 | P71: 0
B72: مديرية الصحة بحمص | C72: بناء طوابق إضافية في مشفى الباسل بحي الزهراء | D72: 42 | E72: 2014-12-27 | P72: 0
B73: مديرية الصحة بحمص | C73: بناء طوابق إضافية في مشفى الباسل بحي الزهراء | D73: 42 | E73: 2014-12-27 | P73: =H73-SUM(I73:O73) -> 0
B74: مديرية الصحة بحمص | C74: بناء طوابق إضافية في مشفى الباسل بحي الزهراء | D74: 42 | E74: 2014-12-27 | P74: 0
B75: مديرية الصحة بحمص | C75: بناء طوابق إضافية في مشفى الباسل بحي الزهراء | D75: 42 | E75: 2014-12-27 | P75: 0
B76: مديرية الصحة بحمص | C76: بناء طوابق إضافية في مشفى الباسل بحي الزهراء | D76: 42 | E76: 2014-12-27 | P76: 0
B77: مديرية الصحة بحمص | C77: بناء طوابق إضافية في مشفى الباسل بحي الزهراء | D77: 42 | E77: 2014-12-27 | P77: 0
B78: مديرية الصحة بحمص | C78: بناء طوابق إضافية في مشفى الباسل بحي الزهراء | D78: 42 | E78: 2014-12-27 | P78: 0
B79: مديرية الصحة بحمص | C79: بناء طوابق إضافية في مشفى الباسل بحي الزهراء | D79: 42 | E79: 2014-12-27 | P79: 0
B80: مديرية الصحة بحمص | C80: بناء طوابق إضافية في مشفى الباسل بحي الزهراء | D80: 42 | E80: 2014-12-27 | P80: 0
B81: مديرية الصحة بحمص | C81: بناء طوابق إضافية في مشفى الباسل بحي الزهراء | D81: 42 | E81: 2014-12-27 | P81: 0
B82: مديرية الصحة بحمص | C82: بناء طوابق إضافية في مشفى الباسل بحي الزهراء | D82: 42 | E82: 2014-12-27 | P82: 0
B83: مديرية الصحة بحمص | C83: بناء طوابق إضافية في مشفى الباسل بحي الزهراء | D83: 42 | E83: 2014-12-27 | P83: 0
B84: مديرية الصحة بحمص | C84: بناء طوابق إضافية في مشفى الباسل بحي الزهراء | D84: 42 | E84: 2014-12-27 | P84: 0
B85: مديرية الصحة بحمص | C85: بناء طوابق إضافية في مشفى الباسل بحي الزهراء | D85: 42 | E85: 2014-12-27 | P85: 0
B86: مديرية الصحة بحمص | C86: بناء طوابق إضافية في مشفى الباسل بحي الزهراء | D86: 42 | E86: 2014-12-27 | P86: 0
B87: مديرية الصحة بحمص | C87: بناء طوابق إضافية في مشفى الباسل بحي الزهراء | D87: 42 | E87: 2014-12-27 | P87: 0
B88: مديرية الصحة بحمص | C88: بناء طوابق إضافية في مشفى الباسل بحي الزهراء | D88: 42 | E88: 2014-12-27 | P88: 0
B89: مديرية الصحة بحمص | C89: بناء طوابق إضافية في مشفى الباسل بحي الزهراء | D89: 42 | E89: 2014-12-27 | P89: 0
B90: مديرية الصحة بحمص | C90: بناء طوابق إضافية في مشفى الباسل بحي الزهراء | D90: 42 | E90: 2014-12-27 | P90: 0
B91: مديرية الصحة بحمص | C91: بناء طوابق إضافية في مشفى الباسل بحي الزهراء | D91: 42 | E91: 2014-12-27 | P91: 0
B92: مديرية الصحة بحمص | C92: بناء طوابق إضافية في مشفى الباسل بحي الزهراء | D92: 42 | E92: 2014-12-27 | P92: 0
B93: مديرية الصحة بحمص | C93: بناء طوابق إضافية في مشفى الباسل بحي الزهراء | D93: 42 | E93: 2014-12-27 | P93: 0
B94: مديرية الصحة بحمص | C94: بناء طوابق إضافية في مشفى الباسل بحي الزهراء | D94: 42 | E94: 2014-12-27 | P94: 0
B95: مديرية الصحة بحمص | C95: بناء طوابق إضافية في مشفى الباسل بحي الزهراء | D95: 42 | E95: 2014-12-27 | P95: 0
B96: مديرية الصحة بحمص | C96: بناء طوابق إضافية في مشفى الباسل بحي الزهراء | D96: 42 | E96: 2014-12-27 | P96: 0
B97: مديرية الصحة بحمص | C97: بناء طوابق إضافية في مشفى الباسل بحي الزهراء | D97: 42 | E97: 2014-12-27 | P97: 0
B98: مديرية الصحة بحمص | C98: بناء طوابق إضافية في مشفى الباسل بحي الزهراء | D98: 42 | E98: 2014-12-27 | P98: 0
B99: مديرية الصحة بحمص | C99: بناء طوابق إضافية في مشفى الباسل بحي الزهراء | D99: 42 | E99: 2014-12-27 | P99: 0
B100: مديرية الصحة بحمص | C100: بناء طوابق إضافية في مشفى الباسل بحي الزهراء | D100: 42 | E100: 2014-12-27 | P100: 0
H101: =SUBTOTAL(109,H8:H100) -> 263657243 | I101: =SUBTOTAL(109,I8:I100) -> 0 | J101: 6591437 | K101: 552760 | O101: 345450 | P101: 254817296 | Q101: 0 | R101: 0 | S101: 5081 | T101: 823281 | U101: 0
B103: إجمالي الكشوف المحصلة | D103: =SUMIF(Q8:Q100,"محصل",H8:H100) -> 210167409 | F103: إجمالي الكشوف المحصلة | H103: =SUMIF(Q8:Q100,"محصل",H8:H100) -> 210167409 | J103: صافي الكشوف المحصلة | P103: =SUMIF(Q8:Q100,"محصل",P8:P100) -> 202664708 | R103: إجمالي السلفة المحسومة | U103: =I101 -> 0
B104: إجمالي الكشوف غير المحصلة | D104: =SUMIF(Q8:Q100,"غير محصل",H8:H100) -> 53489834 | F104: إجمالي الكشوف غير المحصلة | H104: =SUMIF(Q8:Q100,"غير محصل",H8:H100) -> 53489834 | J104: صافي الكشوف غير المحصلة | P104: =SUMIF(Q8:Q100,"غير محصل",P8:P100) -> 52152588 | R104: رصيد السلفة | U104: =Q3-I101 -> 0
B105: إجمالي التوقيفات لتاريخه | D105: =J101 -> 6591437 | F105: إجمالي التوقيفات لتاريخه | H105: =J101 -> 6591437 | J105: مجموع الحسميات الأخرى والطوابع | P105: =O101+K101 -> 898210 | R105: التوقيفات غير المحصلة | U105: =J101-R101 -> 6591437

Sheet 9
F2: الجهة صاحبة العمل | G2: مجلس مدينة حمص | K2: Home Page | P2: القيمة التقديرية للعقد | Q2: 22500000 | W2: محصل
F3: اسم المشروع | G3: إزالة و ترحيل الأنقاض من حمص القديمة - ملحق عقد | P3: قيمة السلفة المقبوضة | Q3: 0 | W3: غير محصل
F4: رقم العقد | G4: 3 | P4: تاريخ المباشرة | Q4: 2015-02-01 | W4: قيد التحصيل
F5: تاريخ العقد | G5: 2015-07-05 | P5: مدة العقد | Q5: 100 يوم | W5: قديم
W6: تبرير مدة
B7: الجهة صاحبة المشروع | C7: اسم المشروع | D7: رقم العقد | E7: تاريخ العقد | F7: رقم الكشف | G7: تاريخ الكشف | H7: القيمة الاجمالية | I7: قيمة السلفة | J7: التوقيفات | K7: الطوابع | L7: غرامات تأخير ( أمانات ) | M7: غرامات تأخير ( حسميات ) | N7: حسميات سوء تنفيذ | O7: الحسميات الأخرى | P7: المبلغ الصافي المحصل | Q7: محصل أو غير محصل | R7: التوقيفات المحصلة للمشاريع المنتهية | S7: رقم أمر القبض | T7: تاريخ الإشعار | U7: ملاحظات | W7: بحاجة إلى اعتماد
B8: مجلس مدينة حمص | C8: إزالة و ترحيل الأنقاض من حمص القديمة - ملحق عقد | D8: 3 | E8: 2015-07-05 | F8: 1 | G8: 2015-04-30 | H8: 2098200 | J8: 52455 | K8: 4690 | P8: =H8-SUM(I8:O8) -> 2041055 | Q8: محصل | S8: 200 | T8: 2015-08-24
B9: مجلس مدينة حمص | C9: إزالة و ترحيل الأنقاض من حمص القديمة - ملحق عقد | D9: 3 | E9: 2015-07-05 | F9: 2 | G9: 2015-05-31 | H9: 8768862 | J9: 219222 | K9: 19400 | P9: =H9-SUM(I9:O9) -> 8530240 | Q9: محصل | S9: 208 | T9: 2015-09-03
B10: مجلس مدينة حمص | C10: إزالة و ترحيل الأنقاض من حمص القديمة - ملحق عقد | D10: 3 | E10: 2015-07-05 | F10: 3 | G10: 2015-06-30 | H10: 7962938 | J10: 199073 | K10: 17620 | P10: 7746245 | Q10: محصل | S10: 283 | T10: 2015-11-14
B11: مجلس مدينة حمص | C11: إزالة و ترحيل الأنقاض من حمص القديمة - ملحق عقد | D11: 3 | E11: 2015-07-05 | P11: 0 | Q11: محصل
B12: مجلس مدينة حمص | C12: إزالة و ترحيل الأنقاض من حمص القديمة - ملحق عقد | D12: 3 | E12: 2015-07-05 | P12: 0 | Q12: محصل
B13: مجلس مدينة حمص | C13: إزالة و ترحيل الأنقاض من حمص القديمة - ملحق عقد | D13: 3 | E13: 2015-07-05 | F13: 4 نهائي | G13: 2016-05-30 | H13: 951184 | J13: 23780 | K13: =1910+100+50+110 -> 2170 | P13: 925234 | Q13: محصل | S13: 603 | T13: 2017-12-03
B14: مجلس مدينة حمص | C14: إزالة و ترحيل الأنقاض من حمص القديمة - ملحق عقد | D14: 3 | E14: 2015-07-05 | F14: نهائي فروقات أسعار | G14: 2016-05-30 | H14: 2715957 | J14: 67899 | K14: =5440+280+38030+1910+50+2290 -> 48000 | P14: 2600058 | Q14: محصل | S14: 603 | T14: 2017-12-03 | U14: استلام نهائي 21/2/2017
B15: مجلس مدينة حمص | C15: إزالة و ترحيل الأنقاض من حمص القديمة - ملحق عقد | D15: 3 | E15: 2015-07-05 | P15: 0 | U15: كتاب استرداد التوقيفات رقم
B16: مجلس مدينة حمص | C16: إزالة و ترحيل الأنقاض من حمص القديمة - ملحق عقد | D16: 3 | E16: 2015-07-05 | P16: 0
B17: مجلس مدينة حمص | C17: إزالة و ترحيل الأنقاض من حمص القديمة - ملحق عقد | D17: 3 | E17: 2015-07-05 | P17: 0 | U17: تاريخ
B18: مجلس مدينة حمص | C18: إزالة و ترحيل الأنقاض من حمص القديمة - ملحق عقد | D18: 3 | E18: 2015-07-05 | P18: 0
B19: مجلس مدينة حمص | C19: إزالة و ترحيل الأنقاض من حمص القديمة - ملحق عقد | D19: 3 | E19: 2015-07-05 | P19: 0
B20: مجلس مدينة حمص | C20: إزالة و ترحيل الأنقاض من حمص القديمة - ملحق عقد | D20: 3 | E20: 2015-07-05 | P20: 0
B21: مجلس مدينة حمص | C21: إزالة و ترحيل الأنقاض من حمص القديمة - ملحق عقد | D21: 3 | E21: 2015-07-05 | P21: 0
B22: مجلس مدينة حمص | C22: إزالة و ترحيل الأنقاض من حمص القديمة - ملحق عقد | D22: 3 | E22: 2015-07-05 | P22: 0
B23: مجلس مدينة حمص | C23: إزالة و ترحيل الأنقاض من حمص القديمة - ملحق عقد | D23: 3 | E23: 2015-07-05 | P23: 0
B24: مجلس مدينة حمص | C24: إزالة و ترحيل الأنقاض من حمص القديمة - ملحق عقد | D24: 3 | E24: 2015-07-05 | P24: 0
B25: مجلس مدينة حمص | C25: إزالة و ترحيل الأنقاض من حمص القديمة - ملحق عقد | D25: 3 | E25: 2015-07-05 | P25: 0
B26: مجلس مدينة حمص | C26: إزالة و ترحيل الأنقاض من حمص القديمة - ملحق عقد | D26: 3 | E26: 2015-07-05 | P26: 0
B27: مجلس مدينة حمص | C27: إزالة و ترحيل الأنقاض من حمص القديمة - ملحق عقد | D27: 3 | E27: 2015-07-05 | P27: 0
B28: مجلس مدينة حمص | C28: إزالة و ترحيل الأنقاض من حمص القديمة - ملحق عقد | D28: 3 | E28: 2015-07-05 | P28: 0
B29: مجلس مدينة حمص | C29: إزالة و ترحيل الأنقاض من حمص القديمة - ملحق عقد | D29: 3 | E29: 2015-07-05 | P29: 0
B30: مجلس مدينة حمص | C30: إزالة و ترحيل الأنقاض من حمص القديمة - ملحق عقد | D30: 3 | E30: 2015-07-05 | P30: 0
B31: مجلس مدينة حمص | C31: إزالة و ترحيل الأنقاض من حمص القديمة - ملحق عقد | D31: 3 | E31: 2015-07-05 | P31: 0
B32: مجلس مدينة حمص | C32: إزالة و ترحيل الأنقاض من حمص القديمة - ملحق عقد | D32: 3 | E32: 2015-07-05 | P32: 0
B33: مجلس مدينة حمص | C33: إزالة و ترحيل الأنقاض من حمص القديمة - ملحق عقد | D33: 3 | E33: 2015-07-05 | P33: 0
B34: مجلس مدينة حمص | C34: إزالة و ترحيل الأنقاض من حمص القديمة - ملحق عقد | D34: 3 | E34: 2015-07-05 | P34: 0
B35: مجلس مدينة حمص | C35: إزالة و ترحيل الأنقاض من حمص القديمة - ملحق عقد | D35: 3 | E35: 2015-07-05 | P35: 0
B36: مجلس مدينة حمص | C36: إزالة و ترحيل الأنقاض من حمص القديمة - ملحق عقد | D36: 3 | E36: 2015-07-05 | P36: 0
B37: مجلس مدينة حمص | C37: إزالة و ترحيل الأنقاض من حمص القديمة - ملحق عقد | D37: 3 | E37: 2015-07-05 | P37: 0
B38: مجلس مدينة حمص | C38: إزالة و ترحيل الأنقاض من حمص القديمة - ملحق عقد | D38: 3 | E38: 2015-07-05 | P38: 0
B39: مجلس مدينة حمص | C39: إزالة و ترحيل الأنقاض من حمص القديمة - ملحق عقد | D39: 3 | E39: 2015-07-05 | P39: 0
B40: مجلس مدينة حمص | C40: إزالة و ترحيل الأنقاض من حمص القديمة - ملحق عقد | D40: 3 | E40: 2015-07-05 | P40: 0
B41: مجلس مدينة حمص | C41: إزالة و ترحيل الأنقاض من حمص القديمة - ملحق عقد | D41: 3 | E41: 2015-07-05 | P41: 0
B42: مجلس مدينة حمص | C42: إزالة و ترحيل الأنقاض من حمص القديمة - ملحق عقد | D42: 3 | E42: 2015-07-05 | P42: 0
B43: مجلس مدينة حمص | C43: إزالة و ترحيل الأنقاض من حمص القديمة - ملحق عقد | D43: 3 | E43: 2015-07-05 | P43: 0
B44: مجلس مدينة حمص | C44: إزالة و ترحيل الأنقاض من حمص القديمة - ملحق عقد | D44: 3 | E44: 2015-07-05 | P44: 0
B45: مجلس مدينة حمص | C45: إزالة و ترحيل الأنقاض من حمص القديمة - ملحق عقد | D45: 3 | E45: 2015-07-05 | P45: 0
B46: مجلس مدينة حمص | C46: إزالة و ترحيل الأنقاض من حمص القديمة - ملحق عقد | D46: 3 | E46: 2015-07-05 | P46: 0
B47: مجلس مدينة حمص | C47: إزالة و ترحيل الأنقاض من حمص القديمة - ملحق عقد | D47: 3 | E47: 2015-07-05 | P47: 0
B48: مجلس مدينة حمص | C48: إزالة و ترحيل الأنقاض من حمص القديمة - ملحق عقد | D48: 3 | E48: 2015-07-05 | P48: 0
B49: مجلس مدينة حمص | C49: إزالة و ترحيل الأنقاض من حمص القديمة - ملحق عقد | D49: 3 | E49: 2015-07-05 | P49: 0
B50: مجلس مدينة حمص | C50: إزالة و ترحيل الأنقاض من حمص القديمة - ملحق عقد | D50: 3 | E50: 2015-07-05 | P50: 0
B51: مجلس مدينة حمص | C51: إزالة و ترحيل الأنقاض من حمص القديمة - ملحق عقد | D51: 3 | E51: 2015-07-05 | P51: 0
B52: مجلس مدينة حمص | C52: إزالة و ترحيل الأنقاض من حمص القديمة - ملحق عقد | D52: 3 | E52: 2015-07-05 | P52: 0
B53: مجلس مدينة حمص | C53: إزالة و ترحيل الأنقاض من حمص القديمة - ملحق عقد | D53: 3 | E53: 2015-07-05 | P53: 0
B54: مجلس مدينة حمص | C54: إزالة و ترحيل الأنقاض من حمص القديمة - ملحق عقد | D54: 3 | E54: 2015-07-05 | P54: 0
B55: مجلس مدينة حمص | C55: إزالة و ترحيل الأنقاض من حمص القديمة - ملحق عقد | D55: 3 | E55: 2015-07-05 | P55: 0
B56: مجلس مدينة حمص | C56: إزالة و ترحيل الأنقاض من حمص القديمة - ملحق عقد | D56: 3 | E56: 2015-07-05 | P56: 0
B57: مجلس مدينة حمص | C57: إزالة و ترحيل الأنقاض من حمص القديمة - ملحق عقد | D57: 3 | E57: 2015-07-05 | P57: 0
B58: مجلس مدينة حمص | C58: إزالة و ترحيل الأنقاض من حمص القديمة - ملحق عقد | D58: 3 | E58: 2015-07-05 | P58: 0
B59: مجلس مدينة حمص | C59: إزالة و ترحيل الأنقاض من حمص القديمة - ملحق عقد | D59: 3 | E59: 2015-07-05 | P59: 0
B60: مجلس مدينة حمص | C60: إزالة و ترحيل الأنقاض من حمص القديمة - ملحق عقد | D60: 3 | E60: 2015-07-05 | P60: 0
B61: مجلس مدينة حمص | C61: إزالة و ترحيل الأنقاض من حمص القديمة - ملحق عقد | D61: 3 | E61: 2015-07-05 | P61: 0
B62: مجلس مدينة حمص | C62: إزالة و ترحيل الأنقاض من حمص القديمة - ملحق عقد | D62: 3 | E62: 2015-07-05 | P62: 0
B63: مجلس مدينة حمص | C63: إزالة و ترحيل الأنقاض من حمص القديمة - ملحق عقد | D63: 3 | E63: 2015-07-05 | P63: 0
B64: مجلس مدينة حمص | C64: إزالة و ترحيل الأنقاض من حمص القديمة - ملحق عقد | D64: 3 | E64: 2015-07-05 | P64: 0
B65: مجلس مدينة حمص | C65: إزالة و ترحيل الأنقاض من حمص القديمة - ملحق عقد | D65: 3 | E65: 2015-07-05 | P65: 0
B66: مجلس مدينة حمص | C66: إزالة و ترحيل الأنقاض من حمص القديمة - ملحق عقد | D66: 3 | E66: 2015-07-05 | P66: 0
B67: مجلس مدينة حمص | C67: إزالة و ترحيل الأنقاض من حمص القديمة - ملحق عقد | D67: 3 | E67: 2015-07-05 | P67: 0
B68: مجلس مدينة حمص | C68: إزالة و ترحيل الأنقاض من حمص القديمة - ملحق عقد | D68: 3 | E68: 2015-07-05 | P68: 0
B69: مجلس مدينة حمص | C69: إزالة و ترحيل الأنقاض من حمص القديمة - ملحق عقد | D69: 3 | E69: 2015-07-05 | P69: 0
B70: مجلس مدينة حمص | C70: إزالة و ترحيل الأنقاض من حمص القديمة - ملحق عقد | D70: 3 | E70: 2015-07-05 | P70: 0
B71: مجلس مدينة حمص | C71: إزالة و ترحيل الأنقاض من حمص القديمة - ملحق عقد | D71: 3 | E71: 2015-07-05 | P71: 0
B72: مجلس مدينة حمص | C72: إزالة و ترحيل الأنقاض من حمص القديمة - ملحق عقد | D72: 3 | E72: 2015-07-05 | P72: 0
B73: مجلس مدينة حمص | C73: إزالة و ترحيل الأنقاض من حمص القديمة - ملحق عقد | D73: 3 | E73: 2015-07-05 | P73: =H73-SUM(I73:O73) -> 0
B74: مجلس مدينة حمص | C74: إزالة و ترحيل الأنقاض من حمص القديمة - ملحق عقد | D74: 3 | E74: 2015-07-05 | P74: 0
B75: مجلس مدينة حمص | C75: إزالة و ترحيل الأنقاض من حمص القديمة - ملحق عقد | D75: 3 | E75: 2015-07-05 | P75: 0
B76: مجلس مدينة حمص | C76: إزالة و ترحيل الأنقاض من حمص القديمة - ملحق عقد | D76: 3 | E76: 2015-07-05 | P76: 0
B77: مجلس مدينة حمص | C77: إزالة و ترحيل الأنقاض من حمص القديمة - ملحق عقد | D77: 3 | E77: 2015-07-05 | P77: 0
B78: مجلس مدينة حمص | C78: إزالة و ترحيل الأنقاض من حمص القديمة - ملحق عقد | D78: 3 | E78: 2015-07-05 | P78: 0
B79: مجلس مدينة حمص | C79: إزالة و ترحيل الأنقاض من حمص القديمة - ملحق عقد | D79: 3 | E79: 2015-07-05 | P79: 0
B80: مجلس مدينة حمص | C80: إزالة و ترحيل الأنقاض من حمص القديمة - ملحق عقد | D80: 3 | E80: 2015-07-05 | P80: 0
B81: مجلس مدينة حمص | C81: إزالة و ترحيل الأنقاض من حمص القديمة - ملحق عقد | D81: 3 | E81: 2015-07-05 | P81: 0
B82: مجلس مدينة حمص | C82: إزالة و ترحيل الأنقاض من حمص القديمة - ملحق عقد | D82: 3 | E82: 2015-07-05 | P82: 0
B83: مجلس مدينة حمص | C83: إزالة و ترحيل الأنقاض من حمص القديمة - ملحق عقد | D83: 3 | E83: 2015-07-05 | P83: 0
B84: مجلس مدينة حمص | C84: إزالة و ترحيل الأنقاض من حمص القديمة - ملحق عقد | D84: 3 | E84: 2015-07-05 | P84: 0
B85: مجلس مدينة حمص | C85: إزالة و ترحيل الأنقاض من حمص القديمة - ملحق عقد | D85: 3 | E85: 2015-07-05 | P85: 0
B86: مجلس مدينة حمص | C86: إزالة و ترحيل الأنقاض من حمص القديمة - ملحق عقد | D86: 3 | E86: 2015-07-05 | P86: 0
B87: مجلس مدينة حمص | C87: إزالة و ترحيل الأنقاض من حمص القديمة - ملحق عقد | D87: 3 | E87: 2015-07-05 | P87: 0
B88: مجلس مدينة حمص | C88: إزالة و ترحيل الأنقاض من حمص القديمة - ملحق عقد | D88: 3 | E88: 2015-07-05 | P88: 0
B89: مجلس مدينة حمص | C89: إزالة و ترحيل الأنقاض من حمص القديمة - ملحق عقد | D89: 3 | E89: 2015-07-05 | P89: 0
B90: مجلس مدينة حمص | C90: إزالة و ترحيل الأنقاض من حمص القديمة - ملحق عقد | D90: 3 | E90: 2015-07-05 | P90: 0
B91: مجلس مدينة حمص | C91: إزالة و ترحيل الأنقاض من حمص القديمة - ملحق عقد | D91: 3 | E91: 2015-07-05 | P91: 0
B92: مجلس مدينة حمص | C92: إزالة و ترحيل الأنقاض من حمص القديمة - ملحق عقد | D92: 3 | E92: 2015-07-05 | P92: 0
B93: مجلس مدينة حمص | C93: إزالة و ترحيل الأنقاض من حمص القديمة - ملحق عقد | D93: 3 | E93: 2015-07-05 | P93: 0
B94: مجلس مدينة حمص | C94: إزالة و ترحيل الأنقاض من حمص القديمة - ملحق عقد | D94: 3 | E94: 2015-07-05 | P94: 0
B95: مجلس مدينة حمص | C95: إزالة و ترحيل الأنقاض من حمص القديمة - ملحق عقد | D95: 3 | E95: 2015-07-05 | P95: 0
B96: مجلس مدينة حمص | C96: إزالة و ترحيل الأنقاض من حمص القديمة - ملحق عقد | D96: 3 | E96: 2015-07-05 | P96: 0
B97: مجلس مدينة حمص | C97: إزالة و ترحيل الأنقاض من حمص القديمة - ملحق عقد | D97: 3 | E97: 2015-07-05 | P97: 0
B98: مجلس مدينة حمص | C98: إزالة و ترحيل الأنقاض من حمص القديمة - ملحق عقد | D98: 3 | E98: 2015-07-05 | P98: 0
B99: مجلس مدينة حمص | C99: إزالة و ترحيل الأنقاض من حمص القديمة - ملحق عقد | D99: 3 | E99: 2015-07-05 | P99: 0
B100: مجلس مدينة حمص | C100: إزالة و ترحيل الأنقاض من حمص القديمة - ملحق عقد | D100: 3 | E100: 2015-07-05 | P100: 0
H101: =SUBTOTAL(109,H8:H100) -> 22497141 | I101: =SUBTOTAL(109,I8:I100) -> 0 | J101: 562429 | K101: 91880 | O101: 0 | P101: 21842832 | Q101: 0 | R101: 0 | S101: 1897 | T101: 212956 | U101: 0
B103: إجمالي الكشوف المحصلة | D103: =SUMIF(Q8:Q100,"محصل",H8:H100) -> 22497141 | F103: إجمالي الكشوف المحصلة | H103: =SUMIF(Q8:Q100,"محصل",H8:H100) -> 22497141 | J103: صافي الكشوف المحصلة | P103: =SUMIF(Q8:Q100,"محصل",P8:P100) -> 21842832 | R103: إجمالي السلفة المحسومة | U103: =I101 -> 0
B104: إجمالي الكشوف غير المحصلة | D104: =SUMIF(Q8:Q100,"غير محصل",H8:H100) -> 0 | F104: إجمالي الكشوف غير المحصلة | H104: =SUMIF(Q8:Q100,"غير محصل",H8:H100) -> 0 | J104: صافي الكشوف غير المحصلة | P104: =SUMIF(Q8:Q100,"غير محصل",P8:P100) -> 0 | R104: رصيد السلفة | U104: =Q3-I101 -> 0
B105: إجمالي التوقيفات لتاريخه | D105: =J101 -> 562429 | F105: إجمالي التوقيفات لتاريخه | H105: =J101 -> 562429 | J105: مجموع الحسميات الأخرى والطوابع | P105: =O101+K101 -> 91880 | R105: التوقيفات غير المحصلة | U105: =J101-R101 -> 562429

Sheet 10
F2: الجهة صاحبة العمل | G2: المؤسسة العامة للإسكان | K2: Home Page | P2: القيمة التقديرية للعقد | Q2: 24958400 | W2: محصل
F3: اسم المشروع | G3: إصلاح مساكن غرب طريق دمشق - تسع عمارات | P3: قيمة السلفة المقبوضة | Q3: 0 | W3: غير محصل
F4: رقم العقد | G4: 5/24/40 | P4: تاريخ المباشرة | Q4: 2014-03-16 | W4: قيد التحصيل
F5: تاريخ العقد | G5: 2014-10-15 | P5: مدة العقد | Q5: 65 يوما | W5: قديم
W6: تبرير مدة
B7: الجهة صاحبة المشروع | C7: اسم المشروع | D7: رقم العقد | E7: تاريخ العقد | F7: رقم الكشف | G7: تاريخ الكشف | H7: القيمة الاجمالية | I7: قيمة السلفة | J7: التوقيفات | K7: الطوابع | L7: غرامات تأخير ( أمانات ) | M7: غرامات تأخير ( حسميات ) | N7: حسميات سوء تنفيذ | O7: الحسميات الأخرى | P7: المبلغ الصافي | Q7: محصل أو غير محصل | R7: التوقيفات المحصلة للمشاريع المنتهية | S7: رقم أمر القبض | T7: تاريخ الإشعار | U7: ملاحظات | W7: بحاجة إلى اعتماد
B8: المؤسسة العامة للإسكان | C8: إصلاح مساكن غرب طريق دمشق - تسع عمارات | D8: 5/24/40 | E8: 2014-10-01 | F8: 1 | G8: 2014-11-30 | H8: 2709870 | J8: 67747 | K8: 2742 | P8: =H8-SUM(I8:O8) -> 2639381 | Q8: محصل | S8: 28 | T8: 2015-02-11
B9: المؤسسة العامة للإسكان | C9: إصلاح مساكن غرب طريق دمشق - تسع عمارات | D9: 5/24/40 | E9: 2014-10-01 | F9: 2 | G9: 2014-12-29 | H9: =2979038+5400 -> 2984438 | J9: 74611 | K9: 3010 | P9: =H9-SUM(I9:O9) -> 2906817 | Q9: محصل | S9: 84 | T9: 2015-04-27
B10: المؤسسة العامة للإسكان | C10: إصلاح مساكن غرب طريق دمشق - تسع عمارات | D10: 5/24/40 | E10: 2014-10-01 | F10: 3 | G10: 2015-01-31 | H10: 1286372 | J10: 32159 | K10: 527 | L10: 500000 | P10: 753686 | Q10: محصل | S10: 22 | T10: 2016-01-14
B11: المؤسسة العامة للإسكان | C11: إصلاح مساكن غرب طريق دمشق - تسع عمارات | D11: 5/24/40 | E11: 2014-10-01 | F11: 4 | G11: 2015-02-28 | H11: 429410 | J11: 10735 | K11: 419 | P11: 418256 | Q11: محصل | S11: 193 | T11: 2015-08-17
B12: المؤسسة العامة للإسكان | C12: إصلاح مساكن غرب طريق دمشق - تسع عمارات | D12: 5/24/40 | E12: 2014-10-01 | F12: 5 | G12: 2015-03-31 | H12: 8073557 | J12: 201838 | K12: 7872 | O12: 150 | P12: 7863697 | Q12: محصل | S12: 193 | T12: 2015-08-17
B13: المؤسسة العامة للإسكان | C13: إصلاح مساكن غرب طريق دمشق - تسع عمارات | D13: 5/24/40 | E13: 2014-10-01 | F13: 6 | G13: 2015-04-30 | H13: 5660047 | J13: 141501 | K13: 5519 | O13: 150 | P13: 5512877 | Q13: محصل | S13: 204 | T13: 2015-08-31
B14: المؤسسة العامة للإسكان | C14: إصلاح مساكن غرب طريق دمشق - تسع عمارات | D14: 5/24/40 | E14: 2014-10-01 | F14: 7 | G14: 2015-05-31 | H14: 1610892 | J14: 40272 | L14: 1000000 | P14: 570620 | Q14: محصل | S14: 320 | T14: 2015-12-15
B15: المؤسسة العامة للإسكان | C15: إصلاح مساكن غرب طريق دمشق - تسع عمارات | D15: 5/24/40 | E15: 2014-10-01 | F15: 8 | G15: 2015-05-31 | H15: 893896 | J15: 22347 | P15: 871549 | Q15: محصل | S15: 320 | T15: 2015-12-15
B16: المؤسسة العامة للإسكان | C16: إصلاح مساكن غرب طريق دمشق - تسع عمارات | D16: 5/24/40 | E16: 2014-10-01 | F16: 9 | G16: 2015-06-30 | H16: 6936220 | J16: 173406 | K16: 8355 | P16: 6754459 | Q16: محصل | S16: 320 | T16: 2015-12-15
B17: المؤسسة العامة للإسكان | C17: إصلاح مساكن غرب طريق دمشق - تسع عمارات | D17: 5/24/40 | E17: 2014-10-01 | F17: أمانات 7 | G17: 2015-05-31 | K17: 650 | L17: -1000000 | P17: 999350 | Q17: محصل | S17: 252 | T17: 2016-08-15
B18: المؤسسة العامة للإسكان | C18: إصلاح مساكن غرب طريق دمشق - تسع عمارات | D18: 5/24/40 | E18: 2014-10-01 | F18: أمانات 3 | G18: 2016-01-31 | K18: 400 | L18: -500000 | P18: 499600 | Q18: محصل | S18: 231 | T18: 2016-07-23
B19: المؤسسة العامة للإسكان | C19: إصلاح مساكن غرب طريق دمشق - تسع عمارات | D19: 5/24/40 | E19: 2014-10-01 | F19: 10 نهائي | G19: 2017-08-20 | H19: 1541174 | J19: 38530 | N19: =279300+50000+50000+10000+5000 -> 394300 | P19: 1108344 | Q19: غير محصل | U19: براءات ذمة تأمينات و هندسي
B20: المؤسسة العامة للإسكان | C20: إصلاح مساكن غرب طريق دمشق - تسع عمارات | D20: 5/24/40 | E20: 2014-10-01 | P20: 0 | U20: كتاب 146 / 2019
B21: المؤسسة العامة للإسكان | C21: إصلاح مساكن غرب طريق دمشق - تسع عمارات | D21: 5/24/40 | E21: 2014-10-01 | P21: 0 | U21: كتاب براءة ذمة جيولوجيا + تأمينات
B22: المؤسسة العامة للإسكان | C22: إصلاح مساكن غرب طريق دمشق - تسع عمارات | D22: 5/24/40 | E22: 2014-10-01 | P22: 0 | U22: رقم 908 / 2019
B23: المؤسسة العامة للإسكان | C23: إصلاح مساكن غرب طريق دمشق - تسع عمارات | D23: 5/24/40 | E23: 2014-10-01 | P23: 0 | U23: كتاب براءة ذمة جيولوجيا
B24: المؤسسة العامة للإسكان | C24: إصلاح مساكن غرب طريق دمشق - تسع عمارات | D24: 5/24/40 | E24: 2014-10-01 | P24: 0 | U24: رقم 1087 / 2019
B25: المؤسسة العامة للإسكان | C25: إصلاح مساكن غرب طريق دمشق - تسع عمارات | D25: 5/24/40 | E25: 2014-10-01 | P25: 0
B26: المؤسسة العامة للإسكان | C26: إصلاح مساكن غرب طريق دمشق - تسع عمارات | D26: 5/24/40 | E26: 2014-10-01 | P26: 0
B27: المؤسسة العامة للإسكان | C27: إصلاح مساكن غرب طريق دمشق - تسع عمارات | D27: 5/24/40 | E27: 2014-10-01 | P27: 0
B28: المؤسسة العامة للإسكان | C28: إصلاح مساكن غرب طريق دمشق - تسع عمارات | D28: 5/24/40 | E28: 2014-10-01 | P28: 0
B29: المؤسسة العامة للإسكان | C29: إصلاح مساكن غرب طريق دمشق - تسع عمارات | D29: 5/24/40 | E29: 2014-10-01 | P29: 0
B30: المؤسسة العامة للإسكان | C30: إصلاح مساكن غرب طريق دمشق - تسع عمارات | D30: 5/24/40 | E30: 2014-10-01 | P30: 0
B31: المؤسسة العامة للإسكان | C31: إصلاح مساكن غرب طريق دمشق - تسع عمارات | D31: 5/24/40 | E31: 2014-10-01 | P31: 0
B32: المؤسسة العامة للإسكان | C32: إصلاح مساكن غرب طريق دمشق - تسع عمارات | D32: 5/24/40 | E32: 2014-10-01 | P32: 0
B33: المؤسسة العامة للإسكان | C33: إصلاح مساكن غرب طريق دمشق - تسع عمارات | D33: 5/24/40 | E33: 2014-10-01 | P33: 0
B34: المؤسسة العامة للإسكان | C34: إصلاح مساكن غرب طريق دمشق - تسع عمارات | D34: 5/24/40 | E34: 2014-10-01 | P34: 0
B35: المؤسسة العامة للإسكان | C35: إصلاح مساكن غرب طريق دمشق - تسع عمارات | D35: 5/24/40 | E35: 2014-10-01 | P35: 0
B36: المؤسسة العامة للإسكان | C36: إصلاح مساكن غرب طريق دمشق - تسع عمارات | D36: 5/24/40 | E36: 2014-10-01 | P36: 0
B37: المؤسسة العامة للإسكان | C37: إصلاح مساكن غرب طريق دمشق - تسع عمارات | D37: 5/24/40 | E37: 2014-10-01 | P37: 0
B38: المؤسسة العامة للإسكان | C38: إصلاح مساكن غرب طريق دمشق - تسع عمارات | D38: 5/24/40 | E38: 2014-10-01 | P38: 0
B39: المؤسسة العامة للإسكان | C39: إصلاح مساكن غرب طريق دمشق - تسع عمارات | D39: 5/24/40 | E39: 2014-10-01 | P39: 0
B40: المؤسسة العامة للإسكان | C40: إصلاح مساكن غرب طريق دمشق - تسع عمارات | D40: 5/24/40 | E40: 2014-10-01 | P40: 0
B41: المؤسسة العامة للإسكان | C41: إصلاح مساكن غرب طريق دمشق - تسع عمارات | D41: 5/24/40 | E41: 2014-10-01 | P41: 0
B42: المؤسسة العامة للإسكان | C42: إصلاح مساكن غرب طريق دمشق - تسع عمارات | D42: 5/24/40 | E42: 2014-10-01 | P42: 0
B43: المؤسسة العامة للإسكان | C43: إصلاح مساكن غرب طريق دمشق - تسع عمارات | D43: 5/24/40 | E43: 2014-10-01 | P43: 0
B44: المؤسسة العامة للإسكان | C44: إصلاح مساكن غرب طريق دمشق - تسع عمارات | D44: 5/24/40 | E44: 2014-10-01 | P44: 0
B45: المؤسسة العامة للإسكان | C45: إصلاح مساكن غرب طريق دمشق - تسع عمارات | D45: 5/24/40 | E45: 2014-10-01 | P45: 0
B46: المؤسسة العامة للإسكان | C46: إصلاح مساكن غرب طريق دمشق - تسع عمارات | D46: 5/24/40 | E46: 2014-10-01 | P46: 0
B47: المؤسسة العامة للإسكان | C47: إصلاح مساكن غرب طريق دمشق - تسع عمارات | D47: 5/24/40 | E47: 2014-10-01 | P47: 0
B48: المؤسسة العامة للإسكان | C48: إصلاح مساكن غرب طريق دمشق - تسع عمارات | D48: 5/24/40 | E48: 2014-10-01 | P48: 0
B49: المؤسسة العامة للإسكان | C49: إصلاح مساكن غرب طريق دمشق - تسع عمارات | D49: 5/24/40 | E49: 2014-10-01 | P49: 0
B50: المؤسسة العامة للإسكان | C50: إصلاح مساكن غرب طريق دمشق - تسع عمارات | D50: 5/24/40 | E50: 2014-10-01 | P50: 0
B51: المؤسسة العامة للإسكان | C51: إصلاح مساكن غرب طريق دمشق - تسع عمارات | D51: 5/24/40 | E51: 2014-10-01 | P51: 0
B52: المؤسسة العامة للإسكان | C52: إصلاح مساكن غرب طريق دمشق - تسع عمارات | D52: 5/24/40 | E52: 2014-10-01 | P52: 0
B53: المؤسسة العامة للإسكان | C53: إصلاح مساكن غرب طريق دمشق - تسع عمارات | D53: 5/24/40 | E53: 2014-10-01 | P53: 0
B54: المؤسسة العامة للإسكان | C54: إصلاح مساكن غرب طريق دمشق - تسع عمارات | D54: 5/24/40 | E54: 2014-10-01 | P54: 0
B55: المؤسسة العامة للإسكان | C55: إصلاح مساكن غرب طريق دمشق - تسع عمارات | D55: 5/24/40 | E55: 2014-10-01 | P55: 0
B56: المؤسسة العامة للإسكان | C56: إصلاح مساكن غرب طريق دمشق - تسع عمارات | D56: 5/24/40 | E56: 2014-10-01 | P56: 0
B57: المؤسسة العامة للإسكان | C57: إصلاح مساكن غرب طريق دمشق - تسع عمارات | D57: 5/24/40 | E57: 2014-10-01 | P57: 0
B58: المؤسسة العامة للإسكان | C58: إصلاح مساكن غرب طريق دمشق - تسع عمارات | D58: 5/24/40 | E58: 2014-10-01 | P58: 0
B59: المؤسسة العامة للإسكان | C59: إصلاح مساكن غرب طريق دمشق - تسع عمارات | D59: 5/24/40 | E59: 2014-10-01 | P59: 0
B60: المؤسسة العامة للإسكان | C60: إصلاح مساكن غرب طريق دمشق - تسع عمارات | D60: 5/24/40 | E60: 2014-10-01 | P60: 0
B61: المؤسسة العامة للإسكان | C61: إصلاح مساكن غرب طريق دمشق - تسع عمارات | D61: 5/24/40 | E61: 2014-10-01 | P61: 0
B62: المؤسسة العامة للإسكان | C62: إصلاح مساكن غرب طريق دمشق - تسع عمارات | D62: 5/24/40 | E62: 2014-10-01 | P62: 0
B63: المؤسسة العامة للإسكان | C63: إصلاح مساكن غرب طريق دمشق - تسع عمارات | D63: 5/24/40 | E63: 2014-10-01 | P63: 0
B64: المؤسسة العامة للإسكان | C64: إصلاح مساكن غرب طريق دمشق - تسع عمارات | D64: 5/24/40 | E64: 2014-10-01 | P64: 0
B65: المؤسسة العامة للإسكان | C65: إصلاح مساكن غرب طريق دمشق - تسع عمارات | D65: 5/24/40 | E65: 2014-10-01 | P65: 0
B66: المؤسسة العامة للإسكان | C66: إصلاح مساكن غرب طريق دمشق - تسع عمارات | D66: 5/24/40 | E66: 2014-10-01 | P66: 0
B67: المؤسسة العامة للإسكان | C67: إصلاح مساكن غرب طريق دمشق - تسع عمارات | D67: 5/24/40 | E67: 2014-10-01 | P67: 0
B68: المؤسسة العامة للإسكان | C68: إصلاح مساكن غرب طريق دمشق - تسع عمارات | D68: 5/24/40 | E68: 2014-10-01 | P68: 0
B69: المؤسسة العامة للإسكان | C69: إصلاح مساكن غرب طريق دمشق - تسع عمارات | D69: 5/24/40 | E69: 2014-10-01 | P69: 0
B70: المؤسسة العامة للإسكان | C70: إصلاح مساكن غرب طريق دمشق - تسع عمارات | D70: 5/24/40 | E70: 2014-10-01 | P70: 0
B71: المؤسسة العامة للإسكان | C71: إصلاح مساكن غرب طريق دمشق - تسع عمارات | D71: 5/24/40 | E71: 2014-10-01 | P71: 0
B72: المؤسسة العامة للإسكان | C72: إصلاح مساكن غرب طريق دمشق - تسع عمارات | D72: 5/24/40 | E72: 2014-10-01 | P72: 0
B73: المؤسسة العامة للإسكان | C73: إصلاح مساكن غرب طريق دمشق - تسع عمارات | D73: 5/24/40 | E73: 2014-10-01 | P73: =H73-SUM(I73:O73) -> 0
B74: المؤسسة العامة للإسكان | C74: إصلاح مساكن غرب طريق دمشق - تسع عمارات | D74: 5/24/40 | E74: 2014-10-01 | P74: 0
B75: المؤسسة العامة للإسكان | C75: إصلاح مساكن غرب طريق دمشق - تسع عمارات | D75: 5/24/40 | E75: 2014-10-01 | P75: 0
B76: المؤسسة العامة للإسكان | C76: إصلاح مساكن غرب طريق دمشق - تسع عمارات | D76: 5/24/40 | E76: 2014-10-01 | P76: 0
B77: المؤسسة العامة للإسكان | C77: إصلاح مساكن غرب طريق دمشق - تسع عمارات | D77: 5/24/40 | E77: 2014-10-01 | P77: 0
B78: المؤسسة العامة للإسكان | C78: إصلاح مساكن غرب طريق دمشق - تسع عمارات | D78: 5/24/40 | E78: 2014-10-01 | P78: 0
B79: المؤسسة العامة للإسكان | C79: إصلاح مساكن غرب طريق دمشق - تسع عمارات | D79: 5/24/40 | E79: 2014-10-01 | P79: 0
B80: المؤسسة العامة للإسكان | C80: إصلاح مساكن غرب طريق دمشق - تسع عمارات | D80: 5/24/40 | E80: 2014-10-01 | P80: 0
B81: المؤسسة العامة للإسكان | C81: إصلاح مساكن غرب طريق دمشق - تسع عمارات | D81: 5/24/40 | E81: 2014-10-01 | P81: 0
B82: المؤسسة العامة للإسكان | C82: إصلاح مساكن غرب طريق دمشق - تسع عمارات | D82: 5/24/40 | E82: 2014-10-01 | P82: 0
B83: المؤسسة العامة للإسكان | C83: إصلاح مساكن غرب طريق دمشق - تسع عمارات | D83: 5/24/40 | E83: 2014-10-01 | P83: 0
B84: المؤسسة العامة للإسكان | C84: إصلاح مساكن غرب طريق دمشق - تسع عمارات | D84: 5/24/40 | E84: 2014-10-01 | P84: 0
B85: المؤسسة العامة للإسكان | C85: إصلاح مساكن غرب طريق دمشق - تسع عمارات | D85: 5/24/40 | E85: 2014-10-01 | P85: 0
B86: المؤسسة العامة للإسكان | C86: إصلاح مساكن غرب طريق دمشق - تسع عمارات | D86: 5/24/40 | E86: 2014-10-01 | P86: 0
B87: المؤسسة العامة للإسكان | C87: إصلاح مساكن غرب طريق دمشق - تسع عمارات | D87: 5/24/40 | E87: 2014-10-01 | P87: 0
B88: المؤسسة العامة للإسكان | C88: إصلاح مساكن غرب طريق دمشق - تسع عمارات | D88: 5/24/40 | E88: 2014-10-01 | P88: 0
B89: المؤسسة العامة للإسكان | C89: إصلاح مساكن غرب طريق دمشق - تسع عمارات | D89: 5/24/40 | E89: 2014-10-01 | P89: 0
B90: المؤسسة العامة للإسكان | C90: إصلاح مساكن غرب طريق دمشق - تسع عمارات | D90: 5/24/40 | E90: 2014-10-01 | P90: 0
B91: المؤسسة العامة للإسكان | C91: إصلاح مساكن غرب طريق دمشق - تسع عمارات | D91: 5/24/40 | E91: 2014-10-01 | P91: 0
B92: المؤسسة العامة للإسكان | C92: إصلاح مساكن غرب طريق دمشق - تسع عمارات | D92: 5/24/40 | E92: 2014-10-01 | P92: 0
B93: المؤسسة العامة للإسكان | C93: إصلاح مساكن غرب طريق دمشق - تسع عمارات | D93: 5/24/40 | E93: 2014-10-01 | P93: 0
B94: المؤسسة العامة للإسكان | C94: إصلاح مساكن غرب طريق دمشق - تسع عمارات | D94: 5/24/40 | E94: 2014-10-01 | P94: 0
B95: المؤسسة العامة للإسكان | C95: إصلاح مساكن غرب طريق دمشق - تسع عمارات | D95: 5/24/40 | E95: 2014-10-01 | P95: 0
B96: المؤسسة العامة للإسكان | C96: إصلاح مساكن غرب طريق دمشق - تسع عمارات | D96: 5/24/40 | E96: 2014-10-01 | P96: 0
B97: المؤسسة العامة للإسكان | C97: إصلاح مساكن غرب طريق دمشق - تسع عمارات | D97: 5/24/40 | E97: 2014-10-01 | P97: 0
B98: المؤسسة العامة للإسكان | C98: إصلاح مساكن غرب طريق دمشق - تسع عمارات | D98: 5/24/40 | E98: 2014-10-01 | P98: 0
B99: المؤسسة العامة للإسكان | C99: إصلاح مساكن غرب طريق دمشق - تسع عمارات | D99: 5/24/40 | E99: 2014-10-01 | P99: 0
B100: المؤسسة العامة للإسكان | C100: إصلاح مساكن غرب طريق دمشق - تسع عمارات | D100: 5/24/40 | E100: 2014-10-01 | P100: 0
H101: =SUBTOTAL(109,H8:H100) -> 32125876 | I101: =SUBTOTAL(109,I8:I100) -> 0 | J101: 803146 | K101: 29494 | O101: 300 | P101: 30898636 | Q101: 0 | R101: 0 | S101: 2167 | T101: 465493 | U101: 0
B103: إجمالي الكشوف المحصلة | D103: =SUMIF(Q8:Q100,"محصل",H8:H100) -> 30584702 | F103: إجمالي الكشوف المحصلة | H103: =SUMIF(Q8:Q100,"محصل",H8:H100) -> 30584702 | J103: صافي الكشوف المحصلة | P103: =SUMIF(Q8:Q100,"محصل",P8:P100) -> 29790292 | R103: إجمالي السلفة المحسومة | U103: =I101 -> 0
B104: إجمالي الكشوف غير المحصلة | D104: =SUMIF(Q8:Q100,"غير محصل",H8:H100) -> 1541174 | F104: إجمالي الكشوف غير المحصلة | H104: =SUMIF(Q8:Q100,"غير محصل",H8:H100) -> 1541174 | J104: صافي الكشوف غير المحصلة | P104: =SUMIF(Q8:Q100,"غير محصل",P8:P100) -> 1108344 | R104: رصيد السلفة | U104: =Q3-I101 -> 0
B105: إجمالي التوقيفات لتاريخه | D105: =J101 -> 803146 | F105: إجمالي التوقيفات لتاريخه | H105: =J101 -> 803146 | J105: مجموع الحسميات الأخرى والطوابع | P105: =O101+K101 -> 29794 | R105: التوقيفات غير المحصلة | U105: =J101-R101 -> 803146

Sheet 11
F2: الجهة صاحبة العمل | G2: مديرية الخدمات الفنية - بحمص | K2: Home Page | P2: القيمة التقديرية للعقد | Q2: 58367428 | W2: محصل
F3: اسم المشروع | G3: بناء ملحق في مدرسة الاسماعيلية | P3: قيمة السلفة المقبوضة | Q3: 0 | W3: غير محصل
F4: رقم العقد | G4: 5 | P4: تاريخ المباشرة | Q4: 2017-06-20 | W4: قيد التحصيل
F5: تاريخ العقد | G5: 2017-06-20 | P5: مدة العقد | Q5: 360 يوما | W5: قديم
W6: تبرير مدة
B7: الجهة صاحبة المشروع | C7: اسم المشروع | D7: رقم العقد | E7: تاريخ العقد | F7: رقم الكشف | G7: تاريخ الكشف | H7: القيمة الاجمالية | I7: قيمة السلفة | J7: التوقيفات | K7: الطوابع | L7: غرامات تأخير ( أمانات ) | M7: غرامات تأخير ( حسميات ) | N7: حسميات سوء تنفيذ | O7: الحسميات الأخرى | P7: المبلغ الصافي | Q7: محصل أو غير محصل | R7: التوقيفات المحصلة للمشاريع المنتهية | S7: رقم أمر القبض | T7: تاريخ الإشعار | U7: ملاحظات | W7: بحاجة إلى اعتماد
B8: وزارة الصناعة | C8: إعادة تأهيل معهد التدريب المهني بحمص | D8: 1 | E8: 2014-11-09 | F8: 1 | G8: 2017-03-08 | H8: 1486950 | J8: 37175 | K8: =2980+150+20+25+160+45 -> 3380 | L8: 1000000 | P8: =H8-SUM(I8:O8) -> 446395 | Q8: محصل | S8: 443 | T8: 2017-09-16
B9: وزارة الصناعة | C9: إعادة تأهيل معهد التدريب المهني بحمص | D9: 1 | E9: 2014-11-09 | F9: 2 | G9: 2017-03-09 | H9: 369495 | J9: 9240 | K9: =740+40+25+45+50 -> 900 | P9: =H9-SUM(I9:O9) -> 359355 | Q9: محصل | S9: 485 | T9: 2017-10-12
B10: وزارة الصناعة | C10: إعادة تأهيل معهد التدريب المهني بحمص | D10: 1 | E10: 2014-11-09 | F10: 3 | G10: 2017-10-03 | H10: 0 | J10: 0 | K10: 0 | P10: 0 | Q10: محصل
B11: وزارة الصناعة | C11: إعادة تأهيل معهد التدريب المهني بحمص | D11: 1 | E11: 2014-11-09 | F11: 4 | G11: 2017-11-03 | H11: 10020042 | J11: 250505 | K11: =20050+50+1005+50+25+1060-5 -> 22235 | P11: 9747302 | Q11: محصل | S11: 596 | T11: 2017-11-30
B12: وزارة الصناعة | C12: إعادة تأهيل معهد التدريب المهني بحمص | D12: 1 | E12: 2014-11-09 | F12: 5 | G12: 2017-12-03 | H12: 6130495 | J12: 153265 | K12: =12270+50+615+50+25+655-10 -> 13655 | P12: 5963575 | Q12: محصل | S12: 659 | T12: 2017-12-26
B13: وزارة الصناعة | C13: إعادة تأهيل معهد التدريب المهني بحمص | D13: 1 | E13: 2014-11-09 | F13: 6 | G13: 2018-01-03 | H13: 1813527 | J13: 45340 | K13: =3630+50+185+20+25+395-20 -> 4285 | P13: 1763902 | Q13: محصل | S13: 60 | T13: 2018-02-07
B14: وزارة الصناعة | C14: إعادة تأهيل معهد التدريب المهني بحمص | D14: 1 | E14: 2014-11-09 | F14: 7 | G14: 2018-02-03 | H14: 302760 | J14: 7570 | K14: =610+35+25+70+50 -> 790 | P14: 294400 | Q14: محصل | S14: 126 | T14: 2018-03-05
B15: وزارة الصناعة | C15: إعادة تأهيل معهد التدريب المهني بحمص | D15: 1 | E15: 2014-11-09 | F15: 8 | G15: 2018-03-03 | H15: 617067 | J15: 15430 | K15: =1240+65+25+135+50 -> 1515 | P15: 600122 | Q15: محصل | S15: 190 | T15: 2018-03-27
B16: وزارة الصناعة | C16: إعادة تأهيل معهد التدريب المهني بحمص | D16: 1 | E16: 2014-11-09 | F16: 9 | G16: 2018-04-03 | H16: 0 | J16: 0 | P16: 0 | Q16: محصل
B17: وزارة الصناعة | C17: إعادة تأهيل معهد التدريب المهني بحمص | D17: 1 | E17: 2014-11-09 | F17: 10 | G17: 2018-05-03 | H17: 265650 | J17: 6645 | K17: =540+30+25+60+50 -> 705 | P17: 258300 | Q17: محصل | S17: 299 | T17: 2018-05-23
B18: وزارة الصناعة | C18: إعادة تأهيل معهد التدريب المهني بحمص | D18: 1 | E18: 2014-11-09 | F18: 11 | G18: 2018-06-03 | H18: 1046794 | J18: 26170 | K18: =1020624-1018099 -> 2525 | P18: 1018099 | Q18: محصل | S18: 351 | T18: 2018-06-26
B19: وزارة الصناعة | C19: إعادة تأهيل معهد التدريب المهني بحمص | D19: 1 | E19: 2014-11-09 | F19: 1 فرق سعر | G19: 2018-03-03 | H19: 379651 | J19: 9495 | K19: =6080+50+305+20+25+650-25 -> 7105 | P19: 363051 | Q19: محصل | S19: 362 | T19: 2018-07-05
B20: وزارة الصناعة | C20: إعادة تأهيل معهد التدريب المهني بحمص | D20: 1 | E20: 2014-11-09 | F20: 12 | G20: 2018-07-03 | H20: 1664981 | J20: 41625 | K20: =3330+50+170+20+25+360 -> 3955 | P20: 1619401 | Q20: محصل | S20: 397 | T20: 2018-07-29
B21: وزارة الصناعة | C21: إعادة تأهيل معهد التدريب المهني بحمص | D21: 1 | E21: 2014-11-09 | F21: 13 | G21: 2018-08-03 | H21: 4965942 | J21: 124150 | K21: =9940+500+25+50+1+20+10+1055-31 -> 11570 | P21: 4830222 | Q21: محصل | S21: 474 | T21: 2018-09-23
B22: وزارة الصناعة | C22: إعادة تأهيل معهد التدريب المهني بحمص | D22: 1 | E22: 2014-11-09 | F22: 14 | G22: 2018-09-03 | H22: 4415781 | J22: 110395 | K22: =8840+450+25+50+10+20+10+950-40 -> 10315 | P22: 4295071 | Q22: محصل | S22: 511 | T22: 2018-10-08
B23: وزارة الصناعة | C23: إعادة تأهيل معهد التدريب المهني بحمص | D23: 1 | E23: 2014-11-09 | F23: 15 | G23: 2018-10-03 | H23: 1657070 | J23: 41430 | K23: =3320+170+25+50+10+20+10+370-59 -> 3916 | P23: 1611724 | Q23: محصل | S23: 542 | T23: 2018-10-30
B24: وزارة الصناعة | C24: إعادة تأهيل معهد التدريب المهني بحمص | D24: 1 | E24: 2014-11-09 | F24: 16 | G24: 2018-11-03 | H24: 2431002 | J24: 60780 | K24: =4870+250+25+50+10+20+10+530-60 -> 5705 | P24: 2364517 | Q24: محصل | S24: 621 | T24: 2018-12-05
B25: وزارة الصناعة | C25: إعادة تأهيل معهد التدريب المهني بحمص | D25: 1 | E25: 2014-11-09 | F25: 17 | G25: 2018-12-03 | H25: 5338651 | J25: 133470 | K25: =10680+540+25+50+10+50+10+1140-86 -> 12419 | P25: 5192762 | Q25: محصل | S25: 675 | T25: 2018-12-31
B26: وزارة الصناعة | C26: إعادة تأهيل معهد التدريب المهني بحمص | D26: 1 | E26: 2014-11-09 | F26: 18 | G26: 2019-01-03 | H26: 2958237 | J26: 73960 | K26: =5920+300+25+50+10+20+10+640 -> 6975 | P26: 2877302 | Q26: محصل | S26: 34 | T26: 2019-02-07
B27: وزارة الصناعة | C27: إعادة تأهيل معهد التدريب المهني بحمص | D27: 1 | E27: 2014-11-09 | F27: 19 | G27: 2019-02-03 | H27: 3828976 | J27: 95724 | P27: 3733252 | Q27: غير محصل
B28: وزارة الصناعة | C28: إعادة تأهيل معهد التدريب المهني بحمص | D28: 1 | E28: 2014-11-09 | P28: 0
B29: وزارة الصناعة | C29: إعادة تأهيل معهد التدريب المهني بحمص | D29: 1 | E29: 2014-11-09 | P29: 0
B30: وزارة الصناعة | C30: إعادة تأهيل معهد التدريب المهني بحمص | D30: 1 | E30: 2014-11-09 | P30: 0
B31: وزارة الصناعة | C31: إعادة تأهيل معهد التدريب المهني بحمص | D31: 1 | E31: 2014-11-09 | P31: 0
B32: وزارة الصناعة | C32: إعادة تأهيل معهد التدريب المهني بحمص | D32: 1 | E32: 2014-11-09 | P32: 0
B33: وزارة الصناعة | C33: إعادة تأهيل معهد التدريب المهني بحمص | D33: 1 | E33: 2014-11-09 | P33: 0
B34: وزارة الصناعة | C34: إعادة تأهيل معهد التدريب المهني بحمص | D34: 1 | E34: 2014-11-09 | P34: 0
B35: وزارة الصناعة | C35: إعادة تأهيل معهد التدريب المهني بحمص | D35: 1 | E35: 2014-11-09 | P35: 0
B36: وزارة الصناعة | C36: إعادة تأهيل معهد التدريب المهني بحمص | D36: 1 | E36: 2014-11-09 | P36: 0
B37: وزارة الصناعة | C37: إعادة تأهيل معهد التدريب المهني بحمص | D37: 1 | E37: 2014-11-09 | P37: 0
B38: وزارة الصناعة | C38: إعادة تأهيل معهد التدريب المهني بحمص | D38: 1 | E38: 2014-11-09 | P38: 0
B39: وزارة الصناعة | C39: إعادة تأهيل معهد التدريب المهني بحمص | D39: 1 | E39: 2014-11-09 | P39: 0
B40: وزارة الصناعة | C40: إعادة تأهيل معهد التدريب المهني بحمص | D40: 1 | E40: 2014-11-09 | P40: 0
B41: وزارة الصناعة | C41: إعادة تأهيل معهد التدريب المهني بحمص | D41: 1 | E41: 2014-11-09 | P41: 0
B42: وزارة الصناعة | C42: إعادة تأهيل معهد التدريب المهني بحمص | D42: 1 | E42: 2014-11-09 | P42: 0
B43: وزارة الصناعة | C43: إعادة تأهيل معهد التدريب المهني بحمص | D43: 1 | E43: 2014-11-09 | P43: 0
B44: وزارة الصناعة | C44: إعادة تأهيل معهد التدريب المهني بحمص | D44: 1 | E44: 2014-11-09 | P44: 0
B45: وزارة الصناعة | C45: إعادة تأهيل معهد التدريب المهني بحمص | D45: 1 | E45: 2014-11-09 | P45: 0
B46: وزارة الصناعة | C46: إعادة تأهيل معهد التدريب المهني بحمص | D46: 1 | E46: 2014-11-09 | P46: 0
B47: وزارة الصناعة | C47: إعادة تأهيل معهد التدريب المهني بحمص | D47: 1 | E47: 2014-11-09 | P47: 0
B48: وزارة الصناعة | C48: إعادة تأهيل معهد التدريب المهني بحمص | D48: 1 | E48: 2014-11-09 | P48: 0
B49: وزارة الصناعة | C49: إعادة تأهيل معهد التدريب المهني بحمص | D49: 1 | E49: 2014-11-09 | P49: 0
B50: وزارة الصناعة | C50: إعادة تأهيل معهد التدريب المهني بحمص | D50: 1 | E50: 2014-11-09 | P50: 0
B51: وزارة الصناعة | C51: إعادة تأهيل معهد التدريب المهني بحمص | D51: 1 | E51: 2014-11-09 | P51: 0
B52: وزارة الصناعة | C52: إعادة تأهيل معهد التدريب المهني بحمص | D52: 1 | E52: 2014-11-09 | P52: 0
B53: وزارة الصناعة | C53: إعادة تأهيل معهد التدريب المهني بحمص | D53: 1 | E53: 2014-11-09 | P53: 0
B54: وزارة الصناعة | C54: إعادة تأهيل معهد التدريب المهني بحمص | D54: 1 | E54: 2014-11-09 | P54: 0
B55: وزارة الصناعة | C55: إعادة تأهيل معهد التدريب المهني بحمص | D55: 1 | E55: 2014-11-09 | P55: 0
B56: وزارة الصناعة | C56: إعادة تأهيل معهد التدريب المهني بحمص | D56: 1 | E56: 2014-11-09 | P56: 0
B57: وزارة الصناعة | C57: إعادة تأهيل معهد التدريب المهني بحمص | D57: 1 | E57: 2014-11-09 | P57: 0
B58: وزارة الصناعة | C58: إعادة تأهيل معهد التدريب المهني بحمص | D58: 1 | E58: 2014-11-09 | P58: 0
B59: وزارة الصناعة | C59: إعادة تأهيل معهد التدريب المهني بحمص | D59: 1 | E59: 2014-11-09 | P59: 0
B60: وزارة الصناعة | C60: إعادة تأهيل معهد التدريب المهني بحمص | D60: 1 | E60: 2014-11-09 | P60: 0
B61: وزارة الصناعة | C61: إعادة تأهيل معهد التدريب المهني بحمص | D61: 1 | E61: 2014-11-09 | P61: 0
B62: وزارة الصناعة | C62: إعادة تأهيل معهد التدريب المهني بحمص | D62: 1 | E62: 2014-11-09 | P62: 0
B63: وزارة الصناعة | C63: إعادة تأهيل معهد التدريب المهني بحمص | D63: 1 | E63: 2014-11-09 | P63: 0
B64: وزارة الصناعة | C64: إعادة تأهيل معهد التدريب المهني بحمص | D64: 1 | E64: 2014-11-09 | P64: 0
B65: وزارة الصناعة | C65: إعادة تأهيل معهد التدريب المهني بحمص | D65: 1 | E65: 2014-11-09 | P65: 0
B66: وزارة الصناعة | C66: إعادة تأهيل معهد التدريب المهني بحمص | D66: 1 | E66: 2014-11-09 | P66: 0
B67: وزارة الصناعة | C67: إعادة تأهيل معهد التدريب المهني بحمص | D67: 1 | E67: 2014-11-09 | P67: 0
B68: وزارة الصناعة | C68: إعادة تأهيل معهد التدريب المهني بحمص | D68: 1 | E68: 2014-11-09 | P68: 0
B69: وزارة الصناعة | C69: إعادة تأهيل معهد التدريب المهني بحمص | D69: 1 | E69: 2014-11-09 | P69: 0
B70: وزارة الصناعة | C70: إعادة تأهيل معهد التدريب المهني بحمص | D70: 1 | E70: 2014-11-09 | P70: 0
B71: وزارة الصناعة | C71: إعادة تأهيل معهد التدريب المهني بحمص | D71: 1 | E71: 2014-11-09 | P71: 0
B72: وزارة الصناعة | C72: إعادة تأهيل معهد التدريب المهني بحمص | D72: 1 | E72: 2014-11-09 | P72: 0
B73: وزارة الصناعة | C73: إعادة تأهيل معهد التدريب المهني بحمص | D73: 1 | E73: 2014-11-09 | P73: =H73-SUM(I73:O73) -> 0
B74: وزارة الصناعة | C74: إعادة تأهيل معهد التدريب المهني بحمص | D74: 1 | E74: 2014-11-09 | P74: 0
B75: وزارة الصناعة | C75: إعادة تأهيل معهد التدريب المهني بحمص | D75: 1 | E75: 2014-11-09 | P75: 0
B76: وزارة الصناعة | C76: إعادة تأهيل معهد التدريب المهني بحمص | D76: 1 | E76: 2014-11-09 | P76: 0
B77: وزارة الصناعة | C77: إعادة تأهيل معهد التدريب المهني بحمص | D77: 1 | E77: 2014-11-09 | P77: 0
B78: وزارة الصناعة | C78: إعادة تأهيل معهد التدريب المهني بحمص | D78: 1 | E78: 2014-11-09 | P78: 0
B79: وزارة الصناعة | C79: إعادة تأهيل معهد التدريب المهني بحمص | D79: 1 | E79: 2014-11-09 | P79: 0
B80: وزارة الصناعة | C80: إعادة تأهيل معهد التدريب المهني بحمص | D80: 1 | E80: 2014-11-09 | P80: 0
B81: وزارة الصناعة | C81: إعادة تأهيل معهد التدريب المهني بحمص | D81: 1 | E81: 2014-11-09 | P81: 0
B82: وزارة الصناعة | C82: إعادة تأهيل معهد التدريب المهني بحمص | D82: 1 | E82: 2014-11-09 | P82: 0
B83: وزارة الصناعة | C83: إعادة تأهيل معهد التدريب المهني بحمص | D83: 1 | E83: 2014-11-09 | P83: 0
B84: وزارة الصناعة | C84: إعادة تأهيل معهد التدريب المهني بحمص | D84: 1 | E84: 2014-11-09 | P84: 0
B85: وزارة الصناعة | C85: إعادة تأهيل معهد التدريب المهني بحمص | D85: 1 | E85: 2014-11-09 | P85: 0
B86: وزارة الصناعة | C86: إعادة تأهيل معهد التدريب المهني بحمص | D86: 1 | E86: 2014-11-09 | P86: 0
B87: وزارة الصناعة | C87: إعادة تأهيل معهد التدريب المهني بحمص | D87: 1 | E87: 2014-11-09 | P87: 0
B88: وزارة الصناعة | C88: إعادة تأهيل معهد التدريب المهني بحمص | D88: 1 | E88: 2014-11-09 | P88: 0
B89: وزارة الصناعة | C89: إعادة تأهيل معهد التدريب المهني بحمص | D89: 1 | E89: 2014-11-09 | P89: 0
B90: وزارة الصناعة | C90: إعادة تأهيل معهد التدريب المهني بحمص | D90: 1 | E90: 2014-11-09 | P90: 0
B91: وزارة الصناعة | C91: إعادة تأهيل معهد التدريب المهني بحمص | D91: 1 | E91: 2014-11-09 | P91: 0
B92: وزارة الصناعة | C92: إعادة تأهيل معهد التدريب المهني بحمص | D92: 1 | E92: 2014-11-09 | P92: 0
B93: وزارة الصناعة | C93: إعادة تأهيل معهد التدريب المهني بحمص | D93: 1 | E93: 2014-11-09 | P93: 0
B94: وزارة الصناعة | C94: إعادة تأهيل معهد التدريب المهني بحمص | D94: 1 | E94: 2014-11-09 | P94: 0
B95: وزارة الصناعة | C95: إعادة تأهيل معهد التدريب المهني بحمص | D95: 1 | E95: 2014-11-09 | P95: 0
B96: وزارة الصناعة | C96: إعادة تأهيل معهد التدريب المهني بحمص | D96: 1 | E96: 2014-11-09 | P96: 0
B97: وزارة الصناعة | C97: إعادة تأهيل معهد التدريب المهني بحمص | D97: 1 | E97: 2014-11-09 | P97: 0
B98: وزارة الصناعة | C98: إعادة تأهيل معهد التدريب المهني بحمص | D98: 1 | E98: 2014-11-09 | P98: 0
B99: وزارة الصناعة | C99: إعادة تأهيل معهد التدريب المهني بحمص | D99: 1 | E99: 2014-11-09 | P99: 0
B100: وزارة الصناعة | C100: إعادة تأهيل معهد التدريب المهني بحمص | D100: 1 | E100: 2014-11-09 | P100: 0
H101: =SUBTOTAL(109,H8:H100) -> 49693071 | I101: =SUBTOTAL(109,I8:I100) -> 0 | J101: 1242369 | K101: 111950 | O101: 0 | P101: 47338752 | Q101: 0 | R101: 0 | S101: 6825 | T101: 735339 | U101: 0
B103: إجمالي الكشوف المحصلة | D103: =SUMIF(Q8:Q100,"محصل",H8:H100) -> 45864095 | F103: إجمالي الكشوف المحصلة | H103: =SUMIF(Q8:Q100,"محصل",H8:H100) -> 45864095 | J103: صافي الكشوف المحصلة | P103: =SUMIF(Q8:Q100,"محصل",P8:P100) -> 43605500 | R103: إجمالي السلفة المحسومة | U103: =I101 -> 0
B104: إجمالي الكشوف غير المحصلة | D104: =SUMIF(Q8:Q100,"غير محصل",H8:H100) -> 3828976 | F104: إجمالي الكشوف غير المحصلة | H104: =SUMIF(Q8:Q100,"غير محصل",H8:H100) -> 3828976 | J104: صافي الكشوف غير المحصلة | P104: =SUMIF(Q8:Q100,"غير محصل",P8:P100) -> 3733252 | R104: رصيد السلفة | U104: =Q3-I101 -> 0
B105: إجمالي التوقيفات لتاريخه | D105: =J101 -> 1242369 | F105: إجمالي التوقيفات لتاريخه | H105: =J101 -> 1242369 | J105: مجموع الحسميات الأخرى والطوابع | P105: =O101+K101 -> 111950 | R105: التوقيفات غير المحصلة | U105: =J101-R101 -> 1242369

Sheet 12
F2: الجهة صاحبة العمل | G2: المؤسسة العامة للإسكان | K2: Home Page | P2: القيمة التقديرية للعقد | Q2: 19733500 | W2: محصل
F3: اسم المشروع | G3: إصلاح الإضرار الحاصلة في العمارات ( 219 - 234 - 277 - 418 - 651 ) | P3: قيمة السلفة المقبوضة | Q3: 0 | W3: غير محصل
F4: رقم العقد | G4: 9832 / ك | P4: تاريخ المباشرة | Q4: 2017-07-31 | W4: قيد التحصيل
F5: تاريخ العقد | G5: 2017-07-26 | P5: مدة العقد | Q5: 90 يوما | W5: قديم
W6: تبرير مدة
B7: الجهة صاحبة المشروع | C7: اسم المشروع | D7: رقم العقد | E7: تاريخ العقد | F7: رقم الكشف | G7: تاريخ الكشف | H7: القيمة الاجمالية | I7: قيمة السلفة | J7: التوقيفات | K7: الطوابع | L7: غرامات تأخير ( أمانات ) | M7: غرامات تأخير ( حسميات ) | N7: حسميات سوء تنفيذ | O7: الحسميات الأخرى | P7: المبلغ الصافي | Q7: محصل أو غير محصل | R7: التوقيفات المحصلة للمشاريع المنتهية | S7: رقم أمر القبض | T7: تاريخ الإشعار | U7: ملاحظات | W7: بحاجة إلى اعتماد
B8: الهيئة العامة لمشافي القلمون | C8: تأهيل وإصلاح مشفى دير عطية - مرحلة ثانية | D8: 22 | E8: 2015-06-01 | F8: 1 | G8: 2017-09-30 | H8: 4144530 | J8: 103613 | P8: =H8-SUM(I8:O8) -> 4040917 | Q8: غير محصل
B9: الهيئة العامة لمشافي القلمون | C9: تأهيل وإصلاح مشفى دير عطية - مرحلة ثانية | D9: 22 | E9: 2015-06-01 | F9: 2 | G9: 2017-10-31 | H9: 4415210 | J9: 110380 | K9: 1920 | P9: =H9-SUM(I9:O9) -> 4302910 | Q9: محصل | S9: 249 | T9: 2018-04-24
B10: الهيئة العامة لمشافي القلمون | C10: تأهيل وإصلاح مشفى دير عطية - مرحلة ثانية | D10: 22 | E10: 2015-06-01 | F10: 3 | G10: 2017-11-30 | H10: 3009470 | J10: 75237 | K10: 1304 | L10: =592000+500000 -> 1092000 | P10: 1840929 | Q10: محصل | S10: 249 | T10: 2018-04-24
B11: الهيئة العامة لمشافي القلمون | C11: تأهيل وإصلاح مشفى دير عطية - مرحلة ثانية | D11: 22 | E11: 2015-06-01 | F11: 4 | G11: 2017-12-31 | H11: 2595240 | J11: 64881 | L11: =500000+651210 -> 1151210 | P11: 1379149 | Q11: محصل | S11: 415 | T11: 2018-08-06
B12: الهيئة العامة لمشافي القلمون | C12: تأهيل وإصلاح مشفى دير عطية - مرحلة ثانية | D12: 22 | E12: 2015-06-01 | F12: 5 | G12: 2018-01-31 | H12: 4622343 | J12: 115559 | P12: 4506784 | Q12: غير محصل
B13: الهيئة العامة لمشافي القلمون | C13: تأهيل وإصلاح مشفى دير عطية - مرحلة ثانية | D13: 22 | E13: 2015-06-01 | F13: 6 | G13: 2018-02-28 | H13: 538397 | J13: 13460 | L13: 276270 | P13: 248667 | Q13: محصل | S13: 415 | T13: 2018-08-06
B14: الهيئة العامة لمشافي القلمون | C14: تأهيل وإصلاح مشفى دير عطية - مرحلة ثانية | D14: 22 | E14: 2015-06-01 | F14: 7 نهائي | G14: 2018-03-17 | H14: 4100382 | J14: 102510 | P14: 3997872 | Q14: غير محصل | U14: براءات ذمة تأمينات و هندسي
B15: الهيئة العامة لمشافي القلمون | C15: تأهيل وإصلاح مشفى دير عطية - مرحلة ثانية | D15: 22 | E15: 2015-06-01 | F15: رد أمانات ك 3 | L15: -592000 | P15: =H15-SUM(I15:O15) -> 592000 | Q15: محصل | S15: 73 | T15: 2019-03-20 | U15: كتاب 146 / 2019
B16: الهيئة العامة لمشافي القلمون | C16: تأهيل وإصلاح مشفى دير عطية - مرحلة ثانية | D16: 22 | E16: 2015-06-01 | F16: رد أمانات ك 4 | L16: -651210 | P16: 651210 | Q16: محصل | S16: 73 | T16: 2019-03-20 | U16: كتاب براءة ذمة جيولوجيا + تأمينات
B17: الهيئة العامة لمشافي القلمون | C17: تأهيل وإصلاح مشفى دير عطية - مرحلة ثانية | D17: 22 | E17: 2015-06-01 | F17: رد أمانات ك 6 | L17: -276270 | P17: 276270 | Q17: محصل | S17: 73 | T17: 2019-03-20 | U17: رقم 908 / 2019
B18: الهيئة العامة لمشافي القلمون | C18: تأهيل وإصلاح مشفى دير عطية - مرحلة ثانية | D18: 22 | E18: 2015-06-01 | P18: 0 | U18: كتاب براءة ذمة جيولوجيا
B19: الهيئة العامة لمشافي القلمون | C19: تأهيل وإصلاح مشفى دير عطية - مرحلة ثانية | D19: 22 | E19: 2015-06-01 | P19: 0 | U19: رقم 1087 / 2019
B20: الهيئة العامة لمشافي القلمون | C20: تأهيل وإصلاح مشفى دير عطية - مرحلة ثانية | D20: 22 | E20: 2015-06-01 | P20: 0
B21: الهيئة العامة لمشافي القلمون | C21: تأهيل وإصلاح مشفى دير عطية - مرحلة ثانية | D21: 22 | E21: 2015-06-01 | P21: 0
B22: الهيئة العامة لمشافي القلمون | C22: تأهيل وإصلاح مشفى دير عطية - مرحلة ثانية | D22: 22 | E22: 2015-06-01 | P22: 0
B23: الهيئة العامة لمشافي القلمون | C23: تأهيل وإصلاح مشفى دير عطية - مرحلة ثانية | D23: 22 | E23: 2015-06-01 | P23: 0
B24: الهيئة العامة لمشافي القلمون | C24: تأهيل وإصلاح مشفى دير عطية - مرحلة ثانية | D24: 22 | E24: 2015-06-01 | P24: 0
B25: الهيئة العامة لمشافي القلمون | C25: تأهيل وإصلاح مشفى دير عطية - مرحلة ثانية | D25: 22 | E25: 2015-06-01 | P25: 0
B26: الهيئة العامة لمشافي القلمون | C26: تأهيل وإصلاح مشفى دير عطية - مرحلة ثانية | D26: 22 | E26: 2015-06-01 | P26: 0
B27: الهيئة العامة لمشافي القلمون | C27: تأهيل وإصلاح مشفى دير عطية - مرحلة ثانية | D27: 22 | E27: 2015-06-01 | P27: 0
B28: الهيئة العامة لمشافي القلمون | C28: تأهيل وإصلاح مشفى دير عطية - مرحلة ثانية | D28: 22 | E28: 2015-06-01 | P28: 0
B29: الهيئة العامة لمشافي القلمون | C29: تأهيل وإصلاح مشفى دير عطية - مرحلة ثانية | D29: 22 | E29: 2015-06-01 | P29: 0
B30: الهيئة العامة لمشافي القلمون | C30: تأهيل وإصلاح مشفى دير عطية - مرحلة ثانية | D30: 22 | E30: 2015-06-01 | P30: 0
B31: الهيئة العامة لمشافي القلمون | C31: تأهيل وإصلاح مشفى دير عطية - مرحلة ثانية | D31: 22 | E31: 2015-06-01 | P31: 0
B32: الهيئة العامة لمشافي القلمون | C32: تأهيل وإصلاح مشفى دير عطية - مرحلة ثانية | D32: 22 | E32: 2015-06-01 | P32: 0
B33: الهيئة العامة لمشافي القلمون | C33: تأهيل وإصلاح مشفى دير عطية - مرحلة ثانية | D33: 22 | E33: 2015-06-01 | P33: 0
B34: الهيئة العامة لمشافي القلمون | C34: تأهيل وإصلاح مشفى دير عطية - مرحلة ثانية | D34: 22 | E34: 2015-06-01 | P34: 0
B35: الهيئة العامة لمشافي القلمون | C35: تأهيل وإصلاح مشفى دير عطية - مرحلة ثانية | D35: 22 | E35: 2015-06-01 | P35: 0
B36: الهيئة العامة لمشافي القلمون | C36: تأهيل وإصلاح مشفى دير عطية - مرحلة ثانية | D36: 22 | E36: 2015-06-01 | P36: 0
B37: الهيئة العامة لمشافي القلمون | C37: تأهيل وإصلاح مشفى دير عطية - مرحلة ثانية | D37: 22 | E37: 2015-06-01 | P37: 0
B38: الهيئة العامة لمشافي القلمون | C38: تأهيل وإصلاح مشفى دير عطية - مرحلة ثانية | D38: 22 | E38: 2015-06-01 | P38: 0
B39: الهيئة العامة لمشافي القلمون | C39: تأهيل وإصلاح مشفى دير عطية - مرحلة ثانية | D39: 22 | E39: 2015-06-01 | P39: 0
B40: الهيئة العامة لمشافي القلمون | C40: تأهيل وإصلاح مشفى دير عطية - مرحلة ثانية | D40: 22 | E40: 2015-06-01 | P40: 0
B41: الهيئة العامة لمشافي القلمون | C41: تأهيل وإصلاح مشفى دير عطية - مرحلة ثانية | D41: 22 | E41: 2015-06-01 | P41: 0
B42: الهيئة العامة لمشافي القلمون | C42: تأهيل وإصلاح مشفى دير عطية - مرحلة ثانية | D42: 22 | E42: 2015-06-01 | P42: 0
B43: الهيئة العامة لمشافي القلمون | C43: تأهيل وإصلاح مشفى دير عطية - مرحلة ثانية | D43: 22 | E43: 2015-06-01 | P43: 0
B44: الهيئة العامة لمشافي القلمون | C44: تأهيل وإصلاح مشفى دير عطية - مرحلة ثانية | D44: 22 | E44: 2015-06-01 | P44: 0
B45: الهيئة العامة لمشافي القلمون | C45: تأهيل وإصلاح مشفى دير عطية - مرحلة ثانية | D45: 22 | E45: 2015-06-01 | P45: 0
B46: الهيئة العامة لمشافي القلمون | C46: تأهيل وإصلاح مشفى دير عطية - مرحلة ثانية | D46: 22 | E46: 2015-06-01 | P46: 0
B47: الهيئة العامة لمشافي القلمون | C47: تأهيل وإصلاح مشفى دير عطية - مرحلة ثانية | D47: 22 | E47: 2015-06-01 | P47: 0
B48: الهيئة العامة لمشافي القلمون | C48: تأهيل وإصلاح مشفى دير عطية - مرحلة ثانية | D48: 22 | E48: 2015-06-01 | P48: 0
B49: الهيئة العامة لمشافي القلمون | C49: تأهيل وإصلاح مشفى دير عطية - مرحلة ثانية | D49: 22 | E49: 2015-06-01 | P49: 0
B50: الهيئة العامة لمشافي القلمون | C50: تأهيل وإصلاح مشفى دير عطية - مرحلة ثانية | D50: 22 | E50: 2015-06-01 | P50: 0
B51: الهيئة العامة لمشافي القلمون | C51: تأهيل وإصلاح مشفى دير عطية - مرحلة ثانية | D51: 22 | E51: 2015-06-01 | P51: 0
B52: الهيئة العامة لمشافي القلمون | C52: تأهيل وإصلاح مشفى دير عطية - مرحلة ثانية | D52: 22 | E52: 2015-06-01 | P52: 0
B53: الهيئة العامة لمشافي القلمون | C53: تأهيل وإصلاح مشفى دير عطية - مرحلة ثانية | D53: 22 | E53: 2015-06-01 | P53: 0
B54: الهيئة العامة لمشافي القلمون | C54: تأهيل وإصلاح مشفى دير عطية - مرحلة ثانية | D54: 22 | E54: 2015-06-01 | P54: 0
B55: الهيئة العامة لمشافي القلمون | C55: تأهيل وإصلاح مشفى دير عطية - مرحلة ثانية | D55: 22 | E55: 2015-06-01 | P55: 0
B56: الهيئة العامة لمشافي القلمون | C56: تأهيل وإصلاح مشفى دير عطية - مرحلة ثانية | D56: 22 | E56: 2015-06-01 | P56: 0
B57: الهيئة العامة لمشافي القلمون | C57: تأهيل وإصلاح مشفى دير عطية - مرحلة ثانية | D57: 22 | E57: 2015-06-01 | P57: 0
B58: الهيئة العامة لمشافي القلمون | C58: تأهيل وإصلاح مشفى دير عطية - مرحلة ثانية | D58: 22 | E58: 2015-06-01 | P58: 0
B59: الهيئة العامة لمشافي القلمون | C59: تأهيل وإصلاح مشفى دير عطية - مرحلة ثانية | D59: 22 | E59: 2015-06-01 | P59: 0
B60: الهيئة العامة لمشافي القلمون | C60: تأهيل وإصلاح مشفى دير عطية - مرحلة ثانية | D60: 22 | E60: 2015-06-01 | P60: 0
B61: الهيئة العامة لمشافي القلمون | C61: تأهيل وإصلاح مشفى دير عطية - مرحلة ثانية | D61: 22 | E61: 2015-06-01 | P61: 0
B62: الهيئة العامة لمشافي القلمون | C62: تأهيل وإصلاح مشفى دير عطية - مرحلة ثانية | D62: 22 | E62: 2015-06-01 | P62: 0
B63: الهيئة العامة لمشافي القلمون | C63: تأهيل وإصلاح مشفى دير عطية - مرحلة ثانية | D63: 22 | E63: 2015-06-01 | P63: 0
B64: الهيئة العامة لمشافي القلمون | C64: تأهيل وإصلاح مشفى دير عطية - مرحلة ثانية | D64: 22 | E64: 2015-06-01 | P64: 0
B65: الهيئة العامة لمشافي القلمون | C65: تأهيل وإصلاح مشفى دير عطية - مرحلة ثانية | D65: 22 | E65: 2015-06-01 | P65: 0
B66: الهيئة العامة لمشافي القلمون | C66: تأهيل وإصلاح مشفى دير عطية - مرحلة ثانية | D66: 22 | E66: 2015-06-01 | P66: 0
B67: الهيئة العامة لمشافي القلمون | C67: تأهيل وإصلاح مشفى دير عطية - مرحلة ثانية | D67: 22 | E67: 2015-06-01 | P67: 0
B68: الهيئة العامة لمشافي القلمون | C68: تأهيل وإصلاح مشفى دير عطية - مرحلة ثانية | D68: 22 | E68: 2015-06-01 | P68: 0
B69: الهيئة العامة لمشافي القلمون | C69: تأهيل وإصلاح مشفى دير عطية - مرحلة ثانية | D69: 22 | E69: 2015-06-01 | P69: 0
B70: الهيئة العامة لمشافي القلمون | C70: تأهيل وإصلاح مشفى دير عطية - مرحلة ثانية | D70: 22 | E70: 2015-06-01 | P70: 0
B71: الهيئة العامة لمشافي القلمون | C71: تأهيل وإصلاح مشفى دير عطية - مرحلة ثانية | D71: 22 | E71: 2015-06-01 | P71: 0
B72: الهيئة العامة لمشافي القلمون | C72: تأهيل وإصلاح مشفى دير عطية - مرحلة ثانية | D72: 22 | E72: 2015-06-01 | P72: 0
B73: الهيئة العامة لمشافي القلمون | C73: تأهيل وإصلاح مشفى دير عطية - مرحلة ثانية | D73: 22 | E73: 2015-06-01 | P73: =H73-SUM(I73:O73) -> 0
B74: الهيئة العامة لمشافي القلمون | C74: تأهيل وإصلاح مشفى دير عطية - مرحلة ثانية | D74: 22 | E74: 2015-06-01 | P74: 0
B75: الهيئة العامة لمشافي القلمون | C75: تأهيل وإصلاح مشفى دير عطية - مرحلة ثانية | D75: 22 | E75: 2015-06-01 | P75: 0
B76: الهيئة العامة لمشافي القلمون | C76: تأهيل وإصلاح مشفى دير عطية - مرحلة ثانية | D76: 22 | E76: 2015-06-01 | P76: 0
B77: الهيئة العامة لمشافي القلمون | C77: تأهيل وإصلاح مشفى دير عطية - مرحلة ثانية | D77: 22 | E77: 2015-06-01 | P77: 0
B78: الهيئة العامة لمشافي القلمون | C78: تأهيل وإصلاح مشفى دير عطية - مرحلة ثانية | D78: 22 | E78: 2015-06-01 | P78: 0
B79: الهيئة العامة لمشافي القلمون | C79: تأهيل وإصلاح مشفى دير عطية - مرحلة ثانية | D79: 22 | E79: 2015-06-01 | P79: 0
B80: الهيئة العامة لمشافي القلمون | C80: تأهيل وإصلاح مشفى دير عطية - مرحلة ثانية | D80: 22 | E80: 2015-06-01 | P80: 0
B81: الهيئة العامة لمشافي القلمون | C81: تأهيل وإصلاح مشفى دير عطية - مرحلة ثانية | D81: 22 | E81: 2015-06-01 | P81: 0
B82: الهيئة العامة لمشافي القلمون | C82: تأهيل وإصلاح مشفى دير عطية - مرحلة ثانية | D82: 22 | E82: 2015-06-01 | P82: 0
B83: الهيئة العامة لمشافي القلمون | C83: تأهيل وإصلاح مشفى دير عطية - مرحلة ثانية | D83: 22 | E83: 2015-06-01 | P83: 0
B84: الهيئة العامة لمشافي القلمون | C84: تأهيل وإصلاح مشفى دير عطية - مرحلة ثانية | D84: 22 | E84: 2015-06-01 | P84: 0
B85: الهيئة العامة لمشافي القلمون | C85: تأهيل وإصلاح مشفى دير عطية - مرحلة ثانية | D85: 22 | E85: 2015-06-01 | P85: 0
B86: الهيئة العامة لمشافي القلمون | C86: تأهيل وإصلاح مشفى دير عطية - مرحلة ثانية | D86: 22 | E86: 2015-06-01 | P86: 0
B87: الهيئة العامة لمشافي القلمون | C87: تأهيل وإصلاح مشفى دير عطية - مرحلة ثانية | D87: 22 | E87: 2015-06-01 | P87: 0
B88: الهيئة العامة لمشافي القلمون | C88: تأهيل وإصلاح مشفى دير عطية - مرحلة ثانية | D88: 22 | E88: 2015-06-01 | P88: 0
B89: الهيئة العامة لمشافي القلمون | C89: تأهيل وإصلاح مشفى دير عطية - مرحلة ثانية | D89: 22 | E89: 2015-06-01 | P89: 0
B90: الهيئة العامة لمشافي القلمون | C90: تأهيل وإصلاح مشفى دير عطية - مرحلة ثانية | D90: 22 | E90: 2015-06-01 | P90: 0
B91: الهيئة العامة لمشافي القلمون | C91: تأهيل وإصلاح مشفى دير عطية - مرحلة ثانية | D91: 22 | E91: 2015-06-01 | P91: 0
B92: الهيئة العامة لمشافي القلمون | C92: تأهيل وإصلاح مشفى دير عطية - مرحلة ثانية | D92: 22 | E92: 2015-06-01 | P92: 0
B93: الهيئة العامة لمشافي القلمون | C93: تأهيل وإصلاح مشفى دير عطية - مرحلة ثانية | D93: 22 | E93: 2015-06-01 | P93: 0
B94: الهيئة العامة لمشافي القلمون | C94: تأهيل وإصلاح مشفى دير عطية - مرحلة ثانية | D94: 22 | E94: 2015-06-01 | P94: 0
B95: الهيئة العامة لمشافي القلمون | C95: تأهيل وإصلاح مشفى دير عطية - مرحلة ثانية | D95: 22 | E95: 2015-06-01 | P95: 0
B96: الهيئة العامة لمشافي القلمون | C96: تأهيل وإصلاح مشفى دير عطية - مرحلة ثانية | D96: 22 | E96: 2015-06-01 | P96: 0
B97: الهيئة العامة لمشافي القلمون | C97: تأهيل وإصلاح مشفى دير عطية - مرحلة ثانية | D97: 22 | E97: 2015-06-01 | P97: 0
B98: الهيئة العامة لمشافي القلمون | C98: تأهيل وإصلاح مشفى دير عطية - مرحلة ثانية | D98: 22 | E98: 2015-06-01 | P98: 0
B99: الهيئة العامة لمشافي القلمون | C99: تأهيل وإصلاح مشفى دير عطية - مرحلة ثانية | D99: 22 | E99: 2015-06-01 | P99: 0
B100: الهيئة العامة لمشافي القلمون | C100: تأهيل وإصلاح مشفى دير عطية - مرحلة ثانية | D100: 22 | E100: 2015-06-01 | P100: 0
H101: =SUBTOTAL(109,H8:H100) -> 23425572 | I101: =SUBTOTAL(109,I8:I100) -> 0 | J101: 585640 | K101: 3224 | O101: 0 | P101: 21836708 | Q101: 0 | R101: 0 | S101: 1547 | T101: 303696 | U101: 0
B103: إجمالي الكشوف المحصلة | D103: =SUMIF(Q8:Q100,"محصل",H8:H100) -> 10558317 | F103: إجمالي الكشوف المحصلة | H103: =SUMIF(Q8:Q100,"محصل",H8:H100) -> 10558317 | J103: صافي الكشوف المحصلة | P103: =SUMIF(Q8:Q100,"محصل",P8:P100) -> 9291135 | R103: إجمالي السلفة المحسومة | U103: =I101 -> 0
B104: إجمالي الكشوف غير المحصلة | D104: =SUMIF(Q8:Q100,"غير محصل",H8:H100) -> 12867255 | F104: إجمالي الكشوف غير المحصلة | H104: =SUMIF(Q8:Q100,"غير محصل",H8:H100) -> 12867255 | J104: صافي الكشوف غير المحصلة | P104: =SUMIF(Q8:Q100,"غير محصل",P8:P100) -> 12545573 | R104: رصيد السلفة | U104: =Q3-I101 -> 0
B105: إجمالي التوقيفات لتاريخه | D105: =J101 -> 585640 | F105: إجمالي التوقيفات لتاريخه | H105: =J101 -> 585640 | J105: مجموع الحسميات الأخرى والطوابع | P105: =O101+K101 -> 3224 | R105: التوقيفات غير المحصلة | U105: =J101-R101 -> 585640

Sheet 13
F2: الجهة صاحبة العمل | G2: مديرية الخدمات الفنية - بحمص | K2: Home Page | P2: القيمة التقديرية للعقد | Q2: 12999000 | W2: محصل
F3: اسم المشروع | G3: مشروع الصرف الصحي في تلحوش - نعرة | P3: قيمة السلفة المقبوضة | Q3: 0 | W3: غير محصل
F4: رقم العقد | G4: ملحق العقد / 1 / للعقد / 7 / 2016 | P4: تاريخ المباشرة | Q4: 2017-09-12 | W4: قيد التحصيل
F5: تاريخ العقد | G5: 2017-09-12 | P5: مدة العقد | Q5: 40 يوما | W5: قديم
W6: تبرير مدة
B7: الجهة صاحبة المشروع | C7: اسم المشروع | D7: رقم العقد | E7: تاريخ العقد | F7: رقم الكشف | G7: تاريخ الكشف | H7: القيمة الاجمالية | I7: قيمة السلفة | J7: التوقيفات | K7: الطوابع | L7: غرامات تأخير ( أمانات ) | M7: غرامات تأخير ( حسميات ) | N7: حسميات سوء تنفيذ | O7: الحسميات الأخرى | P7: المبلغ الصافي | Q7: محصل أو غير محصل | R7: التوقيفات المحصلة للمشاريع المنتهية | S7: رقم أمر القبض | T7: تاريخ الإشعار | U7: ملاحظات | W7: بحاجة إلى اعتماد
B8: الهيئة العامة لمشافي القلمون | C8: تأهيل وإصلاح مشفى دير عطية | D8: 14 | E8: 2014-07-14 | F8: 1 | G8: 2017-10-12 | H8: 12627600 | J8: 315690 | K8: 27935 | P8: =H8-SUM(I8:O8) -> 12283975 | Q8: محصل | S8: 555 | T8: 2017-11-06
B9: الهيئة العامة لمشافي القلمون | C9: تأهيل وإصلاح مشفى دير عطية | D9: 14 | E9: 2014-07-14 | F9: 2 نهائي | G9: 2017-11-05 | H9: 371400 | J9: 9285 | K9: =362115-361165 -> 950 | P9: =H9-SUM(I9:O9) -> 361165 | Q9: محصل | S9: 673 | T9: 2018-12-31
B10: الهيئة العامة لمشافي القلمون | C10: تأهيل وإصلاح مشفى دير عطية | D10: 14 | E10: 2014-07-14 | P10: 0
B11: الهيئة العامة لمشافي القلمون | C11: تأهيل وإصلاح مشفى دير عطية | D11: 14 | E11: 2014-07-14 | P11: 0
B12: الهيئة العامة لمشافي القلمون | C12: تأهيل وإصلاح مشفى دير عطية | D12: 14 | E12: 2014-07-14 | P12: 0
B13: الهيئة العامة لمشافي القلمون | C13: تأهيل وإصلاح مشفى دير عطية | D13: 14 | E13: 2014-07-14 | P13: 0
B14: الهيئة العامة لمشافي القلمون | C14: تأهيل وإصلاح مشفى دير عطية | D14: 14 | E14: 2014-07-14 | P14: 0
B15: الهيئة العامة لمشافي القلمون | C15: تأهيل وإصلاح مشفى دير عطية | D15: 14 | E15: 2014-07-14 | P15: 0
B16: الهيئة العامة لمشافي القلمون | C16: تأهيل وإصلاح مشفى دير عطية | D16: 14 | E16: 2014-07-14 | P16: 0
B17: الهيئة العامة لمشافي القلمون | C17: تأهيل وإصلاح مشفى دير عطية | D17: 14 | E17: 2014-07-14 | P17: 0
B18: الهيئة العامة لمشافي القلمون | C18: تأهيل وإصلاح مشفى دير عطية | D18: 14 | E18: 2014-07-14 | P18: 0
B19: الهيئة العامة لمشافي القلمون | C19: تأهيل وإصلاح مشفى دير عطية | D19: 14 | E19: 2014-07-14 | P19: 0
B20: الهيئة العامة لمشافي القلمون | C20: تأهيل وإصلاح مشفى دير عطية | D20: 14 | E20: 2014-07-14 | P20: 0
B21: الهيئة العامة لمشافي القلمون | C21: تأهيل وإصلاح مشفى دير عطية | D21: 14 | E21: 2014-07-14 | P21: 0
B22: الهيئة العامة لمشافي القلمون | C22: تأهيل وإصلاح مشفى دير عطية | D22: 14 | E22: 2014-07-14 | P22: 0
B23: الهيئة العامة لمشافي القلمون | C23: تأهيل وإصلاح مشفى دير عطية | D23: 14 | E23: 2014-07-14 | P23: 0
B24: الهيئة العامة لمشافي القلمون | C24: تأهيل وإصلاح مشفى دير عطية | D24: 14 | E24: 2014-07-14 | P24: 0
B25: الهيئة العامة لمشافي القلمون | C25: تأهيل وإصلاح مشفى دير عطية | D25: 14 | E25: 2014-07-14 | P25: 0
B26: الهيئة العامة لمشافي القلمون | C26: تأهيل وإصلاح مشفى دير عطية | D26: 14 | E26: 2014-07-14 | P26: =H26-SUM(I26:O26) -> 0
B27: الهيئة العامة لمشافي القلمون | C27: تأهيل وإصلاح مشفى دير عطية | D27: 14 | E27: 2014-07-14 | P27: 0
B28: الهيئة العامة لمشافي القلمون | C28: تأهيل وإصلاح مشفى دير عطية | D28: 14 | E28: 2014-07-14 | P28: 0
B29: الهيئة العامة لمشافي القلمون | C29: تأهيل وإصلاح مشفى دير عطية | D29: 14 | E29: 2014-07-14 | P29: 0
B30: الهيئة العامة لمشافي القلمون | C30: تأهيل وإصلاح مشفى دير عطية | D30: 14 | E30: 2014-07-14 | P30: 0
B31: الهيئة العامة لمشافي القلمون | C31: تأهيل وإصلاح مشفى دير عطية | D31: 14 | E31: 2014-07-14 | P31: 0
B32: الهيئة العامة لمشافي القلمون | C32: تأهيل وإصلاح مشفى دير عطية | D32: 14 | E32: 2014-07-14 | P32: 0
B33: الهيئة العامة لمشافي القلمون | C33: تأهيل وإصلاح مشفى دير عطية | D33: 14 | E33: 2014-07-14 | P33: 0
B34: الهيئة العامة لمشافي القلمون | C34: تأهيل وإصلاح مشفى دير عطية | D34: 14 | E34: 2014-07-14 | P34: 0
B35: الهيئة العامة لمشافي القلمون | C35: تأهيل وإصلاح مشفى دير عطية | D35: 14 | E35: 2014-07-14 | P35: 0
B36: الهيئة العامة لمشافي القلمون | C36: تأهيل وإصلاح مشفى دير عطية | D36: 14 | E36: 2014-07-14 | P36: 0
B37: الهيئة العامة لمشافي القلمون | C37: تأهيل وإصلاح مشفى دير عطية | D37: 14 | E37: 2014-07-14 | P37: 0
B38: الهيئة العامة لمشافي القلمون | C38: تأهيل وإصلاح مشفى دير عطية | D38: 14 | E38: 2014-07-14 | P38: 0
B39: الهيئة العامة لمشافي القلمون | C39: تأهيل وإصلاح مشفى دير عطية | D39: 14 | E39: 2014-07-14 | P39: 0
B40: الهيئة العامة لمشافي القلمون | C40: تأهيل وإصلاح مشفى دير عطية | D40: 14 | E40: 2014-07-14 | P40: 0
B41: الهيئة العامة لمشافي القلمون | C41: تأهيل وإصلاح مشفى دير عطية | D41: 14 | E41: 2014-07-14 | P41: 0
B42: الهيئة العامة لمشافي القلمون | C42: تأهيل وإصلاح مشفى دير عطية | D42: 14 | E42: 2014-07-14 | P42: 0
B43: الهيئة العامة لمشافي القلمون | C43: تأهيل وإصلاح مشفى دير عطية | D43: 14 | E43: 2014-07-14 | P43: 0
B44: الهيئة العامة لمشافي القلمون | C44: تأهيل وإصلاح مشفى دير عطية | D44: 14 | E44: 2014-07-14 | P44: 0
B45: الهيئة العامة لمشافي القلمون | C45: تأهيل وإصلاح مشفى دير عطية | D45: 14 | E45: 2014-07-14 | P45: 0
B46: الهيئة العامة لمشافي القلمون | C46: تأهيل وإصلاح مشفى دير عطية | D46: 14 | E46: 2014-07-14 | P46: 0
B47: الهيئة العامة لمشافي القلمون | C47: تأهيل وإصلاح مشفى دير عطية | D47: 14 | E47: 2014-07-14 | P47: 0
B48: الهيئة العامة لمشافي القلمون | C48: تأهيل وإصلاح مشفى دير عطية | D48: 14 | E48: 2014-07-14 | P48: 0
B49: الهيئة العامة لمشافي القلمون | C49: تأهيل وإصلاح مشفى دير عطية | D49: 14 | E49: 2014-07-14 | P49: 0
B50: الهيئة العامة لمشافي القلمون | C50: تأهيل وإصلاح مشفى دير عطية | D50: 14 | E50: 2014-07-14 | P50: 0
B51: الهيئة العامة لمشافي القلمون | C51: تأهيل وإصلاح مشفى دير عطية | D51: 14 | E51: 2014-07-14 | P51: 0
B52: الهيئة العامة لمشافي القلمون | C52: تأهيل وإصلاح مشفى دير عطية | D52: 14 | E52: 2014-07-14 | P52: 0
B53: الهيئة العامة لمشافي القلمون | C53: تأهيل وإصلاح مشفى دير عطية | D53: 14 | E53: 2014-07-14 | P53: 0
B54: الهيئة العامة لمشافي القلمون | C54: تأهيل وإصلاح مشفى دير عطية | D54: 14 | E54: 2014-07-14 | P54: 0
B55: الهيئة العامة لمشافي القلمون | C55: تأهيل وإصلاح مشفى دير عطية | D55: 14 | E55: 2014-07-14 | P55: 0
B56: الهيئة العامة لمشافي القلمون | C56: تأهيل وإصلاح مشفى دير عطية | D56: 14 | E56: 2014-07-14 | P56: 0
B57: الهيئة العامة لمشافي القلمون | C57: تأهيل وإصلاح مشفى دير عطية | D57: 14 | E57: 2014-07-14 | P57: 0
B58: الهيئة العامة لمشافي القلمون | C58: تأهيل وإصلاح مشفى دير عطية | D58: 14 | E58: 2014-07-14 | P58: 0
B59: الهيئة العامة لمشافي القلمون | C59: تأهيل وإصلاح مشفى دير عطية | D59: 14 | E59: 2014-07-14 | P59: 0
B60: الهيئة العامة لمشافي القلمون | C60: تأهيل وإصلاح مشفى دير عطية | D60: 14 | E60: 2014-07-14 | P60: 0
B61: الهيئة العامة لمشافي القلمون | C61: تأهيل وإصلاح مشفى دير عطية | D61: 14 | E61: 2014-07-14 | P61: 0
B62: الهيئة العامة لمشافي القلمون | C62: تأهيل وإصلاح مشفى دير عطية | D62: 14 | E62: 2014-07-14 | P62: 0
B63: الهيئة العامة لمشافي القلمون | C63: تأهيل وإصلاح مشفى دير عطية | D63: 14 | E63: 2014-07-14 | P63: 0
B64: الهيئة العامة لمشافي القلمون | C64: تأهيل وإصلاح مشفى دير عطية | D64: 14 | E64: 2014-07-14 | P64: 0
B65: الهيئة العامة لمشافي القلمون | C65: تأهيل وإصلاح مشفى دير عطية | D65: 14 | E65: 2014-07-14 | P65: 0
B66: الهيئة العامة لمشافي القلمون | C66: تأهيل وإصلاح مشفى دير عطية | D66: 14 | E66: 2014-07-14 | P66: 0
B67: الهيئة العامة لمشافي القلمون | C67: تأهيل وإصلاح مشفى دير عطية | D67: 14 | E67: 2014-07-14 | P67: 0
B68: الهيئة العامة لمشافي القلمون | C68: تأهيل وإصلاح مشفى دير عطية | D68: 14 | E68: 2014-07-14 | P68: 0
B69: الهيئة العامة لمشافي القلمون | C69: تأهيل وإصلاح مشفى دير عطية | D69: 14 | E69: 2014-07-14 | P69: 0
B70: الهيئة العامة لمشافي القلمون | C70: تأهيل وإصلاح مشفى دير عطية | D70: 14 | E70: 2014-07-14 | P70: 0
B71: الهيئة العامة لمشافي القلمون | C71: تأهيل وإصلاح مشفى دير عطية | D71: 14 | E71: 2014-07-14 | P71: 0
B72: الهيئة العامة لمشافي القلمون | C72: تأهيل وإصلاح مشفى دير عطية | D72: 14 | E72: 2014-07-14 | P72: 0
B73: الهيئة العامة لمشافي القلمون | C73: تأهيل وإصلاح مشفى دير عطية | D73: 14 | E73: 2014-07-14 | P73: =H73-SUM(I73:O73) -> 0
B74: الهيئة العامة لمشافي القلمون | C74: تأهيل وإصلاح مشفى دير عطية | D74: 14 | E74: 2014-07-14 | P74: 0
B75: الهيئة العامة لمشافي القلمون | C75: تأهيل وإصلاح مشفى دير عطية | D75: 14 | E75: 2014-07-14 | P75: 0
B76: الهيئة العامة لمشافي القلمون | C76: تأهيل وإصلاح مشفى دير عطية | D76: 14 | E76: 2014-07-14 | P76: 0
B77: الهيئة العامة لمشافي القلمون | C77: تأهيل وإصلاح مشفى دير عطية | D77: 14 | E77: 2014-07-14 | P77: 0
B78: الهيئة العامة لمشافي القلمون | C78: تأهيل وإصلاح مشفى دير عطية | D78: 14 | E78: 2014-07-14 | P78: 0
B79: الهيئة العامة لمشافي القلمون | C79: تأهيل وإصلاح مشفى دير عطية | D79: 14 | E79: 2014-07-14 | P79: 0
B80: الهيئة العامة لمشافي القلمون | C80: تأهيل وإصلاح مشفى دير عطية | D80: 14 | E80: 2014-07-14 | P80: 0
B81: الهيئة العامة لمشافي القلمون | C81: تأهيل وإصلاح مشفى دير عطية | D81: 14 | E81: 2014-07-14 | P81: 0
B82: الهيئة العامة لمشافي القلمون | C82: تأهيل وإصلاح مشفى دير عطية | D82: 14 | E82: 2014-07-14 | P82: 0
B83: الهيئة العامة لمشافي القلمون | C83: تأهيل وإصلاح مشفى دير عطية | D83: 14 | E83: 2014-07-14 | P83: 0
B84: الهيئة العامة لمشافي القلمون | C84: تأهيل وإصلاح مشفى دير عطية | D84: 14 | E84: 2014-07-14 | P84: 0
B85: الهيئة العامة لمشافي القلمون | C85: تأهيل وإصلاح مشفى دير عطية | D85: 14 | E85: 2014-07-14 | P85: 0
B86: الهيئة العامة لمشافي القلمون | C86: تأهيل وإصلاح مشفى دير عطية | D86: 14 | E86: 2014-07-14 | P86: 0
B87: الهيئة العامة لمشافي القلمون | C87: تأهيل وإصلاح مشفى دير عطية | D87: 14 | E87: 2014-07-14 | P87: 0
B88: الهيئة العامة لمشافي القلمون | C88: تأهيل وإصلاح مشفى دير عطية | D88: 14 | E88: 2014-07-14 | P88: 0
B89: الهيئة العامة لمشافي القلمون | C89: تأهيل وإصلاح مشفى دير عطية | D89: 14 | E89: 2014-07-14 | P89: 0
B90: الهيئة العامة لمشافي القلمون | C90: تأهيل وإصلاح مشفى دير عطية | D90: 14 | E90: 2014-07-14 | P90: 0
B91: الهيئة العامة لمشافي القلمون | C91: تأهيل وإصلاح مشفى دير عطية | D91: 14 | E91: 2014-07-14 | P91: 0
B92: الهيئة العامة لمشافي القلمون | C92: تأهيل وإصلاح مشفى دير عطية | D92: 14 | E92: 2014-07-14 | P92: 0
B93: الهيئة العامة لمشافي القلمون | C93: تأهيل وإصلاح مشفى دير عطية | D93: 14 | E93: 2014-07-14 | P93: 0
B94: الهيئة العامة لمشافي القلمون | C94: تأهيل وإصلاح مشفى دير عطية | D94: 14 | E94: 2014-07-14 | P94: 0
B95: الهيئة العامة لمشافي القلمون | C95: تأهيل وإصلاح مشفى دير عطية | D95: 14 | E95: 2014-07-14 | P95: 0
B96: الهيئة العامة لمشافي القلمون | C96: تأهيل وإصلاح مشفى دير عطية | D96: 14 | E96: 2014-07-14 | P96: 0
B97: الهيئة العامة لمشافي القلمون | C97: تأهيل وإصلاح مشفى دير عطية | D97: 14 | E97: 2014-07-14 | P97: 0
B98: الهيئة العامة لمشافي القلمون | C98: تأهيل وإصلاح مشفى دير عطية | D98: 14 | E98: 2014-07-14 | P98: 0
B99: الهيئة العامة لمشافي القلمون | C99: تأهيل وإصلاح مشفى دير عطية | D99: 14 | E99: 2014-07-14 | P99: 0
B100: الهيئة العامة لمشافي القلمون | C100: تأهيل وإصلاح مشفى دير عطية | D100: 14 | E100: 2014-07-14 | P100: 0
H101: =SUBTOTAL(109,H8:H100) -> 12999000 | I101: =SUBTOTAL(109,I8:I100) -> 0 | J101: 324975 | K101: 28885 | O101: 0 | P101: 12645140 | Q101: 0 | R101: 0 | S101: 1228 | T101: 86510 | U101: 0
B103: إجمالي الكشوف المحصلة | D103: =SUMIF(Q8:Q100,"محصل",H8:H100) -> 12999000 | F103: إجمالي الكشوف المحصلة | H103: =SUMIF(Q8:Q100,"محصل",H8:H100) -> 12999000 | J103: صافي الكشوف المحصلة | P103: =SUMIF(Q8:Q100,"محصل",P8:P100) -> 12645140 | R103: إجمالي السلفة المحسومة | U103: =I101 -> 0
B104: إجمالي الكشوف غير المحصلة | D104: =SUMIF(Q8:Q100,"غير محصل",H8:H100) -> 0 | F104: إجمالي الكشوف غير المحصلة | H104: =SUMIF(Q8:Q100,"غير محصل",H8:H100) -> 0 | J104: صافي الكشوف غير المحصلة | P104: =SUMIF(Q8:Q100,"غير محصل",P8:P100) -> 0 | R104: رصيد السلفة | U104: =Q3-I101 -> 0
B105: إجمالي التوقيفات لتاريخه | D105: =J101 -> 324975 | F105: إجمالي التوقيفات لتاريخه | H105: =J101 -> 324975 | J105: مجموع الحسميات الأخرى والطوابع | P105: =O101+K101 -> 28885 | R105: التوقيفات غير المحصلة | U105: =J101-R101 -> 324975

Sheet 14
F2: الجهة صاحبة العمل | G2: مديرية الصحة - حمص | K2: Home Page | P2: القيمة التقديرية للعقد | Q2: 2875171 | W2: محصل
F3: اسم المشروع | G3: إعادة تأهيل مركز كفرام الصحي | P3: قيمة السلفة المقبوضة | Q3: 0 | W3: غير محصل
F4: رقم العقد | G4: ملحق العقد / 1 / للعقد الأساسي / 37 / 2015 | P4: تاريخ المباشرة | Q4: 2017-09-12 | W4: قيد التحصيل
F5: تاريخ العقد | G5: 2017-09-12 | P5: مدة العقد | W5: قديم
W6: تبرير مدة
B7: الجهة صاحبة المشروع | C7: اسم المشروع | D7: رقم العقد | E7: تاريخ العقد | F7: رقم الكشف | G7: تاريخ الكشف | H7: القيمة الاجمالية | I7: قيمة السلفة | J7: التوقيفات | K7: الطوابع | L7: غرامات تأخير ( أمانات ) | M7: غرامات تأخير ( حسميات ) | N7: حسميات سوء تنفيذ | O7: الحسميات الأخرى | P7: المبلغ الصافي | Q7: محصل أو غير محصل | R7: التوقيفات المحصلة للمشاريع المنتهية | S7: رقم أمر القبض | T7: تاريخ الإشعار | U7: ملاحظات | W7: بحاجة إلى اعتماد
B8: الشركة السورية للنفط - مديرية حقول المنطقة الوسطى | C8: الأعمال المدنية لقواعد الحفارات | D8: 13 | E8: 2014-07-06 | F8: 1 | G8: 2017-10-13 | H8: 2819921 | J8: 70498 | K8: =600+5640+282+50+30 -> 6602 | P8: =H8-SUM(I8:O8) -> 2742821 | Q8: محصل | S8: 531 | T8: 2018-10-22
B9: الشركة السورية للنفط - مديرية حقول المنطقة الوسطى | C9: الأعمال المدنية لقواعد الحفارات | D9: 13 | E9: 2014-07-06 | F9: 2 نهائي | G9: 2017-10-25 | H9: 19692 | J9: 492 | K9: =40+89 -> 129 | P9: =H9-SUM(I9:O9) -> 19071 | Q9: محصل | S9: 668 | T9: 2018-12-24 | U9: استلام مؤقت
B10: الشركة السورية للنفط - مديرية حقول المنطقة الوسطى | C10: الأعمال المدنية لقواعد الحفارات | D10: 13 | E10: 2014-07-06 | P10: 0
B11: الشركة السورية للنفط - مديرية حقول المنطقة الوسطى | C11: الأعمال المدنية لقواعد الحفارات | D11: 13 | E11: 2014-07-06 | P11: 0
B12: الشركة السورية للنفط - مديرية حقول المنطقة الوسطى | C12: الأعمال المدنية لقواعد الحفارات | D12: 13 | E12: 2014-07-06 | P12: 0
B13: الشركة السورية للنفط - مديرية حقول المنطقة الوسطى | C13: الأعمال المدنية لقواعد الحفارات | D13: 13 | E13: 2014-07-06 | P13: 0
B14: الشركة السورية للنفط - مديرية حقول المنطقة الوسطى | C14: الأعمال المدنية لقواعد الحفارات | D14: 13 | E14: 2014-07-06 | P14: 0
B15: الشركة السورية للنفط - مديرية حقول المنطقة الوسطى | C15: الأعمال المدنية لقواعد الحفارات | D15: 13 | E15: 2014-07-06 | P15: 0
B16: الشركة السورية للنفط - مديرية حقول المنطقة الوسطى | C16: الأعمال المدنية لقواعد الحفارات | D16: 13 | E16: 2014-07-06 | P16: 0
B17: الشركة السورية للنفط - مديرية حقول المنطقة الوسطى | C17: الأعمال المدنية لقواعد الحفارات | D17: 13 | E17: 2014-07-06 | P17: 0
B18: الشركة السورية للنفط - مديرية حقول المنطقة الوسطى | C18: الأعمال المدنية لقواعد الحفارات | D18: 13 | E18: 2014-07-06 | P18: 0
B19: الشركة السورية للنفط - مديرية حقول المنطقة الوسطى | C19: الأعمال المدنية لقواعد الحفارات | D19: 13 | E19: 2014-07-06 | P19: 0
B20: الشركة السورية للنفط - مديرية حقول المنطقة الوسطى | C20: الأعمال المدنية لقواعد الحفارات | D20: 13 | E20: 2014-07-06 | P20: 0
B21: الشركة السورية للنفط - مديرية حقول المنطقة الوسطى | C21: الأعمال المدنية لقواعد الحفارات | D21: 13 | E21: 2014-07-06 | P21: 0
B22: الشركة السورية للنفط - مديرية حقول المنطقة الوسطى | C22: الأعمال المدنية لقواعد الحفارات | D22: 13 | E22: 2014-07-06 | P22: 0
B23: الشركة السورية للنفط - مديرية حقول المنطقة الوسطى | C23: الأعمال المدنية لقواعد الحفارات | D23: 13 | E23: 2014-07-06 | P23: 0
B24: الشركة السورية للنفط - مديرية حقول المنطقة الوسطى | C24: الأعمال المدنية لقواعد الحفارات | D24: 13 | E24: 2014-07-06 | P24: 0
B25: الشركة السورية للنفط - مديرية حقول المنطقة الوسطى | C25: الأعمال المدنية لقواعد الحفارات | D25: 13 | E25: 2014-07-06 | P25: 0
B26: الشركة السورية للنفط - مديرية حقول المنطقة الوسطى | C26: الأعمال المدنية لقواعد الحفارات | D26: 13 | E26: 2014-07-06 | P26: 0
B27: الشركة السورية للنفط - مديرية حقول المنطقة الوسطى | C27: الأعمال المدنية لقواعد الحفارات | D27: 13 | E27: 2014-07-06 | P27: 0
B28: الشركة السورية للنفط - مديرية حقول المنطقة الوسطى | C28: الأعمال المدنية لقواعد الحفارات | D28: 13 | E28: 2014-07-06 | P28: 0
B29: الشركة السورية للنفط - مديرية حقول المنطقة الوسطى | C29: الأعمال المدنية لقواعد الحفارات | D29: 13 | E29: 2014-07-06 | P29: 0
B30: الشركة السورية للنفط - مديرية حقول المنطقة الوسطى | C30: الأعمال المدنية لقواعد الحفارات | D30: 13 | E30: 2014-07-06 | P30: 0
B31: الشركة السورية للنفط - مديرية حقول المنطقة الوسطى | C31: الأعمال المدنية لقواعد الحفارات | D31: 13 | E31: 2014-07-06 | P31: 0
B32: الشركة السورية للنفط - مديرية حقول المنطقة الوسطى | C32: الأعمال المدنية لقواعد الحفارات | D32: 13 | E32: 2014-07-06 | P32: 0
B33: الشركة السورية للنفط - مديرية حقول المنطقة الوسطى | C33: الأعمال المدنية لقواعد الحفارات | D33: 13 | E33: 2014-07-06 | P33: 0
B34: الشركة السورية للنفط - مديرية حقول المنطقة الوسطى | C34: الأعمال المدنية لقواعد الحفارات | D34: 13 | E34: 2014-07-06 | P34: 0
B35: الشركة السورية للنفط - مديرية حقول المنطقة الوسطى | C35: الأعمال المدنية لقواعد الحفارات | D35: 13 | E35: 2014-07-06 | P35: 0
B36: الشركة السورية للنفط - مديرية حقول المنطقة الوسطى | C36: الأعمال المدنية لقواعد الحفارات | D36: 13 | E36: 2014-07-06 | P36: 0
B37: الشركة السورية للنفط - مديرية حقول المنطقة الوسطى | C37: الأعمال المدنية لقواعد الحفارات | D37: 13 | E37: 2014-07-06 | P37: 0
B38: الشركة السورية للنفط - مديرية حقول المنطقة الوسطى | C38: الأعمال المدنية لقواعد الحفارات | D38: 13 | E38: 2014-07-06 | P38: 0
B39: الشركة السورية للنفط - مديرية حقول المنطقة الوسطى | C39: الأعمال المدنية لقواعد الحفارات | D39: 13 | E39: 2014-07-06 | P39: 0
B40: الشركة السورية للنفط - مديرية حقول المنطقة الوسطى | C40: الأعمال المدنية لقواعد الحفارات | D40: 13 | E40: 2014-07-06 | P40: 0
B41: الشركة السورية للنفط - مديرية حقول المنطقة الوسطى | C41: الأعمال المدنية لقواعد الحفارات | D41: 13 | E41: 2014-07-06 | P41: 0
B42: الشركة السورية للنفط - مديرية حقول المنطقة الوسطى | C42: الأعمال المدنية لقواعد الحفارات | D42: 13 | E42: 2014-07-06 | P42: 0
B43: الشركة السورية للنفط - مديرية حقول المنطقة الوسطى | C43: الأعمال المدنية لقواعد الحفارات | D43: 13 | E43: 2014-07-06 | P43: 0
B44: الشركة السورية للنفط - مديرية حقول المنطقة الوسطى | C44: الأعمال المدنية لقواعد الحفارات | D44: 13 | E44: 2014-07-06 | P44: 0
B45: الشركة السورية للنفط - مديرية حقول المنطقة الوسطى | C45: الأعمال المدنية لقواعد الحفارات | D45: 13 | E45: 2014-07-06 | P45: 0
B46: الشركة السورية للنفط - مديرية حقول المنطقة الوسطى | C46: الأعمال المدنية لقواعد الحفارات | D46: 13 | E46: 2014-07-06 | P46: 0
B47: الشركة السورية للنفط - مديرية حقول المنطقة الوسطى | C47: الأعمال المدنية لقواعد الحفارات | D47: 13 | E47: 2014-07-06 | P47: 0
B48: الشركة السورية للنفط - مديرية حقول المنطقة الوسطى | C48: الأعمال المدنية لقواعد الحفارات | D48: 13 | E48: 2014-07-06 | P48: 0
B49: الشركة السورية للنفط - مديرية حقول المنطقة الوسطى | C49: الأعمال المدنية لقواعد الحفارات | D49: 13 | E49: 2014-07-06 | P49: 0
B50: الشركة السورية للنفط - مديرية حقول المنطقة الوسطى | C50: الأعمال المدنية لقواعد الحفارات | D50: 13 | E50: 2014-07-06 | P50: 0
B51: الشركة السورية للنفط - مديرية حقول المنطقة الوسطى | C51: الأعمال المدنية لقواعد الحفارات | D51: 13 | E51: 2014-07-06 | P51: 0
B52: الشركة السورية للنفط - مديرية حقول المنطقة الوسطى | C52: الأعمال المدنية لقواعد الحفارات | D52: 13 | E52: 2014-07-06 | P52: 0
B53: الشركة السورية للنفط - مديرية حقول المنطقة الوسطى | C53: الأعمال المدنية لقواعد الحفارات | D53: 13 | E53: 2014-07-06 | P53: 0
B54: الشركة السورية للنفط - مديرية حقول المنطقة الوسطى | C54: الأعمال المدنية لقواعد الحفارات | D54: 13 | E54: 2014-07-06 | P54: 0
B55: الشركة السورية للنفط - مديرية حقول المنطقة الوسطى | C55: الأعمال المدنية لقواعد الحفارات | D55: 13 | E55: 2014-07-06 | P55: 0
B56: الشركة السورية للنفط - مديرية حقول المنطقة الوسطى | C56: الأعمال المدنية لقواعد الحفارات | D56: 13 | E56: 2014-07-06 | P56: 0
B57: الشركة السورية للنفط - مديرية حقول المنطقة الوسطى | C57: الأعمال المدنية لقواعد الحفارات | D57: 13 | E57: 2014-07-06 | P57: 0
B58: الشركة السورية للنفط - مديرية حقول المنطقة الوسطى | C58: الأعمال المدنية لقواعد الحفارات | D58: 13 | E58: 2014-07-06 | P58: 0
B59: الشركة السورية للنفط - مديرية حقول المنطقة الوسطى | C59: الأعمال المدنية لقواعد الحفارات | D59: 13 | E59: 2014-07-06 | P59: 0
B60: الشركة السورية للنفط - مديرية حقول المنطقة الوسطى | C60: الأعمال المدنية لقواعد الحفارات | D60: 13 | E60: 2014-07-06 | P60: 0
B61: الشركة السورية للنفط - مديرية حقول المنطقة الوسطى | C61: الأعمال المدنية لقواعد الحفارات | D61: 13 | E61: 2014-07-06 | P61: 0
B62: الشركة السورية للنفط - مديرية حقول المنطقة الوسطى | C62: الأعمال المدنية لقواعد الحفارات | D62: 13 | E62: 2014-07-06 | P62: 0
B63: الشركة السورية للنفط - مديرية حقول المنطقة الوسطى | C63: الأعمال المدنية لقواعد الحفارات | D63: 13 | E63: 2014-07-06 | P63: 0
B64: الشركة السورية للنفط - مديرية حقول المنطقة الوسطى | C64: الأعمال المدنية لقواعد الحفارات | D64: 13 | E64: 2014-07-06 | P64: 0
B65: الشركة السورية للنفط - مديرية حقول المنطقة الوسطى | C65: الأعمال المدنية لقواعد الحفارات | D65: 13 | E65: 2014-07-06 | P65: 0
B66: الشركة السورية للنفط - مديرية حقول المنطقة الوسطى | C66: الأعمال المدنية لقواعد الحفارات | D66: 13 | E66: 2014-07-06 | P66: 0
B67: الشركة السورية للنفط - مديرية حقول المنطقة الوسطى | C67: الأعمال المدنية لقواعد الحفارات | D67: 13 | E67: 2014-07-06 | P67: 0
B68: الشركة السورية للنفط - مديرية حقول المنطقة الوسطى | C68: الأعمال المدنية لقواعد الحفارات | D68: 13 | E68: 2014-07-06 | P68: 0
B69: الشركة السورية للنفط - مديرية حقول المنطقة الوسطى | C69: الأعمال المدنية لقواعد الحفارات | D69: 13 | E69: 2014-07-06 | P69: 0
B70: الشركة السورية للنفط - مديرية حقول المنطقة الوسطى | C70: الأعمال المدنية لقواعد الحفارات | D70: 13 | E70: 2014-07-06 | P70: 0
B71: الشركة السورية للنفط - مديرية حقول المنطقة الوسطى | C71: الأعمال المدنية لقواعد الحفارات | D71: 13 | E71: 2014-07-06 | P71: 0
B72: الشركة السورية للنفط - مديرية حقول المنطقة الوسطى | C72: الأعمال المدنية لقواعد الحفارات | D72: 13 | E72: 2014-07-06 | P72: 0
B73: الشركة السورية للنفط - مديرية حقول المنطقة الوسطى | C73: الأعمال المدنية لقواعد الحفارات | D73: 13 | E73: 2014-07-06 | P73: =H73-SUM(I73:O73) -> 0
B74: الشركة السورية للنفط - مديرية حقول المنطقة الوسطى | C74: الأعمال المدنية لقواعد الحفارات | D74: 13 | E74: 2014-07-06 | P74: 0
B75: الشركة السورية للنفط - مديرية حقول المنطقة الوسطى | C75: الأعمال المدنية لقواعد الحفارات | D75: 13 | E75: 2014-07-06 | P75: 0
B76: الشركة السورية للنفط - مديرية حقول المنطقة الوسطى | C76: الأعمال المدنية لقواعد الحفارات | D76: 13 | E76: 2014-07-06 | P76: 0
B77: الشركة السورية للنفط - مديرية حقول المنطقة الوسطى | C77: الأعمال المدنية لقواعد الحفارات | D77: 13 | E77: 2014-07-06 | P77: 0
B78: الشركة السورية للنفط - مديرية حقول المنطقة الوسطى | C78: الأعمال المدنية لقواعد الحفارات | D78: 13 | E78: 2014-07-06 | P78: 0
B79: الشركة السورية للنفط - مديرية حقول المنطقة الوسطى | C79: الأعمال المدنية لقواعد الحفارات | D79: 13 | E79: 2014-07-06 | P79: 0
B80: الشركة السورية للنفط - مديرية حقول المنطقة الوسطى | C80: الأعمال المدنية لقواعد الحفارات | D80: 13 | E80: 2014-07-06 | P80: 0
B81: الشركة السورية للنفط - مديرية حقول المنطقة الوسطى | C81: الأعمال المدنية لقواعد الحفارات | D81: 13 | E81: 2014-07-06 | P81: 0
B82: الشركة السورية للنفط - مديرية حقول المنطقة الوسطى | C82: الأعمال المدنية لقواعد الحفارات | D82: 13 | E82: 2014-07-06 | P82: 0
B83: الشركة السورية للنفط - مديرية حقول المنطقة الوسطى | C83: الأعمال المدنية لقواعد الحفارات | D83: 13 | E83: 2014-07-06 | P83: 0
B84: الشركة السورية للنفط - مديرية حقول المنطقة الوسطى | C84: الأعمال المدنية لقواعد الحفارات | D84: 13 | E84: 2014-07-06 | P84: 0
B85: الشركة السورية للنفط - مديرية حقول المنطقة الوسطى | C85: الأعمال المدنية لقواعد الحفارات | D85: 13 | E85: 2014-07-06 | P85: 0
B86: الشركة السورية للنفط - مديرية حقول المنطقة الوسطى | C86: الأعمال المدنية لقواعد الحفارات | D86: 13 | E86: 2014-07-06 | P86: 0
B87: الشركة السورية للنفط - مديرية حقول المنطقة الوسطى | C87: الأعمال المدنية لقواعد الحفارات | D87: 13 | E87: 2014-07-06 | P87: 0
B88: الشركة السورية للنفط - مديرية حقول المنطقة الوسطى | C88: الأعمال المدنية لقواعد الحفارات | D88: 13 | E88: 2014-07-06 | P88: 0
B89: الشركة السورية للنفط - مديرية حقول المنطقة الوسطى | C89: الأعمال المدنية لقواعد الحفارات | D89: 13 | E89: 2014-07-06 | P89: 0
B90: الشركة السورية للنفط - مديرية حقول المنطقة الوسطى | C90: الأعمال المدنية لقواعد الحفارات | D90: 13 | E90: 2014-07-06 | P90: 0
B91: الشركة السورية للنفط - مديرية حقول المنطقة الوسطى | C91: الأعمال المدنية لقواعد الحفارات | D91: 13 | E91: 2014-07-06 | P91: 0
B92: الشركة السورية للنفط - مديرية حقول المنطقة الوسطى | C92: الأعمال المدنية لقواعد الحفارات | D92: 13 | E92: 2014-07-06 | P92: 0
B93: الشركة السورية للنفط - مديرية حقول المنطقة الوسطى | C93: الأعمال المدنية لقواعد الحفارات | D93: 13 | E93: 2014-07-06 | P93: 0
B94: الشركة السورية للنفط - مديرية حقول المنطقة الوسطى | C94: الأعمال المدنية لقواعد الحفارات | D94: 13 | E94: 2014-07-06 | P94: 0
B95: الشركة السورية للنفط - مديرية حقول المنطقة الوسطى | C95: الأعمال المدنية لقواعد الحفارات | D95: 13 | E95: 2014-07-06 | P95: 0
B96: الشركة السورية للنفط - مديرية حقول المنطقة الوسطى | C96: الأعمال المدنية لقواعد الحفارات | D96: 13 | E96: 2014-07-06 | P96: 0
B97: الشركة السورية للنفط - مديرية حقول المنطقة الوسطى | C97: الأعمال المدنية لقواعد الحفارات | D97: 13 | E97: 2014-07-06 | P97: 0
B98: الشركة السورية للنفط - مديرية حقول المنطقة الوسطى | C98: الأعمال المدنية لقواعد الحفارات | D98: 13 | E98: 2014-07-06 | P98: 0
B99: الشركة السورية للنفط - مديرية حقول المنطقة الوسطى | C99: الأعمال المدنية لقواعد الحفارات | D99: 13 | E99: 2014-07-06 | P99: 0
B100: الشركة السورية للنفط - مديرية حقول المنطقة الوسطى | C100: الأعمال المدنية لقواعد الحفارات | D100: 13 | E100: 2014-07-06 | P100: 0
H101: =SUBTOTAL(109,H8:H100) -> 2839613 | I101: =SUBTOTAL(109,I8:I100) -> 0 | J101: 70990 | K101: 6731 | O101: 0 | P101: 2761892 | Q101: 0 | R101: 0 | S101: 1199 | T101: 86853 | U101: 0
B103: إجمالي الكشوف المحصلة | D103: =SUMIF(Q8:Q100,"محصل",H8:H100) -> 2839613 | F103: إجمالي الكشوف المحصلة | H103: =SUMIF(Q8:Q100,"محصل",H8:H100) -> 2839613 | J103: صافي الكشوف المحصلة | P103: =SUMIF(Q8:Q100,"محصل",P8:P100) -> 2761892 | R103: إجمالي السلفة المحسومة | U103: =I101 -> 0
B104: إجمالي الكشوف غير المحصلة | D104: =SUMIF(Q8:Q100,"غير محصل",H8:H100) -> 0 | F104: إجمالي الكشوف غير المحصلة | H104: =SUMIF(Q8:Q100,"غير محصل",H8:H100) -> 0 | J104: صافي الكشوف غير المحصلة | P104: =SUMIF(Q8:Q100,"غير محصل",P8:P100) -> 0 | R104: رصيد السلفة | U104: =Q3-I101 -> 0
B105: إجمالي التوقيفات لتاريخه | D105: =J101 -> 70990 | F105: إجمالي التوقيفات لتاريخه | H105: =J101 -> 70990 | J105: مجموع الحسميات الأخرى والطوابع | P105: =O101+K101 -> 6731 | R105: التوقيفات غير المحصلة | U105: =J101-R101 -> 70990

Sheet 15
F2: الجهة صاحبة العمل | G2: الشركة السورية للنفط - مديرية حقول المنطقة الوسطى | K2: Home Page | P2: القيمة التقديرية للعقد | Q2: 39600000 | W2: محصل
F3: اسم المشروع | G3: أعمال الطرق إلى قواعد الحفارات | P3: قيمة السلفة المقبوضة | Q3: 0 | W3: غير محصل
F4: رقم العقد | G4: 14 | P4: تاريخ المباشرة | Q4: 2014-09-29 | W4: قيد التحصيل
F5: تاريخ العقد | G5: 2014-09-28 | P5: مدة العقد | Q5: 365 يوما | W5: قديم
W6: تبرير مدة
B7: الجهة صاحبة المشروع | C7: اسم المشروع | D7: رقم العقد | E7: تاريخ العقد | F7: رقم الكشف | G7: تاريخ الكشف | H7: القيمة الاجمالية | I7: قيمة السلفة | J7: التوقيفات | K7: الطوابع | L7: غرامات تأخير ( أمانات ) | M7: غرامات تأخير ( حسميات ) | N7: حسميات سوء تنفيذ | O7: الحسميات الأخرى | P7: المبلغ الصافي | Q7: محصل أو غير محصل | R7: التوقيفات المحصلة للمشاريع المنتهية | S7: رقم أمر القبض | T7: تاريخ الإشعار | U7: ملاحظات | W7: بحاجة إلى اعتماد
B8: الشركة السورية للنفط - مديرية حقول المنطقة الوسطى | C8: أعمال الطرق إلى قواعد الحفارات | D8: 14 | E8: 2014-09-28 | F8: 1 | G8: 2014-10-29 | H8: 1350000 | J8: 33750 | K8: 110 | P8: =H8-SUM(I8:O8) -> 1316140 | Q8: محصل | S8: 264 | T8: 2014-11-13
B9: الشركة السورية للنفط - مديرية حقول المنطقة الوسطى | C9: أعمال الطرق إلى قواعد الحفارات | D9: 14 | E9: 2014-09-28 | F9: 2 | H9: 1260000 | J9: 31500 | K9: 110 | P9: =H9-SUM(I9:O9) -> 1228390 | Q9: محصل | S9: 296 | T9: 2014-12-29
B10: الشركة السورية للنفط - مديرية حقول المنطقة الوسطى | C10: أعمال الطرق إلى قواعد الحفارات | D10: 14 | E10: 2014-09-28 | F10: 3 | H10: 5190000 | J10: 129750 | K10: 110 | P10: 5060140 | Q10: محصل | S10: 1 | T10: 2015-01-11
B11: الشركة السورية للنفط - مديرية حقول المنطقة الوسطى | C11: أعمال الطرق إلى قواعد الحفارات | D11: 14 | E11: 2014-09-28 | F11: 4 | H11: 120000 | J11: 3000 | K11: 135 | P11: 116865 | Q11: محصل | S11: 48 | T11: 2015-03-17
B12: الشركة السورية للنفط - مديرية حقول المنطقة الوسطى | C12: أعمال الطرق إلى قواعد الحفارات | D12: 14 | E12: 2014-09-28 | F12: 5 | H12: 2100000 | J12: 52500 | K12: 135 | P12: 2047365 | Q12: محصل | S12: 76 | T12: 2015-04-18
B13: الشركة السورية للنفط - مديرية حقول المنطقة الوسطى | C13: أعمال الطرق إلى قواعد الحفارات | D13: 14 | E13: 2014-09-28 | F13: 6 | H13: 13020000 | J13: 325500 | K13: 145 | P13: 12694355 | Q13: محصل | S13: 103 | T13: 2015-05-18
B14: الشركة السورية للنفط - مديرية حقول المنطقة الوسطى | C14: أعمال الطرق إلى قواعد الحفارات | D14: 14 | E14: 2014-09-28 | F14: 7 | H14: 1800000 | J14: 45000 | K14: 135 | P14: 1754865 | Q14: محصل | S14: 136 | T14: 2015-06-22
B15: الشركة السورية للنفط - مديرية حقول المنطقة الوسطى | C15: أعمال الطرق إلى قواعد الحفارات | D15: 14 | E15: 2014-09-28 | F15: 8 | H15: 5760000 | J15: 144000 | K15: 145 | P15: 5615855 | Q15: محصل | S15: 269 | T15: 2015-10-29
B16: الشركة السورية للنفط - مديرية حقول المنطقة الوسطى | C16: أعمال الطرق إلى قواعد الحفارات | D16: 14 | E16: 2014-09-28 | F16: 9 | G16: 2015-10-31 | H16: 540000 | J16: =H16*2.5/100 -> 13500 | P16: 526500 | Q16: محصل
B17: الشركة السورية للنفط - مديرية حقول المنطقة الوسطى | C17: أعمال الطرق إلى قواعد الحفارات | D17: 14 | E17: 2014-09-28 | F17: 10 | G17: 2015-11-30 | H17: 7200000 | J17: =H17*2.5/100 -> 180000 | P17: 7020000 | Q17: محصل
B18: الشركة السورية للنفط - مديرية حقول المنطقة الوسطى | C18: أعمال الطرق إلى قواعد الحفارات | D18: 14 | E18: 2014-09-28 | F18: 11 | G18: 2016-03-08 | H18: 2400000 | J18: 60000 | K18: 145 | O18: 96000 | P18: 2243855 | Q18: محصل | S18: 158 | T18: 2016-05-16
B19: الشركة السورية للنفط - مديرية حقول المنطقة الوسطى | C19: أعمال الطرق إلى قواعد الحفارات | D19: 14 | E19: 2014-09-28 | F19: 12 نهائي | G19: 2016-03-15 | H19: 3332700 | J19: 83317 | K19: 145 | L19: 159970 | P19: 3089268 | Q19: محصل | S19: 232 | T19: 2016-07-27
B20: الشركة السورية للنفط - مديرية حقول المنطقة الوسطى | C20: أعمال الطرق إلى قواعد الحفارات | D20: 14 | E20: 2014-09-28 | F20: فرق سعر1 | G20: 2017-11-30 | H20: 6955370 | K20: 61355 | P20: 6894015 | Q20: محصل | S20: 185 | T20: 2016-06-14
B21: الشركة السورية للنفط - مديرية حقول المنطقة الوسطى | C21: أعمال الطرق إلى قواعد الحفارات | D21: 14 | E21: 2014-09-28 | F21: فرق سعر نهائي | G21: 2017-03-15 | H21: 4094107 | K21: 145 | P21: 4093962 | Q21: محصل | S21: 545 | T21: 2018-10-07 | U21: تم ارسال كتاب مطالبة بالتوقيفات رقم 3102 / ص ف م و تأ 6/8/2017
B22: الشركة السورية للنفط - مديرية حقول المنطقة الوسطى | C22: أعمال الطرق إلى قواعد الحفارات | D22: 14 | E22: 2014-09-28 | F22: إعادة توقيفات العقد | P22: 0 | Q22: محصل | R22: 1101817 | S22: 599 | T22: 2018-11-01 | U22: تم ارسال كتاب مطالبة بالتوقيفات و الأمانات رقم 4778 / ص ف م و تأ 17/10/2018
B23: الشركة السورية للنفط - مديرية حقول المنطقة الوسطى | C23: أعمال الطرق إلى قواعد الحفارات | D23: 14 | E23: 2014-09-28 | P23: 0
B24: الشركة السورية للنفط - مديرية حقول المنطقة الوسطى | C24: أعمال الطرق إلى قواعد الحفارات | D24: 14 | E24: 2014-09-28 | P24: 0
B25: الشركة السورية للنفط - مديرية حقول المنطقة الوسطى | C25: أعمال الطرق إلى قواعد الحفارات | D25: 14 | E25: 2014-09-28 | P25: 0
B26: الشركة السورية للنفط - مديرية حقول المنطقة الوسطى | C26: أعمال الطرق إلى قواعد الحفارات | D26: 14 | E26: 2014-09-28 | P26: 0
B27: الشركة السورية للنفط - مديرية حقول المنطقة الوسطى | C27: أعمال الطرق إلى قواعد الحفارات | D27: 14 | E27: 2014-09-28 | P27: 0
B28: الشركة السورية للنفط - مديرية حقول المنطقة الوسطى | C28: أعمال الطرق إلى قواعد الحفارات | D28: 14 | E28: 2014-09-28 | P28: 0
B29: الشركة السورية للنفط - مديرية حقول المنطقة الوسطى | C29: أعمال الطرق إلى قواعد الحفارات | D29: 14 | E29: 2014-09-28 | P29: 0
B30: الشركة السورية للنفط - مديرية حقول المنطقة الوسطى | C30: أعمال الطرق إلى قواعد الحفارات | D30: 14 | E30: 2014-09-28 | P30: 0
B31: الشركة السورية للنفط - مديرية حقول المنطقة الوسطى | C31: أعمال الطرق إلى قواعد الحفارات | D31: 14 | E31: 2014-09-28 | P31: 0
B32: الشركة السورية للنفط - مديرية حقول المنطقة الوسطى | C32: أعمال الطرق إلى قواعد الحفارات | D32: 14 | E32: 2014-09-28 | P32: 0
B33: الشركة السورية للنفط - مديرية حقول المنطقة الوسطى | C33: أعمال الطرق إلى قواعد الحفارات | D33: 14 | E33: 2014-09-28 | P33: 0
B34: الشركة السورية للنفط - مديرية حقول المنطقة الوسطى | C34: أعمال الطرق إلى قواعد الحفارات | D34: 14 | E34: 2014-09-28 | P34: 0
B35: الشركة السورية للنفط - مديرية حقول المنطقة الوسطى | C35: أعمال الطرق إلى قواعد الحفارات | D35: 14 | E35: 2014-09-28 | P35: 0
B36: الشركة السورية للنفط - مديرية حقول المنطقة الوسطى | C36: أعمال الطرق إلى قواعد الحفارات | D36: 14 | E36: 2014-09-28 | P36: 0
B37: الشركة السورية للنفط - مديرية حقول المنطقة الوسطى | C37: أعمال الطرق إلى قواعد الحفارات | D37: 14 | E37: 2014-09-28 | P37: 0
B38: الشركة السورية للنفط - مديرية حقول المنطقة الوسطى | C38: أعمال الطرق إلى قواعد الحفارات | D38: 14 | E38: 2014-09-28 | P38: 0
B39: الشركة السورية للنفط - مديرية حقول المنطقة الوسطى | C39: أعمال الطرق إلى قواعد الحفارات | D39: 14 | E39: 2014-09-28 | P39: 0
B40: الشركة السورية للنفط - مديرية حقول المنطقة الوسطى | C40: أعمال الطرق إلى قواعد الحفارات | D40: 14 | E40: 2014-09-28 | P40: 0
B41: الشركة السورية للنفط - مديرية حقول المنطقة الوسطى | C41: أعمال الطرق إلى قواعد الحفارات | D41: 14 | E41: 2014-09-28 | P41: 0
B42: الشركة السورية للنفط - مديرية حقول المنطقة الوسطى | C42: أعمال الطرق إلى قواعد الحفارات | D42: 14 | E42: 2014-09-28 | P42: 0
B43: الشركة السورية للنفط - مديرية حقول المنطقة الوسطى | C43: أعمال الطرق إلى قواعد الحفارات | D43: 14 | E43: 2014-09-28 | P43: 0
B44: الشركة السورية للنفط - مديرية حقول المنطقة الوسطى | C44: أعمال الطرق إلى قواعد الحفارات | D44: 14 | E44: 2014-09-28 | P44: 0
B45: الشركة السورية للنفط - مديرية حقول المنطقة الوسطى | C45: أعمال الطرق إلى قواعد الحفارات | D45: 14 | E45: 2014-09-28 | P45: 0
B46: الشركة السورية للنفط - مديرية حقول المنطقة الوسطى | C46: أعمال الطرق إلى قواعد الحفارات | D46: 14 | E46: 2014-09-28 | P46: 0
B47: الشركة السورية للنفط - مديرية حقول المنطقة الوسطى | C47: أعمال الطرق إلى قواعد الحفارات | D47: 14 | E47: 2014-09-28 | P47: 0
B48: الشركة السورية للنفط - مديرية حقول المنطقة الوسطى | C48: أعمال الطرق إلى قواعد الحفارات | D48: 14 | E48: 2014-09-28 | P48: 0
B49: الشركة السورية للنفط - مديرية حقول المنطقة الوسطى | C49: أعمال الطرق إلى قواعد الحفارات | D49: 14 | E49: 2014-09-28 | P49: 0
B50: الشركة السورية للنفط - مديرية حقول المنطقة الوسطى | C50: أعمال الطرق إلى قواعد الحفارات | D50: 14 | E50: 2014-09-28 | P50: 0
B51: الشركة السورية للنفط - مديرية حقول المنطقة الوسطى | C51: أعمال الطرق إلى قواعد الحفارات | D51: 14 | E51: 2014-09-28 | P51: 0
B52: الشركة السورية للنفط - مديرية حقول المنطقة الوسطى | C52: أعمال الطرق إلى قواعد الحفارات | D52: 14 | E52: 2014-09-28 | P52: 0
B53: الشركة السورية للنفط - مديرية حقول المنطقة الوسطى | C53: أعمال الطرق إلى قواعد الحفارات | D53: 14 | E53: 2014-09-28 | P53: 0
B54: الشركة السورية للنفط - مديرية حقول المنطقة الوسطى | C54: أعمال الطرق إلى قواعد الحفارات | D54: 14 | E54: 2014-09-28 | P54: 0
B55: الشركة السورية للنفط - مديرية حقول المنطقة الوسطى | C55: أعمال الطرق إلى قواعد الحفارات | D55: 14 | E55: 2014-09-28 | P55: 0
B56: الشركة السورية للنفط - مديرية حقول المنطقة الوسطى | C56: أعمال الطرق إلى قواعد الحفارات | D56: 14 | E56: 2014-09-28 | P56: 0
B57: الشركة السورية للنفط - مديرية حقول المنطقة الوسطى | C57: أعمال الطرق إلى قواعد الحفارات | D57: 14 | E57: 2014-09-28 | P57: 0
B58: الشركة السورية للنفط - مديرية حقول المنطقة الوسطى | C58: أعمال الطرق إلى قواعد الحفارات | D58: 14 | E58: 2014-09-28 | P58: 0
B59: الشركة السورية للنفط - مديرية حقول المنطقة الوسطى | C59: أعمال الطرق إلى قواعد الحفارات | D59: 14 | E59: 2014-09-28 | P59: 0
B60: الشركة السورية للنفط - مديرية حقول المنطقة الوسطى | C60: أعمال الطرق إلى قواعد الحفارات | D60: 14 | E60: 2014-09-28 | P60: 0
B61: الشركة السورية للنفط - مديرية حقول المنطقة الوسطى | C61: أعمال الطرق إلى قواعد الحفارات | D61: 14 | E61: 2014-09-28 | P61: 0
B62: الشركة السورية للنفط - مديرية حقول المنطقة الوسطى | C62: أعمال الطرق إلى قواعد الحفارات | D62: 14 | E62: 2014-09-28 | P62: 0
B63: الشركة السورية للنفط - مديرية حقول المنطقة الوسطى | C63: أعمال الطرق إلى قواعد الحفارات | D63: 14 | E63: 2014-09-28 | P63: 0
B64: الشركة السورية للنفط - مديرية حقول المنطقة الوسطى | C64: أعمال الطرق إلى قواعد الحفارات | D64: 14 | E64: 2014-09-28 | P64: 0
B65: الشركة السورية للنفط - مديرية حقول المنطقة الوسطى | C65: أعمال الطرق إلى قواعد الحفارات | D65: 14 | E65: 2014-09-28 | P65: 0
B66: الشركة السورية للنفط - مديرية حقول المنطقة الوسطى | C66: أعمال الطرق إلى قواعد الحفارات | D66: 14 | E66: 2014-09-28 | P66: 0
B67: الشركة السورية للنفط - مديرية حقول المنطقة الوسطى | C67: أعمال الطرق إلى قواعد الحفارات | D67: 14 | E67: 2014-09-28 | P67: 0
B68: الشركة السورية للنفط - مديرية حقول المنطقة الوسطى | C68: أعمال الطرق إلى قواعد الحفارات | D68: 14 | E68: 2014-09-28 | P68: 0
B69: الشركة السورية للنفط - مديرية حقول المنطقة الوسطى | C69: أعمال الطرق إلى قواعد الحفارات | D69: 14 | E69: 2014-09-28 | P69: 0
B70: الشركة السورية للنفط - مديرية حقول المنطقة الوسطى | C70: أعمال الطرق إلى قواعد الحفارات | D70: 14 | E70: 2014-09-28 | P70: 0
B71: الشركة السورية للنفط - مديرية حقول المنطقة الوسطى | C71: أعمال الطرق إلى قواعد الحفارات | D71: 14 | E71: 2014-09-28 | P71: 0
B72: الشركة السورية للنفط - مديرية حقول المنطقة الوسطى | C72: أعمال الطرق إلى قواعد الحفارات | D72: 14 | E72: 2014-09-28 | P72: 0
B73: الشركة السورية للنفط - مديرية حقول المنطقة الوسطى | C73: أعمال الطرق إلى قواعد الحفارات | D73: 14 | E73: 2014-09-28 | P73: =H73-SUM(I73:O73) -> 0
B74: الشركة السورية للنفط - مديرية حقول المنطقة الوسطى | C74: أعمال الطرق إلى قواعد الحفارات | D74: 14 | E74: 2014-09-28 | P74: 0
B75: الشركة السورية للنفط - مديرية حقول المنطقة الوسطى | C75: أعمال الطرق إلى قواعد الحفارات | D75: 14 | E75: 2014-09-28 | P75: 0
B76: الشركة السورية للنفط - مديرية حقول المنطقة الوسطى | C76: أعمال الطرق إلى قواعد الحفارات | D76: 14 | E76: 2014-09-28 | P76: 0
B77: الشركة السورية للنفط - مديرية حقول المنطقة الوسطى | C77: أعمال الطرق إلى قواعد الحفارات | D77: 14 | E77: 2014-09-28 | P77: 0
B78: الشركة السورية للنفط - مديرية حقول المنطقة الوسطى | C78: أعمال الطرق إلى قواعد الحفارات | D78: 14 | E78: 2014-09-28 | P78: 0
B79: الشركة السورية للنفط - مديرية حقول المنطقة الوسطى | C79: أعمال الطرق إلى قواعد الحفارات | D79: 14 | E79: 2014-09-28 | P79: 0
B80: الشركة السورية للنفط - مديرية حقول المنطقة الوسطى | C80: أعمال الطرق إلى قواعد الحفارات | D80: 14 | E80: 2014-09-28 | P80: 0
B81: الشركة السورية للنفط - مديرية حقول المنطقة الوسطى | C81: أعمال الطرق إلى قواعد الحفارات | D81: 14 | E81: 2014-09-28 | P81: 0
B82: الشركة السورية للنفط - مديرية حقول المنطقة الوسطى | C82: أعمال الطرق إلى قواعد الحفارات | D82: 14 | E82: 2014-09-28 | P82: 0
B83: الشركة السورية للنفط - مديرية حقول المنطقة الوسطى | C83: أعمال الطرق إلى قواعد الحفارات | D83: 14 | E83: 2014-09-28 | P83: 0
B84: الشركة السورية للنفط - مديرية حقول المنطقة الوسطى | C84: أعمال الطرق إلى قواعد الحفارات | D84: 14 | E84: 2014-09-28 | P84: 0
B85: الشركة السورية للنفط - مديرية حقول المنطقة الوسطى | C85: أعمال الطرق إلى قواعد الحفارات | D85: 14 | E85: 2014-09-28 | P85: 0
B86: الشركة السورية للنفط - مديرية حقول المنطقة الوسطى | C86: أعمال الطرق إلى قواعد الحفارات | D86: 14 | E86: 2014-09-28 | P86: 0
B87: الشركة السورية للنفط - مديرية حقول المنطقة الوسطى | C87: أعمال الطرق إلى قواعد الحفارات | D87: 14 | E87: 2014-09-28 | P87: 0
B88: الشركة السورية للنفط - مديرية حقول المنطقة الوسطى | C88: أعمال الطرق إلى قواعد الحفارات | D88: 14 | E88: 2014-09-28 | P88: 0
B89: الشركة السورية للنفط - مديرية حقول المنطقة الوسطى | C89: أعمال الطرق إلى قواعد الحفارات | D89: 14 | E89: 2014-09-28 | P89: 0
B90: الشركة السورية للنفط - مديرية حقول المنطقة الوسطى | C90: أعمال الطرق إلى قواعد الحفارات | D90: 14 | E90: 2014-09-28 | P90: 0
B91: الشركة السورية للنفط - مديرية حقول المنطقة الوسطى | C91: أعمال الطرق إلى قواعد الحفارات | D91: 14 | E91: 2014-09-28 | P91: 0
B92: الشركة السورية للنفط - مديرية حقول المنطقة الوسطى | C92: أعمال الطرق إلى قواعد الحفارات | D92: 14 | E92: 2014-09-28 | P92: 0
B93: الشركة السورية للنفط - مديرية حقول المنطقة الوسطى | C93: أعمال الطرق إلى قواعد الحفارات | D93: 14 | E93: 2014-09-28 | P93: 0
B94: الشركة السورية للنفط - مديرية حقول المنطقة الوسطى | C94: أعمال الطرق إلى قواعد الحفارات | D94: 14 | E94: 2014-09-28 | P94: 0
B95: الشركة السورية للنفط - مديرية حقول المنطقة الوسطى | C95: أعمال الطرق إلى قواعد الحفارات | D95: 14 | E95: 2014-09-28 | P95: 0
B96: الشركة السورية للنفط - مديرية حقول المنطقة الوسطى | C96: أعمال الطرق إلى قواعد الحفارات | D96: 14 | E96: 2014-09-28 | P96: 0
B97: الشركة السورية للنفط - مديرية حقول المنطقة الوسطى | C97: أعمال الطرق إلى قواعد الحفارات | D97: 14 | E97: 2014-09-28 | P97: 0
B98: الشركة السورية للنفط - مديرية حقول المنطقة الوسطى | C98: أعمال الطرق إلى قواعد الحفارات | D98: 14 | E98: 2014-09-28 | P98: 0
B99: الشركة السورية للنفط - مديرية حقول المنطقة الوسطى | C99: أعمال الطرق إلى قواعد الحفارات | D99: 14 | E99: 2014-09-28 | P99: 0
B100: الشركة السورية للنفط - مديرية حقول المنطقة الوسطى | C100: أعمال الطرق إلى قواعد الحفارات | D100: 14 | E100: 2014-09-28 | P100: 0
H101: =SUBTOTAL(109,H8:H100) -> 55122177 | I101: =SUBTOTAL(109,I8:I100) -> 0 | J101: 1101817 | K101: 62815 | O101: 96000 | P101: 53701575 | Q101: 0 | R101: 1101817 | S101: 2912 | T101: 551194 | U101: 0
B103: إجمالي الكشوف المحصلة | D103: =SUMIF(Q8:Q100,"محصل",H8:H100) -> 55122177 | F103: إجمالي الكشوف المحصلة | H103: =SUMIF(Q8:Q100,"محصل",H8:H100) -> 55122177 | J103: صافي الكشوف المحصلة | P103: =SUMIF(Q8:Q100,"محصل",P8:P100) -> 53701575 | R103: إجمالي السلفة المحسومة | U103: =I101 -> 0
B104: إجمالي الكشوف غير المحصلة | D104: =SUMIF(Q8:Q100,"غير محصل",H8:H100) -> 0 | F104: إجمالي الكشوف غير المحصلة | H104: =SUMIF(Q8:Q100,"غير محصل",H8:H100) -> 0 | J104: صافي الكشوف غير المحصلة | P104: =SUMIF(Q8:Q100,"غير محصل",P8:P100) -> 0 | R104: رصيد السلفة | U104: =Q3-I101 -> 0
B105: إجمالي التوقيفات لتاريخه | D105: =J101 -> 1101817 | F105: إجمالي التوقيفات لتاريخه | H105: =J101 -> 1101817 | J105: مجموع الحسميات الأخرى والطوابع | P105: =O101+K101 -> 158815 | R105: التوقيفات غير المحصلة | U105: =J101-R101 -> 0

Sheet 16
F2: الجهة صاحبة العمل | G2: المدينة الصناعية - حسياء | K2: Home Page | P2: القيمة التقديرية للعقد | Q2: 252523315 | W2: محصل
F3: اسم المشروع | G3: مشروع الأبنية الخدمية لمركز الإيواء بحسياء | P3: قيمة السلفة المقبوضة | Q3: 0 | W3: غير محصل
F4: رقم العقد | G4: 2 | P4: تاريخ المباشرة | Q4: 2015-08-16 | W4: قيد التحصيل
F5: تاريخ العقد | G5: 2015-07-25 | P5: مدة العقد | Q5: 60 يوم | W5: قديم
W6: تبرير مدة
B7: الجهة صاحبة المشروع | C7: اسم المشروع | D7: رقم العقد | E7: تاريخ العقد | F7: رقم الكشف | G7: تاريخ الكشف | H7: القيمة الاجمالية | I7: قيمة السلفة | J7: التوقيفات | K7: الطوابع | L7: غرامات تأخير ( أمانات ) | M7: غرامات تأخير ( حسميات ) | N7: حسميات سوء تنفيذ | O7: الحسميات الأخرى | P7: المبلغ الصافي | Q7: محصل أو غير محصل | R7: التوقيفات المحصلة للمشاريع المنتهية | S7: رقم أمر القبض | T7: تاريخ الإشعار | U7: ملاحظات | W7: بحاجة إلى اعتماد
B8: المدينة الصناعية - حسياء | C8: مشروع الأبنية الخدمية لمركز الإيواء بحسياء | D8: 2 | E8: 2015-07-25 | F8: 1 | G8: 2015-09-30 | H8: 18010000 | J8: 450250 | K8: 39727 | P8: =H8-SUM(I8:O8) -> 17520023 | Q8: محصل | S8: 287 | T8: 2015-11-19
B9: المدينة الصناعية - حسياء | C9: مشروع الأبنية الخدمية لمركز الإيواء بحسياء | D9: 2 | E9: 2015-07-25 | F9: 2 | G9: 2015-10-30 | H9: 4957500 | J9: 123938 | K9: 11012 | P9: =H9-SUM(I9:O9) -> 4822550 | Q9: محصل | S9: 287 | T9: 2015-11-19
B10: المدينة الصناعية - حسياء | C10: مشروع الأبنية الخدمية لمركز الإيواء بحسياء | D10: 2 | E10: 2015-07-25 | F10: 3 | G10: 2015-11-23 | H10: 5409740 | J10: 135244 | K10: 12005 | P10: 5262491 | Q10: محصل | S10: 345 | T10: 2015-12-30
B11: المدينة الصناعية - حسياء | C11: مشروع الأبنية الخدمية لمركز الإيواء بحسياء | D11: 2 | E11: 2015-07-25 | F11: 4 | G11: 2015-12-23 | H11: 13763500 | J11: 344088 | K11: =27527+100+1376+1381 -> 30384 | P11: 13389028 | Q11: محصل | S11: 32 | T11: 2016-01-27
B12: المدينة الصناعية - حسياء | C12: مشروع الأبنية الخدمية لمركز الإيواء بحسياء | D12: 2 | E12: 2015-07-25 | F12: 5 | G12: 2016-01-31 | H12: 9872460 | J12: 246812 | K12: 21824 | P12: 9603824 | Q12: محصل | S12: 94 | T12: 2016-03-30
B13: المدينة الصناعية - حسياء | C13: مشروع الأبنية الخدمية لمركز الإيواء بحسياء | D13: 2 | E13: 2015-07-25 | F13: 6 | G13: 2016-02-23 | H13: 6559500 | J13: 163988 | K13: 14536 | P13: 6380976 | Q13: محصل | S13: 99 | T13: 2016-03-31
B14: المدينة الصناعية - حسياء | C14: مشروع الأبنية الخدمية لمركز الإيواء بحسياء | D14: 2 | E14: 2015-07-25 | F14: 7 | G14: 2016-03-23 | H14: 16182000 | J14: 404550 | K14: =50+32364+1618+50+1623 -> 35705 | P14: 15741745 | Q14: محصل | S14: 135 | T14: 2016-04-25
B15: المدينة الصناعية - حسياء | C15: مشروع الأبنية الخدمية لمركز الإيواء بحسياء | D15: 2 | E15: 2015-07-25 | F15: 8 | G15: 2016-04-22 | H15: 39267000 | J15: 981675 | K15: =78534+3927+50+3932+50 -> 86493 | P15: 38198832 | Q15: محصل | S15: 164 | T15: 2016-05-18
B16: المدينة الصناعية - حسياء | C16: مشروع الأبنية الخدمية لمركز الإيواء بحسياء | D16: 2 | E16: 2015-07-25 | F16: 9 | G16: 2016-05-23 | H16: 8403000 | J16: 210075 | K16: 18591 | P16: 8174334 | Q16: محصل | S16: 202 | T16: 2016-06-27
B17: المدينة الصناعية - حسياء | C17: مشروع الأبنية الخدمية لمركز الإيواء بحسياء | D17: 2 | E17: 2015-07-25 | F17: 10 | G17: 2016-06-23 | H17: 6292535 | J17: 157313 | K17: 13948 | O17: 50 | P17: 6121224 | Q17: محصل | S17: 264 | T17: 2016-08-27
B18: المدينة الصناعية - حسياء | C18: مشروع الأبنية الخدمية لمركز الإيواء بحسياء | D18: 2 | E18: 2015-07-25 | F18: 11 | G18: 2016-07-23 | H18: 10728650 | J18: 268216 | K18: 23708 | O18: 100 | P18: 10436626 | Q18: محصل | S18: 264 | T18: 2016-08-27
B19: المدينة الصناعية - حسياء | C19: مشروع الأبنية الخدمية لمركز الإيواء بحسياء | D19: 2 | E19: 2015-07-25 | F19: 12 | G19: 2016-08-23 | H19: 8268500 | J19: 206713 | K19: 18296 | O19: 66500 | P19: 7976991 | Q19: محصل | S19: 302 | T19: 2016-10-16
B20: المدينة الصناعية - حسياء | C20: مشروع الأبنية الخدمية لمركز الإيواء بحسياء | D20: 2 | E20: 2015-07-25 | F20: 13 | G20: 2016-09-23 | H20: 15739700 | J20: 393493 | K20: =31479+1574+50+1579+50 -> 34732 | O20: 200 | P20: 15311275 | Q20: محصل | S20: 332 | T20: 2016-11-07
B21: المدينة الصناعية - حسياء | C21: مشروع الأبنية الخدمية لمركز الإيواء بحسياء | D21: 2 | E21: 2015-07-25 | F21: 14 | G21: 2016-10-23 | H21: 385900 | J21: 9648 | K21: =50+772+44+39+50 -> 955 | P21: 375297 | Q21: محصل | S21: 357 | T21: 2016-11-29
B22: المدينة الصناعية - حسياء | C22: مشروع الأبنية الخدمية لمركز الإيواء بحسياء | D22: 2 | E22: 2015-07-25 | F22: فرق سعر 1 | G22: 2016-09-23 | H22: 88640194 | J22: 2216005 | K22: =177280+236391+3309573+236396+50+1240963+50 -> 5200703 | P22: 81223486 | Q22: محصل | S22: 387 | T22: 2017-08-15
B23: المدينة الصناعية - حسياء | C23: مشروع الأبنية الخدمية لمركز الإيواء بحسياء | D23: 2 | E23: 2015-07-25 | F23: 15 نهائي | G23: 2016-11-28 | H23: 8929116 | J23: 223228 | K23: =17858+893+50+1791 -> 20592 | L23: 530000 | N23: 500000 | P23: 7655296 | Q23: محصل | S23: 221 | T23: 2018-04-05 | U23: تم إرسال براءة ذمة من التأمينات الاجتماعية عن العقد بالكتاب 5664 تاريخ 27/11/2018
B24: المدينة الصناعية - حسياء | C24: مشروع الأبنية الخدمية لمركز الإيواء بحسياء | D24: 2 | E24: 2015-07-25 | F24: جزء من توقيفات العقد | P24: 0 | Q24: محصل | R24: 3267617 | S24: 36 | T24: 2019-02-18 | U24: كتاب استرداد 50% من توقيفات الضمان
B25: المدينة الصناعية - حسياء | C25: مشروع الأبنية الخدمية لمركز الإيواء بحسياء | D25: 2 | E25: 2015-07-25 | P25: 0 | U25: كتاب 470 / 2019
B26: المدينة الصناعية - حسياء | C26: مشروع الأبنية الخدمية لمركز الإيواء بحسياء | D26: 2 | E26: 2015-07-25 | P26: 0 | U26: استراد توقيات ك 15 نهائي كتاب 471 / 2019
B27: المدينة الصناعية - حسياء | C27: مشروع الأبنية الخدمية لمركز الإيواء بحسياء | D27: 2 | E27: 2015-07-25 | P27: 0
B28: المدينة الصناعية - حسياء | C28: مشروع الأبنية الخدمية لمركز الإيواء بحسياء | D28: 2 | E28: 2015-07-25 | P28: 0
B29: المدينة الصناعية - حسياء | C29: مشروع الأبنية الخدمية لمركز الإيواء بحسياء | D29: 2 | E29: 2015-07-25 | P29: 0
B30: المدينة الصناعية - حسياء | C30: مشروع الأبنية الخدمية لمركز الإيواء بحسياء | D30: 2 | E30: 2015-07-25 | P30: 0
B31: المدينة الصناعية - حسياء | C31: مشروع الأبنية الخدمية لمركز الإيواء بحسياء | D31: 2 | E31: 2015-07-25 | P31: 0
B32: المدينة الصناعية - حسياء | C32: مشروع الأبنية الخدمية لمركز الإيواء بحسياء | D32: 2 | E32: 2015-07-25 | P32: 0
B33: المدينة الصناعية - حسياء | C33: مشروع الأبنية الخدمية لمركز الإيواء بحسياء | D33: 2 | E33: 2015-07-25 | P33: 0
B34: المدينة الصناعية - حسياء | C34: مشروع الأبنية الخدمية لمركز الإيواء بحسياء | D34: 2 | E34: 2015-07-25 | P34: 0
B35: المدينة الصناعية - حسياء | C35: مشروع الأبنية الخدمية لمركز الإيواء بحسياء | D35: 2 | E35: 2015-07-25 | P35: 0
B36: المدينة الصناعية - حسياء | C36: مشروع الأبنية الخدمية لمركز الإيواء بحسياء | D36: 2 | E36: 2015-07-25 | P36: 0
B37: المدينة الصناعية - حسياء | C37: مشروع الأبنية الخدمية لمركز الإيواء بحسياء | D37: 2 | E37: 2015-07-25 | P37: 0
B38: المدينة الصناعية - حسياء | C38: مشروع الأبنية الخدمية لمركز الإيواء بحسياء | D38: 2 | E38: 2015-07-25 | P38: 0
B39: المدينة الصناعية - حسياء | C39: مشروع الأبنية الخدمية لمركز الإيواء بحسياء | D39: 2 | E39: 2015-07-25 | P39: 0
B40: المدينة الصناعية - حسياء | C40: مشروع الأبنية الخدمية لمركز الإيواء بحسياء | D40: 2 | E40: 2015-07-25 | P40: 0
B41: المدينة الصناعية - حسياء | C41: مشروع الأبنية الخدمية لمركز الإيواء بحسياء | D41: 2 | E41: 2015-07-25 | P41: 0
B42: المدينة الصناعية - حسياء | C42: مشروع الأبنية الخدمية لمركز الإيواء بحسياء | D42: 2 | E42: 2015-07-25 | P42: 0
B43: المدينة الصناعية - حسياء | C43: مشروع الأبنية الخدمية لمركز الإيواء بحسياء | D43: 2 | E43: 2015-07-25 | P43: 0
B44: المدينة الصناعية - حسياء | C44: مشروع الأبنية الخدمية لمركز الإيواء بحسياء | D44: 2 | E44: 2015-07-25 | P44: 0
B45: المدينة الصناعية - حسياء | C45: مشروع الأبنية الخدمية لمركز الإيواء بحسياء | D45: 2 | E45: 2015-07-25 | P45: 0
B46: المدينة الصناعية - حسياء | C46: مشروع الأبنية الخدمية لمركز الإيواء بحسياء | D46: 2 | E46: 2015-07-25 | P46: 0
B47: المدينة الصناعية - حسياء | C47: مشروع الأبنية الخدمية لمركز الإيواء بحسياء | D47: 2 | E47: 2015-07-25 | P47: 0
B48: المدينة الصناعية - حسياء | C48: مشروع الأبنية الخدمية لمركز الإيواء بحسياء | D48: 2 | E48: 2015-07-25 | P48: 0
B49: المدينة الصناعية - حسياء | C49: مشروع الأبنية الخدمية لمركز الإيواء بحسياء | D49: 2 | E49: 2015-07-25 | P49: 0
B50: المدينة الصناعية - حسياء | C50: مشروع الأبنية الخدمية لمركز الإيواء بحسياء | D50: 2 | E50: 2015-07-25 | P50: 0
B51: المدينة الصناعية - حسياء | C51: مشروع الأبنية الخدمية لمركز الإيواء بحسياء | D51: 2 | E51: 2015-07-25 | P51: 0
B52: المدينة الصناعية - حسياء | C52: مشروع الأبنية الخدمية لمركز الإيواء بحسياء | D52: 2 | E52: 2015-07-25 | P52: 0
B53: المدينة الصناعية - حسياء | C53: مشروع الأبنية الخدمية لمركز الإيواء بحسياء | D53: 2 | E53: 2015-07-25 | P53: 0
B54: المدينة الصناعية - حسياء | C54: مشروع الأبنية الخدمية لمركز الإيواء بحسياء | D54: 2 | E54: 2015-07-25 | P54: 0
B55: المدينة الصناعية - حسياء | C55: مشروع الأبنية الخدمية لمركز الإيواء بحسياء | D55: 2 | E55: 2015-07-25 | P55: 0
B56: المدينة الصناعية - حسياء | C56: مشروع الأبنية الخدمية لمركز الإيواء بحسياء | D56: 2 | E56: 2015-07-25 | P56: 0
B57: المدينة الصناعية - حسياء | C57: مشروع الأبنية الخدمية لمركز الإيواء بحسياء | D57: 2 | E57: 2015-07-25 | P57: 0
B58: المدينة الصناعية - حسياء | C58: مشروع الأبنية الخدمية لمركز الإيواء بحسياء | D58: 2 | E58: 2015-07-25 | P58: 0
B59: المدينة الصناعية - حسياء | C59: مشروع الأبنية الخدمية لمركز الإيواء بحسياء | D59: 2 | E59: 2015-07-25 | P59: 0
